Workbook

Sheet Changes (hidden)
A1: Change date | B1: Tab name | C1: Description
A2: 2024-11-11 | B2: DetailedBudget---TXST | C2: Added rows to the consultant subcategory. The number of consultants that can be accomodated went from 5 to 20.
A3: 2024-11-11 | B3: CostShareBudget | C3: Added rows to the consultant subcategory. The number of consultants that can be accomodated went from 5 to 20.
A4: 2024-11-14 | B4: Error in SAP budget tabs | C4: one of the equipment categories was picking up the wrong cells from the DetailedBudget---TXST. The SAP budget tabs are for OS Post Award use.
A5: 2024-12-02 | B5: DetailedBudget---TXST | C5: Added coloring to emphasize guidance in the Participant Support section
A6: 2024-12-04 | B6: WorkingHoursCalc | C6: Added new calculator in rows 39-46 which calculates annual person months using % effort
A7: 2024-12-04 | B7: WorkingHoursCalc | C7: Added new calculator in rows 48-55 which calculates annual % effort using person months
A8: 2025-01-08 | B8: Initial Information | C8: Added row for comments regarding IDC, like if the RFP has a prohibition/limitation on IDC rate or if a reduction/waiver was approved by DOR.
A9: 2025-02-05 | B9: Travel Calculator | C9: Updated mileage rate
A10: 2025-03-05 | B10: DetailedBudget---TXST | C10: Added columns for Years 7 through 10
A11: 2025-03-05 | B11: SAP-if 10 Years | C11: Added new SAP budget template to support a 10-year budget
A12: 2025-04-01 | B12: DetailedBudget---TXST | C12: Overhauled each budget category/subcategory to use drop down menus
A13: 2025-04-01 | B13: CostShareBudget | C13: Overhauled each budget category/subcategory to use drop down menus
A14: 2025-04-01 | B14: DetailedBudget---TXST | C14: Collapsed Senior and Other Personnel sections into a single section
A15: 2025-04-01 | B15: CostShareBudget | C15: Collapsed Senior and Other Personnel sections into a single section
A16: 2025-04-01 | B16: DetailedBudget---TXST | C16: Added check boxes in column for indicating whether personnel is Senior Personnel or not (check boxes not included in the hourly employee section).
A17: 2025-04-01 | B17: CostShareBudget | C17: Added check boxes in column for indicating whether personnel is Senior Personnel or not (check boxes not included in the hourly employee section).
A18: 2025-04-01 | B18: DetailedBudget---TXST | C18: Added checkboxes for each year for each personnel that permits the user to add T&P raise in that year; autocalculates a 10% raise into that year's funding request.
A19: 2025-04-01 | B19: CostShareBudget | C19: Added checkboxes for each year for each personnel that permits the user to add T&P raise in that year; autocalculates a 10% raise into that year's funding request.
A20: 2025-04-01 | B20: DetailedBudget---TXST | C20: The gray table has been revised to apply a flat annual increase rate of 3% per year, distinctively for each year without accumulation from previous years. The method of input has also been updated to directly use percentage figures (e.g., entering 3% instead of the decimal 0.03 or multiplier 1.03). This adjustment ensures that each year's salary raise is calculated independently based on the original salary, thereby simplifying the increase process and avoiding the cumulative effect of previous years' raises.
A21: 2025-04-01 | B21: CostShareBudget | C21: The gray table has been revised to apply a flat annual increase rate of 3% per year, distinctively for each year without accumulation from previous years. The method of input has also been updated to directly use percentage figures (e.g., entering 3% instead of the decimal 0.03 or multiplier 1.03). This adjustment ensures that each year's salary raise is calculated independently based on the original salary, thereby simplifying the increase process and avoiding the cumulative effect of previous years' raises.

Sheet Initial Information
A1: Please enter the start date for the first year of the project: | E1: 2026-09-01 | F1: Please enter the duration of the project, in months: | J1: 24
A2: Please complete the following information:
A3: Title of Project: | E3: title here
A4: Kuali Research Proposal Development #: | E4: 9999
A5: Name of sponsor: | E5: Noobs
A6: Prime Sponsor, if applicable: | E6: Olds
A7: Solicitation #, if applicable: | E7: this one
A8: CFDA/ALN, if applicable: | E8: 123
A9: CFDA/ALN description, if applicable: | E9: 456
A10: Name of PI: | E10: Viktor Frank
A11: Sponsor proposal due date: | E11: 2026-05-15
A12: # of days until propsal due to sponsor | E12: =IF(E11="", "Pending due date entry", E11-TODAY()) -> 25
A13: Internal deadline for completed proposal application to OSP: | E13: =IF(E11="", "Pending due date entry", WORKDAY(E11,-3,Holidays!A:A)) -> 2026-05-12
A14: # of days until proposal due to OSP | E14: =IF(E11="", "Pending due date entry", E13-TODAY()) -> 22
A15: Indirect Cost Rate to be applied: | E15: 0.505
A16: Indirect Cost Calculation Method: | E16: MTDC
A17: IDC Comment:
A18: WHOLE DOLLAR (0) or TO THE PENNY (2)? | E18: Whole Dollars | M18: =IF(E18="Whole Dollars",0,IF(E18="Cents",2,"")) -> 0
A19: What is the maximum budget for this proposal budget?
A20: Will Texas State University serve as a lead institution, with subawards included in the project? If 'Yes,' then enter the name of the each subaward institution in a separate cell to the right: | E20: Enter name of subaward institution #1 | G20: Enter name of subaward institution #6
E21: Enter name of subaward institution #2 | G21: Enter name of subaward institution #7
E22: Enter name of subaward institution #3 | G22: Enter name of subaward institution #8
E23: Enter name of subaward institution #4 | G23: Enter name of subaward institution #9
E24: Enter name of subaward institution #5 | G24: Enter name of subaward institution #10
A25: IF you have an IRB or IACUC protocol in place for this project, please provide the Kuali Research Protocol #. Note: all compliance is handled by the Research Integrity and Compliance office (RIC).
A27: *** Please notify your Proposal Coordinator & Research Coordinator if you or any other faculty included in this budget will go up for Tenure & Promotion during this project ***
J29: Release Date: April 13, 2026

Sheet DetailedBudget---TXST
A1: Texas State University | BO1: Non-IDC relevant budget category
A2: =IF('Initial Information'!E3="", "", 'Initial Information'!E3) -> title here
A3: Funding Request Total: | F3: =BK287 -> 40280 | M3: % Cost Share: | O3: =M297 -> No Cost Share | R3: Total Cost Share: | T3: =J298 -> 0
C4: Principal Investigator: | E4: =IF('Initial Information'!E10="", "", 'Initial Information'!E10) -> Viktor Frank
D6: Sponsor: | E6: =IF('Initial Information'!E5="", "", 'Initial Information'!E5) -> Noobs
B8: Prime Sponsor: | E8: =IF('Initial Information'!E6="", "", 'Initial Information'!E6) -> Olds
B10: Solicitation #: | E10: =IF('Initial Information'!E7="", "", 'Initial Information'!E7) -> this one
B12: CFDA / ALN: | E12: =IF('Initial Information'!E8="", "", 'Initial Information'!E8) -> 123 | H12: =IF('Initial Information'!E9="", "", 'Initial Information'!E9) -> 456
D14: Project Dates: | E14: ='Initial Information'!E1 -> 2026-09-01 | H14: through | I14: =IF('Initial Information'!J1<=12, 'DetailedBudget---TXST'!O20, IF('Initial Information'!J1<=24, 'DetailedBudget---TXST'!T20, IF('Initial Information'!J1<=36, 'DetailedBudget---TXST'!Y20, IF('Initial Information'!J1<=48, 'DetailedBudget---TXST'!AD20, IF('Initial Information'!J1<=60, 'DetailedBudget---TXST'!AI20, IF('Initial Information'!J1<=100, 'DetailedBudget---TXST'!BH20)))))) -> 2028-08-31 | BO14: 10% T&P increase, when applicable
D16: Due date: | E16: ='Initial Information'!E11 -> 2026-05-15 | H16: Kuali Research Proposal Development record: | L16: =_xlfn.CONCAT("KC #",'Initial Information'!E4) -> KC #9999 | BO16: ** Annual cost-of-living (inflation) increase: 3%
B18: # of days until COMPLETE proposal due to OSP: | E18: ='Initial Information'!E14 -> 22 | BO18: Inflation Rate + T&P Raise, if applicable | DI18: calculated hours of effort based on 2080 annual workhours | FC18: calculated FTE based on 12-months | GW18: Estimated monthly salary | IQ18: Estimated Annualized 12-month salary | KK18: Fringe | MF18: Senior Personnel Helper Table for NSF budget tab | MY18: Other Personnel Helper Table for NSF budget tab
M19: Year 1 | R19: Year 2 | W19: Year 3 | AB19: Year 4 | AG19: Year 5 | AL19: Year 6 | AQ19: Year 7 | AV19: Year 8 | BA19: Year 9 | BF19: Year 10 | BK19: TOTAL FUNDS REQUESTED | MF19: Name | MG19: Total Months of Effort | MH19: Total Requested Salary | MI19: Name | MJ19: Total Months of Effort | MK19: Total Requested Salary | ML19: Name | MM19: Total Months of Effort | MN19: Total Requested Salary | MO19: Name | MP19: Total Months of Effort | MQ19: Total Requested Salary | MR19: Name | MS19: Total Months of Effort | MT19: Total Requested Salary | MU19: Name | MV19: Total Months of Effort | MW19: Total Requested Salary | MY19: Role | MZ19: Total Months of Effort | NA19: Total Requested Salary | NB19: Role | NC19: Total Months of Effort | ND19: Total Requested Salary | NE19: Role | NF19: Total Months of Effort | NG19: Total Requested Salary | NH19: Role | NI19: Total Months of Effort | NJ19: Total Requested Salary | NK19: Role | NL19: Total Months of Effort | NM19: Total Requested Salary | NN19: Role | NO19: Total Months of Effort | NP19: Total Requested Salary
B20: Beware of hidden rows! | M20: =E14 -> 2026-09-01 | N20: - | O20: =M20+364 -> 2027-08-31 | R20: =O20+1 -> 2027-09-01 | S20: - | T20: =R20+364+1 -> 2028-08-31 | W20: =T20+1 -> 2028-09-01 | X20: - | Y20: =W20+364 -> 2029-08-31 | AB20: =Y20+1 -> 2029-09-01 | AC20: - | AD20: =AB20+365-1 -> 2030-08-31 | AG20: =AD20+1 -> 2030-09-01 | AH20: - | AI20: =AG20+364 -> 2031-08-31 | AL20: =AI20+1 -> 2031-09-01 | AM20: - | AN20: =AL20+365-1 -> 2032-08-30 | AQ20: =AN20+1 -> 2032-08-31 | AR20: - | AS20: =AQ20+365 -> 2033-08-31 | AV20: =AS20+1 -> 2033-09-01 | AW20: - | AX20: =AV20+365-1 -> 2034-08-31 | BA20: =AX20+1 -> 2034-09-01 | BB20: - | BC20: =BA20+365-1 -> 2035-08-31 | BF20: =BC20+1 -> 2035-09-01 | BG20: - | BH20: =BF20+365-1 -> 2036-08-30 | BO20: =M19 -> Year 1 | BT20: =R19 -> Year 2 | BY20: =W19 -> Year 3 | CD20: =AB19 -> Year 4 | CI20: =AG19 -> Year 5 | CN20: =AL19 -> Year 6 | CS20: =AQ19 -> Year 7 | CX20: =AV19 -> Year 8 | DC20: =BA19 -> Year 9 | DH20: =BF19 -> Year 10 | DI20: =BO20 -> Year 1 | DN20: =BT20 -> Year 2 | DS20: =BY20 -> Year 3 | DX20: =CD20 -> Year 4 | EC20: =CI20 -> Year 5 | EH20: =CN20 -> Year 6 | EM20: =CS20 -> Year 7 | ER20: =CX20 -> Year 8 | EW20: =DC20 -> Year 9 | FB20: =DH20 -> Year 10 | FC20: =BO20 -> Year 1 | FH20: =BT20 -> Year 2 | FM20: =BY20 -> Year 3 | FR20: =CD20 -> Year 4 | FW20: =CI20 -> Year 5 | GB20: =CN20 -> Year 6 | GG20: =CS20 -> Year 7 | GL20: =CX20 -> Year 8 | GQ20: =DC20 -> Year 9 | GV20: =DH20 -> Year 10 | GW20: =FC20 -> Year 1 | HB20: =FH20 -> Year 2 | HG20: =FM20 -> Year 3 | HL20: =FR20 -> Year 4 | HQ20: =FW20 -> Year 5 | HV20: =GB20 -> Year 6 | IA20: =GG20 -> Year 7 | IF20: =GL20 -> Year 8 | IK20: =GQ20 -> Year 9 | IP20: =GV20 -> Year 10 | IQ20: =GW20 -> Year 1 | IV20: =HB20 -> Year 2 | JA20: =HG20 -> Year 3 | JF20: =HL20 -> Year 4 | JK20: =HQ20 -> Year 5 | JP20: =HV20 -> Year 6 | JU20: =IA20 -> Year 7 | JZ20: =IF20 -> Year 8 | KE20: =IK20 -> Year 9 | KJ20: =IP20 -> Year 10 | KK20: =BO20 -> Year 1 | KP20: =BT20 -> Year 2 | KU20: =BY20 -> Year 3 | KZ20: =CD20 -> Year 4 | LE20: =CI20 -> Year 5 | LJ20: =CN20 -> Year 6 | LO20: =CS20 -> Year 7 | LT20: =CX20 -> Year 8 | LY20: =DC20 -> Year 9 | MD20: =DH20 -> Year 10 | MF20: =KK20 -> Year 1 | MI20: =BT20 -> Year 2 | ML20: =BY20 -> Year 3 | MO20: =CD20 -> Year 4 | MR20: =CI20 -> Year 5 | MU20: =CN20 -> Year 6 | MY20: =BO20 -> Year 1 | NB20: =BT20 -> Year 2 | NE20: =BY20 -> Year 3 | NH20: =CD20 -> Year 4 | NK20: =CI20 -> Year 5 | NN20: =CN20 -> Year 6
A22: Check if Senior Personnel | C22: Personnel | N22: T&P | S22: T&P | X22: T&P | AC22: T&P | AH22: T&P | AM22: T&P | AR22: T&P | AW22: T&P | BB22: T&P | BG22: T&P
C23: Select Personnel Type | F23: Name (or TBD) | G23: Full-time Monthly Base | J23: Fringe Rate | M23: Person Months months of effort
A24: TRUE | B24: 1 | C24: Faculty | F24: =E4 -> Viktor Frank | H24: 10000 | J24: =IF(C24="Select from Options Below", 0.28, IFERROR(VLOOKUP(C24, DropDownMenus!$J$1:$K$9, 2, FALSE), 0.28)) -> 0.28 | M24: 1 | N24: FALSE | O24: =ROUND($H24*(1+BO24)*M24,'Initial Information'!$M$18) -> 10300 | R24: 1 | S24: FALSE | T24: =ROUND($H24*(1+BO24)*(1+BT24)*R24,'Initial Information'!$M$18) -> 10609 | X24: FALSE | Y24: =ROUND($H24*(1+BO24)*(1+BT24)*(1+BY24)*W24,'Initial Information'!$M$18) -> 0 | AC24: FALSE | AD24: =ROUND($H24*(1+BO24)*(1+BT24)*(1+BY24)*(1+CD24)*AB24,'Initial Information'!$M$18) -> 0 | AH24: FALSE | AI24: =ROUND($H24*(1+BO24)*(1+BT24)*(1+BY24)*(1+CD24)*(1+CI24)*AG24,'Initial Information'!$M$18) -> 0 | AM24: FALSE | AN24: =ROUND($H24*(1+BO24)*(1+BT24)*(1+BY24)*(1+CD24)*(1+CI24)*(1+CN24)*AL24,'Initial Information'!$M$18) -> 0 | AR24: FALSE | AS24: =ROUND($H24*(1+BO24)*(1+BT24)*(1+BY24)*(1+CD24)*(1+CI24)*(1+CN24)*(1+CS24)*AQ24,'Initial Information'!$M$18) -> 0 | AW24: FALSE | AX24: =ROUND($H24*(1+BO24)*(1+BT24)*(1+BY24)*(1+CD24)*(1+CI24)*(1+CN24)*(1+CS24)*(1+CX24)*AV24,'Initial Information'!$M$18) -> 0 | BB24: FALSE | BC24: =ROUND($H24*(1+BO24)*(1+BT24)*(1+BY24)*(1+CD24)*(1+CI24)*(1+CN24)*(1+CS24)*(1+CX24)*(1+DC24)*BA24,'Initial Information'!$M$18) -> 0 | BG24: FALSE | BH24: =ROUND($H24*(1+BO24)*(1+BT24)*(1+BY24)*(1+CD24)*(1+CI24)*(1+CN24)*(1+CS24)*(1+CX24)*(1+DC24)*(1+DH24)*BF24,'Initial Information'!$M$18) -> 0 | BK24: =SUM(O24+T24+Y24+AD24+BH24+AI24+BC24+AX24+AS24+AN24) -> 20909 | BO24: =IF( ISNUMBER(SEARCH("TBD",F24)), 0, IF(N24=TRUE,0.1,0.03) ) -> 0.03 | BT24: =IF(S24=TRUE, 0.1, 0.03) -> 0.03 | BY24: =IF(X24=TRUE, 0.1, 0.03) -> 0.03 | CD24: =IF(AC24=TRUE, 0.1, 0.03) -> 0.03 | CI24: =IF(AH24=TRUE, 0.1, 0.03) -> 0.03 | CN24: =IF(AM24=TRUE, 0.1, 0.03) -> 0.03 | CS24: =IF(AR24=TRUE, 0.1, 0.03) -> 0.03 | CX24: =IF(AW24=TRUE, 0.1, 0.03) -> 0.03 | DC24: =IF(BB24=TRUE, 0.1, 0.03) -> 0.03 | DH24: =IF(BG24=TRUE, 0.1, 0.03) -> 0.03 | DI24: =ROUND((2080/12)*M24,2) -> 173.33 | DN24: =ROUND((2080/12)*R24,2) -> 173.33 | DS24: =ROUND((2080/12)*W24,2) -> 0 | DX24: =ROUND((2080/12)*AB24,2) -> 0 | EC24: =ROUND((2080/12)*AG24,2) -> 0 | EH24: =ROUND((2080/12)*BF24,2) -> 0 | EM24: =ROUND((2080/12)*AQ24,2) -> 0 | ER24: =ROUND((2080/12)*AV24,2) -> 0 | EW24: =ROUND((2080/12)*BA24,2) -> 0 | FB24: =ROUND((2080/12)*BF24,2) -> 0 | FC24: =ROUND((M24/12),3) -> 0.083 | FH24: =ROUND((R24/12),3) -> 0.083 | FM24: =ROUND((W24/12),3) -> 0 | FR24: =ROUND((AB24/12),3) -> 0 | FW24: =ROUND((AG24/12),3) -> 0 | GB24: =ROUND((AL24/12),3) -> 0 | GG24: =ROUND((AQ24/12),3) -> 0 | GL24: =ROUND((AV24/12),3) -> 0 | GQ24: =ROUND((BA24/12),3) -> 0 | GV24: =ROUND((BF24/12),3) -> 0 | GW24: =ROUND((1+BO24)*$H24,2) -> 10300 | HB24: =ROUND(GW24*(1+BT24),2) -> 10609 | HG24: =ROUND(HB24*(1+BY24),2) -> 10927.27 | HL24: =ROUND(HG24*(1+CD24),2) -> 11255.09 | HQ24: =ROUND(HL24*(1+CI24),2) -> 11592.74 | HV24: =ROUND(HQ24*(1+CN24),2) -> 11940.52 | IA24: =ROUND(HV24*(1+CS24),2) -> 12298.74 | IF24: =ROUND(IA24*(1+CX24),2) -> 12667.7 | IK24: =ROUND(IF24*(1+DC24),2) -> 13047.73 | IP24: =ROUND(IK24*(1+DH24),2) -> 13439.16 | IQ24: =GW24*12 -> 123600 | IV24: =HB24*12 -> 127308 | JA24: =HG24*12 -> 131127.24 | JF24: =HL24*12 -> 135061.08 | JK24: =HQ24*12 -> 139112.88 | JP24: =HV24*12 -> 143286.24 | JU24: =IA24*12 -> 147584.88 | JZ24: =IF24*12 -> 152012.4 | KE24: =IK24*12 -> 156572.76 | KJ24: =IP24*12 -> 161269.92 | KK24: =ROUND($J24*O24, 'Initial Information'!$M$18) -> 2884 | KP24: =ROUND($J24*T24, 'Initial Information'!$M$18) -> 2971 | KU24: =ROUND($J24*Y24, 'Initial Information'!$M$18) -> 0 | KZ24: =ROUND($J24*AD24, 'Initial Information'!$M$18) -> 0 | LE24: =ROUND($J24*AI24, 'Initial Information'!$M$18) -> 0 | LJ24: =ROUND($J24*AN24, 'Initial Information'!$M$18) -> 0 | LO24: =ROUND($J24*AS24, 'Initial Information'!$M$18) -> 0 | LT24: =ROUND($J24*AX24, 'Initial Information'!$M$18) -> 0 | LY24: =ROUND($J24*BC24, 'Initial Information'!$M$18) -> 0 | MD24: =ROUND($J24*BH24, 'Initial Information'!$M$18) -> 0 | MF24: =IF(A24, F24, "") -> Viktor Frank | MG24: =IF(A24, N(M24), "") -> 1 | MH24: =IF(A24, N(O24), "") -> 10300 | MI24: =MF24 -> Viktor Frank | MJ24: =IF(A24, N(R24), "") -> 1 | MK24: =IF(A24, N(T24), "") -> 10609 | ML24: =MF24 -> Viktor Frank | MM24: =IF(A24, N(W24), "") -> 0 | MN24: =IF(A24, N(Y24), "") -> 0 | MO24: =MF24 -> Viktor Frank | MP24: =IF(A24, N(AB24), "") -> 0 | MQ24: =IF(A24, N(AD24), "") -> 0 | MR24: =MF24 -> Viktor Frank | MS24: =IF(A24, N(AG24), "") -> 0 | MT24: =IF(A24, N(AI24), "") -> 0 | MU24: =MF24 -> Viktor Frank | MV24: =IF(A24, N(AL24), "") -> 0 | MW24: =IF(A24, N(AN24), "") -> 0 | MY24: =IF(AND(N(M24)>0, A24=FALSE), C24, "") ->  | MZ24: =IF(ROW()<=43, IF(A24=FALSE, N(M24), ""), N(M24)) ->  | NA24: =IF(ROW()<=43, IF(A24=FALSE, N(O24), ""), N(O24)) ->  | NB24: =IF(AND(N(R24)>0, A24=FALSE), C24, "") ->  | NC24: =IF(A24=FALSE, N(R24), "") ->  | ND24: =IF(A24=FALSE, N(T24), "") ->  | NE24: =IF(AND(N(W24)>0, A24=FALSE), C24, "") ->  | NF24: =IF(A24=FALSE, N(W24), "") ->  | NG24: =IF(A24=FALSE, N(Y24), "") ->  | NH24: =IF(AND(N(AB24)>0, A24=FALSE), C24, "") ->  | NI24: =IF(A24=FALSE, N(AB24), "") ->  | NJ24: =IF(A24=FALSE, N(AD24), "") ->  | NK24: =IF(AND(N(AG24)>0, A24=FALSE), C24, "") ->  | NL24: =IF(A24=FALSE, N(AG24), "") ->  | NM24: =IF(A24=FALSE, N(AI24), "") ->  | NN24: =IF(AND(N(AL24)>0, A24=FALSE), C24, "") ->  | NO24: =IF(A24=FALSE, N(AL24), "") ->  | NP24: =IF(A24=FALSE, N(AN24), "") -> 
A25: FALSE | B25: 2 | J25: =IF(C25="Select from Options Below", 0.28, IFERROR(VLOOKUP(C25, DropDownMenus!$J$1:$K$9, 2, FALSE), 0.28)) -> 0.28 | N25: FALSE | O25: =ROUND($H25*(1+BO25)*M25,'Initial Information'!$M$18) -> 0 | S25: FALSE | T25: =ROUND($H25*(1+BO25)*(1+BT25)*R25,'Initial Information'!$M$18) -> 0 | X25: FALSE | Y25: =ROUND($H25*(1+BO25)*(1+BT25)*(1+BY25)*W25,'Initial Information'!$M$18) -> 0 | AC25: FALSE | AD25: =ROUND($H25*(1+BO25)*(1+BT25)*(1+BY25)*(1+CD25)*AB25,'Initial Information'!$M$18) -> 0 | AH25: FALSE | AI25: =ROUND($H25*(1+BO25)*(1+BT25)*(1+BY25)*(1+CD25)*(1+CI25)*AG25,'Initial Information'!$M$18) -> 0 | AM25: FALSE | AN25: =ROUND($H25*(1+BO25)*(1+BT25)*(1+BY25)*(1+CD25)*(1+CI25)*(1+CN25)*AL25,'Initial Information'!$M$18) -> 0 | AR25: FALSE | AS25: =ROUND($H25*(1+BO25)*(1+BT25)*(1+BY25)*(1+CD25)*(1+CI25)*(1+CN25)*(1+CS25)*AQ25,'Initial Information'!$M$18) -> 0 | AW25: FALSE | AX25: =ROUND($H25*(1+BO25)*(1+BT25)*(1+BY25)*(1+CD25)*(1+CI25)*(1+CN25)*(1+CS25)*(1+CX25)*AV25,'Initial Information'!$M$18) -> 0 | BB25: FALSE | BC25: =ROUND($H25*(1+BO25)*(1+BT25)*(1+BY25)*(1+CD25)*(1+CI25)*(1+CN25)*(1+CS25)*(1+CX25)*(1+DC25)*BA25,'Initial Information'!$M$18) -> 0 | BG25: FALSE | BH25: =ROUND($H25*(1+BO25)*(1+BT25)*(1+BY25)*(1+CD25)*(1+CI25)*(1+CN25)*(1+CS25)*(1+CX25)*(1+DC25)*(1+DH25)*BF25,'Initial Information'!$M$18) -> 0 | BK25: 0 | BO25: =IF( ISNUMBER(SEARCH("TBD",F25)), 0, IF(N25=TRUE,0.1,0.03) ) -> 0.03 | BT25: =IF(S25=TRUE, 0.1, 0.03) -> 0.03 | BY25: =IF(X25=TRUE, 0.1, 0.03) -> 0.03 | CD25: =IF(AC25=TRUE, 0.1, 0.03) -> 0.03 | CI25: =IF(AH25=TRUE, 0.1, 0.03) -> 0.03 | CN25: =IF(AM25=TRUE, 0.1, 0.03) -> 0.03 | CS25: =IF(AR25=TRUE, 0.1, 0.03) -> 0.03 | CX25: =IF(AW25=TRUE, 0.1, 0.03) -> 0.03 | DC25: =IF(BB25=TRUE, 0.1, 0.03) -> 0.03 | DH25: =IF(BG25=TRUE, 0.1, 0.03) -> 0.03 | DI25: =ROUND((2080/12)*M25,2) -> 0 | DN25: =ROUND((2080/12)*R25,2) -> 0 | DS25: =ROUND((2080/12)*W25,2) -> 0 | DX25: =ROUND((2080/12)*AB25,2) -> 0 | EC25: =ROUND((2080/12)*AG25,2) -> 0 | EH25: =ROUND((2080/12)*BF25,2) -> 0 | EM25: =ROUND((2080/12)*AQ25,2) -> 0 | ER25: =ROUND((2080/12)*AV25,2) -> 0 | EW25: =ROUND((2080/12)*BA25,2) -> 0 | FB25: =ROUND((2080/12)*BF25,2) -> 0 | FC25: =ROUND((M25/12),3) -> 0 | FH25: =ROUND((R25/12),3) -> 0 | FM25: =ROUND((W25/12),3) -> 0 | FR25: =ROUND((AB25/12),3) -> 0 | FW25: =ROUND((AG25/12),3) -> 0 | GB25: =ROUND((AL25/12),3) -> 0 | GG25: =ROUND((AQ25/12),3) -> 0 | GL25: =ROUND((AV25/12),3) -> 0 | GQ25: =ROUND((BA25/12),3) -> 0 | GV25: =ROUND((BF25/12),3) -> 0 | GW25: =ROUND((1+BO25)*$H25,2) -> 0 | HB25: =ROUND(GW25*(1+BT25),2) -> 0 | HG25: =ROUND(HB25*(1+BY25),2) -> 0 | HL25: =ROUND(HG25*(1+CD25),2) -> 0 | HQ25: =ROUND(HL25*(1+CI25),2) -> 0 | HV25: =ROUND(HQ25*(1+CN25),2) -> 0 | IA25: =ROUND(HV25*(1+CS25),2) -> 0 | IF25: =ROUND(IA25*(1+CX25),2) -> 0 | IK25: =ROUND(IF25*(1+DC25),2) -> 0 | IP25: =ROUND(IK25*(1+DH25),2) -> 0 | IQ25: =GW25*12 -> 0 | IV25: =HB25*12 -> 0 | JA25: =HG25*12 -> 0 | JF25: =HL25*12 -> 0 | JK25: =HQ25*12 -> 0 | JP25: =HV25*12 -> 0 | JU25: =IA25*12 -> 0 | JZ25: =IF25*12 -> 0 | KE25: =IK25*12 -> 0 | KJ25: =IP25*12 -> 0 | KK25: =ROUND($J25*O25, 'Initial Information'!$M$18) -> 0 | KP25: =ROUND($J25*T25, 'Initial Information'!$M$18) -> 0 | KU25: =ROUND($J25*Y25, 'Initial Information'!$M$18) -> 0 | KZ25: =ROUND($J25*AD25, 'Initial Information'!$M$18) -> 0 | LE25: =ROUND($J25*AI25, 'Initial Information'!$M$18) -> 0 | LJ25: =ROUND($J25*AN25, 'Initial Information'!$M$18) -> 0 | LO25: =ROUND($J25*AS25, 'Initial Information'!$M$18) -> 0 | LT25: =ROUND($J25*AX25, 'Initial Information'!$M$18) -> 0 | LY25: =ROUND($J25*BC25, 'Initial Information'!$M$18) -> 0 | MD25: =ROUND($J25*BH25, 'Initial Information'!$M$18) -> 0 | MF25: =IF(A25, F25, "") ->  | MG25: =IF(A25, N(M25), "") ->  | MH25: =IF(A25, N(O25), "") ->  | MI25: =MF25 ->  | MJ25: =IF(A25, N(R25), "") ->  | MK25: =IF(A25, N(T25), "") ->  | ML25: =MF25 ->  | MM25: =IF(A25, N(W25), "") ->  | MN25: =IF(A25, N(Y25), "") ->  | MO25: =MF25 ->  | MP25: =IF(A25, N(AB25), "") ->  | MQ25: =IF(A25, N(AD25), "") ->  | MR25: =MF25 ->  | MS25: =IF(A25, N(AG25), "") ->  | MT25: =IF(A25, N(AI25), "") ->  | MU25: =MF25 ->  | MV25: =IF(A25, N(AL25), "") ->  | MW25: =IF(A25, N(AN25), "") ->  | MY25: =IF(AND(N(M25)>0, A25=FALSE), C25, "") ->  | MZ25: =IF(ROW()<=43, IF(A25=FALSE, N(M25), ""), N(M25)) -> 0 | NA25: =IF(ROW()<=43, IF(A25=FALSE, N(O25), ""), N(O25)) -> 0 | NB25: =IF(AND(N(R25)>0, A25=FALSE), C25, "") ->  | NC25: =IF(A25=FALSE, N(R25), "") -> 0 | ND25: =IF(A25=FALSE, N(T25), "") -> 0 | NE25: =IF(AND(N(W25)>0, A25=FALSE), C25, "") ->  | NF25: =IF(A25=FALSE, N(W25), "") -> 0 | NG25: =IF(A25=FALSE, N(Y25), "") -> 0 | NH25: =IF(AND(N(AB25)>0, A25=FALSE), C25, "") ->  | NI25: =IF(A25=FALSE, N(AB25), "") -> 0 | NJ25: =IF(A25=FALSE, N(AD25), "") -> 0 | NK25: =IF(AND(N(AG25)>0, A25=FALSE), C25, "") ->  | NL25: =IF(A25=FALSE, N(AG25), "") -> 0 | NM25: =IF(A25=FALSE, N(AI25), "") -> 0 | NN25: =IF(AND(N(AL25)>0, A25=FALSE), C25, "") ->  | NO25: =IF(A25=FALSE, N(AL25), "") -> 0 | NP25: =IF(A25=FALSE, N(AN25), "") -> 0
A26: FALSE | B26: 3 | J26: =IF(C26="Select from Options Below", 0.28, IFERROR(VLOOKUP(C26, DropDownMenus!$J$1:$K$9, 2, FALSE), 0.28)) -> 0.28 | N26: FALSE | O26: =ROUND($H26*(1+BO26)*M26,'Initial Information'!$M$18) -> 0 | S26: FALSE | T26: =ROUND($H26*(1+BO26)*(1+BT26)*R26,'Initial Information'!$M$18) -> 0 | X26: FALSE | Y26: =ROUND($H26*(1+BO26)*(1+BT26)*(1+BY26)*W26,'Initial Information'!$M$18) -> 0 | AC26: FALSE | AD26: =ROUND($H26*(1+BO26)*(1+BT26)*(1+BY26)*(1+CD26)*AB26,'Initial Information'!$M$18) -> 0 | AH26: FALSE | AI26: =ROUND($H26*(1+BO26)*(1+BT26)*(1+BY26)*(1+CD26)*(1+CI26)*AG26,'Initial Information'!$M$18) -> 0 | AM26: FALSE | AN26: =ROUND($H26*(1+BO26)*(1+BT26)*(1+BY26)*(1+CD26)*(1+CI26)*(1+CN26)*AL26,'Initial Information'!$M$18) -> 0 | AR26: FALSE | AS26: =ROUND($H26*(1+BO26)*(1+BT26)*(1+BY26)*(1+CD26)*(1+CI26)*(1+CN26)*(1+CS26)*AQ26,'Initial Information'!$M$18) -> 0 | AW26: FALSE | AX26: =ROUND($H26*(1+BO26)*(1+BT26)*(1+BY26)*(1+CD26)*(1+CI26)*(1+CN26)*(1+CS26)*(1+CX26)*AV26,'Initial Information'!$M$18) -> 0 | BB26: FALSE | BC26: =ROUND($H26*(1+BO26)*(1+BT26)*(1+BY26)*(1+CD26)*(1+CI26)*(1+CN26)*(1+CS26)*(1+CX26)*(1+DC26)*BA26,'Initial Information'!$M$18) -> 0 | BG26: FALSE | BH26: =ROUND($H26*(1+BO26)*(1+BT26)*(1+BY26)*(1+CD26)*(1+CI26)*(1+CN26)*(1+CS26)*(1+CX26)*(1+DC26)*(1+DH26)*BF26,'Initial Information'!$M$18) -> 0 | BK26: 0 | BO26: 0.03 | BT26: 0.03 | BY26: 0.03 | CD26: 0.03 | CI26: 0.03 | CN26: 0.03 | CS26: 0.03 | CX26: 0.03 | DC26: 0.03 | DH26: 0.03 | DI26: 0 | DN26: 0 | DS26: 0 | DX26: 0 | EC26: 0 | EH26: 0 | EM26: 0 | ER26: 0 | EW26: 0 | FB26: 0 | FC26: 0 | FH26: 0 | FM26: 0 | FR26: 0 | FW26: 0 | GB26: 0 | GG26: 0 | GL26: 0 | GQ26: 0 | GV26: 0 | GW26: 0 | HB26: 0 | HG26: 0 | HL26: 0 | HQ26: 0 | HV26: 0 | IA26: 0 | IF26: 0 | IK26: 0 | IP26: 0 | IQ26: 0 | IV26: 0 | JA26: 0 | JF26: 0 | JK26: 0 | JP26: 0 | JU26: 0 | JZ26: 0 | KE26: 0 | KJ26: 0 | KK26: =ROUND($J26*O26, 'Initial Information'!$M$18) -> 0 | KP26: =ROUND($J26*T26, 'Initial Information'!$M$18) -> 0 | KU26: =ROUND($J26*Y26, 'Initial Information'!$M$18) -> 0 | KZ26: =ROUND($J26*AD26, 'Initial Information'!$M$18) -> 0 | LE26: =ROUND($J26*AI26, 'Initial Information'!$M$18) -> 0 | LJ26: =ROUND($J26*AN26, 'Initial Information'!$M$18) -> 0 | LO26: =ROUND($J26*AS26, 'Initial Information'!$M$18) -> 0 | LT26: =ROUND($J26*AX26, 'Initial Information'!$M$18) -> 0 | LY26: =ROUND($J26*BC26, 'Initial Information'!$M$18) -> 0 | MD26: =ROUND($J26*BH26, 'Initial Information'!$M$18) -> 0 | MF26: =IF(A26, F26, "") ->  | MG26: =IF(A26, N(M26), "") ->  | MH26: =IF(A26, N(O26), "") ->  | MI26: =MF26 ->  | MJ26: =IF(A26, N(R26), "") ->  | MK26: =IF(A26, N(T26), "") ->  | ML26: =MF26 ->  | MM26: =IF(A26, N(W26), "") ->  | MN26: =IF(A26, N(Y26), "") ->  | MO26: =MF26 ->  | MP26: =IF(A26, N(AB26), "") ->  | MQ26: =IF(A26, N(AD26), "") ->  | MR26: =MF26 ->  | MS26: =IF(A26, N(AG26), "") ->  | MT26: =IF(A26, N(AI26), "") ->  | MU26: =MF26 ->  | MV26: =IF(A26, N(AL26), "") ->  | MW26: =IF(A26, N(AN26), "") ->  | MY26: =IF(AND(N(M26)>0, A26=FALSE), C26, "") ->  | MZ26: 0 | NA26: 0 | NC26: 0 | ND26: =IF(A26=FALSE, N(T26), "") -> 0 | NF26: 0 | NG26: 0 | NI26: =IF(A26=FALSE, N(AB26), "") -> 0 | NJ26: 0 | NL26: 0 | NM26: 0 | NO26: 0 | NP26: 0
A27: FALSE | B27: 4 | J27: =IF(C27="Select from Options Below", 0.28, IFERROR(VLOOKUP(C27, DropDownMenus!$J$1:$K$9, 2, FALSE), 0.28)) -> 0.28 | N27: FALSE | O27: =ROUND($H27*(1+BO27)*M27,'Initial Information'!$M$18) -> 0 | S27: FALSE | T27: =ROUND($H27*(1+BO27)*(1+BT27)*R27,'Initial Information'!$M$18) -> 0 | X27: FALSE | Y27: =ROUND($H27*(1+BO27)*(1+BT27)*(1+BY27)*W27,'Initial Information'!$M$18) -> 0 | AC27: FALSE | AD27: =ROUND($H27*(1+BO27)*(1+BT27)*(1+BY27)*(1+CD27)*AB27,'Initial Information'!$M$18) -> 0 | AH27: FALSE | AI27: =ROUND($H27*(1+BO27)*(1+BT27)*(1+BY27)*(1+CD27)*(1+CI27)*AG27,'Initial Information'!$M$18) -> 0 | AM27: FALSE | AN27: =ROUND($H27*(1+BO27)*(1+BT27)*(1+BY27)*(1+CD27)*(1+CI27)*(1+CN27)*AL27,'Initial Information'!$M$18) -> 0 | AR27: FALSE | AS27: =ROUND($H27*(1+BO27)*(1+BT27)*(1+BY27)*(1+CD27)*(1+CI27)*(1+CN27)*(1+CS27)*AQ27,'Initial Information'!$M$18) -> 0 | AW27: FALSE | AX27: =ROUND($H27*(1+BO27)*(1+BT27)*(1+BY27)*(1+CD27)*(1+CI27)*(1+CN27)*(1+CS27)*(1+CX27)*AV27,'Initial Information'!$M$18) -> 0 | BB27: FALSE | BC27: =ROUND($H27*(1+BO27)*(1+BT27)*(1+BY27)*(1+CD27)*(1+CI27)*(1+CN27)*(1+CS27)*(1+CX27)*(1+DC27)*BA27,'Initial Information'!$M$18) -> 0 | BG27: FALSE | BH27: =ROUND($H27*(1+BO27)*(1+BT27)*(1+BY27)*(1+CD27)*(1+CI27)*(1+CN27)*(1+CS27)*(1+CX27)*(1+DC27)*(1+DH27)*BF27,'Initial Information'!$M$18) -> 0 | BK27: 0 | BO27: 0.03 | BT27: 0.03 | BY27: 0.03 | CD27: 0.03 | CI27: 0.03 | CN27: 0.03 | CS27: 0.03 | CX27: 0.03 | DC27: 0.03 | DH27: 0.03 | DI27: 0 | DN27: 0 | DS27: 0 | DX27: 0 | EC27: 0 | EH27: 0 | EM27: 0 | ER27: 0 | EW27: 0 | FB27: 0 | FC27: 0 | FH27: 0 | FM27: 0 | FR27: 0 | FW27: 0 | GB27: 0 | GG27: 0 | GL27: 0 | GQ27: 0 | GV27: 0 | GW27: 0 | HB27: 0 | HG27: 0 | HL27: 0 | HQ27: 0 | HV27: 0 | IA27: 0 | IF27: 0 | IK27: 0 | IP27: 0 | IQ27: 0 | IV27: 0 | JA27: 0 | JF27: 0 | JK27: 0 | JP27: 0 | JU27: 0 | JZ27: 0 | KE27: 0 | KJ27: 0 | KK27: =ROUND($J27*O27, 'Initial Information'!$M$18) -> 0 | KP27: =ROUND($J27*T27, 'Initial Information'!$M$18) -> 0 | KU27: =ROUND($J27*Y27, 'Initial Information'!$M$18) -> 0 | KZ27: =ROUND($J27*AD27, 'Initial Information'!$M$18) -> 0 | LE27: =ROUND($J27*AI27, 'Initial Information'!$M$18) -> 0 | LJ27: =ROUND($J27*AN27, 'Initial Information'!$M$18) -> 0 | LO27: =ROUND($J27*AS27, 'Initial Information'!$M$18) -> 0 | LT27: =ROUND($J27*AX27, 'Initial Information'!$M$18) -> 0 | LY27: =ROUND($J27*BC27, 'Initial Information'!$M$18) -> 0 | MD27: =ROUND($J27*BH27, 'Initial Information'!$M$18) -> 0 | MF27: =IF(A27, F27, "") ->  | MG27: =IF(A27, N(M27), "") ->  | MH27: =IF(A27, N(O27), "") ->  | MI27: =MF27 ->  | MJ27: =IF(A27, N(R27), "") ->  | MK27: =IF(A27, N(T27), "") ->  | ML27: =MF27 ->  | MM27: =IF(A27, N(W27), "") ->  | MN27: =IF(A27, N(Y27), "") ->  | MO27: =MF27 ->  | MP27: =IF(A27, N(AB27), "") ->  | MQ27: =IF(A27, N(AD27), "") ->  | MR27: =MF27 ->  | MS27: =IF(A27, N(AG27), "") ->  | MT27: =IF(A27, N(AI27), "") ->  | MU27: =MF27 ->  | MV27: =IF(A27, N(AL27), "") ->  | MW27: =IF(A27, N(AN27), "") ->  | MZ27: 0 | NA27: 0 | NC27: 0 | ND27: 0 | NF27: 0 | NG27: 0 | NI27: 0 | NJ27: 0 | NL27: 0 | NM27: 0 | NO27: 0 | NP27: 0
A28: FALSE | B28: 5 | J28: =IF(C28="Select from Options Below", 0.28, IFERROR(VLOOKUP(C28, DropDownMenus!$J$1:$K$9, 2, FALSE), 0.28)) -> 0.28 | N28: FALSE | O28: =ROUND($H28*(1+BO28)*M28,'Initial Information'!$M$18) -> 0 | S28: FALSE | T28: =ROUND($H28*(1+BO28)*(1+BT28)*R28,'Initial Information'!$M$18) -> 0 | X28: FALSE | Y28: =ROUND($H28*(1+BO28)*(1+BT28)*(1+BY28)*W28,'Initial Information'!$M$18) -> 0 | AC28: FALSE | AD28: =ROUND($H28*(1+BO28)*(1+BT28)*(1+BY28)*(1+CD28)*AB28,'Initial Information'!$M$18) -> 0 | AH28: FALSE | AI28: =ROUND($H28*(1+BO28)*(1+BT28)*(1+BY28)*(1+CD28)*(1+CI28)*AG28,'Initial Information'!$M$18) -> 0 | AM28: FALSE | AN28: =ROUND($H28*(1+BO28)*(1+BT28)*(1+BY28)*(1+CD28)*(1+CI28)*(1+CN28)*AL28,'Initial Information'!$M$18) -> 0 | AR28: FALSE | AS28: =ROUND($H28*(1+BO28)*(1+BT28)*(1+BY28)*(1+CD28)*(1+CI28)*(1+CN28)*(1+CS28)*AQ28,'Initial Information'!$M$18) -> 0 | AW28: FALSE | AX28: =ROUND($H28*(1+BO28)*(1+BT28)*(1+BY28)*(1+CD28)*(1+CI28)*(1+CN28)*(1+CS28)*(1+CX28)*AV28,'Initial Information'!$M$18) -> 0 | BB28: FALSE | BC28: =ROUND($H28*(1+BO28)*(1+BT28)*(1+BY28)*(1+CD28)*(1+CI28)*(1+CN28)*(1+CS28)*(1+CX28)*(1+DC28)*BA28,'Initial Information'!$M$18) -> 0 | BG28: FALSE | BH28: =ROUND($H28*(1+BO28)*(1+BT28)*(1+BY28)*(1+CD28)*(1+CI28)*(1+CN28)*(1+CS28)*(1+CX28)*(1+DC28)*(1+DH28)*BF28,'Initial Information'!$M$18) -> 0 | BK28: 0 | BO28: 0.03 | BT28: 0.03 | BY28: 0.03 | CD28: 0.03 | CI28: 0.03 | CN28: 0.03 | CS28: 0.03 | CX28: 0.03 | DC28: 0.03 | DH28: 0.03 | DI28: 0 | DN28: 0 | DS28: 0 | DX28: 0 | EC28: 0 | EH28: 0 | EM28: 0 | ER28: 0 | EW28: 0 | FB28: 0 | FC28: 0 | FH28: 0 | FM28: 0 | FR28: 0 | FW28: 0 | GB28: 0 | GG28: 0 | GL28: 0 | GQ28: 0 | GV28: 0 | GW28: 0 | HB28: 0 | HG28: 0 | HL28: 0 | HQ28: 0 | HV28: 0 | IA28: 0 | IF28: 0 | IK28: 0 | IP28: 0 | IQ28: 0 | IV28: 0 | JA28: 0 | JF28: 0 | JK28: 0 | JP28: 0 | JU28: 0 | JZ28: 0 | KE28: 0 | KJ28: 0 | KK28: =ROUND($J28*O28, 'Initial Information'!$M$18) -> 0 | KP28: =ROUND($J28*T28, 'Initial Information'!$M$18) -> 0 | KU28: =ROUND($J28*Y28, 'Initial Information'!$M$18) -> 0 | KZ28: =ROUND($J28*AD28, 'Initial Information'!$M$18) -> 0 | LE28: =ROUND($J28*AI28, 'Initial Information'!$M$18) -> 0 | LJ28: =ROUND($J28*AN28, 'Initial Information'!$M$18) -> 0 | LO28: =ROUND($J28*AS28, 'Initial Information'!$M$18) -> 0 | LT28: =ROUND($J28*AX28, 'Initial Information'!$M$18) -> 0 | LY28: =ROUND($J28*BC28, 'Initial Information'!$M$18) -> 0 | MD28: =ROUND($J28*BH28, 'Initial Information'!$M$18) -> 0 | MF28: =IF(A28, F28, "") ->  | MG28: =IF(A28, N(M28), "") ->  | MH28: =IF(A28, N(O28), "") ->  | MI28: =MF28 ->  | MJ28: =IF(A28, N(R28), "") ->  | MK28: =IF(A28, N(T28), "") ->  | ML28: =MF28 ->  | MM28: =IF(A28, N(W28), "") ->  | MN28: =IF(A28, N(Y28), "") ->  | MO28: =MF28 ->  | MP28: =IF(A28, N(AB28), "") ->  | MQ28: =IF(A28, N(AD28), "") ->  | MR28: =MF28 ->  | MS28: =IF(A28, N(AG28), "") ->  | MT28: =IF(A28, N(AI28), "") ->  | MU28: =MF28 ->  | MV28: =IF(A28, N(AL28), "") ->  | MW28: =IF(A28, N(AN28), "") ->  | MZ28: 0 | NA28: 0 | NC28: 0 | ND28: 0 | NF28: 0 | NG28: 0 | NI28: 0 | NJ28: 0 | NL28: 0 | NM28: 0 | NO28: 0 | NP28: 0
A29: FALSE | B29: 6 | J29: =IF(C29="Select from Options Below", 0.28, IFERROR(VLOOKUP(C29, DropDownMenus!$J$1:$K$9, 2, FALSE), 0.28)) -> 0.28 | N29: FALSE | O29: =ROUND($H29*(1+BO29)*M29,'Initial Information'!$M$18) -> 0 | S29: FALSE | T29: =ROUND($H29*(1+BO29)*(1+BT29)*R29,'Initial Information'!$M$18) -> 0 | X29: FALSE | Y29: =ROUND($H29*(1+BO29)*(1+BT29)*(1+BY29)*W29,'Initial Information'!$M$18) -> 0 | AC29: FALSE | AD29: =ROUND($H29*(1+BO29)*(1+BT29)*(1+BY29)*(1+CD29)*AB29,'Initial Information'!$M$18) -> 0 | AH29: FALSE | AI29: =ROUND($H29*(1+BO29)*(1+BT29)*(1+BY29)*(1+CD29)*(1+CI29)*AG29,'Initial Information'!$M$18) -> 0 | AM29: FALSE | AN29: =ROUND($H29*(1+BO29)*(1+BT29)*(1+BY29)*(1+CD29)*(1+CI29)*(1+CN29)*AL29,'Initial Information'!$M$18) -> 0 | AR29: FALSE | AS29: =ROUND($H29*(1+BO29)*(1+BT29)*(1+BY29)*(1+CD29)*(1+CI29)*(1+CN29)*(1+CS29)*AQ29,'Initial Information'!$M$18) -> 0 | AW29: FALSE | AX29: =ROUND($H29*(1+BO29)*(1+BT29)*(1+BY29)*(1+CD29)*(1+CI29)*(1+CN29)*(1+CS29)*(1+CX29)*AV29,'Initial Information'!$M$18) -> 0 | BB29: FALSE | BC29: =ROUND($H29*(1+BO29)*(1+BT29)*(1+BY29)*(1+CD29)*(1+CI29)*(1+CN29)*(1+CS29)*(1+CX29)*(1+DC29)*BA29,'Initial Information'!$M$18) -> 0 | BG29: FALSE | BH29: =ROUND($H29*(1+BO29)*(1+BT29)*(1+BY29)*(1+CD29)*(1+CI29)*(1+CN29)*(1+CS29)*(1+CX29)*(1+DC29)*(1+DH29)*BF29,'Initial Information'!$M$18) -> 0 | BK29: 0 | BO29: =IF( ISNUMBER(SEARCH("TBD",F29)), 0, IF(N29=TRUE,0.1,0.03) ) -> 0.03 | BT29: =IF(S29=TRUE, 0.1, 0.03) -> 0.03 | BY29: =IF(X29=TRUE, 0.1, 0.03) -> 0.03 | CD29: =IF(AC29=TRUE, 0.1, 0.03) -> 0.03 | CI29: =IF(AH29=TRUE, 0.1, 0.03) -> 0.03 | CN29: =IF(AM29=TRUE, 0.1, 0.03) -> 0.03 | CS29: =IF(AR29=TRUE, 0.1, 0.03) -> 0.03 | CX29: =IF(AW29=TRUE, 0.1, 0.03) -> 0.03 | DC29: =IF(BB29=TRUE, 0.1, 0.03) -> 0.03 | DH29: =IF(BG29=TRUE, 0.1, 0.03) -> 0.03 | DI29: =ROUND((2080/12)*M29,2) -> 0 | DN29: =ROUND((2080/12)*R29,2) -> 0 | DS29: =ROUND((2080/12)*W29,2) -> 0 | DX29: =ROUND((2080/12)*AB29,2) -> 0 | EC29: =ROUND((2080/12)*AG29,2) -> 0 | EH29: =ROUND((2080/12)*BF29,2) -> 0 | EM29: =ROUND((2080/12)*AQ29,2) -> 0 | ER29: =ROUND((2080/12)*AV29,2) -> 0 | EW29: =ROUND((2080/12)*BA29,2) -> 0 | FB29: =ROUND((2080/12)*BF29,2) -> 0 | FC29: =ROUND((M29/12),3) -> 0 | FH29: =ROUND((R29/12),3) -> 0 | FM29: =ROUND((W29/12),3) -> 0 | FR29: =ROUND((AB29/12),3) -> 0 | FW29: =ROUND((AG29/12),3) -> 0 | GB29: =ROUND((AL29/12),3) -> 0 | GG29: =ROUND((AQ29/12),3) -> 0 | GL29: =ROUND((AV29/12),3) -> 0 | GQ29: =ROUND((BA29/12),3) -> 0 | GV29: =ROUND((BF29/12),3) -> 0 | GW29: =ROUND((1+BO29)*$H29,2) -> 0 | HB29: =ROUND(GW29*(1+BT29),2) -> 0 | HG29: =ROUND(HB29*(1+BY29),2) -> 0 | HL29: =ROUND(HG29*(1+CD29),2) -> 0 | HQ29: =ROUND(HL29*(1+CI29),2) -> 0 | HV29: =ROUND(HQ29*(1+CN29),2) -> 0 | IA29: =ROUND(HV29*(1+CS29),2) -> 0 | IF29: =ROUND(IA29*(1+CX29),2) -> 0 | IK29: =ROUND(IF29*(1+DC29),2) -> 0 | IP29: =ROUND(IK29*(1+DH29),2) -> 0 | IQ29: =GW29*12 -> 0 | IV29: =HB29*12 -> 0 | JA29: =HG29*12 -> 0 | JF29: =HL29*12 -> 0 | JK29: =HQ29*12 -> 0 | JP29: =HV29*12 -> 0 | JU29: =IA29*12 -> 0 | JZ29: =IF29*12 -> 0 | KE29: =IK29*12 -> 0 | KJ29: =IP29*12 -> 0 | KK29: =ROUND($J29*O29, 'Initial Information'!$M$18) -> 0 | KP29: =ROUND($J29*T29, 'Initial Information'!$M$18) -> 0 | KU29: =ROUND($J29*Y29, 'Initial Information'!$M$18) -> 0 | KZ29: =ROUND($J29*AD29, 'Initial Information'!$M$18) -> 0 | LE29: =ROUND($J29*AI29, 'Initial Information'!$M$18) -> 0 | LJ29: =ROUND($J29*AN29, 'Initial Information'!$M$18) -> 0 | LO29: =ROUND($J29*AS29, 'Initial Information'!$M$18) -> 0 | LT29: =ROUND($J29*AX29, 'Initial Information'!$M$18) -> 0 | LY29: =ROUND($J29*BC29, 'Initial Information'!$M$18) -> 0 | MD29: =ROUND($J29*BH29, 'Initial Information'!$M$18) -> 0
A30: FALSE | B30: 7 | J30: =IF(C30="Select from Options Below", 0.28, IFERROR(VLOOKUP(C30, DropDownMenus!$J$1:$K$9, 2, FALSE), 0.28)) -> 0.28 | N30: FALSE | O30: =ROUND($H30*(1+BO30)*M30,'Initial Information'!$M$18) -> 0 | S30: FALSE | T30: =ROUND($H30*(1+BO30)*(1+BT30)*R30,'Initial Information'!$M$18) -> 0 | X30: FALSE | Y30: =ROUND($H30*(1+BO30)*(1+BT30)*(1+BY30)*W30,'Initial Information'!$M$18) -> 0 | AC30: FALSE | AD30: =ROUND($H30*(1+BO30)*(1+BT30)*(1+BY30)*(1+CD30)*AB30,'Initial Information'!$M$18) -> 0 | AH30: FALSE | AI30: =ROUND($H30*(1+BO30)*(1+BT30)*(1+BY30)*(1+CD30)*(1+CI30)*AG30,'Initial Information'!$M$18) -> 0 | AM30: FALSE | AN30: =ROUND($H30*(1+BO30)*(1+BT30)*(1+BY30)*(1+CD30)*(1+CI30)*(1+CN30)*AL30,'Initial Information'!$M$18) -> 0 | AR30: FALSE | AS30: =ROUND($H30*(1+BO30)*(1+BT30)*(1+BY30)*(1+CD30)*(1+CI30)*(1+CN30)*(1+CS30)*AQ30,'Initial Information'!$M$18) -> 0 | AW30: FALSE | AX30: =ROUND($H30*(1+BO30)*(1+BT30)*(1+BY30)*(1+CD30)*(1+CI30)*(1+CN30)*(1+CS30)*(1+CX30)*AV30,'Initial Information'!$M$18) -> 0 | BB30: FALSE | BC30: =ROUND($H30*(1+BO30)*(1+BT30)*(1+BY30)*(1+CD30)*(1+CI30)*(1+CN30)*(1+CS30)*(1+CX30)*(1+DC30)*BA30,'Initial Information'!$M$18) -> 0 | BG30: FALSE | BH30: =ROUND($H30*(1+BO30)*(1+BT30)*(1+BY30)*(1+CD30)*(1+CI30)*(1+CN30)*(1+CS30)*(1+CX30)*(1+DC30)*(1+DH30)*BF30,'Initial Information'!$M$18) -> 0 | BK30: 0 | BO30: 0.03 | BT30: 0.03 | BY30: 0.03 | CD30: 0.03 | CI30: 0.03 | CN30: 0.03 | CS30: 0.03 | CX30: 0.03 | DC30: 0.03 | DH30: 0.03 | DI30: 0 | DN30: 0 | DS30: 0 | DX30: 0 | EC30: 0 | EH30: 0 | EM30: 0 | ER30: 0 | EW30: 0 | FB30: 0 | FC30: 0 | FH30: 0 | FM30: 0 | FR30: 0 | FW30: 0 | GB30: 0 | GG30: 0 | GL30: 0 | GQ30: 0 | GV30: 0 | GW30: 0 | HB30: 0 | HG30: 0 | HL30: 0 | HQ30: 0 | HV30: 0 | IA30: 0 | IF30: 0 | IK30: 0 | IP30: 0 | IQ30: 0 | IV30: 0 | JA30: 0 | JF30: 0 | JK30: 0 | JP30: 0 | JU30: 0 | JZ30: 0 | KE30: 0 | KJ30: 0 | KK30: =ROUND($J30*O30, 'Initial Information'!$M$18) -> 0 | KP30: =ROUND($J30*T30, 'Initial Information'!$M$18) -> 0 | KU30: =ROUND($J30*Y30, 'Initial Information'!$M$18) -> 0 | KZ30: =ROUND($J30*AD30, 'Initial Information'!$M$18) -> 0 | LE30: =ROUND($J30*AI30, 'Initial Information'!$M$18) -> 0 | LJ30: =ROUND($J30*AN30, 'Initial Information'!$M$18) -> 0 | LO30: =ROUND($J30*AS30, 'Initial Information'!$M$18) -> 0 | LT30: =ROUND($J30*AX30, 'Initial Information'!$M$18) -> 0 | LY30: =ROUND($J30*BC30, 'Initial Information'!$M$18) -> 0 | MD30: =ROUND($J30*BH30, 'Initial Information'!$M$18) -> 0
A31: FALSE | B31: 8 | J31: =IF(C31="Select from Options Below", 0.28, IFERROR(VLOOKUP(C31, DropDownMenus!$J$1:$K$9, 2, FALSE), 0.28)) -> 0.28 | N31: FALSE | O31: =ROUND($H31*(1+BO31)*M31,'Initial Information'!$M$18) -> 0 | S31: FALSE | T31: =ROUND($H31*(1+BO31)*(1+BT31)*R31,'Initial Information'!$M$18) -> 0 | X31: FALSE | Y31: =ROUND($H31*(1+BO31)*(1+BT31)*(1+BY31)*W31,'Initial Information'!$M$18) -> 0 | AC31: FALSE | AD31: =ROUND($H31*(1+BO31)*(1+BT31)*(1+BY31)*(1+CD31)*AB31,'Initial Information'!$M$18) -> 0 | AH31: FALSE | AI31: =ROUND($H31*(1+BO31)*(1+BT31)*(1+BY31)*(1+CD31)*(1+CI31)*AG31,'Initial Information'!$M$18) -> 0 | AM31: FALSE | AN31: =ROUND($H31*(1+BO31)*(1+BT31)*(1+BY31)*(1+CD31)*(1+CI31)*(1+CN31)*AL31,'Initial Information'!$M$18) -> 0 | AR31: FALSE | AS31: =ROUND($H31*(1+BO31)*(1+BT31)*(1+BY31)*(1+CD31)*(1+CI31)*(1+CN31)*(1+CS31)*AQ31,'Initial Information'!$M$18) -> 0 | AW31: FALSE | AX31: =ROUND($H31*(1+BO31)*(1+BT31)*(1+BY31)*(1+CD31)*(1+CI31)*(1+CN31)*(1+CS31)*(1+CX31)*AV31,'Initial Information'!$M$18) -> 0 | BB31: FALSE | BC31: =ROUND($H31*(1+BO31)*(1+BT31)*(1+BY31)*(1+CD31)*(1+CI31)*(1+CN31)*(1+CS31)*(1+CX31)*(1+DC31)*BA31,'Initial Information'!$M$18) -> 0 | BG31: FALSE | BH31: =ROUND($H31*(1+BO31)*(1+BT31)*(1+BY31)*(1+CD31)*(1+CI31)*(1+CN31)*(1+CS31)*(1+CX31)*(1+DC31)*(1+DH31)*BF31,'Initial Information'!$M$18) -> 0 | BK31: 0 | BO31: 0.03 | BT31: 0.03 | BY31: 0.03 | CD31: 0.03 | CI31: 0.03 | CN31: 0.03 | CS31: 0.03 | CX31: 0.03 | DC31: 0.03 | DH31: 0.03 | DI31: 0 | DN31: 0 | DS31: 0 | DX31: 0 | EC31: 0 | EH31: 0 | EM31: 0 | ER31: 0 | EW31: 0 | FB31: 0 | FC31: 0 | FH31: 0 | FM31: 0 | FR31: 0 | FW31: 0 | GB31: 0 | GG31: 0 | GL31: 0 | GQ31: 0 | GV31: 0 | GW31: 0 | HB31: 0 | HG31: 0 | HL31: 0 | HQ31: 0 | HV31: 0 | IA31: 0 | IF31: 0 | IK31: 0 | IP31: 0 | IQ31: 0 | IV31: 0 | JA31: 0 | JF31: 0 | JK31: 0 | JP31: 0 | JU31: 0 | JZ31: 0 | KE31: 0 | KJ31: 0 | KK31: =ROUND($J31*O31, 'Initial Information'!$M$18) -> 0 | KP31: =ROUND($J31*T31, 'Initial Information'!$M$18) -> 0 | KU31: =ROUND($J31*Y31, 'Initial Information'!$M$18) -> 0 | KZ31: =ROUND($J31*AD31, 'Initial Information'!$M$18) -> 0 | LE31: =ROUND($J31*AI31, 'Initial Information'!$M$18) -> 0 | LJ31: =ROUND($J31*AN31, 'Initial Information'!$M$18) -> 0 | LO31: =ROUND($J31*AS31, 'Initial Information'!$M$18) -> 0 | LT31: =ROUND($J31*AX31, 'Initial Information'!$M$18) -> 0 | LY31: =ROUND($J31*BC31, 'Initial Information'!$M$18) -> 0 | MD31: =ROUND($J31*BH31, 'Initial Information'!$M$18) -> 0
A32: FALSE | B32: 9 | J32: =IF(C32="Select from Options Below", 0.28, IFERROR(VLOOKUP(C32, DropDownMenus!$J$1:$K$9, 2, FALSE), 0.28)) -> 0.28 | N32: FALSE | O32: =ROUND($H32*(1+BO32)*M32,'Initial Information'!$M$18) -> 0 | S32: FALSE | T32: =ROUND($H32*(1+BO32)*(1+BT32)*R32,'Initial Information'!$M$18) -> 0 | X32: FALSE | Y32: =ROUND($H32*(1+BO32)*(1+BT32)*(1+BY32)*W32,'Initial Information'!$M$18) -> 0 | AC32: FALSE | AD32: =ROUND($H32*(1+BO32)*(1+BT32)*(1+BY32)*(1+CD32)*AB32,'Initial Information'!$M$18) -> 0 | AH32: FALSE | AI32: =ROUND($H32*(1+BO32)*(1+BT32)*(1+BY32)*(1+CD32)*(1+CI32)*AG32,'Initial Information'!$M$18) -> 0 | AM32: FALSE | AN32: =ROUND($H32*(1+BO32)*(1+BT32)*(1+BY32)*(1+CD32)*(1+CI32)*(1+CN32)*AL32,'Initial Information'!$M$18) -> 0 | AR32: FALSE | AS32: =ROUND($H32*(1+BO32)*(1+BT32)*(1+BY32)*(1+CD32)*(1+CI32)*(1+CN32)*(1+CS32)*AQ32,'Initial Information'!$M$18) -> 0 | AW32: FALSE | AX32: =ROUND($H32*(1+BO32)*(1+BT32)*(1+BY32)*(1+CD32)*(1+CI32)*(1+CN32)*(1+CS32)*(1+CX32)*AV32,'Initial Information'!$M$18) -> 0 | BB32: FALSE | BC32: =ROUND($H32*(1+BO32)*(1+BT32)*(1+BY32)*(1+CD32)*(1+CI32)*(1+CN32)*(1+CS32)*(1+CX32)*(1+DC32)*BA32,'Initial Information'!$M$18) -> 0 | BG32: FALSE | BH32: =ROUND($H32*(1+BO32)*(1+BT32)*(1+BY32)*(1+CD32)*(1+CI32)*(1+CN32)*(1+CS32)*(1+CX32)*(1+DC32)*(1+DH32)*BF32,'Initial Information'!$M$18) -> 0 | BK32: 0 | BO32: 0.03 | BT32: 0.03 | BY32: 0.03 | CD32: 0.03 | CI32: 0.03 | CN32: 0.03 | CS32: 0.03 | CX32: 0.03 | DC32: 0.03 | DH32: 0.03 | DI32: 0 | DN32: 0 | DS32: 0 | DX32: 0 | EC32: 0 | EH32: 0 | EM32: 0 | ER32: 0 | EW32: 0 | FB32: 0 | FC32: 0 | FH32: 0 | FM32: 0 | FR32: 0 | FW32: 0 | GB32: 0 | GG32: 0 | GL32: 0 | GQ32: 0 | GV32: 0 | GW32: 0 | HB32: 0 | HG32: 0 | HL32: 0 | HQ32: 0 | HV32: 0 | IA32: 0 | IF32: 0 | IK32: 0 | IP32: 0 | IQ32: 0 | IV32: 0 | JA32: 0 | JF32: 0 | JK32: 0 | JP32: 0 | JU32: 0 | JZ32: 0 | KE32: 0 | KJ32: 0 | KK32: =ROUND($J32*O32, 'Initial Information'!$M$18) -> 0 | KP32: =ROUND($J32*T32, 'Initial Information'!$M$18) -> 0 | KU32: =ROUND($J32*Y32, 'Initial Information'!$M$18) -> 0 | KZ32: =ROUND($J32*AD32, 'Initial Information'!$M$18) -> 0 | LE32: =ROUND($J32*AI32, 'Initial Information'!$M$18) -> 0 | LJ32: =ROUND($J32*AN32, 'Initial Information'!$M$18) -> 0 | LO32: =ROUND($J32*AS32, 'Initial Information'!$M$18) -> 0 | LT32: =ROUND($J32*AX32, 'Initial Information'!$M$18) -> 0 | LY32: =ROUND($J32*BC32, 'Initial Information'!$M$18) -> 0 | MD32: =ROUND($J32*BH32, 'Initial Information'!$M$18) -> 0
A33: FALSE | B33: 10 | J33: =IF(C33="Select from Options Below", 0.28, IFERROR(VLOOKUP(C33, DropDownMenus!$J$1:$K$9, 2, FALSE), 0.28)) -> 0.28 | N33: FALSE | O33: =ROUND($H33*(1+BO33)*M33,'Initial Information'!$M$18) -> 0 | S33: FALSE | T33: =ROUND($H33*(1+BO33)*(1+BT33)*R33,'Initial Information'!$M$18) -> 0 | X33: FALSE | Y33: =ROUND($H33*(1+BO33)*(1+BT33)*(1+BY33)*W33,'Initial Information'!$M$18) -> 0 | AC33: FALSE | AD33: =ROUND($H33*(1+BO33)*(1+BT33)*(1+BY33)*(1+CD33)*AB33,'Initial Information'!$M$18) -> 0 | AH33: FALSE | AI33: =ROUND($H33*(1+BO33)*(1+BT33)*(1+BY33)*(1+CD33)*(1+CI33)*AG33,'Initial Information'!$M$18) -> 0 | AM33: FALSE | AN33: =ROUND($H33*(1+BO33)*(1+BT33)*(1+BY33)*(1+CD33)*(1+CI33)*(1+CN33)*AL33,'Initial Information'!$M$18) -> 0 | AR33: FALSE | AS33: =ROUND($H33*(1+BO33)*(1+BT33)*(1+BY33)*(1+CD33)*(1+CI33)*(1+CN33)*(1+CS33)*AQ33,'Initial Information'!$M$18) -> 0 | AW33: FALSE | AX33: =ROUND($H33*(1+BO33)*(1+BT33)*(1+BY33)*(1+CD33)*(1+CI33)*(1+CN33)*(1+CS33)*(1+CX33)*AV33,'Initial Information'!$M$18) -> 0 | BB33: FALSE | BC33: =ROUND($H33*(1+BO33)*(1+BT33)*(1+BY33)*(1+CD33)*(1+CI33)*(1+CN33)*(1+CS33)*(1+CX33)*(1+DC33)*BA33,'Initial Information'!$M$18) -> 0 | BG33: FALSE | BH33: =ROUND($H33*(1+BO33)*(1+BT33)*(1+BY33)*(1+CD33)*(1+CI33)*(1+CN33)*(1+CS33)*(1+CX33)*(1+DC33)*(1+DH33)*BF33,'Initial Information'!$M$18) -> 0 | BK33: 0 | BO33: 0.03 | BT33: 0.03 | BY33: 0.03 | CD33: 0.03 | CI33: 0.03 | CN33: 0.03 | CS33: 0.03 | CX33: 0.03 | DC33: 0.03 | DH33: 0.03 | DI33: 0 | DN33: 0 | DS33: 0 | DX33: 0 | EC33: 0 | EH33: 0 | EM33: 0 | ER33: 0 | EW33: 0 | FB33: 0 | FC33: 0 | FH33: 0 | FM33: 0 | FR33: 0 | FW33: 0 | GB33: 0 | GG33: 0 | GL33: 0 | GQ33: 0 | GV33: 0 | GW33: 0 | HB33: 0 | HG33: 0 | HL33: 0 | HQ33: 0 | HV33: 0 | IA33: 0 | IF33: 0 | IK33: 0 | IP33: 0 | IQ33: 0 | IV33: 0 | JA33: 0 | JF33: 0 | JK33: 0 | JP33: 0 | JU33: 0 | JZ33: 0 | KE33: 0 | KJ33: 0 | KK33: =ROUND($J33*O33, 'Initial Information'!$M$18) -> 0 | KP33: =ROUND($J33*T33, 'Initial Information'!$M$18) -> 0 | KU33: =ROUND($J33*Y33, 'Initial Information'!$M$18) -> 0 | KZ33: =ROUND($J33*AD33, 'Initial Information'!$M$18) -> 0 | LE33: =ROUND($J33*AI33, 'Initial Information'!$M$18) -> 0 | LJ33: =ROUND($J33*AN33, 'Initial Information'!$M$18) -> 0 | LO33: =ROUND($J33*AS33, 'Initial Information'!$M$18) -> 0 | LT33: =ROUND($J33*AX33, 'Initial Information'!$M$18) -> 0 | LY33: =ROUND($J33*BC33, 'Initial Information'!$M$18) -> 0 | MD33: =ROUND($J33*BH33, 'Initial Information'!$M$18) -> 0
A34: FALSE | B34: 11 | J34: =IF(C34="Select from Options Below", 0.28, IFERROR(VLOOKUP(C34, DropDownMenus!$J$1:$K$9, 2, FALSE), 0.28)) -> 0.28 | N34: FALSE | O34: =ROUND($H34*(1+BO34)*M34,'Initial Information'!$M$18) -> 0 | S34: FALSE | T34: =ROUND($H34*(1+BO34)*(1+BT34)*R34,'Initial Information'!$M$18) -> 0 | X34: FALSE | Y34: =ROUND($H34*(1+BO34)*(1+BT34)*(1+BY34)*W34,'Initial Information'!$M$18) -> 0 | AC34: FALSE | AD34: =ROUND($H34*(1+BO34)*(1+BT34)*(1+BY34)*(1+CD34)*AB34,'Initial Information'!$M$18) -> 0 | AH34: FALSE | AI34: =ROUND($H34*(1+BO34)*(1+BT34)*(1+BY34)*(1+CD34)*(1+CI34)*AG34,'Initial Information'!$M$18) -> 0 | AM34: FALSE | AN34: =ROUND($H34*(1+BO34)*(1+BT34)*(1+BY34)*(1+CD34)*(1+CI34)*(1+CN34)*AL34,'Initial Information'!$M$18) -> 0 | AR34: FALSE | AS34: =ROUND($H34*(1+BO34)*(1+BT34)*(1+BY34)*(1+CD34)*(1+CI34)*(1+CN34)*(1+CS34)*AQ34,'Initial Information'!$M$18) -> 0 | AW34: FALSE | AX34: =ROUND($H34*(1+BO34)*(1+BT34)*(1+BY34)*(1+CD34)*(1+CI34)*(1+CN34)*(1+CS34)*(1+CX34)*AV34,'Initial Information'!$M$18) -> 0 | BB34: FALSE | BC34: =ROUND($H34*(1+BO34)*(1+BT34)*(1+BY34)*(1+CD34)*(1+CI34)*(1+CN34)*(1+CS34)*(1+CX34)*(1+DC34)*BA34,'Initial Information'!$M$18) -> 0 | BG34: FALSE | BH34: =ROUND($H34*(1+BO34)*(1+BT34)*(1+BY34)*(1+CD34)*(1+CI34)*(1+CN34)*(1+CS34)*(1+CX34)*(1+DC34)*(1+DH34)*BF34,'Initial Information'!$M$18) -> 0 | BK34: 0 | BO34: 0.03 | BT34: 0.03 | BY34: 0.03 | CD34: 0.03 | CI34: 0.03 | CN34: 0.03 | CS34: 0.03 | CX34: 0.03 | DC34: 0.03 | DH34: 0.03 | DI34: 0 | DN34: 0 | DS34: 0 | DX34: 0 | EC34: 0 | EH34: 0 | EM34: 0 | ER34: 0 | EW34: 0 | FB34: 0 | FC34: 0 | FH34: 0 | FM34: 0 | FR34: 0 | FW34: 0 | GB34: 0 | GG34: 0 | GL34: 0 | GQ34: 0 | GV34: 0 | GW34: 0 | HB34: 0 | HG34: 0 | HL34: 0 | HQ34: 0 | HV34: 0 | IA34: 0 | IF34: 0 | IK34: 0 | IP34: 0 | IQ34: 0 | IV34: 0 | JA34: 0 | JF34: 0 | JK34: 0 | JP34: 0 | JU34: 0 | JZ34: 0 | KE34: 0 | KJ34: 0 | KK34: =ROUND($J34*O34, 'Initial Information'!$M$18) -> 0 | KP34: =ROUND($J34*T34, 'Initial Information'!$M$18) -> 0 | KU34: =ROUND($J34*Y34, 'Initial Information'!$M$18) -> 0 | KZ34: =ROUND($J34*AD34, 'Initial Information'!$M$18) -> 0 | LE34: =ROUND($J34*AI34, 'Initial Information'!$M$18) -> 0 | LJ34: =ROUND($J34*AN34, 'Initial Information'!$M$18) -> 0 | LO34: =ROUND($J34*AS34, 'Initial Information'!$M$18) -> 0 | LT34: =ROUND($J34*AX34, 'Initial Information'!$M$18) -> 0 | LY34: =ROUND($J34*BC34, 'Initial Information'!$M$18) -> 0 | MD34: =ROUND($J34*BH34, 'Initial Information'!$M$18) -> 0
A35: FALSE | B35: 12 | J35: =IF(C35="Select from Options Below", 0.28, IFERROR(VLOOKUP(C35, DropDownMenus!$J$1:$K$9, 2, FALSE), 0.28)) -> 0.28 | N35: FALSE | O35: =ROUND($H35*(1+BO35)*M35,'Initial Information'!$M$18) -> 0 | S35: FALSE | T35: =ROUND($H35*(1+BO35)*(1+BT35)*R35,'Initial Information'!$M$18) -> 0 | X35: FALSE | Y35: =ROUND($H35*(1+BO35)*(1+BT35)*(1+BY35)*W35,'Initial Information'!$M$18) -> 0 | AC35: FALSE | AD35: =ROUND($H35*(1+BO35)*(1+BT35)*(1+BY35)*(1+CD35)*AB35,'Initial Information'!$M$18) -> 0 | AH35: FALSE | AI35: =ROUND($H35*(1+BO35)*(1+BT35)*(1+BY35)*(1+CD35)*(1+CI35)*AG35,'Initial Information'!$M$18) -> 0 | AM35: FALSE | AN35: =ROUND($H35*(1+BO35)*(1+BT35)*(1+BY35)*(1+CD35)*(1+CI35)*(1+CN35)*AL35,'Initial Information'!$M$18) -> 0 | AR35: FALSE | AS35: =ROUND($H35*(1+BO35)*(1+BT35)*(1+BY35)*(1+CD35)*(1+CI35)*(1+CN35)*(1+CS35)*AQ35,'Initial Information'!$M$18) -> 0 | AW35: FALSE | AX35: =ROUND($H35*(1+BO35)*(1+BT35)*(1+BY35)*(1+CD35)*(1+CI35)*(1+CN35)*(1+CS35)*(1+CX35)*AV35,'Initial Information'!$M$18) -> 0 | BB35: FALSE | BC35: =ROUND($H35*(1+BO35)*(1+BT35)*(1+BY35)*(1+CD35)*(1+CI35)*(1+CN35)*(1+CS35)*(1+CX35)*(1+DC35)*BA35,'Initial Information'!$M$18) -> 0 | BG35: FALSE | BH35: =ROUND($H35*(1+BO35)*(1+BT35)*(1+BY35)*(1+CD35)*(1+CI35)*(1+CN35)*(1+CS35)*(1+CX35)*(1+DC35)*(1+DH35)*BF35,'Initial Information'!$M$18) -> 0 | BK35: 0 | BO35: 0.03 | BT35: 0.03 | BY35: 0.03 | CD35: 0.03 | CI35: 0.03 | CN35: 0.03 | CS35: 0.03 | CX35: 0.03 | DC35: 0.03 | DH35: 0.03 | DI35: 0 | DN35: 0 | DS35: 0 | DX35: 0 | EC35: 0 | EH35: 0 | EM35: 0 | ER35: 0 | EW35: 0 | FB35: 0 | FC35: 0 | FH35: 0 | FM35: 0 | FR35: 0 | FW35: 0 | GB35: 0 | GG35: 0 | GL35: 0 | GQ35: 0 | GV35: 0 | GW35: 0 | HB35: 0 | HG35: 0 | HL35: 0 | HQ35: 0 | HV35: 0 | IA35: 0 | IF35: 0 | IK35: 0 | IP35: 0 | IQ35: 0 | IV35: 0 | JA35: 0 | JF35: 0 | JK35: 0 | JP35: 0 | JU35: 0 | JZ35: 0 | KE35: 0 | KJ35: 0 | KK35: =ROUND($J35*O35, 'Initial Information'!$M$18) -> 0 | KP35: =ROUND($J35*T35, 'Initial Information'!$M$18) -> 0 | KU35: =ROUND($J35*Y35, 'Initial Information'!$M$18) -> 0 | KZ35: =ROUND($J35*AD35, 'Initial Information'!$M$18) -> 0 | LE35: =ROUND($J35*AI35, 'Initial Information'!$M$18) -> 0 | LJ35: =ROUND($J35*AN35, 'Initial Information'!$M$18) -> 0 | LO35: =ROUND($J35*AS35, 'Initial Information'!$M$18) -> 0 | LT35: =ROUND($J35*AX35, 'Initial Information'!$M$18) -> 0 | LY35: =ROUND($J35*BC35, 'Initial Information'!$M$18) -> 0 | MD35: =ROUND($J35*BH35, 'Initial Information'!$M$18) -> 0
A36: FALSE | B36: 13 | J36: =IF(C36="Select from Options Below", 0.28, IFERROR(VLOOKUP(C36, DropDownMenus!$J$1:$K$9, 2, FALSE), 0.28)) -> 0.28 | N36: FALSE | O36: =ROUND($H36*(1+BO36)*M36,'Initial Information'!$M$18) -> 0 | S36: FALSE | T36: =ROUND($H36*(1+BO36)*(1+BT36)*R36,'Initial Information'!$M$18) -> 0 | X36: FALSE | Y36: =ROUND($H36*(1+BO36)*(1+BT36)*(1+BY36)*W36,'Initial Information'!$M$18) -> 0 | AC36: FALSE | AD36: =ROUND($H36*(1+BO36)*(1+BT36)*(1+BY36)*(1+CD36)*AB36,'Initial Information'!$M$18) -> 0 | AH36: FALSE | AI36: =ROUND($H36*(1+BO36)*(1+BT36)*(1+BY36)*(1+CD36)*(1+CI36)*AG36,'Initial Information'!$M$18) -> 0 | AM36: FALSE | AN36: =ROUND($H36*(1+BO36)*(1+BT36)*(1+BY36)*(1+CD36)*(1+CI36)*(1+CN36)*AL36,'Initial Information'!$M$18) -> 0 | AR36: FALSE | AS36: =ROUND($H36*(1+BO36)*(1+BT36)*(1+BY36)*(1+CD36)*(1+CI36)*(1+CN36)*(1+CS36)*AQ36,'Initial Information'!$M$18) -> 0 | AW36: FALSE | AX36: =ROUND($H36*(1+BO36)*(1+BT36)*(1+BY36)*(1+CD36)*(1+CI36)*(1+CN36)*(1+CS36)*(1+CX36)*AV36,'Initial Information'!$M$18) -> 0 | BB36: FALSE | BC36: =ROUND($H36*(1+BO36)*(1+BT36)*(1+BY36)*(1+CD36)*(1+CI36)*(1+CN36)*(1+CS36)*(1+CX36)*(1+DC36)*BA36,'Initial Information'!$M$18) -> 0 | BG36: FALSE | BH36: =ROUND($H36*(1+BO36)*(1+BT36)*(1+BY36)*(1+CD36)*(1+CI36)*(1+CN36)*(1+CS36)*(1+CX36)*(1+DC36)*(1+DH36)*BF36,'Initial Information'!$M$18) -> 0 | BK36: 0 | BO36: 0.03 | BT36: 0.03 | BY36: 0.03 | CD36: 0.03 | CI36: 0.03 | CN36: 0.03 | CS36: 0.03 | CX36: 0.03 | DC36: 0.03 | DH36: 0.03 | DI36: 0 | DN36: 0 | DS36: 0 | DX36: 0 | EC36: 0 | EH36: 0 | EM36: 0 | ER36: 0 | EW36: 0 | FB36: 0 | FC36: 0 | FH36: 0 | FM36: 0 | FR36: 0 | FW36: 0 | GB36: 0 | GG36: 0 | GL36: 0 | GQ36: 0 | GV36: 0 | GW36: 0 | HB36: 0 | HG36: 0 | HL36: 0 | HQ36: 0 | HV36: 0 | IA36: 0 | IF36: 0 | IK36: 0 | IP36: 0 | IQ36: 0 | IV36: 0 | JA36: 0 | JF36: 0 | JK36: 0 | JP36: 0 | JU36: 0 | JZ36: 0 | KE36: 0 | KJ36: 0 | KK36: =ROUND($J36*O36, 'Initial Information'!$M$18) -> 0 | KP36: =ROUND($J36*T36, 'Initial Information'!$M$18) -> 0 | KU36: =ROUND($J36*Y36, 'Initial Information'!$M$18) -> 0 | KZ36: =ROUND($J36*AD36, 'Initial Information'!$M$18) -> 0 | LE36: =ROUND($J36*AI36, 'Initial Information'!$M$18) -> 0 | LJ36: =ROUND($J36*AN36, 'Initial Information'!$M$18) -> 0 | LO36: =ROUND($J36*AS36, 'Initial Information'!$M$18) -> 0 | LT36: =ROUND($J36*AX36, 'Initial Information'!$M$18) -> 0 | LY36: =ROUND($J36*BC36, 'Initial Information'!$M$18) -> 0 | MD36: =ROUND($J36*BH36, 'Initial Information'!$M$18) -> 0
A37: FALSE | B37: 14 | J37: =IF(C37="Select from Options Below", 0.28, IFERROR(VLOOKUP(C37, DropDownMenus!$J$1:$K$9, 2, FALSE), 0.28)) -> 0.28 | N37: FALSE | O37: =ROUND($H37*(1+BO37)*M37,'Initial Information'!$M$18) -> 0 | S37: FALSE | T37: =ROUND($H37*(1+BO37)*(1+BT37)*R37,'Initial Information'!$M$18) -> 0 | X37: FALSE | Y37: =ROUND($H37*(1+BO37)*(1+BT37)*(1+BY37)*W37,'Initial Information'!$M$18) -> 0 | AC37: FALSE | AD37: =ROUND($H37*(1+BO37)*(1+BT37)*(1+BY37)*(1+CD37)*AB37,'Initial Information'!$M$18) -> 0 | AH37: FALSE | AI37: =ROUND($H37*(1+BO37)*(1+BT37)*(1+BY37)*(1+CD37)*(1+CI37)*AG37,'Initial Information'!$M$18) -> 0 | AM37: FALSE | AN37: =ROUND($H37*(1+BO37)*(1+BT37)*(1+BY37)*(1+CD37)*(1+CI37)*(1+CN37)*AL37,'Initial Information'!$M$18) -> 0 | AR37: FALSE | AS37: =ROUND($H37*(1+BO37)*(1+BT37)*(1+BY37)*(1+CD37)*(1+CI37)*(1+CN37)*(1+CS37)*AQ37,'Initial Information'!$M$18) -> 0 | AW37: FALSE | AX37: =ROUND($H37*(1+BO37)*(1+BT37)*(1+BY37)*(1+CD37)*(1+CI37)*(1+CN37)*(1+CS37)*(1+CX37)*AV37,'Initial Information'!$M$18) -> 0 | BB37: FALSE | BC37: =ROUND($H37*(1+BO37)*(1+BT37)*(1+BY37)*(1+CD37)*(1+CI37)*(1+CN37)*(1+CS37)*(1+CX37)*(1+DC37)*BA37,'Initial Information'!$M$18) -> 0 | BG37: FALSE | BH37: =ROUND($H37*(1+BO37)*(1+BT37)*(1+BY37)*(1+CD37)*(1+CI37)*(1+CN37)*(1+CS37)*(1+CX37)*(1+DC37)*(1+DH37)*BF37,'Initial Information'!$M$18) -> 0 | BK37: 0 | BO37: 0.03 | BT37: 0.03 | BY37: 0.03 | CD37: 0.03 | CI37: 0.03 | CN37: 0.03 | CS37: 0.03 | CX37: 0.03 | DC37: 0.03 | DH37: 0.03 | DI37: 0 | DN37: 0 | DS37: 0 | DX37: 0 | EC37: 0 | EH37: 0 | EM37: 0 | ER37: 0 | EW37: 0 | FB37: 0 | FC37: 0 | FH37: 0 | FM37: 0 | FR37: 0 | FW37: 0 | GB37: 0 | GG37: 0 | GL37: 0 | GQ37: 0 | GV37: 0 | GW37: 0 | HB37: 0 | HG37: 0 | HL37: 0 | HQ37: 0 | HV37: 0 | IA37: 0 | IF37: 0 | IK37: 0 | IP37: 0 | IQ37: 0 | IV37: 0 | JA37: 0 | JF37: 0 | JK37: 0 | JP37: 0 | JU37: 0 | JZ37: 0 | KE37: 0 | KJ37: 0 | KK37: =ROUND($J37*O37, 'Initial Information'!$M$18) -> 0 | KP37: =ROUND($J37*T37, 'Initial Information'!$M$18) -> 0 | KU37: =ROUND($J37*Y37, 'Initial Information'!$M$18) -> 0 | KZ37: =ROUND($J37*AD37, 'Initial Information'!$M$18) -> 0 | LE37: =ROUND($J37*AI37, 'Initial Information'!$M$18) -> 0 | LJ37: =ROUND($J37*AN37, 'Initial Information'!$M$18) -> 0 | LO37: =ROUND($J37*AS37, 'Initial Information'!$M$18) -> 0 | LT37: =ROUND($J37*AX37, 'Initial Information'!$M$18) -> 0 | LY37: =ROUND($J37*BC37, 'Initial Information'!$M$18) -> 0 | MD37: =ROUND($J37*BH37, 'Initial Information'!$M$18) -> 0
A38: FALSE | B38: 15 | J38: =IF(C38="Select from Options Below", 0.28, IFERROR(VLOOKUP(C38, DropDownMenus!$J$1:$K$9, 2, FALSE), 0.28)) -> 0.28 | N38: FALSE | O38: =ROUND($H38*(1+BO38)*M38,'Initial Information'!$M$18) -> 0 | S38: FALSE | T38: =ROUND($H38*(1+BO38)*(1+BT38)*R38,'Initial Information'!$M$18) -> 0 | X38: FALSE | Y38: =ROUND($H38*(1+BO38)*(1+BT38)*(1+BY38)*W38,'Initial Information'!$M$18) -> 0 | AC38: FALSE | AD38: =ROUND($H38*(1+BO38)*(1+BT38)*(1+BY38)*(1+CD38)*AB38,'Initial Information'!$M$18) -> 0 | AH38: FALSE | AI38: =ROUND($H38*(1+BO38)*(1+BT38)*(1+BY38)*(1+CD38)*(1+CI38)*AG38,'Initial Information'!$M$18) -> 0 | AM38: FALSE | AN38: =ROUND($H38*(1+BO38)*(1+BT38)*(1+BY38)*(1+CD38)*(1+CI38)*(1+CN38)*AL38,'Initial Information'!$M$18) -> 0 | AR38: FALSE | AS38: =ROUND($H38*(1+BO38)*(1+BT38)*(1+BY38)*(1+CD38)*(1+CI38)*(1+CN38)*(1+CS38)*AQ38,'Initial Information'!$M$18) -> 0 | AW38: FALSE | AX38: =ROUND($H38*(1+BO38)*(1+BT38)*(1+BY38)*(1+CD38)*(1+CI38)*(1+CN38)*(1+CS38)*(1+CX38)*AV38,'Initial Information'!$M$18) -> 0 | BB38: FALSE | BC38: =ROUND($H38*(1+BO38)*(1+BT38)*(1+BY38)*(1+CD38)*(1+CI38)*(1+CN38)*(1+CS38)*(1+CX38)*(1+DC38)*BA38,'Initial Information'!$M$18) -> 0 | BG38: FALSE | BH38: =ROUND($H38*(1+BO38)*(1+BT38)*(1+BY38)*(1+CD38)*(1+CI38)*(1+CN38)*(1+CS38)*(1+CX38)*(1+DC38)*(1+DH38)*BF38,'Initial Information'!$M$18) -> 0 | BK38: 0 | BO38: 0.03 | BT38: 0.03 | BY38: 0.03 | CD38: 0.03 | CI38: 0.03 | CN38: 0.03 | CS38: 0.03 | CX38: 0.03 | DC38: 0.03 | DH38: 0.03 | DI38: 0 | DN38: 0 | DS38: 0 | DX38: 0 | EC38: 0 | EH38: 0 | EM38: 0 | ER38: 0 | EW38: 0 | FB38: 0 | FC38: 0 | FH38: 0 | FM38: 0 | FR38: 0 | FW38: 0 | GB38: 0 | GG38: 0 | GL38: 0 | GQ38: 0 | GV38: 0 | GW38: 0 | HB38: 0 | HG38: 0 | HL38: 0 | HQ38: 0 | HV38: 0 | IA38: 0 | IF38: 0 | IK38: 0 | IP38: 0 | IQ38: 0 | IV38: 0 | JA38: 0 | JF38: 0 | JK38: 0 | JP38: 0 | JU38: 0 | JZ38: 0 | KE38: 0 | KJ38: 0 | KK38: =ROUND($J38*O38, 'Initial Information'!$M$18) -> 0 | KP38: =ROUND($J38*T38, 'Initial Information'!$M$18) -> 0 | KU38: =ROUND($J38*Y38, 'Initial Information'!$M$18) -> 0 | KZ38: =ROUND($J38*AD38, 'Initial Information'!$M$18) -> 0 | LE38: =ROUND($J38*AI38, 'Initial Information'!$M$18) -> 0 | LJ38: =ROUND($J38*AN38, 'Initial Information'!$M$18) -> 0 | LO38: =ROUND($J38*AS38, 'Initial Information'!$M$18) -> 0 | LT38: =ROUND($J38*AX38, 'Initial Information'!$M$18) -> 0 | LY38: =ROUND($J38*BC38, 'Initial Information'!$M$18) -> 0 | MD38: =ROUND($J38*BH38, 'Initial Information'!$M$18) -> 0
A39: FALSE | B39: 16 | J39: =IF(C39="Select from Options Below", 0.28, IFERROR(VLOOKUP(C39, DropDownMenus!$J$1:$K$9, 2, FALSE), 0.28)) -> 0.28 | N39: FALSE | O39: =ROUND($H39*(1+BO39)*M39,'Initial Information'!$M$18) -> 0 | S39: FALSE | T39: =ROUND($H39*(1+BO39)*(1+BT39)*R39,'Initial Information'!$M$18) -> 0 | X39: FALSE | Y39: =ROUND($H39*(1+BO39)*(1+BT39)*(1+BY39)*W39,'Initial Information'!$M$18) -> 0 | AC39: FALSE | AD39: =ROUND($H39*(1+BO39)*(1+BT39)*(1+BY39)*(1+CD39)*AB39,'Initial Information'!$M$18) -> 0 | AH39: FALSE | AI39: =ROUND($H39*(1+BO39)*(1+BT39)*(1+BY39)*(1+CD39)*(1+CI39)*AG39,'Initial Information'!$M$18) -> 0 | AM39: FALSE | AN39: =ROUND($H39*(1+BO39)*(1+BT39)*(1+BY39)*(1+CD39)*(1+CI39)*(1+CN39)*AL39,'Initial Information'!$M$18) -> 0 | AR39: FALSE | AS39: =ROUND($H39*(1+BO39)*(1+BT39)*(1+BY39)*(1+CD39)*(1+CI39)*(1+CN39)*(1+CS39)*AQ39,'Initial Information'!$M$18) -> 0 | AW39: FALSE | AX39: =ROUND($H39*(1+BO39)*(1+BT39)*(1+BY39)*(1+CD39)*(1+CI39)*(1+CN39)*(1+CS39)*(1+CX39)*AV39,'Initial Information'!$M$18) -> 0 | BB39: FALSE | BC39: =ROUND($H39*(1+BO39)*(1+BT39)*(1+BY39)*(1+CD39)*(1+CI39)*(1+CN39)*(1+CS39)*(1+CX39)*(1+DC39)*BA39,'Initial Information'!$M$18) -> 0 | BG39: FALSE | BH39: =ROUND($H39*(1+BO39)*(1+BT39)*(1+BY39)*(1+CD39)*(1+CI39)*(1+CN39)*(1+CS39)*(1+CX39)*(1+DC39)*(1+DH39)*BF39,'Initial Information'!$M$18) -> 0 | BK39: 0 | BO39: 0.03 | BT39: 0.03 | BY39: 0.03 | CD39: 0.03 | CI39: 0.03 | CN39: 0.03 | CS39: 0.03 | CX39: 0.03 | DC39: 0.03 | DH39: 0.03 | DI39: 0 | DN39: 0 | DS39: 0 | DX39: 0 | EC39: 0 | EH39: 0 | EM39: 0 | ER39: 0 | EW39: 0 | FB39: 0 | FC39: 0 | FH39: 0 | FM39: 0 | FR39: 0 | FW39: 0 | GB39: 0 | GG39: 0 | GL39: 0 | GQ39: 0 | GV39: 0 | GW39: 0 | HB39: 0 | HG39: 0 | HL39: 0 | HQ39: 0 | HV39: 0 | IA39: 0 | IF39: 0 | IK39: 0 | IP39: 0 | IQ39: 0 | IV39: 0 | JA39: 0 | JF39: 0 | JK39: 0 | JP39: 0 | JU39: 0 | JZ39: 0 | KE39: 0 | KJ39: 0 | KK39: =ROUND($J39*O39, 'Initial Information'!$M$18) -> 0 | KP39: =ROUND($J39*T39, 'Initial Information'!$M$18) -> 0 | KU39: =ROUND($J39*Y39, 'Initial Information'!$M$18) -> 0 | KZ39: =ROUND($J39*AD39, 'Initial Information'!$M$18) -> 0 | LE39: =ROUND($J39*AI39, 'Initial Information'!$M$18) -> 0 | LJ39: =ROUND($J39*AN39, 'Initial Information'!$M$18) -> 0 | LO39: =ROUND($J39*AS39, 'Initial Information'!$M$18) -> 0 | LT39: =ROUND($J39*AX39, 'Initial Information'!$M$18) -> 0 | LY39: =ROUND($J39*BC39, 'Initial Information'!$M$18) -> 0 | MD39: =ROUND($J39*BH39, 'Initial Information'!$M$18) -> 0
A40: FALSE | B40: 17 | J40: =IF(C40="Select from Options Below", 0.28, IFERROR(VLOOKUP(C40, DropDownMenus!$J$1:$K$9, 2, FALSE), 0.28)) -> 0.28 | N40: FALSE | O40: =ROUND($H40*(1+BO40)*M40,'Initial Information'!$M$18) -> 0 | S40: FALSE | T40: =ROUND($H40*(1+BO40)*(1+BT40)*R40,'Initial Information'!$M$18) -> 0 | X40: FALSE | Y40: =ROUND($H40*(1+BO40)*(1+BT40)*(1+BY40)*W40,'Initial Information'!$M$18) -> 0 | AC40: FALSE | AD40: =ROUND($H40*(1+BO40)*(1+BT40)*(1+BY40)*(1+CD40)*AB40,'Initial Information'!$M$18) -> 0 | AH40: FALSE | AI40: =ROUND($H40*(1+BO40)*(1+BT40)*(1+BY40)*(1+CD40)*(1+CI40)*AG40,'Initial Information'!$M$18) -> 0 | AM40: FALSE | AN40: =ROUND($H40*(1+BO40)*(1+BT40)*(1+BY40)*(1+CD40)*(1+CI40)*(1+CN40)*AL40,'Initial Information'!$M$18) -> 0 | AR40: FALSE | AS40: =ROUND($H40*(1+BO40)*(1+BT40)*(1+BY40)*(1+CD40)*(1+CI40)*(1+CN40)*(1+CS40)*AQ40,'Initial Information'!$M$18) -> 0 | AW40: FALSE | AX40: =ROUND($H40*(1+BO40)*(1+BT40)*(1+BY40)*(1+CD40)*(1+CI40)*(1+CN40)*(1+CS40)*(1+CX40)*AV40,'Initial Information'!$M$18) -> 0 | BB40: FALSE | BC40: =ROUND($H40*(1+BO40)*(1+BT40)*(1+BY40)*(1+CD40)*(1+CI40)*(1+CN40)*(1+CS40)*(1+CX40)*(1+DC40)*BA40,'Initial Information'!$M$18) -> 0 | BG40: FALSE | BH40: =ROUND($H40*(1+BO40)*(1+BT40)*(1+BY40)*(1+CD40)*(1+CI40)*(1+CN40)*(1+CS40)*(1+CX40)*(1+DC40)*(1+DH40)*BF40,'Initial Information'!$M$18) -> 0 | BK40: 0 | BO40: 0.03 | BT40: 0.03 | BY40: 0.03 | CD40: 0.03 | CI40: 0.03 | CN40: 0.03 | CS40: 0.03 | CX40: 0.03 | DC40: 0.03 | DH40: 0.03 | DI40: 0 | DN40: 0 | DS40: 0 | DX40: 0 | EC40: 0 | EH40: 0 | EM40: 0 | ER40: 0 | EW40: 0 | FB40: 0 | FC40: 0 | FH40: 0 | FM40: 0 | FR40: 0 | FW40: 0 | GB40: 0 | GG40: 0 | GL40: 0 | GQ40: 0 | GV40: 0 | GW40: 0 | HB40: 0 | HG40: 0 | HL40: 0 | HQ40: 0 | HV40: 0 | IA40: 0 | IF40: 0 | IK40: 0 | IP40: 0 | IQ40: 0 | IV40: 0 | JA40: 0 | JF40: 0 | JK40: 0 | JP40: 0 | JU40: 0 | JZ40: 0 | KE40: 0 | KJ40: 0 | KK40: =ROUND($J40*O40, 'Initial Information'!$M$18) -> 0 | KP40: =ROUND($J40*T40, 'Initial Information'!$M$18) -> 0 | KU40: =ROUND($J40*Y40, 'Initial Information'!$M$18) -> 0 | KZ40: =ROUND($J40*AD40, 'Initial Information'!$M$18) -> 0 | LE40: =ROUND($J40*AI40, 'Initial Information'!$M$18) -> 0 | LJ40: =ROUND($J40*AN40, 'Initial Information'!$M$18) -> 0 | LO40: =ROUND($J40*AS40, 'Initial Information'!$M$18) -> 0 | LT40: =ROUND($J40*AX40, 'Initial Information'!$M$18) -> 0 | LY40: =ROUND($J40*BC40, 'Initial Information'!$M$18) -> 0 | MD40: =ROUND($J40*BH40, 'Initial Information'!$M$18) -> 0
A41: FALSE | B41: 18 | J41: =IF(C41="Select from Options Below", 0.28, IFERROR(VLOOKUP(C41, DropDownMenus!$J$1:$K$9, 2, FALSE), 0.28)) -> 0.28 | N41: FALSE | O41: =ROUND($H41*(1+BO41)*M41,'Initial Information'!$M$18) -> 0 | S41: FALSE | T41: =ROUND($H41*(1+BO41)*(1+BT41)*R41,'Initial Information'!$M$18) -> 0 | X41: FALSE | Y41: =ROUND($H41*(1+BO41)*(1+BT41)*(1+BY41)*W41,'Initial Information'!$M$18) -> 0 | AC41: FALSE | AD41: =ROUND($H41*(1+BO41)*(1+BT41)*(1+BY41)*(1+CD41)*AB41,'Initial Information'!$M$18) -> 0 | AH41: FALSE | AI41: =ROUND($H41*(1+BO41)*(1+BT41)*(1+BY41)*(1+CD41)*(1+CI41)*AG41,'Initial Information'!$M$18) -> 0 | AM41: FALSE | AN41: =ROUND($H41*(1+BO41)*(1+BT41)*(1+BY41)*(1+CD41)*(1+CI41)*(1+CN41)*AL41,'Initial Information'!$M$18) -> 0 | AR41: FALSE | AS41: =ROUND($H41*(1+BO41)*(1+BT41)*(1+BY41)*(1+CD41)*(1+CI41)*(1+CN41)*(1+CS41)*AQ41,'Initial Information'!$M$18) -> 0 | AW41: FALSE | AX41: =ROUND($H41*(1+BO41)*(1+BT41)*(1+BY41)*(1+CD41)*(1+CI41)*(1+CN41)*(1+CS41)*(1+CX41)*AV41,'Initial Information'!$M$18) -> 0 | BB41: FALSE | BC41: =ROUND($H41*(1+BO41)*(1+BT41)*(1+BY41)*(1+CD41)*(1+CI41)*(1+CN41)*(1+CS41)*(1+CX41)*(1+DC41)*BA41,'Initial Information'!$M$18) -> 0 | BG41: FALSE | BH41: =ROUND($H41*(1+BO41)*(1+BT41)*(1+BY41)*(1+CD41)*(1+CI41)*(1+CN41)*(1+CS41)*(1+CX41)*(1+DC41)*(1+DH41)*BF41,'Initial Information'!$M$18) -> 0 | BK41: 0 | BO41: 0.03 | BT41: 0.03 | BY41: 0.03 | CD41: 0.03 | CI41: 0.03 | CN41: 0.03 | CS41: 0.03 | CX41: 0.03 | DC41: 0.03 | DH41: 0.03 | DI41: 0 | DN41: 0 | DS41: 0 | DX41: 0 | EC41: 0 | EH41: 0 | EM41: 0 | ER41: 0 | EW41: 0 | FB41: 0 | FC41: 0 | FH41: 0 | FM41: 0 | FR41: 0 | FW41: 0 | GB41: 0 | GG41: 0 | GL41: 0 | GQ41: 0 | GV41: 0 | GW41: 0 | HB41: 0 | HG41: 0 | HL41: 0 | HQ41: 0 | HV41: 0 | IA41: 0 | IF41: 0 | IK41: 0 | IP41: 0 | IQ41: 0 | IV41: 0 | JA41: 0 | JF41: 0 | JK41: 0 | JP41: 0 | JU41: 0 | JZ41: 0 | KE41: 0 | KJ41: 0 | KK41: =ROUND($J41*O41, 'Initial Information'!$M$18) -> 0 | KP41: =ROUND($J41*T41, 'Initial Information'!$M$18) -> 0 | KU41: =ROUND($J41*Y41, 'Initial Information'!$M$18) -> 0 | KZ41: =ROUND($J41*AD41, 'Initial Information'!$M$18) -> 0 | LE41: =ROUND($J41*AI41, 'Initial Information'!$M$18) -> 0 | LJ41: =ROUND($J41*AN41, 'Initial Information'!$M$18) -> 0 | LO41: =ROUND($J41*AS41, 'Initial Information'!$M$18) -> 0 | LT41: =ROUND($J41*AX41, 'Initial Information'!$M$18) -> 0 | LY41: =ROUND($J41*BC41, 'Initial Information'!$M$18) -> 0 | MD41: =ROUND($J41*BH41, 'Initial Information'!$M$18) -> 0
A42: FALSE | B42: 19 | J42: =IF(C42="Select from Options Below", 0.28, IFERROR(VLOOKUP(C42, DropDownMenus!$J$1:$K$9, 2, FALSE), 0.28)) -> 0.28 | N42: FALSE | O42: =ROUND($H42*(1+BO42)*M42,'Initial Information'!$M$18) -> 0 | S42: FALSE | T42: =ROUND($H42*(1+BO42)*(1+BT42)*R42,'Initial Information'!$M$18) -> 0 | X42: FALSE | Y42: =ROUND($H42*(1+BO42)*(1+BT42)*(1+BY42)*W42,'Initial Information'!$M$18) -> 0 | AC42: FALSE | AD42: =ROUND($H42*(1+BO42)*(1+BT42)*(1+BY42)*(1+CD42)*AB42,'Initial Information'!$M$18) -> 0 | AH42: FALSE | AI42: =ROUND($H42*(1+BO42)*(1+BT42)*(1+BY42)*(1+CD42)*(1+CI42)*AG42,'Initial Information'!$M$18) -> 0 | AM42: FALSE | AN42: =ROUND($H42*(1+BO42)*(1+BT42)*(1+BY42)*(1+CD42)*(1+CI42)*(1+CN42)*AL42,'Initial Information'!$M$18) -> 0 | AR42: FALSE | AS42: =ROUND($H42*(1+BO42)*(1+BT42)*(1+BY42)*(1+CD42)*(1+CI42)*(1+CN42)*(1+CS42)*AQ42,'Initial Information'!$M$18) -> 0 | AW42: FALSE | AX42: =ROUND($H42*(1+BO42)*(1+BT42)*(1+BY42)*(1+CD42)*(1+CI42)*(1+CN42)*(1+CS42)*(1+CX42)*AV42,'Initial Information'!$M$18) -> 0 | BB42: FALSE | BC42: =ROUND($H42*(1+BO42)*(1+BT42)*(1+BY42)*(1+CD42)*(1+CI42)*(1+CN42)*(1+CS42)*(1+CX42)*(1+DC42)*BA42,'Initial Information'!$M$18) -> 0 | BG42: FALSE | BH42: =ROUND($H42*(1+BO42)*(1+BT42)*(1+BY42)*(1+CD42)*(1+CI42)*(1+CN42)*(1+CS42)*(1+CX42)*(1+DC42)*(1+DH42)*BF42,'Initial Information'!$M$18) -> 0 | BK42: 0 | BO42: 0.03 | BT42: 0.03 | BY42: 0.03 | CD42: 0.03 | CI42: 0.03 | CN42: 0.03 | CS42: 0.03 | CX42: 0.03 | DC42: 0.03 | DH42: 0.03 | DI42: 0 | DN42: 0 | DS42: 0 | DX42: 0 | EC42: 0 | EH42: 0 | EM42: 0 | ER42: 0 | EW42: 0 | FB42: 0 | FC42: 0 | FH42: 0 | FM42: 0 | FR42: 0 | FW42: 0 | GB42: 0 | GG42: 0 | GL42: 0 | GQ42: 0 | GV42: 0 | GW42: 0 | HB42: 0 | HG42: 0 | HL42: 0 | HQ42: 0 | HV42: 0 | IA42: 0 | IF42: 0 | IK42: 0 | IP42: 0 | IQ42: 0 | IV42: 0 | JA42: 0 | JF42: 0 | JK42: 0 | JP42: 0 | JU42: 0 | JZ42: 0 | KE42: 0 | KJ42: 0 | KK42: =ROUND($J42*O42, 'Initial Information'!$M$18) -> 0 | KP42: =ROUND($J42*T42, 'Initial Information'!$M$18) -> 0 | KU42: =ROUND($J42*Y42, 'Initial Information'!$M$18) -> 0 | KZ42: =ROUND($J42*AD42, 'Initial Information'!$M$18) -> 0 | LE42: =ROUND($J42*AI42, 'Initial Information'!$M$18) -> 0 | LJ42: =ROUND($J42*AN42, 'Initial Information'!$M$18) -> 0 | LO42: =ROUND($J42*AS42, 'Initial Information'!$M$18) -> 0 | LT42: =ROUND($J42*AX42, 'Initial Information'!$M$18) -> 0 | LY42: =ROUND($J42*BC42, 'Initial Information'!$M$18) -> 0 | MD42: =ROUND($J42*BH42, 'Initial Information'!$M$18) -> 0
A43: FALSE | B43: 20 | J43: =IF(C43="Select from Options Below", 0.28, IFERROR(VLOOKUP(C43, DropDownMenus!$J$1:$K$9, 2, FALSE), 0.28)) -> 0.28 | N43: FALSE | O43: =ROUND($H43*(1+BO43)*M43,'Initial Information'!$M$18) -> 0 | S43: FALSE | T43: =ROUND($H43*(1+BO43)*(1+BT43)*R43,'Initial Information'!$M$18) -> 0 | X43: FALSE | Y43: =ROUND($H43*(1+BO43)*(1+BT43)*(1+BY43)*W43,'Initial Information'!$M$18) -> 0 | AC43: FALSE | AD43: =ROUND($H43*(1+BO43)*(1+BT43)*(1+BY43)*(1+CD43)*AB43,'Initial Information'!$M$18) -> 0 | AH43: FALSE | AI43: =ROUND($H43*(1+BO43)*(1+BT43)*(1+BY43)*(1+CD43)*(1+CI43)*AG43,'Initial Information'!$M$18) -> 0 | AM43: FALSE | AN43: =ROUND($H43*(1+BO43)*(1+BT43)*(1+BY43)*(1+CD43)*(1+CI43)*(1+CN43)*AL43,'Initial Information'!$M$18) -> 0 | AR43: FALSE | AS43: =ROUND($H43*(1+BO43)*(1+BT43)*(1+BY43)*(1+CD43)*(1+CI43)*(1+CN43)*(1+CS43)*AQ43,'Initial Information'!$M$18) -> 0 | AW43: FALSE | AX43: =ROUND($H43*(1+BO43)*(1+BT43)*(1+BY43)*(1+CD43)*(1+CI43)*(1+CN43)*(1+CS43)*(1+CX43)*AV43,'Initial Information'!$M$18) -> 0 | BB43: FALSE | BC43: =ROUND($H43*(1+BO43)*(1+BT43)*(1+BY43)*(1+CD43)*(1+CI43)*(1+CN43)*(1+CS43)*(1+CX43)*(1+DC43)*BA43,'Initial Information'!$M$18) -> 0 | BG43: FALSE | BH43: =ROUND($H43*(1+BO43)*(1+BT43)*(1+BY43)*(1+CD43)*(1+CI43)*(1+CN43)*(1+CS43)*(1+CX43)*(1+DC43)*(1+DH43)*BF43,'Initial Information'!$M$18) -> 0 | BK43: 0 | BO43: 0.03 | BT43: 0.03 | BY43: 0.03 | CD43: 0.03 | CI43: 0.03 | CN43: 0.03 | CS43: 0.03 | CX43: 0.03 | DC43: 0.03 | DH43: 0.03 | DI43: 0 | DN43: 0 | DS43: 0 | DX43: 0 | EC43: 0 | EH43: 0 | EM43: 0 | ER43: 0 | EW43: 0 | FB43: 0 | FC43: 0 | FH43: 0 | FM43: 0 | FR43: 0 | FW43: 0 | GB43: 0 | GG43: 0 | GL43: 0 | GQ43: 0 | GV43: 0 | GW43: 0 | HB43: 0 | HG43: 0 | HL43: 0 | HQ43: 0 | HV43: 0 | IA43: 0 | IF43: 0 | IK43: 0 | IP43: 0 | IQ43: 0 | IV43: 0 | JA43: 0 | JF43: 0 | JK43: 0 | JP43: 0 | JU43: 0 | JZ43: 0 | KE43: 0 | KJ43: 0 | KK43: =ROUND($J43*O43, 'Initial Information'!$M$18) -> 0 | KP43: =ROUND($J43*T43, 'Initial Information'!$M$18) -> 0 | KU43: =ROUND($J43*Y43, 'Initial Information'!$M$18) -> 0 | KZ43: =ROUND($J43*AD43, 'Initial Information'!$M$18) -> 0 | LE43: =ROUND($J43*AI43, 'Initial Information'!$M$18) -> 0 | LJ43: =ROUND($J43*AN43, 'Initial Information'!$M$18) -> 0 | LO43: =ROUND($J43*AS43, 'Initial Information'!$M$18) -> 0 | LT43: =ROUND($J43*AX43, 'Initial Information'!$M$18) -> 0 | LY43: =ROUND($J43*BC43, 'Initial Information'!$M$18) -> 0 | MD43: =ROUND($J43*BH43, 'Initial Information'!$M$18) -> 0
A44: FALSE | B44: 21 | J44: =IF(C44="Select from Options Below", 0.28, IFERROR(VLOOKUP(C44, DropDownMenus!$J$1:$K$9, 2, FALSE), 0.28)) -> 0.28 | N44: FALSE | O44: =ROUND($H44*(1+BO44)*M44,'Initial Information'!$M$18) -> 0 | S44: FALSE | T44: =ROUND($H44*(1+BO44)*(1+BT44)*R44,'Initial Information'!$M$18) -> 0 | X44: FALSE | Y44: =ROUND($H44*(1+BO44)*(1+BT44)*(1+BY44)*W44,'Initial Information'!$M$18) -> 0 | AC44: FALSE | AD44: =ROUND($H44*(1+BO44)*(1+BT44)*(1+BY44)*(1+CD44)*AB44,'Initial Information'!$M$18) -> 0 | AH44: FALSE | AI44: =ROUND($H44*(1+BO44)*(1+BT44)*(1+BY44)*(1+CD44)*(1+CI44)*AG44,'Initial Information'!$M$18) -> 0 | AM44: FALSE | AN44: =ROUND($H44*(1+BO44)*(1+BT44)*(1+BY44)*(1+CD44)*(1+CI44)*(1+CN44)*AL44,'Initial Information'!$M$18) -> 0 | AR44: FALSE | AS44: =ROUND($H44*(1+BO44)*(1+BT44)*(1+BY44)*(1+CD44)*(1+CI44)*(1+CN44)*(1+CS44)*AQ44,'Initial Information'!$M$18) -> 0 | AW44: FALSE | AX44: =ROUND($H44*(1+BO44)*(1+BT44)*(1+BY44)*(1+CD44)*(1+CI44)*(1+CN44)*(1+CS44)*(1+CX44)*AV44,'Initial Information'!$M$18) -> 0 | BB44: FALSE | BC44: =ROUND($H44*(1+BO44)*(1+BT44)*(1+BY44)*(1+CD44)*(1+CI44)*(1+CN44)*(1+CS44)*(1+CX44)*(1+DC44)*BA44,'Initial Information'!$M$18) -> 0 | BG44: FALSE | BH44: =ROUND($H44*(1+BO44)*(1+BT44)*(1+BY44)*(1+CD44)*(1+CI44)*(1+CN44)*(1+CS44)*(1+CX44)*(1+DC44)*(1+DH44)*BF44,'Initial Information'!$M$18) -> 0 | BK44: 0 | BO44: 0.03 | BT44: 0.03 | BY44: 0.03 | CD44: 0.03 | CI44: 0.03 | CN44: 0.03 | CS44: 0.03 | CX44: 0.03 | DC44: 0.03 | DH44: 0.03 | DI44: 0 | DN44: 0 | DS44: 0 | DX44: 0 | EC44: 0 | EH44: 0 | EM44: 0 | ER44: 0 | EW44: 0 | FB44: 0 | FC44: 0 | FH44: 0 | FM44: 0 | FR44: 0 | FW44: 0 | GB44: 0 | GG44: 0 | GL44: 0 | GQ44: 0 | GV44: 0 | GW44: 0 | HB44: 0 | HG44: 0 | HL44: 0 | HQ44: 0 | HV44: 0 | IA44: 0 | IF44: 0 | IK44: 0 | IP44: 0 | IQ44: 0 | IV44: 0 | JA44: 0 | JF44: 0 | JK44: 0 | JP44: 0 | JU44: 0 | JZ44: 0 | KE44: 0 | KJ44: 0 | KK44: =ROUND($J44*O44, 'Initial Information'!$M$18) -> 0 | KP44: =ROUND($J44*T44, 'Initial Information'!$M$18) -> 0 | KU44: =ROUND($J44*Y44, 'Initial Information'!$M$18) -> 0 | KZ44: =ROUND($J44*AD44, 'Initial Information'!$M$18) -> 0 | LE44: =ROUND($J44*AI44, 'Initial Information'!$M$18) -> 0 | LJ44: =ROUND($J44*AN44, 'Initial Information'!$M$18) -> 0 | LO44: =ROUND($J44*AS44, 'Initial Information'!$M$18) -> 0 | LT44: =ROUND($J44*AX44, 'Initial Information'!$M$18) -> 0 | LY44: =ROUND($J44*BC44, 'Initial Information'!$M$18) -> 0 | MD44: =ROUND($J44*BH44, 'Initial Information'!$M$18) -> 0
A45: FALSE | B45: 22 | J45: =IF(C45="Select from Options Below", 0.28, IFERROR(VLOOKUP(C45, DropDownMenus!$J$1:$K$9, 2, FALSE), 0.28)) -> 0.28 | N45: FALSE | O45: =ROUND($H45*(1+BO45)*M45,'Initial Information'!$M$18) -> 0 | S45: FALSE | T45: =ROUND($H45*(1+BO45)*(1+BT45)*R45,'Initial Information'!$M$18) -> 0 | X45: FALSE | Y45: =ROUND($H45*(1+BO45)*(1+BT45)*(1+BY45)*W45,'Initial Information'!$M$18) -> 0 | AC45: FALSE | AD45: =ROUND($H45*(1+BO45)*(1+BT45)*(1+BY45)*(1+CD45)*AB45,'Initial Information'!$M$18) -> 0 | AH45: FALSE | AI45: =ROUND($H45*(1+BO45)*(1+BT45)*(1+BY45)*(1+CD45)*(1+CI45)*AG45,'Initial Information'!$M$18) -> 0 | AM45: FALSE | AN45: =ROUND($H45*(1+BO45)*(1+BT45)*(1+BY45)*(1+CD45)*(1+CI45)*(1+CN45)*AL45,'Initial Information'!$M$18) -> 0 | AR45: FALSE | AS45: =ROUND($H45*(1+BO45)*(1+BT45)*(1+BY45)*(1+CD45)*(1+CI45)*(1+CN45)*(1+CS45)*AQ45,'Initial Information'!$M$18) -> 0 | AW45: FALSE | AX45: =ROUND($H45*(1+BO45)*(1+BT45)*(1+BY45)*(1+CD45)*(1+CI45)*(1+CN45)*(1+CS45)*(1+CX45)*AV45,'Initial Information'!$M$18) -> 0 | BB45: FALSE | BC45: =ROUND($H45*(1+BO45)*(1+BT45)*(1+BY45)*(1+CD45)*(1+CI45)*(1+CN45)*(1+CS45)*(1+CX45)*(1+DC45)*BA45,'Initial Information'!$M$18) -> 0 | BG45: FALSE | BH45: =ROUND($H45*(1+BO45)*(1+BT45)*(1+BY45)*(1+CD45)*(1+CI45)*(1+CN45)*(1+CS45)*(1+CX45)*(1+DC45)*(1+DH45)*BF45,'Initial Information'!$M$18) -> 0 | BK45: 0 | BO45: 0.03 | BT45: 0.03 | BY45: 0.03 | CD45: 0.03 | CI45: 0.03 | CN45: 0.03 | CS45: 0.03 | CX45: 0.03 | DC45: 0.03 | DH45: 0.03 | DI45: 0 | DN45: 0 | DS45: 0 | DX45: 0 | EC45: 0 | EH45: 0 | EM45: 0 | ER45: 0 | EW45: 0 | FB45: 0 | FC45: 0 | FH45: 0 | FM45: 0 | FR45: 0 | FW45: 0 | GB45: 0 | GG45: 0 | GL45: 0 | GQ45: 0 | GV45: 0 | GW45: 0 | HB45: 0 | HG45: 0 | HL45: 0 | HQ45: 0 | HV45: 0 | IA45: 0 | IF45: 0 | IK45: 0 | IP45: 0 | IQ45: 0 | IV45: 0 | JA45: 0 | JF45: 0 | JK45: 0 | JP45: 0 | JU45: 0 | JZ45: 0 | KE45: 0 | KJ45: 0 | KK45: =ROUND($J45*O45, 'Initial Information'!$M$18) -> 0 | KP45: =ROUND($J45*T45, 'Initial Information'!$M$18) -> 0 | KU45: =ROUND($J45*Y45, 'Initial Information'!$M$18) -> 0 | KZ45: =ROUND($J45*AD45, 'Initial Information'!$M$18) -> 0 | LE45: =ROUND($J45*AI45, 'Initial Information'!$M$18) -> 0 | LJ45: =ROUND($J45*AN45, 'Initial Information'!$M$18) -> 0 | LO45: =ROUND($J45*AS45, 'Initial Information'!$M$18) -> 0 | LT45: =ROUND($J45*AX45, 'Initial Information'!$M$18) -> 0 | LY45: =ROUND($J45*BC45, 'Initial Information'!$M$18) -> 0 | MD45: =ROUND($J45*BH45, 'Initial Information'!$M$18) -> 0
A46: FALSE | B46: 23 | J46: =IF(C46="Select from Options Below", 0.28, IFERROR(VLOOKUP(C46, DropDownMenus!$J$1:$K$9, 2, FALSE), 0.28)) -> 0.28 | N46: FALSE | O46: =ROUND($H46*(1+BO46)*M46,'Initial Information'!$M$18) -> 0 | S46: FALSE | T46: =ROUND($H46*(1+BO46)*(1+BT46)*R46,'Initial Information'!$M$18) -> 0 | X46: FALSE | Y46: =ROUND($H46*(1+BO46)*(1+BT46)*(1+BY46)*W46,'Initial Information'!$M$18) -> 0 | AC46: FALSE | AD46: =ROUND($H46*(1+BO46)*(1+BT46)*(1+BY46)*(1+CD46)*AB46,'Initial Information'!$M$18) -> 0 | AH46: FALSE | AI46: =ROUND($H46*(1+BO46)*(1+BT46)*(1+BY46)*(1+CD46)*(1+CI46)*AG46,'Initial Information'!$M$18) -> 0 | AM46: FALSE | AN46: =ROUND($H46*(1+BO46)*(1+BT46)*(1+BY46)*(1+CD46)*(1+CI46)*(1+CN46)*AL46,'Initial Information'!$M$18) -> 0 | AR46: FALSE | AS46: =ROUND($H46*(1+BO46)*(1+BT46)*(1+BY46)*(1+CD46)*(1+CI46)*(1+CN46)*(1+CS46)*AQ46,'Initial Information'!$M$18) -> 0 | AW46: FALSE | AX46: =ROUND($H46*(1+BO46)*(1+BT46)*(1+BY46)*(1+CD46)*(1+CI46)*(1+CN46)*(1+CS46)*(1+CX46)*AV46,'Initial Information'!$M$18) -> 0 | BB46: FALSE | BC46: =ROUND($H46*(1+BO46)*(1+BT46)*(1+BY46)*(1+CD46)*(1+CI46)*(1+CN46)*(1+CS46)*(1+CX46)*(1+DC46)*BA46,'Initial Information'!$M$18) -> 0 | BG46: FALSE | BH46: =ROUND($H46*(1+BO46)*(1+BT46)*(1+BY46)*(1+CD46)*(1+CI46)*(1+CN46)*(1+CS46)*(1+CX46)*(1+DC46)*(1+DH46)*BF46,'Initial Information'!$M$18) -> 0 | BK46: 0 | BO46: 0.03 | BT46: 0.03 | BY46: 0.03 | CD46: 0.03 | CI46: 0.03 | CN46: 0.03 | CS46: 0.03 | CX46: 0.03 | DC46: 0.03 | DH46: 0.03 | DI46: 0 | DN46: 0 | DS46: 0 | DX46: 0 | EC46: 0 | EH46: 0 | EM46: 0 | ER46: 0 | EW46: 0 | FB46: 0 | FC46: 0 | FH46: 0 | FM46: 0 | FR46: 0 | FW46: 0 | GB46: 0 | GG46: 0 | GL46: 0 | GQ46: 0 | GV46: 0 | GW46: 0 | HB46: 0 | HG46: 0 | HL46: 0 | HQ46: 0 | HV46: 0 | IA46: 0 | IF46: 0 | IK46: 0 | IP46: 0 | IQ46: 0 | IV46: 0 | JA46: 0 | JF46: 0 | JK46: 0 | JP46: 0 | JU46: 0 | JZ46: 0 | KE46: 0 | KJ46: 0 | KK46: =ROUND($J46*O46, 'Initial Information'!$M$18) -> 0 | KP46: =ROUND($J46*T46, 'Initial Information'!$M$18) -> 0 | KU46: =ROUND($J46*Y46, 'Initial Information'!$M$18) -> 0 | KZ46: =ROUND($J46*AD46, 'Initial Information'!$M$18) -> 0 | LE46: =ROUND($J46*AI46, 'Initial Information'!$M$18) -> 0 | LJ46: =ROUND($J46*AN46, 'Initial Information'!$M$18) -> 0 | LO46: =ROUND($J46*AS46, 'Initial Information'!$M$18) -> 0 | LT46: =ROUND($J46*AX46, 'Initial Information'!$M$18) -> 0 | LY46: =ROUND($J46*BC46, 'Initial Information'!$M$18) -> 0 | MD46: =ROUND($J46*BH46, 'Initial Information'!$M$18) -> 0
A47: FALSE | B47: 24 | J47: =IF(C47="Select from Options Below", 0.28, IFERROR(VLOOKUP(C47, DropDownMenus!$J$1:$K$9, 2, FALSE), 0.28)) -> 0.28 | N47: FALSE | O47: =ROUND($H47*(1+BO47)*M47,'Initial Information'!$M$18) -> 0 | S47: FALSE | T47: =ROUND($H47*(1+BO47)*(1+BT47)*R47,'Initial Information'!$M$18) -> 0 | X47: FALSE | Y47: =ROUND($H47*(1+BO47)*(1+BT47)*(1+BY47)*W47,'Initial Information'!$M$18) -> 0 | AC47: FALSE | AD47: =ROUND($H47*(1+BO47)*(1+BT47)*(1+BY47)*(1+CD47)*AB47,'Initial Information'!$M$18) -> 0 | AH47: FALSE | AI47: =ROUND($H47*(1+BO47)*(1+BT47)*(1+BY47)*(1+CD47)*(1+CI47)*AG47,'Initial Information'!$M$18) -> 0 | AM47: FALSE | AN47: =ROUND($H47*(1+BO47)*(1+BT47)*(1+BY47)*(1+CD47)*(1+CI47)*(1+CN47)*AL47,'Initial Information'!$M$18) -> 0 | AR47: FALSE | AS47: =ROUND($H47*(1+BO47)*(1+BT47)*(1+BY47)*(1+CD47)*(1+CI47)*(1+CN47)*(1+CS47)*AQ47,'Initial Information'!$M$18) -> 0 | AW47: FALSE | AX47: =ROUND($H47*(1+BO47)*(1+BT47)*(1+BY47)*(1+CD47)*(1+CI47)*(1+CN47)*(1+CS47)*(1+CX47)*AV47,'Initial Information'!$M$18) -> 0 | BB47: FALSE | BC47: =ROUND($H47*(1+BO47)*(1+BT47)*(1+BY47)*(1+CD47)*(1+CI47)*(1+CN47)*(1+CS47)*(1+CX47)*(1+DC47)*BA47,'Initial Information'!$M$18) -> 0 | BG47: FALSE | BH47: =ROUND($H47*(1+BO47)*(1+BT47)*(1+BY47)*(1+CD47)*(1+CI47)*(1+CN47)*(1+CS47)*(1+CX47)*(1+DC47)*(1+DH47)*BF47,'Initial Information'!$M$18) -> 0 | BK47: 0 | BO47: 0.03 | BT47: 0.03 | BY47: 0.03 | CD47: 0.03 | CI47: 0.03 | CN47: 0.03 | CS47: 0.03 | CX47: 0.03 | DC47: 0.03 | DH47: 0.03 | DI47: 0 | DN47: 0 | DS47: 0 | DX47: 0 | EC47: 0 | EH47: 0 | EM47: 0 | ER47: 0 | EW47: 0 | FB47: 0 | FC47: 0 | FH47: 0 | FM47: 0 | FR47: 0 | FW47: 0 | GB47: 0 | GG47: 0 | GL47: 0 | GQ47: 0 | GV47: 0 | GW47: 0 | HB47: 0 | HG47: 0 | HL47: 0 | HQ47: 0 | HV47: 0 | IA47: 0 | IF47: 0 | IK47: 0 | IP47: 0 | IQ47: 0 | IV47: 0 | JA47: 0 | JF47: 0 | JK47: 0 | JP47: 0 | JU47: 0 | JZ47: 0 | KE47: 0 | KJ47: 0 | KK47: =ROUND($J47*O47, 'Initial Information'!$M$18) -> 0 | KP47: =ROUND($J47*T47, 'Initial Information'!$M$18) -> 0 | KU47: =ROUND($J47*Y47, 'Initial Information'!$M$18) -> 0 | KZ47: =ROUND($J47*AD47, 'Initial Information'!$M$18) -> 0 | LE47: =ROUND($J47*AI47, 'Initial Information'!$M$18) -> 0 | LJ47: =ROUND($J47*AN47, 'Initial Information'!$M$18) -> 0 | LO47: =ROUND($J47*AS47, 'Initial Information'!$M$18) -> 0 | LT47: =ROUND($J47*AX47, 'Initial Information'!$M$18) -> 0 | LY47: =ROUND($J47*BC47, 'Initial Information'!$M$18) -> 0 | MD47: =ROUND($J47*BH47, 'Initial Information'!$M$18) -> 0
A48: FALSE | B48: 25 | J48: =IF(C48="Select from Options Below", 0.28, IFERROR(VLOOKUP(C48, DropDownMenus!$J$1:$K$9, 2, FALSE), 0.28)) -> 0.28 | N48: FALSE | O48: =ROUND($H48*(1+BO48)*M48,'Initial Information'!$M$18) -> 0 | S48: FALSE | T48: =ROUND($H48*(1+BO48)*(1+BT48)*R48,'Initial Information'!$M$18) -> 0 | X48: FALSE | Y48: =ROUND($H48*(1+BO48)*(1+BT48)*(1+BY48)*W48,'Initial Information'!$M$18) -> 0 | AC48: FALSE | AD48: =ROUND($H48*(1+BO48)*(1+BT48)*(1+BY48)*(1+CD48)*AB48,'Initial Information'!$M$18) -> 0 | AH48: FALSE | AI48: =ROUND($H48*(1+BO48)*(1+BT48)*(1+BY48)*(1+CD48)*(1+CI48)*AG48,'Initial Information'!$M$18) -> 0 | AM48: FALSE | AN48: =ROUND($H48*(1+BO48)*(1+BT48)*(1+BY48)*(1+CD48)*(1+CI48)*(1+CN48)*AL48,'Initial Information'!$M$18) -> 0 | AR48: FALSE | AS48: =ROUND($H48*(1+BO48)*(1+BT48)*(1+BY48)*(1+CD48)*(1+CI48)*(1+CN48)*(1+CS48)*AQ48,'Initial Information'!$M$18) -> 0 | AW48: FALSE | AX48: =ROUND($H48*(1+BO48)*(1+BT48)*(1+BY48)*(1+CD48)*(1+CI48)*(1+CN48)*(1+CS48)*(1+CX48)*AV48,'Initial Information'!$M$18) -> 0 | BB48: FALSE | BC48: =ROUND($H48*(1+BO48)*(1+BT48)*(1+BY48)*(1+CD48)*(1+CI48)*(1+CN48)*(1+CS48)*(1+CX48)*(1+DC48)*BA48,'Initial Information'!$M$18) -> 0 | BG48: FALSE | BH48: =ROUND($H48*(1+BO48)*(1+BT48)*(1+BY48)*(1+CD48)*(1+CI48)*(1+CN48)*(1+CS48)*(1+CX48)*(1+DC48)*(1+DH48)*BF48,'Initial Information'!$M$18) -> 0 | BK48: 0 | BO48: 0.03 | BT48: 0.03 | BY48: 0.03 | CD48: 0.03 | CI48: 0.03 | CN48: 0.03 | CS48: 0.03 | CX48: 0.03 | DC48: 0.03 | DH48: 0.03 | DI48: 0 | DN48: 0 | DS48: 0 | DX48: 0 | EC48: 0 | EH48: 0 | EM48: 0 | ER48: 0 | EW48: 0 | FB48: 0 | FC48: 0 | FH48: 0 | FM48: 0 | FR48: 0 | FW48: 0 | GB48: 0 | GG48: 0 | GL48: 0 | GQ48: 0 | GV48: 0 | GW48: 0 | HB48: 0 | HG48: 0 | HL48: 0 | HQ48: 0 | HV48: 0 | IA48: 0 | IF48: 0 | IK48: 0 | IP48: 0 | IQ48: 0 | IV48: 0 | JA48: 0 | JF48: 0 | JK48: 0 | JP48: 0 | JU48: 0 | JZ48: 0 | KE48: 0 | KJ48: 0 | KK48: =ROUND($J48*O48, 'Initial Information'!$M$18) -> 0 | KP48: =ROUND($J48*T48, 'Initial Information'!$M$18) -> 0 | KU48: =ROUND($J48*Y48, 'Initial Information'!$M$18) -> 0 | KZ48: =ROUND($J48*AD48, 'Initial Information'!$M$18) -> 0 | LE48: =ROUND($J48*AI48, 'Initial Information'!$M$18) -> 0 | LJ48: =ROUND($J48*AN48, 'Initial Information'!$M$18) -> 0 | LO48: =ROUND($J48*AS48, 'Initial Information'!$M$18) -> 0 | LT48: =ROUND($J48*AX48, 'Initial Information'!$M$18) -> 0 | LY48: =ROUND($J48*BC48, 'Initial Information'!$M$18) -> 0 | MD48: =ROUND($J48*BH48, 'Initial Information'!$M$18) -> 0
A49: FALSE | B49: 26 | J49: =IF(C49="Select from Options Below", 0.28, IFERROR(VLOOKUP(C49, DropDownMenus!$J$1:$K$9, 2, FALSE), 0.28)) -> 0.28 | N49: FALSE | O49: =ROUND($H49*(1+BO49)*M49,'Initial Information'!$M$18) -> 0 | S49: FALSE | T49: =ROUND($H49*(1+BO49)*(1+BT49)*R49,'Initial Information'!$M$18) -> 0 | X49: FALSE | Y49: =ROUND($H49*(1+BO49)*(1+BT49)*(1+BY49)*W49,'Initial Information'!$M$18) -> 0 | AC49: FALSE | AD49: =ROUND($H49*(1+BO49)*(1+BT49)*(1+BY49)*(1+CD49)*AB49,'Initial Information'!$M$18) -> 0 | AH49: FALSE | AI49: =ROUND($H49*(1+BO49)*(1+BT49)*(1+BY49)*(1+CD49)*(1+CI49)*AG49,'Initial Information'!$M$18) -> 0 | AM49: FALSE | AN49: =ROUND($H49*(1+BO49)*(1+BT49)*(1+BY49)*(1+CD49)*(1+CI49)*(1+CN49)*AL49,'Initial Information'!$M$18) -> 0 | AR49: FALSE | AS49: =ROUND($H49*(1+BO49)*(1+BT49)*(1+BY49)*(1+CD49)*(1+CI49)*(1+CN49)*(1+CS49)*AQ49,'Initial Information'!$M$18) -> 0 | AW49: FALSE | AX49: =ROUND($H49*(1+BO49)*(1+BT49)*(1+BY49)*(1+CD49)*(1+CI49)*(1+CN49)*(1+CS49)*(1+CX49)*AV49,'Initial Information'!$M$18) -> 0 | BB49: FALSE | BC49: =ROUND($H49*(1+BO49)*(1+BT49)*(1+BY49)*(1+CD49)*(1+CI49)*(1+CN49)*(1+CS49)*(1+CX49)*(1+DC49)*BA49,'Initial Information'!$M$18) -> 0 | BG49: FALSE | BH49: =ROUND($H49*(1+BO49)*(1+BT49)*(1+BY49)*(1+CD49)*(1+CI49)*(1+CN49)*(1+CS49)*(1+CX49)*(1+DC49)*(1+DH49)*BF49,'Initial Information'!$M$18) -> 0 | BK49: 0 | BO49: 0.03 | BT49: 0.03 | BY49: 0.03 | CD49: 0.03 | CI49: 0.03 | CN49: 0.03 | CS49: 0.03 | CX49: 0.03 | DC49: 0.03 | DH49: 0.03 | DI49: 0 | DN49: 0 | DS49: 0 | DX49: 0 | EC49: 0 | EH49: 0 | EM49: 0 | ER49: 0 | EW49: 0 | FB49: 0 | FC49: 0 | FH49: 0 | FM49: 0 | FR49: 0 | FW49: 0 | GB49: 0 | GG49: 0 | GL49: 0 | GQ49: 0 | GV49: 0 | GW49: 0 | HB49: 0 | HG49: 0 | HL49: 0 | HQ49: 0 | HV49: 0 | IA49: 0 | IF49: 0 | IK49: 0 | IP49: 0 | IQ49: 0 | IV49: 0 | JA49: 0 | JF49: 0 | JK49: 0 | JP49: 0 | JU49: 0 | JZ49: 0 | KE49: 0 | KJ49: 0 | KK49: =ROUND($J49*O49, 'Initial Information'!$M$18) -> 0 | KP49: =ROUND($J49*T49, 'Initial Information'!$M$18) -> 0 | KU49: =ROUND($J49*Y49, 'Initial Information'!$M$18) -> 0 | KZ49: =ROUND($J49*AD49, 'Initial Information'!$M$18) -> 0 | LE49: =ROUND($J49*AI49, 'Initial Information'!$M$18) -> 0 | LJ49: =ROUND($J49*AN49, 'Initial Information'!$M$18) -> 0 | LO49: =ROUND($J49*AS49, 'Initial Information'!$M$18) -> 0 | LT49: =ROUND($J49*AX49, 'Initial Information'!$M$18) -> 0 | LY49: =ROUND($J49*BC49, 'Initial Information'!$M$18) -> 0 | MD49: =ROUND($J49*BH49, 'Initial Information'!$M$18) -> 0 | MF49: =IF(A49, F49, "") ->  | MG49: =IF(A49, N(M49), "") ->  | MH49: =IF(A49, N(O49), "") ->  | MI49: =MF49 ->  | MJ49: =IF(A49, N(R49), "") ->  | MK49: =IF(A49, N(T49), "") ->  | ML49: =MF49 ->  | MM49: =IF(A49, N(W49), "") ->  | MN49: =IF(A49, N(Y49), "") ->  | MO49: =MF49 ->  | MP49: =IF(A49, N(AB49), "") ->  | MQ49: =IF(A49, N(AD49), "") ->  | MR49: =MF49 ->  | MS49: =IF(A49, N(AG49), "") ->  | MT49: =IF(A49, N(AI49), "") ->  | MU49: =MF49 ->  | MV49: =IF(A49, N(AL49), "") ->  | MW49: =IF(A49, N(AN49), "") ->  | MZ49: 0 | NA49: 0 | NC49: 0 | ND49: 0 | NF49: 0 | NG49: 0 | NI49: 0 | NJ49: 0 | NL49: 0 | NM49: 0 | NO49: 0 | NP49: 0
A50: FALSE | B50: 27 | J50: =IF(C50="Select from Options Below", 0.28, IFERROR(VLOOKUP(C50, DropDownMenus!$J$1:$K$9, 2, FALSE), 0.28)) -> 0.28 | N50: FALSE | O50: =ROUND($H50*(1+BO50)*M50,'Initial Information'!$M$18) -> 0 | S50: FALSE | T50: =ROUND($H50*(1+BO50)*(1+BT50)*R50,'Initial Information'!$M$18) -> 0 | X50: FALSE | Y50: =ROUND($H50*(1+BO50)*(1+BT50)*(1+BY50)*W50,'Initial Information'!$M$18) -> 0 | AC50: FALSE | AD50: =ROUND($H50*(1+BO50)*(1+BT50)*(1+BY50)*(1+CD50)*AB50,'Initial Information'!$M$18) -> 0 | AH50: FALSE | AI50: =ROUND($H50*(1+BO50)*(1+BT50)*(1+BY50)*(1+CD50)*(1+CI50)*AG50,'Initial Information'!$M$18) -> 0 | AM50: FALSE | AN50: =ROUND($H50*(1+BO50)*(1+BT50)*(1+BY50)*(1+CD50)*(1+CI50)*(1+CN50)*AL50,'Initial Information'!$M$18) -> 0 | AR50: FALSE | AS50: =ROUND($H50*(1+BO50)*(1+BT50)*(1+BY50)*(1+CD50)*(1+CI50)*(1+CN50)*(1+CS50)*AQ50,'Initial Information'!$M$18) -> 0 | AW50: FALSE | AX50: =ROUND($H50*(1+BO50)*(1+BT50)*(1+BY50)*(1+CD50)*(1+CI50)*(1+CN50)*(1+CS50)*(1+CX50)*AV50,'Initial Information'!$M$18) -> 0 | BB50: FALSE | BC50: =ROUND($H50*(1+BO50)*(1+BT50)*(1+BY50)*(1+CD50)*(1+CI50)*(1+CN50)*(1+CS50)*(1+CX50)*(1+DC50)*BA50,'Initial Information'!$M$18) -> 0 | BG50: FALSE | BH50: =ROUND($H50*(1+BO50)*(1+BT50)*(1+BY50)*(1+CD50)*(1+CI50)*(1+CN50)*(1+CS50)*(1+CX50)*(1+DC50)*(1+DH50)*BF50,'Initial Information'!$M$18) -> 0 | BK50: 0 | BO50: 0.03 | BT50: 0.03 | BY50: 0.03 | CD50: 0.03 | CI50: 0.03 | CN50: 0.03 | CS50: 0.03 | CX50: 0.03 | DC50: 0.03 | DH50: 0.03 | DI50: 0 | DN50: 0 | DS50: 0 | DX50: 0 | EC50: 0 | EH50: 0 | EM50: 0 | ER50: 0 | EW50: 0 | FB50: 0 | FC50: 0 | FH50: 0 | FM50: 0 | FR50: 0 | FW50: 0 | GB50: 0 | GG50: 0 | GL50: 0 | GQ50: 0 | GV50: 0 | GW50: 0 | HB50: 0 | HG50: 0 | HL50: 0 | HQ50: 0 | HV50: 0 | IA50: 0 | IF50: 0 | IK50: 0 | IP50: 0 | IQ50: 0 | IV50: 0 | JA50: 0 | JF50: 0 | JK50: 0 | JP50: 0 | JU50: 0 | JZ50: 0 | KE50: 0 | KJ50: 0 | KK50: =ROUND($J50*O50, 'Initial Information'!$M$18) -> 0 | KP50: =ROUND($J50*T50, 'Initial Information'!$M$18) -> 0 | KU50: =ROUND($J50*Y50, 'Initial Information'!$M$18) -> 0 | KZ50: =ROUND($J50*AD50, 'Initial Information'!$M$18) -> 0 | LE50: =ROUND($J50*AI50, 'Initial Information'!$M$18) -> 0 | LJ50: =ROUND($J50*AN50, 'Initial Information'!$M$18) -> 0 | LO50: =ROUND($J50*AS50, 'Initial Information'!$M$18) -> 0 | LT50: =ROUND($J50*AX50, 'Initial Information'!$M$18) -> 0 | LY50: =ROUND($J50*BC50, 'Initial Information'!$M$18) -> 0 | MD50: =ROUND($J50*BH50, 'Initial Information'!$M$18) -> 0 | MZ50: 0 | NA50: 0 | NC50: 0 | ND50: 0 | NF50: 0 | NG50: 0 | NI50: 0 | NJ50: 0 | NL50: 0 | NM50: 0 | NO50: 0 | NP50: 0
A51: FALSE | B51: 28 | J51: =IF(C51="Select from Options Below", 0.28, IFERROR(VLOOKUP(C51, DropDownMenus!$J$1:$K$9, 2, FALSE), 0.28)) -> 0.28 | N51: FALSE | O51: =ROUND($H51*(1+BO51)*M51,'Initial Information'!$M$18) -> 0 | S51: FALSE | T51: =ROUND($H51*(1+BO51)*(1+BT51)*R51,'Initial Information'!$M$18) -> 0 | X51: FALSE | Y51: =ROUND($H51*(1+BO51)*(1+BT51)*(1+BY51)*W51,'Initial Information'!$M$18) -> 0 | AC51: FALSE | AD51: =ROUND($H51*(1+BO51)*(1+BT51)*(1+BY51)*(1+CD51)*AB51,'Initial Information'!$M$18) -> 0 | AH51: FALSE | AI51: =ROUND($H51*(1+BO51)*(1+BT51)*(1+BY51)*(1+CD51)*(1+CI51)*AG51,'Initial Information'!$M$18) -> 0 | AM51: FALSE | AN51: =ROUND($H51*(1+BO51)*(1+BT51)*(1+BY51)*(1+CD51)*(1+CI51)*(1+CN51)*AL51,'Initial Information'!$M$18) -> 0 | AR51: FALSE | AS51: =ROUND($H51*(1+BO51)*(1+BT51)*(1+BY51)*(1+CD51)*(1+CI51)*(1+CN51)*(1+CS51)*AQ51,'Initial Information'!$M$18) -> 0 | AW51: FALSE | AX51: =ROUND($H51*(1+BO51)*(1+BT51)*(1+BY51)*(1+CD51)*(1+CI51)*(1+CN51)*(1+CS51)*(1+CX51)*AV51,'Initial Information'!$M$18) -> 0 | BB51: FALSE | BC51: =ROUND($H51*(1+BO51)*(1+BT51)*(1+BY51)*(1+CD51)*(1+CI51)*(1+CN51)*(1+CS51)*(1+CX51)*(1+DC51)*BA51,'Initial Information'!$M$18) -> 0 | BG51: FALSE | BH51: =ROUND($H51*(1+BO51)*(1+BT51)*(1+BY51)*(1+CD51)*(1+CI51)*(1+CN51)*(1+CS51)*(1+CX51)*(1+DC51)*(1+DH51)*BF51,'Initial Information'!$M$18) -> 0 | BK51: 0 | BO51: 0.03 | BT51: 0.03 | BY51: 0.03 | CD51: 0.03 | CI51: 0.03 | CN51: 0.03 | CS51: 0.03 | CX51: 0.03 | DC51: 0.03 | DH51: 0.03 | DI51: 0 | DN51: 0 | DS51: 0 | DX51: 0 | EC51: 0 | EH51: 0 | EM51: 0 | ER51: 0 | EW51: 0 | FB51: 0 | FC51: 0 | FH51: 0 | FM51: 0 | FR51: 0 | FW51: 0 | GB51: 0 | GG51: 0 | GL51: 0 | GQ51: 0 | GV51: 0 | GW51: 0 | HB51: 0 | HG51: 0 | HL51: 0 | HQ51: 0 | HV51: 0 | IA51: 0 | IF51: 0 | IK51: 0 | IP51: 0 | IQ51: 0 | IV51: 0 | JA51: 0 | JF51: 0 | JK51: 0 | JP51: 0 | JU51: 0 | JZ51: 0 | KE51: 0 | KJ51: 0 | KK51: =ROUND($J51*O51, 'Initial Information'!$M$18) -> 0 | KP51: =ROUND($J51*T51, 'Initial Information'!$M$18) -> 0 | KU51: =ROUND($J51*Y51, 'Initial Information'!$M$18) -> 0 | KZ51: =ROUND($J51*AD51, 'Initial Information'!$M$18) -> 0 | LE51: =ROUND($J51*AI51, 'Initial Information'!$M$18) -> 0 | LJ51: =ROUND($J51*AN51, 'Initial Information'!$M$18) -> 0 | LO51: =ROUND($J51*AS51, 'Initial Information'!$M$18) -> 0 | LT51: =ROUND($J51*AX51, 'Initial Information'!$M$18) -> 0 | LY51: =ROUND($J51*BC51, 'Initial Information'!$M$18) -> 0 | MD51: =ROUND($J51*BH51, 'Initial Information'!$M$18) -> 0 | MZ51: 0 | NA51: 0 | NC51: 0 | ND51: 0 | NF51: 0 | NG51: 0 | NI51: 0 | NJ51: 0 | NL51: 0 | NM51: 0 | NO51: 0 | NP51: 0
A52: FALSE | B52: 29 | J52: =IF(C52="Select from Options Below", 0.28, IFERROR(VLOOKUP(C52, DropDownMenus!$J$1:$K$9, 2, FALSE), 0.28)) -> 0.28 | N52: FALSE | O52: =ROUND($H52*(1+BO52)*M52,'Initial Information'!$M$18) -> 0 | S52: FALSE | T52: =ROUND($H52*(1+BO52)*(1+BT52)*R52,'Initial Information'!$M$18) -> 0 | X52: FALSE | Y52: =ROUND($H52*(1+BO52)*(1+BT52)*(1+BY52)*W52,'Initial Information'!$M$18) -> 0 | AC52: FALSE | AD52: =ROUND($H52*(1+BO52)*(1+BT52)*(1+BY52)*(1+CD52)*AB52,'Initial Information'!$M$18) -> 0 | AH52: FALSE | AI52: =ROUND($H52*(1+BO52)*(1+BT52)*(1+BY52)*(1+CD52)*(1+CI52)*AG52,'Initial Information'!$M$18) -> 0 | AM52: FALSE | AN52: =ROUND($H52*(1+BO52)*(1+BT52)*(1+BY52)*(1+CD52)*(1+CI52)*(1+CN52)*AL52,'Initial Information'!$M$18) -> 0 | AR52: FALSE | AS52: =ROUND($H52*(1+BO52)*(1+BT52)*(1+BY52)*(1+CD52)*(1+CI52)*(1+CN52)*(1+CS52)*AQ52,'Initial Information'!$M$18) -> 0 | AW52: FALSE | AX52: =ROUND($H52*(1+BO52)*(1+BT52)*(1+BY52)*(1+CD52)*(1+CI52)*(1+CN52)*(1+CS52)*(1+CX52)*AV52,'Initial Information'!$M$18) -> 0 | BB52: FALSE | BC52: =ROUND($H52*(1+BO52)*(1+BT52)*(1+BY52)*(1+CD52)*(1+CI52)*(1+CN52)*(1+CS52)*(1+CX52)*(1+DC52)*BA52,'Initial Information'!$M$18) -> 0 | BG52: FALSE | BH52: =ROUND($H52*(1+BO52)*(1+BT52)*(1+BY52)*(1+CD52)*(1+CI52)*(1+CN52)*(1+CS52)*(1+CX52)*(1+DC52)*(1+DH52)*BF52,'Initial Information'!$M$18) -> 0 | BK52: 0 | BO52: 0.03 | BT52: 0.03 | BY52: 0.03 | CD52: 0.03 | CI52: 0.03 | CN52: 0.03 | CS52: 0.03 | CX52: 0.03 | DC52: 0.03 | DH52: 0.03 | DI52: 0 | DN52: 0 | DS52: 0 | DX52: 0 | EC52: 0 | EH52: 0 | EM52: 0 | ER52: 0 | EW52: 0 | FB52: 0 | FC52: 0 | FH52: 0 | FM52: 0 | FR52: 0 | FW52: 0 | GB52: 0 | GG52: 0 | GL52: 0 | GQ52: 0 | GV52: 0 | GW52: 0 | HB52: 0 | HG52: 0 | HL52: 0 | HQ52: 0 | HV52: 0 | IA52: 0 | IF52: 0 | IK52: 0 | IP52: 0 | IQ52: 0 | IV52: 0 | JA52: 0 | JF52: 0 | JK52: 0 | JP52: 0 | JU52: 0 | JZ52: 0 | KE52: 0 | KJ52: 0 | KK52: =ROUND($J52*O52, 'Initial Information'!$M$18) -> 0 | KP52: =ROUND($J52*T52, 'Initial Information'!$M$18) -> 0 | KU52: =ROUND($J52*Y52, 'Initial Information'!$M$18) -> 0 | KZ52: =ROUND($J52*AD52, 'Initial Information'!$M$18) -> 0 | LE52: =ROUND($J52*AI52, 'Initial Information'!$M$18) -> 0 | LJ52: =ROUND($J52*AN52, 'Initial Information'!$M$18) -> 0 | LO52: =ROUND($J52*AS52, 'Initial Information'!$M$18) -> 0 | LT52: =ROUND($J52*AX52, 'Initial Information'!$M$18) -> 0 | LY52: =ROUND($J52*BC52, 'Initial Information'!$M$18) -> 0 | MD52: =ROUND($J52*BH52, 'Initial Information'!$M$18) -> 0 | MZ52: 0 | NA52: 0 | NC52: 0 | ND52: 0 | NF52: 0 | NG52: 0 | NI52: 0 | NJ52: 0 | NL52: 0 | NM52: 0 | NO52: 0 | NP52: 0
A53: FALSE | B53: 30 | J53: =IF(C53="Select from Options Below", 0.28, IFERROR(VLOOKUP(C53, DropDownMenus!$J$1:$K$9, 2, FALSE), 0.28)) -> 0.28 | N53: FALSE | O53: =ROUND($H53*(1+BO53)*M53,'Initial Information'!$M$18) -> 0 | S53: FALSE | T53: =ROUND($H53*(1+BO53)*(1+BT53)*R53,'Initial Information'!$M$18) -> 0 | X53: FALSE | Y53: =ROUND($H53*(1+BO53)*(1+BT53)*(1+BY53)*W53,'Initial Information'!$M$18) -> 0 | AC53: FALSE | AD53: =ROUND($H53*(1+BO53)*(1+BT53)*(1+BY53)*(1+CD53)*AB53,'Initial Information'!$M$18) -> 0 | AH53: FALSE | AI53: =ROUND($H53*(1+BO53)*(1+BT53)*(1+BY53)*(1+CD53)*(1+CI53)*AG53,'Initial Information'!$M$18) -> 0 | AM53: FALSE | AN53: =ROUND($H53*(1+BO53)*(1+BT53)*(1+BY53)*(1+CD53)*(1+CI53)*(1+CN53)*AL53,'Initial Information'!$M$18) -> 0 | AR53: FALSE | AS53: =ROUND($H53*(1+BO53)*(1+BT53)*(1+BY53)*(1+CD53)*(1+CI53)*(1+CN53)*(1+CS53)*AQ53,'Initial Information'!$M$18) -> 0 | AW53: FALSE | AX53: =ROUND($H53*(1+BO53)*(1+BT53)*(1+BY53)*(1+CD53)*(1+CI53)*(1+CN53)*(1+CS53)*(1+CX53)*AV53,'Initial Information'!$M$18) -> 0 | BB53: FALSE | BC53: =ROUND($H53*(1+BO53)*(1+BT53)*(1+BY53)*(1+CD53)*(1+CI53)*(1+CN53)*(1+CS53)*(1+CX53)*(1+DC53)*BA53,'Initial Information'!$M$18) -> 0 | BG53: FALSE | BH53: =ROUND($H53*(1+BO53)*(1+BT53)*(1+BY53)*(1+CD53)*(1+CI53)*(1+CN53)*(1+CS53)*(1+CX53)*(1+DC53)*(1+DH53)*BF53,'Initial Information'!$M$18) -> 0 | BK53: 0 | BO53: 0.03 | BT53: 0.03 | BY53: 0.03 | CD53: 0.03 | CI53: 0.03 | CN53: 0.03 | CS53: 0.03 | CX53: 0.03 | DC53: 0.03 | DH53: 0.03 | DI53: 0 | DN53: 0 | DS53: 0 | DX53: 0 | EC53: 0 | EH53: 0 | EM53: 0 | ER53: 0 | EW53: 0 | FB53: 0 | FC53: 0 | FH53: 0 | FM53: 0 | FR53: 0 | FW53: 0 | GB53: 0 | GG53: 0 | GL53: 0 | GQ53: 0 | GV53: 0 | GW53: 0 | HB53: 0 | HG53: 0 | HL53: 0 | HQ53: 0 | HV53: 0 | IA53: 0 | IF53: 0 | IK53: 0 | IP53: 0 | IQ53: 0 | IV53: 0 | JA53: 0 | JF53: 0 | JK53: 0 | JP53: 0 | JU53: 0 | JZ53: 0 | KE53: 0 | KJ53: 0 | KK53: =ROUND($J53*O53, 'Initial Information'!$M$18) -> 0 | KP53: =ROUND($J53*T53, 'Initial Information'!$M$18) -> 0 | KU53: =ROUND($J53*Y53, 'Initial Information'!$M$18) -> 0 | KZ53: =ROUND($J53*AD53, 'Initial Information'!$M$18) -> 0 | LE53: =ROUND($J53*AI53, 'Initial Information'!$M$18) -> 0 | LJ53: =ROUND($J53*AN53, 'Initial Information'!$M$18) -> 0 | LO53: =ROUND($J53*AS53, 'Initial Information'!$M$18) -> 0 | LT53: =ROUND($J53*AX53, 'Initial Information'!$M$18) -> 0 | LY53: =ROUND($J53*BC53, 'Initial Information'!$M$18) -> 0 | MD53: =ROUND($J53*BH53, 'Initial Information'!$M$18) -> 0 | MZ53: 0 | NA53: 0 | NC53: 0 | ND53: 0 | NF53: 0 | NG53: 0 | NI53: 0 | NJ53: 0 | NL53: 0 | NM53: 0 | NO53: 0 | NP53: 0
A54: FALSE | B54: 31 | J54: =IF(C54="Select from Options Below", 0.28, IFERROR(VLOOKUP(C54, DropDownMenus!$J$1:$K$9, 2, FALSE), 0.28)) -> 0.28 | N54: FALSE | O54: =ROUND($H54*(1+BO54)*M54,'Initial Information'!$M$18) -> 0 | S54: FALSE | T54: =ROUND($H54*(1+BO54)*(1+BT54)*R54,'Initial Information'!$M$18) -> 0 | X54: FALSE | Y54: =ROUND($H54*(1+BO54)*(1+BT54)*(1+BY54)*W54,'Initial Information'!$M$18) -> 0 | AC54: FALSE | AD54: =ROUND($H54*(1+BO54)*(1+BT54)*(1+BY54)*(1+CD54)*AB54,'Initial Information'!$M$18) -> 0 | AH54: FALSE | AI54: =ROUND($H54*(1+BO54)*(1+BT54)*(1+BY54)*(1+CD54)*(1+CI54)*AG54,'Initial Information'!$M$18) -> 0 | AM54: FALSE | AN54: =ROUND($H54*(1+BO54)*(1+BT54)*(1+BY54)*(1+CD54)*(1+CI54)*(1+CN54)*AL54,'Initial Information'!$M$18) -> 0 | AR54: FALSE | AS54: =ROUND($H54*(1+BO54)*(1+BT54)*(1+BY54)*(1+CD54)*(1+CI54)*(1+CN54)*(1+CS54)*AQ54,'Initial Information'!$M$18) -> 0 | AW54: FALSE | AX54: =ROUND($H54*(1+BO54)*(1+BT54)*(1+BY54)*(1+CD54)*(1+CI54)*(1+CN54)*(1+CS54)*(1+CX54)*AV54,'Initial Information'!$M$18) -> 0 | BB54: FALSE | BC54: =ROUND($H54*(1+BO54)*(1+BT54)*(1+BY54)*(1+CD54)*(1+CI54)*(1+CN54)*(1+CS54)*(1+CX54)*(1+DC54)*BA54,'Initial Information'!$M$18) -> 0 | BG54: FALSE | BH54: =ROUND($H54*(1+BO54)*(1+BT54)*(1+BY54)*(1+CD54)*(1+CI54)*(1+CN54)*(1+CS54)*(1+CX54)*(1+DC54)*(1+DH54)*BF54,'Initial Information'!$M$18) -> 0 | BK54: 0 | BO54: 0.03 | BT54: 0.03 | BY54: 0.03 | CD54: 0.03 | CI54: 0.03 | CN54: 0.03 | CS54: 0.03 | CX54: 0.03 | DC54: 0.03 | DH54: 0.03 | DI54: 0 | DN54: 0 | DS54: 0 | DX54: 0 | EC54: 0 | EH54: 0 | EM54: 0 | ER54: 0 | EW54: 0 | FB54: 0 | FC54: 0 | FH54: 0 | FM54: 0 | FR54: 0 | FW54: 0 | GB54: 0 | GG54: 0 | GL54: 0 | GQ54: 0 | GV54: 0 | GW54: 0 | HB54: 0 | HG54: 0 | HL54: 0 | HQ54: 0 | HV54: 0 | IA54: 0 | IF54: 0 | IK54: 0 | IP54: 0 | IQ54: 0 | IV54: 0 | JA54: 0 | JF54: 0 | JK54: 0 | JP54: 0 | JU54: 0 | JZ54: 0 | KE54: 0 | KJ54: 0 | KK54: =ROUND($J54*O54, 'Initial Information'!$M$18) -> 0 | KP54: =ROUND($J54*T54, 'Initial Information'!$M$18) -> 0 | KU54: =ROUND($J54*Y54, 'Initial Information'!$M$18) -> 0 | KZ54: =ROUND($J54*AD54, 'Initial Information'!$M$18) -> 0 | LE54: =ROUND($J54*AI54, 'Initial Information'!$M$18) -> 0 | LJ54: =ROUND($J54*AN54, 'Initial Information'!$M$18) -> 0 | LO54: =ROUND($J54*AS54, 'Initial Information'!$M$18) -> 0 | LT54: =ROUND($J54*AX54, 'Initial Information'!$M$18) -> 0 | LY54: =ROUND($J54*BC54, 'Initial Information'!$M$18) -> 0 | MD54: =ROUND($J54*BH54, 'Initial Information'!$M$18) -> 0 | MZ54: 0 | NA54: 0 | NC54: 0 | ND54: 0 | NF54: 0 | NG54: 0 | NI54: 0 | NJ54: 0 | NL54: 0 | NM54: 0 | NO54: 0 | NP54: 0
A55: FALSE | B55: 32 | J55: =IF(C55="Select from Options Below", 0.28, IFERROR(VLOOKUP(C55, DropDownMenus!$J$1:$K$9, 2, FALSE), 0.28)) -> 0.28 | N55: FALSE | O55: =ROUND($H55*(1+BO55)*M55,'Initial Information'!$M$18) -> 0 | S55: FALSE | T55: =ROUND($H55*(1+BO55)*(1+BT55)*R55,'Initial Information'!$M$18) -> 0 | X55: FALSE | Y55: =ROUND($H55*(1+BO55)*(1+BT55)*(1+BY55)*W55,'Initial Information'!$M$18) -> 0 | AC55: FALSE | AD55: =ROUND($H55*(1+BO55)*(1+BT55)*(1+BY55)*(1+CD55)*AB55,'Initial Information'!$M$18) -> 0 | AH55: FALSE | AI55: =ROUND($H55*(1+BO55)*(1+BT55)*(1+BY55)*(1+CD55)*(1+CI55)*AG55,'Initial Information'!$M$18) -> 0 | AM55: FALSE | AN55: =ROUND($H55*(1+BO55)*(1+BT55)*(1+BY55)*(1+CD55)*(1+CI55)*(1+CN55)*AL55,'Initial Information'!$M$18) -> 0 | AR55: FALSE | AS55: =ROUND($H55*(1+BO55)*(1+BT55)*(1+BY55)*(1+CD55)*(1+CI55)*(1+CN55)*(1+CS55)*AQ55,'Initial Information'!$M$18) -> 0 | AW55: FALSE | AX55: =ROUND($H55*(1+BO55)*(1+BT55)*(1+BY55)*(1+CD55)*(1+CI55)*(1+CN55)*(1+CS55)*(1+CX55)*AV55,'Initial Information'!$M$18) -> 0 | BB55: FALSE | BC55: =ROUND($H55*(1+BO55)*(1+BT55)*(1+BY55)*(1+CD55)*(1+CI55)*(1+CN55)*(1+CS55)*(1+CX55)*(1+DC55)*BA55,'Initial Information'!$M$18) -> 0 | BG55: FALSE | BH55: =ROUND($H55*(1+BO55)*(1+BT55)*(1+BY55)*(1+CD55)*(1+CI55)*(1+CN55)*(1+CS55)*(1+CX55)*(1+DC55)*(1+DH55)*BF55,'Initial Information'!$M$18) -> 0 | BK55: 0 | BO55: 0.03 | BT55: 0.03 | BY55: 0.03 | CD55: 0.03 | CI55: 0.03 | CN55: 0.03 | CS55: 0.03 | CX55: 0.03 | DC55: 0.03 | DH55: 0.03 | DI55: 0 | DN55: 0 | DS55: 0 | DX55: 0 | EC55: 0 | EH55: 0 | EM55: 0 | ER55: 0 | EW55: 0 | FB55: 0 | FC55: 0 | FH55: 0 | FM55: 0 | FR55: 0 | FW55: 0 | GB55: 0 | GG55: 0 | GL55: 0 | GQ55: 0 | GV55: 0 | GW55: 0 | HB55: 0 | HG55: 0 | HL55: 0 | HQ55: 0 | HV55: 0 | IA55: 0 | IF55: 0 | IK55: 0 | IP55: 0 | IQ55: 0 | IV55: 0 | JA55: 0 | JF55: 0 | JK55: 0 | JP55: 0 | JU55: 0 | JZ55: 0 | KE55: 0 | KJ55: 0 | KK55: =ROUND($J55*O55, 'Initial Information'!$M$18) -> 0 | KP55: =ROUND($J55*T55, 'Initial Information'!$M$18) -> 0 | KU55: =ROUND($J55*Y55, 'Initial Information'!$M$18) -> 0 | KZ55: =ROUND($J55*AD55, 'Initial Information'!$M$18) -> 0 | LE55: =ROUND($J55*AI55, 'Initial Information'!$M$18) -> 0 | LJ55: =ROUND($J55*AN55, 'Initial Information'!$M$18) -> 0 | LO55: =ROUND($J55*AS55, 'Initial Information'!$M$18) -> 0 | LT55: =ROUND($J55*AX55, 'Initial Information'!$M$18) -> 0 | LY55: =ROUND($J55*BC55, 'Initial Information'!$M$18) -> 0 | MD55: =ROUND($J55*BH55, 'Initial Information'!$M$18) -> 0 | MZ55: 0 | NA55: 0 | NC55: 0 | ND55: 0 | NF55: 0 | NG55: 0 | NI55: 0 | NJ55: 0 | NL55: 0 | NM55: 0 | NO55: 0 | NP55: 0
A56: FALSE | B56: 33 | J56: =IF(C56="Select from Options Below", 0.28, IFERROR(VLOOKUP(C56, DropDownMenus!$J$1:$K$9, 2, FALSE), 0.28)) -> 0.28 | N56: FALSE | O56: =ROUND($H56*(1+BO56)*M56,'Initial Information'!$M$18) -> 0 | S56: FALSE | T56: =ROUND($H56*(1+BO56)*(1+BT56)*R56,'Initial Information'!$M$18) -> 0 | X56: FALSE | Y56: =ROUND($H56*(1+BO56)*(1+BT56)*(1+BY56)*W56,'Initial Information'!$M$18) -> 0 | AC56: FALSE | AD56: =ROUND($H56*(1+BO56)*(1+BT56)*(1+BY56)*(1+CD56)*AB56,'Initial Information'!$M$18) -> 0 | AH56: FALSE | AI56: =ROUND($H56*(1+BO56)*(1+BT56)*(1+BY56)*(1+CD56)*(1+CI56)*AG56,'Initial Information'!$M$18) -> 0 | AM56: FALSE | AN56: =ROUND($H56*(1+BO56)*(1+BT56)*(1+BY56)*(1+CD56)*(1+CI56)*(1+CN56)*AL56,'Initial Information'!$M$18) -> 0 | AR56: FALSE | AS56: =ROUND($H56*(1+BO56)*(1+BT56)*(1+BY56)*(1+CD56)*(1+CI56)*(1+CN56)*(1+CS56)*AQ56,'Initial Information'!$M$18) -> 0 | AW56: FALSE | AX56: =ROUND($H56*(1+BO56)*(1+BT56)*(1+BY56)*(1+CD56)*(1+CI56)*(1+CN56)*(1+CS56)*(1+CX56)*AV56,'Initial Information'!$M$18) -> 0 | BB56: FALSE | BC56: =ROUND($H56*(1+BO56)*(1+BT56)*(1+BY56)*(1+CD56)*(1+CI56)*(1+CN56)*(1+CS56)*(1+CX56)*(1+DC56)*BA56,'Initial Information'!$M$18) -> 0 | BG56: FALSE | BH56: =ROUND($H56*(1+BO56)*(1+BT56)*(1+BY56)*(1+CD56)*(1+CI56)*(1+CN56)*(1+CS56)*(1+CX56)*(1+DC56)*(1+DH56)*BF56,'Initial Information'!$M$18) -> 0 | BK56: 0 | BO56: 0.03 | BT56: 0.03 | BY56: 0.03 | CD56: 0.03 | CI56: 0.03 | CN56: 0.03 | CS56: 0.03 | CX56: 0.03 | DC56: 0.03 | DH56: 0.03 | DI56: 0 | DN56: 0 | DS56: 0 | DX56: 0 | EC56: 0 | EH56: 0 | EM56: 0 | ER56: 0 | EW56: 0 | FB56: 0 | FC56: 0 | FH56: 0 | FM56: 0 | FR56: 0 | FW56: 0 | GB56: 0 | GG56: 0 | GL56: 0 | GQ56: 0 | GV56: 0 | GW56: 0 | HB56: 0 | HG56: 0 | HL56: 0 | HQ56: 0 | HV56: 0 | IA56: 0 | IF56: 0 | IK56: 0 | IP56: 0 | IQ56: 0 | IV56: 0 | JA56: 0 | JF56: 0 | JK56: 0 | JP56: 0 | JU56: 0 | JZ56: 0 | KE56: 0 | KJ56: 0 | KK56: =ROUND($J56*O56, 'Initial Information'!$M$18) -> 0 | KP56: =ROUND($J56*T56, 'Initial Information'!$M$18) -> 0 | KU56: =ROUND($J56*Y56, 'Initial Information'!$M$18) -> 0 | KZ56: =ROUND($J56*AD56, 'Initial Information'!$M$18) -> 0 | LE56: =ROUND($J56*AI56, 'Initial Information'!$M$18) -> 0 | LJ56: =ROUND($J56*AN56, 'Initial Information'!$M$18) -> 0 | LO56: =ROUND($J56*AS56, 'Initial Information'!$M$18) -> 0 | LT56: =ROUND($J56*AX56, 'Initial Information'!$M$18) -> 0 | LY56: =ROUND($J56*BC56, 'Initial Information'!$M$18) -> 0 | MD56: =ROUND($J56*BH56, 'Initial Information'!$M$18) -> 0 | MZ56: 0 | NA56: 0 | NC56: 0 | ND56: 0 | NF56: 0 | NG56: 0 | NI56: 0 | NJ56: 0 | NL56: 0 | NM56: 0 | NO56: 0 | NP56: 0
A57: FALSE | B57: 34 | J57: =IF(C57="Select from Options Below", 0.28, IFERROR(VLOOKUP(C57, DropDownMenus!$J$1:$K$9, 2, FALSE), 0.28)) -> 0.28 | N57: FALSE | O57: =ROUND($H57*(1+BO57)*M57,'Initial Information'!$M$18) -> 0 | S57: FALSE | T57: =ROUND($H57*(1+BO57)*(1+BT57)*R57,'Initial Information'!$M$18) -> 0 | X57: FALSE | Y57: =ROUND($H57*(1+BO57)*(1+BT57)*(1+BY57)*W57,'Initial Information'!$M$18) -> 0 | AC57: FALSE | AD57: =ROUND($H57*(1+BO57)*(1+BT57)*(1+BY57)*(1+CD57)*AB57,'Initial Information'!$M$18) -> 0 | AH57: FALSE | AI57: =ROUND($H57*(1+BO57)*(1+BT57)*(1+BY57)*(1+CD57)*(1+CI57)*AG57,'Initial Information'!$M$18) -> 0 | AM57: FALSE | AN57: =ROUND($H57*(1+BO57)*(1+BT57)*(1+BY57)*(1+CD57)*(1+CI57)*(1+CN57)*AL57,'Initial Information'!$M$18) -> 0 | AR57: FALSE | AS57: =ROUND($H57*(1+BO57)*(1+BT57)*(1+BY57)*(1+CD57)*(1+CI57)*(1+CN57)*(1+CS57)*AQ57,'Initial Information'!$M$18) -> 0 | AW57: FALSE | AX57: =ROUND($H57*(1+BO57)*(1+BT57)*(1+BY57)*(1+CD57)*(1+CI57)*(1+CN57)*(1+CS57)*(1+CX57)*AV57,'Initial Information'!$M$18) -> 0 | BB57: FALSE | BC57: =ROUND($H57*(1+BO57)*(1+BT57)*(1+BY57)*(1+CD57)*(1+CI57)*(1+CN57)*(1+CS57)*(1+CX57)*(1+DC57)*BA57,'Initial Information'!$M$18) -> 0 | BG57: FALSE | BH57: =ROUND($H57*(1+BO57)*(1+BT57)*(1+BY57)*(1+CD57)*(1+CI57)*(1+CN57)*(1+CS57)*(1+CX57)*(1+DC57)*(1+DH57)*BF57,'Initial Information'!$M$18) -> 0 | BK57: 0 | BO57: 0.03 | BT57: 0.03 | BY57: 0.03 | CD57: 0.03 | CI57: 0.03 | CN57: 0.03 | CS57: 0.03 | CX57: 0.03 | DC57: 0.03 | DH57: 0.03 | DI57: 0 | DN57: 0 | DS57: 0 | DX57: 0 | EC57: 0 | EH57: 0 | EM57: 0 | ER57: 0 | EW57: 0 | FB57: 0 | FC57: 0 | FH57: 0 | FM57: 0 | FR57: 0 | FW57: 0 | GB57: 0 | GG57: 0 | GL57: 0 | GQ57: 0 | GV57: 0 | GW57: 0 | HB57: 0 | HG57: 0 | HL57: 0 | HQ57: 0 | HV57: 0 | IA57: 0 | IF57: 0 | IK57: 0 | IP57: 0 | IQ57: 0 | IV57: 0 | JA57: 0 | JF57: 0 | JK57: 0 | JP57: 0 | JU57: 0 | JZ57: 0 | KE57: 0 | KJ57: 0 | KK57: =ROUND($J57*O57, 'Initial Information'!$M$18) -> 0 | KP57: =ROUND($J57*T57, 'Initial Information'!$M$18) -> 0 | KU57: =ROUND($J57*Y57, 'Initial Information'!$M$18) -> 0 | KZ57: =ROUND($J57*AD57, 'Initial Information'!$M$18) -> 0 | LE57: =ROUND($J57*AI57, 'Initial Information'!$M$18) -> 0 | LJ57: =ROUND($J57*AN57, 'Initial Information'!$M$18) -> 0 | LO57: =ROUND($J57*AS57, 'Initial Information'!$M$18) -> 0 | LT57: =ROUND($J57*AX57, 'Initial Information'!$M$18) -> 0 | LY57: =ROUND($J57*BC57, 'Initial Information'!$M$18) -> 0 | MD57: =ROUND($J57*BH57, 'Initial Information'!$M$18) -> 0 | MZ57: 0 | NA57: 0 | NC57: 0 | ND57: 0 | NF57: 0 | NG57: 0 | NI57: 0 | NJ57: 0 | NL57: 0 | NM57: 0 | NO57: 0 | NP57: 0
A58: FALSE | B58: 35 | J58: =IF(C58="Select from Options Below", 0.28, IFERROR(VLOOKUP(C58, DropDownMenus!$J$1:$K$9, 2, FALSE), 0.28)) -> 0.28 | N58: FALSE | O58: =ROUND($H58*(1+BO58)*M58,'Initial Information'!$M$18) -> 0 | S58: FALSE | T58: =ROUND($H58*(1+BO58)*(1+BT58)*R58,'Initial Information'!$M$18) -> 0 | X58: FALSE | Y58: =ROUND($H58*(1+BO58)*(1+BT58)*(1+BY58)*W58,'Initial Information'!$M$18) -> 0 | AC58: FALSE | AD58: =ROUND($H58*(1+BO58)*(1+BT58)*(1+BY58)*(1+CD58)*AB58,'Initial Information'!$M$18) -> 0 | AH58: FALSE | AI58: =ROUND($H58*(1+BO58)*(1+BT58)*(1+BY58)*(1+CD58)*(1+CI58)*AG58,'Initial Information'!$M$18) -> 0 | AM58: FALSE | AN58: =ROUND($H58*(1+BO58)*(1+BT58)*(1+BY58)*(1+CD58)*(1+CI58)*(1+CN58)*AL58,'Initial Information'!$M$18) -> 0 | AR58: FALSE | AS58: =ROUND($H58*(1+BO58)*(1+BT58)*(1+BY58)*(1+CD58)*(1+CI58)*(1+CN58)*(1+CS58)*AQ58,'Initial Information'!$M$18) -> 0 | AW58: FALSE | AX58: =ROUND($H58*(1+BO58)*(1+BT58)*(1+BY58)*(1+CD58)*(1+CI58)*(1+CN58)*(1+CS58)*(1+CX58)*AV58,'Initial Information'!$M$18) -> 0 | BB58: FALSE | BC58: =ROUND($H58*(1+BO58)*(1+BT58)*(1+BY58)*(1+CD58)*(1+CI58)*(1+CN58)*(1+CS58)*(1+CX58)*(1+DC58)*BA58,'Initial Information'!$M$18) -> 0 | BG58: FALSE | BH58: =ROUND($H58*(1+BO58)*(1+BT58)*(1+BY58)*(1+CD58)*(1+CI58)*(1+CN58)*(1+CS58)*(1+CX58)*(1+DC58)*(1+DH58)*BF58,'Initial Information'!$M$18) -> 0 | BK58: 0 | BO58: 0.03 | BT58: 0.03 | BY58: 0.03 | CD58: 0.03 | CI58: 0.03 | CN58: 0.03 | CS58: 0.03 | CX58: 0.03 | DC58: 0.03 | DH58: 0.03 | DI58: 0 | DN58: 0 | DS58: 0 | DX58: 0 | EC58: 0 | EH58: 0 | EM58: 0 | ER58: 0 | EW58: 0 | FB58: 0 | FC58: 0 | FH58: 0 | FM58: 0 | FR58: 0 | FW58: 0 | GB58: 0 | GG58: 0 | GL58: 0 | GQ58: 0 | GV58: 0 | GW58: 0 | HB58: 0 | HG58: 0 | HL58: 0 | HQ58: 0 | HV58: 0 | IA58: 0 | IF58: 0 | IK58: 0 | IP58: 0 | IQ58: 0 | IV58: 0 | JA58: 0 | JF58: 0 | JK58: 0 | JP58: 0 | JU58: 0 | JZ58: 0 | KE58: 0 | KJ58: 0 | KK58: =ROUND($J58*O58, 'Initial Information'!$M$18) -> 0 | KP58: =ROUND($J58*T58, 'Initial Information'!$M$18) -> 0 | KU58: =ROUND($J58*Y58, 'Initial Information'!$M$18) -> 0 | KZ58: =ROUND($J58*AD58, 'Initial Information'!$M$18) -> 0 | LE58: =ROUND($J58*AI58, 'Initial Information'!$M$18) -> 0 | LJ58: =ROUND($J58*AN58, 'Initial Information'!$M$18) -> 0 | LO58: =ROUND($J58*AS58, 'Initial Information'!$M$18) -> 0 | LT58: =ROUND($J58*AX58, 'Initial Information'!$M$18) -> 0 | LY58: =ROUND($J58*BC58, 'Initial Information'!$M$18) -> 0 | MD58: =ROUND($J58*BH58, 'Initial Information'!$M$18) -> 0 | MZ58: 0 | NA58: 0 | NC58: 0 | ND58: 0 | NF58: 0 | NG58: 0 | NI58: 0 | NJ58: 0 | NL58: 0 | NM58: 0 | NO58: 0 | NP58: 0
A59: FALSE | B59: 36 | J59: =IF(C59="Select from Options Below", 0.28, IFERROR(VLOOKUP(C59, DropDownMenus!$J$1:$K$9, 2, FALSE), 0.28)) -> 0.28 | N59: FALSE | O59: =ROUND($H59*(1+BO59)*M59,'Initial Information'!$M$18) -> 0 | S59: FALSE | T59: =ROUND($H59*(1+BO59)*(1+BT59)*R59,'Initial Information'!$M$18) -> 0 | X59: FALSE | Y59: =ROUND($H59*(1+BO59)*(1+BT59)*(1+BY59)*W59,'Initial Information'!$M$18) -> 0 | AC59: FALSE | AD59: =ROUND($H59*(1+BO59)*(1+BT59)*(1+BY59)*(1+CD59)*AB59,'Initial Information'!$M$18) -> 0 | AH59: FALSE | AI59: =ROUND($H59*(1+BO59)*(1+BT59)*(1+BY59)*(1+CD59)*(1+CI59)*AG59,'Initial Information'!$M$18) -> 0 | AM59: FALSE | AN59: =ROUND($H59*(1+BO59)*(1+BT59)*(1+BY59)*(1+CD59)*(1+CI59)*(1+CN59)*AL59,'Initial Information'!$M$18) -> 0 | AR59: FALSE | AS59: =ROUND($H59*(1+BO59)*(1+BT59)*(1+BY59)*(1+CD59)*(1+CI59)*(1+CN59)*(1+CS59)*AQ59,'Initial Information'!$M$18) -> 0 | AW59: FALSE | AX59: =ROUND($H59*(1+BO59)*(1+BT59)*(1+BY59)*(1+CD59)*(1+CI59)*(1+CN59)*(1+CS59)*(1+CX59)*AV59,'Initial Information'!$M$18) -> 0 | BB59: FALSE | BC59: =ROUND($H59*(1+BO59)*(1+BT59)*(1+BY59)*(1+CD59)*(1+CI59)*(1+CN59)*(1+CS59)*(1+CX59)*(1+DC59)*BA59,'Initial Information'!$M$18) -> 0 | BG59: FALSE | BH59: =ROUND($H59*(1+BO59)*(1+BT59)*(1+BY59)*(1+CD59)*(1+CI59)*(1+CN59)*(1+CS59)*(1+CX59)*(1+DC59)*(1+DH59)*BF59,'Initial Information'!$M$18) -> 0 | BK59: 0 | BO59: 0.03 | BT59: 0.03 | BY59: 0.03 | CD59: 0.03 | CI59: 0.03 | CN59: 0.03 | CS59: 0.03 | CX59: 0.03 | DC59: 0.03 | DH59: 0.03 | DI59: 0 | DN59: 0 | DS59: 0 | DX59: 0 | EC59: 0 | EH59: 0 | EM59: 0 | ER59: 0 | EW59: 0 | FB59: 0 | FC59: 0 | FH59: 0 | FM59: 0 | FR59: 0 | FW59: 0 | GB59: 0 | GG59: 0 | GL59: 0 | GQ59: 0 | GV59: 0 | GW59: 0 | HB59: 0 | HG59: 0 | HL59: 0 | HQ59: 0 | HV59: 0 | IA59: 0 | IF59: 0 | IK59: 0 | IP59: 0 | IQ59: 0 | IV59: 0 | JA59: 0 | JF59: 0 | JK59: 0 | JP59: 0 | JU59: 0 | JZ59: 0 | KE59: 0 | KJ59: 0 | KK59: =ROUND($J59*O59, 'Initial Information'!$M$18) -> 0 | KP59: =ROUND($J59*T59, 'Initial Information'!$M$18) -> 0 | KU59: =ROUND($J59*Y59, 'Initial Information'!$M$18) -> 0 | KZ59: =ROUND($J59*AD59, 'Initial Information'!$M$18) -> 0 | LE59: =ROUND($J59*AI59, 'Initial Information'!$M$18) -> 0 | LJ59: =ROUND($J59*AN59, 'Initial Information'!$M$18) -> 0 | LO59: =ROUND($J59*AS59, 'Initial Information'!$M$18) -> 0 | LT59: =ROUND($J59*AX59, 'Initial Information'!$M$18) -> 0 | LY59: =ROUND($J59*BC59, 'Initial Information'!$M$18) -> 0 | MD59: =ROUND($J59*BH59, 'Initial Information'!$M$18) -> 0 | MZ59: 0 | NA59: 0 | NC59: 0 | ND59: 0 | NF59: 0 | NG59: 0 | NI59: 0 | NJ59: 0 | NL59: 0 | NM59: 0 | NO59: 0 | NP59: 0
A60: FALSE | B60: 37 | J60: =IF(C60="Select from Options Below", 0.28, IFERROR(VLOOKUP(C60, DropDownMenus!$J$1:$K$9, 2, FALSE), 0.28)) -> 0.28 | N60: FALSE | O60: =ROUND($H60*(1+BO60)*M60,'Initial Information'!$M$18) -> 0 | S60: FALSE | T60: =ROUND($H60*(1+BO60)*(1+BT60)*R60,'Initial Information'!$M$18) -> 0 | X60: FALSE | Y60: =ROUND($H60*(1+BO60)*(1+BT60)*(1+BY60)*W60,'Initial Information'!$M$18) -> 0 | AC60: FALSE | AD60: =ROUND($H60*(1+BO60)*(1+BT60)*(1+BY60)*(1+CD60)*AB60,'Initial Information'!$M$18) -> 0 | AH60: FALSE | AI60: =ROUND($H60*(1+BO60)*(1+BT60)*(1+BY60)*(1+CD60)*(1+CI60)*AG60,'Initial Information'!$M$18) -> 0 | AM60: FALSE | AN60: =ROUND($H60*(1+BO60)*(1+BT60)*(1+BY60)*(1+CD60)*(1+CI60)*(1+CN60)*AL60,'Initial Information'!$M$18) -> 0 | AR60: FALSE | AS60: =ROUND($H60*(1+BO60)*(1+BT60)*(1+BY60)*(1+CD60)*(1+CI60)*(1+CN60)*(1+CS60)*AQ60,'Initial Information'!$M$18) -> 0 | AW60: FALSE | AX60: =ROUND($H60*(1+BO60)*(1+BT60)*(1+BY60)*(1+CD60)*(1+CI60)*(1+CN60)*(1+CS60)*(1+CX60)*AV60,'Initial Information'!$M$18) -> 0 | BB60: FALSE | BC60: =ROUND($H60*(1+BO60)*(1+BT60)*(1+BY60)*(1+CD60)*(1+CI60)*(1+CN60)*(1+CS60)*(1+CX60)*(1+DC60)*BA60,'Initial Information'!$M$18) -> 0 | BG60: FALSE | BH60: =ROUND($H60*(1+BO60)*(1+BT60)*(1+BY60)*(1+CD60)*(1+CI60)*(1+CN60)*(1+CS60)*(1+CX60)*(1+DC60)*(1+DH60)*BF60,'Initial Information'!$M$18) -> 0 | BK60: 0 | BO60: 0.03 | BT60: 0.03 | BY60: 0.03 | CD60: 0.03 | CI60: 0.03 | CN60: 0.03 | CS60: 0.03 | CX60: 0.03 | DC60: 0.03 | DH60: 0.03 | DI60: 0 | DN60: 0 | DS60: 0 | DX60: 0 | EC60: 0 | EH60: 0 | EM60: 0 | ER60: 0 | EW60: 0 | FB60: 0 | FC60: 0 | FH60: 0 | FM60: 0 | FR60: 0 | FW60: 0 | GB60: 0 | GG60: 0 | GL60: 0 | GQ60: 0 | GV60: 0 | GW60: 0 | HB60: 0 | HG60: 0 | HL60: 0 | HQ60: 0 | HV60: 0 | IA60: 0 | IF60: 0 | IK60: 0 | IP60: 0 | IQ60: 0 | IV60: 0 | JA60: 0 | JF60: 0 | JK60: 0 | JP60: 0 | JU60: 0 | JZ60: 0 | KE60: 0 | KJ60: 0 | KK60: =ROUND($J60*O60, 'Initial Information'!$M$18) -> 0 | KP60: =ROUND($J60*T60, 'Initial Information'!$M$18) -> 0 | KU60: =ROUND($J60*Y60, 'Initial Information'!$M$18) -> 0 | KZ60: =ROUND($J60*AD60, 'Initial Information'!$M$18) -> 0 | LE60: =ROUND($J60*AI60, 'Initial Information'!$M$18) -> 0 | LJ60: =ROUND($J60*AN60, 'Initial Information'!$M$18) -> 0 | LO60: =ROUND($J60*AS60, 'Initial Information'!$M$18) -> 0 | LT60: =ROUND($J60*AX60, 'Initial Information'!$M$18) -> 0 | LY60: =ROUND($J60*BC60, 'Initial Information'!$M$18) -> 0 | MD60: =ROUND($J60*BH60, 'Initial Information'!$M$18) -> 0 | MZ60: 0 | NA60: 0 | NC60: 0 | ND60: 0 | NF60: 0 | NG60: 0 | NI60: 0 | NJ60: 0 | NL60: 0 | NM60: 0 | NO60: 0 | NP60: 0
A61: FALSE | B61: 38 | J61: =IF(C61="Select from Options Below", 0.28, IFERROR(VLOOKUP(C61, DropDownMenus!$J$1:$K$9, 2, FALSE), 0.28)) -> 0.28 | N61: FALSE | O61: =ROUND($H61*(1+BO61)*M61,'Initial Information'!$M$18) -> 0 | S61: FALSE | T61: =ROUND($H61*(1+BO61)*(1+BT61)*R61,'Initial Information'!$M$18) -> 0 | X61: FALSE | Y61: =ROUND($H61*(1+BO61)*(1+BT61)*(1+BY61)*W61,'Initial Information'!$M$18) -> 0 | AC61: FALSE | AD61: =ROUND($H61*(1+BO61)*(1+BT61)*(1+BY61)*(1+CD61)*AB61,'Initial Information'!$M$18) -> 0 | AH61: FALSE | AI61: =ROUND($H61*(1+BO61)*(1+BT61)*(1+BY61)*(1+CD61)*(1+CI61)*AG61,'Initial Information'!$M$18) -> 0 | AM61: FALSE | AN61: =ROUND($H61*(1+BO61)*(1+BT61)*(1+BY61)*(1+CD61)*(1+CI61)*(1+CN61)*AL61,'Initial Information'!$M$18) -> 0 | AR61: FALSE | AS61: =ROUND($H61*(1+BO61)*(1+BT61)*(1+BY61)*(1+CD61)*(1+CI61)*(1+CN61)*(1+CS61)*AQ61,'Initial Information'!$M$18) -> 0 | AW61: FALSE | AX61: =ROUND($H61*(1+BO61)*(1+BT61)*(1+BY61)*(1+CD61)*(1+CI61)*(1+CN61)*(1+CS61)*(1+CX61)*AV61,'Initial Information'!$M$18) -> 0 | BB61: FALSE | BC61: =ROUND($H61*(1+BO61)*(1+BT61)*(1+BY61)*(1+CD61)*(1+CI61)*(1+CN61)*(1+CS61)*(1+CX61)*(1+DC61)*BA61,'Initial Information'!$M$18) -> 0 | BG61: FALSE | BH61: =ROUND($H61*(1+BO61)*(1+BT61)*(1+BY61)*(1+CD61)*(1+CI61)*(1+CN61)*(1+CS61)*(1+CX61)*(1+DC61)*(1+DH61)*BF61,'Initial Information'!$M$18) -> 0 | BK61: 0 | BO61: 0.03 | BT61: 0.03 | BY61: 0.03 | CD61: 0.03 | CI61: 0.03 | CN61: 0.03 | CS61: 0.03 | CX61: 0.03 | DC61: 0.03 | DH61: 0.03 | DI61: 0 | DN61: 0 | DS61: 0 | DX61: 0 | EC61: 0 | EH61: 0 | EM61: 0 | ER61: 0 | EW61: 0 | FB61: 0 | FC61: 0 | FH61: 0 | FM61: 0 | FR61: 0 | FW61: 0 | GB61: 0 | GG61: 0 | GL61: 0 | GQ61: 0 | GV61: 0 | GW61: 0 | HB61: 0 | HG61: 0 | HL61: 0 | HQ61: 0 | HV61: 0 | IA61: 0 | IF61: 0 | IK61: 0 | IP61: 0 | IQ61: 0 | IV61: 0 | JA61: 0 | JF61: 0 | JK61: 0 | JP61: 0 | JU61: 0 | JZ61: 0 | KE61: 0 | KJ61: 0 | KK61: =ROUND($J61*O61, 'Initial Information'!$M$18) -> 0 | KP61: =ROUND($J61*T61, 'Initial Information'!$M$18) -> 0 | KU61: =ROUND($J61*Y61, 'Initial Information'!$M$18) -> 0 | KZ61: =ROUND($J61*AD61, 'Initial Information'!$M$18) -> 0 | LE61: =ROUND($J61*AI61, 'Initial Information'!$M$18) -> 0 | LJ61: =ROUND($J61*AN61, 'Initial Information'!$M$18) -> 0 | LO61: =ROUND($J61*AS61, 'Initial Information'!$M$18) -> 0 | LT61: =ROUND($J61*AX61, 'Initial Information'!$M$18) -> 0 | LY61: =ROUND($J61*BC61, 'Initial Information'!$M$18) -> 0 | MD61: =ROUND($J61*BH61, 'Initial Information'!$M$18) -> 0 | MZ61: 0 | NA61: 0 | NC61: 0 | ND61: 0 | NF61: 0 | NG61: 0 | NI61: 0 | NJ61: 0 | NL61: 0 | NM61: 0 | NO61: 0 | NP61: 0
A62: FALSE | B62: 39 | J62: =IF(C62="Select from Options Below", 0.28, IFERROR(VLOOKUP(C62, DropDownMenus!$J$1:$K$9, 2, FALSE), 0.28)) -> 0.28 | N62: FALSE | O62: =ROUND($H62*(1+BO62)*M62,'Initial Information'!$M$18) -> 0 | S62: FALSE | T62: =ROUND($H62*(1+BO62)*(1+BT62)*R62,'Initial Information'!$M$18) -> 0 | X62: FALSE | Y62: =ROUND($H62*(1+BO62)*(1+BT62)*(1+BY62)*W62,'Initial Information'!$M$18) -> 0 | AC62: FALSE | AD62: =ROUND($H62*(1+BO62)*(1+BT62)*(1+BY62)*(1+CD62)*AB62,'Initial Information'!$M$18) -> 0 | AH62: FALSE | AI62: =ROUND($H62*(1+BO62)*(1+BT62)*(1+BY62)*(1+CD62)*(1+CI62)*AG62,'Initial Information'!$M$18) -> 0 | AM62: FALSE | AN62: =ROUND($H62*(1+BO62)*(1+BT62)*(1+BY62)*(1+CD62)*(1+CI62)*(1+CN62)*AL62,'Initial Information'!$M$18) -> 0 | AR62: FALSE | AS62: =ROUND($H62*(1+BO62)*(1+BT62)*(1+BY62)*(1+CD62)*(1+CI62)*(1+CN62)*(1+CS62)*AQ62,'Initial Information'!$M$18) -> 0 | AW62: FALSE | AX62: =ROUND($H62*(1+BO62)*(1+BT62)*(1+BY62)*(1+CD62)*(1+CI62)*(1+CN62)*(1+CS62)*(1+CX62)*AV62,'Initial Information'!$M$18) -> 0 | BB62: FALSE | BC62: =ROUND($H62*(1+BO62)*(1+BT62)*(1+BY62)*(1+CD62)*(1+CI62)*(1+CN62)*(1+CS62)*(1+CX62)*(1+DC62)*BA62,'Initial Information'!$M$18) -> 0 | BG62: FALSE | BH62: =ROUND($H62*(1+BO62)*(1+BT62)*(1+BY62)*(1+CD62)*(1+CI62)*(1+CN62)*(1+CS62)*(1+CX62)*(1+DC62)*(1+DH62)*BF62,'Initial Information'!$M$18) -> 0 | BK62: 0 | BO62: 0.03 | BT62: 0.03 | BY62: 0.03 | CD62: 0.03 | CI62: 0.03 | CN62: 0.03 | CS62: 0.03 | CX62: 0.03 | DC62: 0.03 | DH62: 0.03 | DI62: 0 | DN62: 0 | DS62: 0 | DX62: 0 | EC62: 0 | EH62: 0 | EM62: 0 | ER62: 0 | EW62: 0 | FB62: 0 | FC62: 0 | FH62: 0 | FM62: 0 | FR62: 0 | FW62: 0 | GB62: 0 | GG62: 0 | GL62: 0 | GQ62: 0 | GV62: 0 | GW62: 0 | HB62: 0 | HG62: 0 | HL62: 0 | HQ62: 0 | HV62: 0 | IA62: 0 | IF62: 0 | IK62: 0 | IP62: 0 | IQ62: 0 | IV62: 0 | JA62: 0 | JF62: 0 | JK62: 0 | JP62: 0 | JU62: 0 | JZ62: 0 | KE62: 0 | KJ62: 0 | KK62: =ROUND($J62*O62, 'Initial Information'!$M$18) -> 0 | KP62: =ROUND($J62*T62, 'Initial Information'!$M$18) -> 0 | KU62: =ROUND($J62*Y62, 'Initial Information'!$M$18) -> 0 | KZ62: =ROUND($J62*AD62, 'Initial Information'!$M$18) -> 0 | LE62: =ROUND($J62*AI62, 'Initial Information'!$M$18) -> 0 | LJ62: =ROUND($J62*AN62, 'Initial Information'!$M$18) -> 0 | LO62: =ROUND($J62*AS62, 'Initial Information'!$M$18) -> 0 | LT62: =ROUND($J62*AX62, 'Initial Information'!$M$18) -> 0 | LY62: =ROUND($J62*BC62, 'Initial Information'!$M$18) -> 0 | MD62: =ROUND($J62*BH62, 'Initial Information'!$M$18) -> 0 | MZ62: 0 | NA62: 0 | NC62: 0 | ND62: 0 | NF62: 0 | NG62: 0 | NI62: 0 | NJ62: 0 | NL62: 0 | NM62: 0 | NO62: 0 | NP62: 0
A63: FALSE | B63: 40 | J63: =IF(C63="Select from Options Below", 0.28, IFERROR(VLOOKUP(C63, DropDownMenus!$J$1:$K$9, 2, FALSE), 0.28)) -> 0.28 | N63: FALSE | O63: =ROUND($H63*(1+BO63)*M63,'Initial Information'!$M$18) -> 0 | S63: FALSE | T63: =ROUND($H63*(1+BO63)*(1+BT63)*R63,'Initial Information'!$M$18) -> 0 | X63: FALSE | Y63: =ROUND($H63*(1+BO63)*(1+BT63)*(1+BY63)*W63,'Initial Information'!$M$18) -> 0 | AC63: FALSE | AD63: =ROUND($H63*(1+BO63)*(1+BT63)*(1+BY63)*(1+CD63)*AB63,'Initial Information'!$M$18) -> 0 | AH63: FALSE | AI63: =ROUND($H63*(1+BO63)*(1+BT63)*(1+BY63)*(1+CD63)*(1+CI63)*AG63,'Initial Information'!$M$18) -> 0 | AM63: FALSE | AN63: =ROUND($H63*(1+BO63)*(1+BT63)*(1+BY63)*(1+CD63)*(1+CI63)*(1+CN63)*AL63,'Initial Information'!$M$18) -> 0 | AR63: FALSE | AS63: =ROUND($H63*(1+BO63)*(1+BT63)*(1+BY63)*(1+CD63)*(1+CI63)*(1+CN63)*(1+CS63)*AQ63,'Initial Information'!$M$18) -> 0 | AW63: FALSE | AX63: =ROUND($H63*(1+BO63)*(1+BT63)*(1+BY63)*(1+CD63)*(1+CI63)*(1+CN63)*(1+CS63)*(1+CX63)*AV63,'Initial Information'!$M$18) -> 0 | BB63: FALSE | BC63: =ROUND($H63*(1+BO63)*(1+BT63)*(1+BY63)*(1+CD63)*(1+CI63)*(1+CN63)*(1+CS63)*(1+CX63)*(1+DC63)*BA63,'Initial Information'!$M$18) -> 0 | BG63: FALSE | BH63: =ROUND($H63*(1+BO63)*(1+BT63)*(1+BY63)*(1+CD63)*(1+CI63)*(1+CN63)*(1+CS63)*(1+CX63)*(1+DC63)*(1+DH63)*BF63,'Initial Information'!$M$18) -> 0 | BK63: 0 | BO63: 0.03 | BT63: 0.03 | BY63: 0.03 | CD63: 0.03 | CI63: 0.03 | CN63: 0.03 | CS63: 0.03 | CX63: 0.03 | DC63: 0.03 | DH63: 0.03 | DI63: 0 | DN63: 0 | DS63: 0 | DX63: 0 | EC63: 0 | EH63: 0 | EM63: 0 | ER63: 0 | EW63: 0 | FB63: 0 | FC63: 0 | FH63: 0 | FM63: 0 | FR63: 0 | FW63: 0 | GB63: 0 | GG63: 0 | GL63: 0 | GQ63: 0 | GV63: 0 | GW63: 0 | HB63: 0 | HG63: 0 | HL63: 0 | HQ63: 0 | HV63: 0 | IA63: 0 | IF63: 0 | IK63: 0 | IP63: 0 | IQ63: 0 | IV63: 0 | JA63: 0 | JF63: 0 | JK63: 0 | JP63: 0 | JU63: 0 | JZ63: 0 | KE63: 0 | KJ63: 0 | KK63: =ROUND($J63*O63, 'Initial Information'!$M$18) -> 0 | KP63: =ROUND($J63*T63, 'Initial Information'!$M$18) -> 0 | KU63: =ROUND($J63*Y63, 'Initial Information'!$M$18) -> 0 | KZ63: =ROUND($J63*AD63, 'Initial Information'!$M$18) -> 0 | LE63: =ROUND($J63*AI63, 'Initial Information'!$M$18) -> 0 | LJ63: =ROUND($J63*AN63, 'Initial Information'!$M$18) -> 0 | LO63: =ROUND($J63*AS63, 'Initial Information'!$M$18) -> 0 | LT63: =ROUND($J63*AX63, 'Initial Information'!$M$18) -> 0 | LY63: =ROUND($J63*BC63, 'Initial Information'!$M$18) -> 0 | MD63: =ROUND($J63*BH63, 'Initial Information'!$M$18) -> 0 | MZ63: 0 | NA63: 0 | NC63: 0 | ND63: 0 | NF63: 0 | NG63: 0 | NI63: 0 | NJ63: 0 | NL63: 0 | NM63: 0 | NO63: 0 | NP63: 0
C65: Hourly Employees | F65: Hourly Rate of Pay
B66: 21 | H66: =ROUND(F66*173.3333,2) -> 0 | J66: =IF(C66="Select from Options Below", 0.28, IFERROR(VLOOKUP(C66, DropDownMenus!N:O, 2, FALSE), 0.0125)) -> 0.0125 | O66: =ROUND($H66*(1+BO66)*M66,'Initial Information'!$M$18) -> 0 | T66: =ROUND($H66*(1+BO66)*(1+BT66)*R66,'Initial Information'!$M$18) -> 0 | Y66: =ROUND($H66*(1+BO66)*(1+BT66)*(1+BY66)*W66,'Initial Information'!$M$18) -> 0 | AD66: =ROUND($H66*(1+BO66)*(1+BT66)*(1+BY66)*(1+CD66)*AB66,'Initial Information'!$M$18) -> 0 | AI66: =ROUND($H66*(1+BO66)*(1+BT66)*(1+BY66)*(1+CD66)*(1+CI66)*AG66,'Initial Information'!$M$18) -> 0 | AN66: =ROUND($H66*(1+BO66)*(1+BT66)*(1+BY66)*(1+CD66)*(1+CI66)*(1+CN66)*AL66,'Initial Information'!$M$18) -> 0 | AS66: =ROUND($H66*(1+BO66)*(1+BT66)*(1+BY66)*(1+CD66)*(1+CI66)*(1+CN66)*(1+CS66)*AQ66,'Initial Information'!$M$18) -> 0 | AX66: =ROUND($H66*(1+BO66)*(1+BT66)*(1+BY66)*(1+CD66)*(1+CI66)*(1+CN66)*(1+CS66)*(1+CX66)*AV66,'Initial Information'!$M$18) -> 0 | BC66: =ROUND($H66*(1+BO66)*(1+BT66)*(1+BY66)*(1+CD66)*(1+CI66)*(1+CN66)*(1+CS66)*(1+CX66)*(1+DC66)*BA66,'Initial Information'!$M$18) -> 0 | BH66: =ROUND($H66*(1+BO66)*(1+BT66)*(1+BY66)*(1+CD66)*(1+CI66)*(1+CN66)*(1+CS66)*(1+CX66)*(1+DC66)*(1+DH66)*BF66,'Initial Information'!$M$18) -> 0 | BK66: =SUM(O66+T66+Y66+AD66+BH66+AI66+BC66+AX66+AS66+AN66) -> 0 | BN66: =C65 -> Hourly Employees | BO66: 0 | BT66: 0.03 | BY66: 0.03 | CD66: 0.03 | CI66: 0.03 | CN66: 0.03 | CS66: 0.03 | CX66: 0.03 | DC66: 0.03 | DH66: 0.03 | DI66: =ROUND((2080/12)*M66,2) -> 0 | DN66: =ROUND((2080/12)*R66,2) -> 0 | DS66: =ROUND((2080/12)*W66,2) -> 0 | DX66: =ROUND((2080/12)*AB66,2) -> 0 | EC66: =ROUND((2080/12)*AG66,2) -> 0 | EH66: =ROUND((2080/12)*BF66,2) -> 0 | EM66: =ROUND((2080/12)*AQ66,2) -> 0 | ER66: =ROUND((2080/12)*AV66,2) -> 0 | EW66: =ROUND((2080/12)*BA66,2) -> 0 | FB66: =ROUND((2080/12)*BF66,2) -> 0 | FC66: =ROUND((M66/12),3) -> 0 | FH66: =ROUND((R66/12),3) -> 0 | FM66: =ROUND((W66/12),3) -> 0 | FR66: =ROUND((AB66/12),3) -> 0 | FW66: =ROUND((AG66/12),3) -> 0 | GB66: =ROUND((AL66/12),3) -> 0 | GG66: =ROUND((AQ66/12),3) -> 0 | GL66: =ROUND((AV66/12),3) -> 0 | GQ66: =ROUND((BA66/12),3) -> 0 | GV66: =ROUND((BF66/12),3) -> 0 | GW66: =ROUND((1+BO66)*$H66,2) -> 0 | HB66: =ROUND(GW66*(1+BT66),2) -> 0 | HG66: =ROUND(HB66*(1+BY66),2) -> 0 | HL66: =ROUND(HG66*(1+CD66),2) -> 0 | HQ66: =ROUND(HL66*(1+CI66),2) -> 0 | HV66: =ROUND(HQ66*(1+CN66),2) -> 0 | IA66: =ROUND(HV66*(1+CS66),2) -> 0 | IF66: =ROUND(IA66*(1+CX66),2) -> 0 | IK66: =ROUND(IF66*(1+DC66),2) -> 0 | IP66: =ROUND(IK66*(1+DH66),2) -> 0 | IQ66: =GW66*12 -> 0 | IV66: =HB66*12 -> 0 | JA66: =HG66*12 -> 0 | JF66: =HL66*12 -> 0 | JK66: =HQ66*12 -> 0 | JP66: =HV66*12 -> 0 | JU66: =IA66*12 -> 0 | JZ66: =IF66*12 -> 0 | KE66: =IK66*12 -> 0 | KJ66: =IP66*12 -> 0 | KK66: =ROUND($J66*O66, 'Initial Information'!$M$18) -> 0 | KP66: =ROUND($J66*T66, 'Initial Information'!$M$18) -> 0 | KU66: =ROUND($J66*Y66, 'Initial Information'!$M$18) -> 0 | KZ66: =ROUND($J66*AD66, 'Initial Information'!$M$18) -> 0 | LE66: =ROUND($J66*AI66, 'Initial Information'!$M$18) -> 0 | LJ66: =ROUND($J66*AN66, 'Initial Information'!$M$18) -> 0 | LO66: =ROUND($J66*AS66, 'Initial Information'!$M$18) -> 0 | LT66: =ROUND($J66*AX66, 'Initial Information'!$M$18) -> 0 | LY66: =ROUND($J66*BC66, 'Initial Information'!$M$18) -> 0 | MD66: =ROUND($J66*BH66, 'Initial Information'!$M$18) -> 0 | MY66: =IF(ROW()<=43, IF(A66=FALSE, C66, ""), C66) -> 0 | MZ66: =IF(ROW()<=43, IF(A66=FALSE, N(M66), ""), N(M66)) -> 0 | NA66: =IF(ROW()<=43, IF(A66=FALSE, N(O66), ""), N(O66)) -> 0 | NB66: =IF(N(R66)>0, C66, "") ->  | NC66: =IF(ROW()<=43, IF(A66=FALSE, N(R66), ""), N(R66)) -> 0 | ND66: =IF(ROW()<=43, IF(A66=FALSE, N(T66), ""), N(T66)) -> 0 | NE66: =IF(N(W66)>0, C66, "") ->  | NF66: =IF(ROW()<=43, IF(A66=FALSE, N(W66), ""), N(W66)) -> 0 | NG66: =IF(ROW()<=43, IF(A66=FALSE, N(Y66), ""), N(Y66)) -> 0 | NH66: =IF(N(AB66)>0, C66, "") ->  | NI66: =IF(ROW()<=43, IF(A66=FALSE, N(AB66), ""), N(AB66)) -> 0 | NJ66: =IF(ROW()<=43, IF(A66=FALSE, N(AD66), ""), N(AD66)) -> 0 | NK66: =IF(N(AG66)>0, C66, "") ->  | NL66: =IF(ROW()<=43, IF(A66=FALSE, N(AL66), ""), N(AL66)) -> 0 | NM66: =IF(ROW()<=43, IF(A66=FALSE, N(AN66), ""), N(AN66)) -> 0 | NN66: =IF(N(AL66)>0, C66, "") ->  | NO66: =IF(ROW()<=43, IF(A66=FALSE, N(AQ66), ""), N(AQ66)) -> 0 | NP66: =IF(ROW()<=43, IF(A66=FALSE, N(AS66), ""), N(AS66)) -> 0
B67: 22 | H67: 0 | J67: =IF(C67="Select from Options Below", 0.28, IFERROR(VLOOKUP(C67, DropDownMenus!N:O, 2, FALSE), 0.0125)) -> 0.0125 | O67: =ROUND($H67*(1+BO67)*M67,'Initial Information'!$M$18) -> 0 | T67: =ROUND($H67*(1+BO67)*(1+BT67)*R67,'Initial Information'!$M$18) -> 0 | Y67: =ROUND($H67*(1+BO67)*(1+BT67)*(1+BY67)*W67,'Initial Information'!$M$18) -> 0 | AD67: =ROUND($H67*(1+BO67)*(1+BT67)*(1+BY67)*(1+CD67)*AB67,'Initial Information'!$M$18) -> 0 | AI67: =ROUND($H67*(1+BO67)*(1+BT67)*(1+BY67)*(1+CD67)*(1+CI67)*AG67,'Initial Information'!$M$18) -> 0 | AN67: =ROUND($H67*(1+BO67)*(1+BT67)*(1+BY67)*(1+CD67)*(1+CI67)*(1+CN67)*AL67,'Initial Information'!$M$18) -> 0 | AS67: =ROUND($H67*(1+BO67)*(1+BT67)*(1+BY67)*(1+CD67)*(1+CI67)*(1+CN67)*(1+CS67)*AQ67,'Initial Information'!$M$18) -> 0 | AX67: =ROUND($H67*(1+BO67)*(1+BT67)*(1+BY67)*(1+CD67)*(1+CI67)*(1+CN67)*(1+CS67)*(1+CX67)*AV67,'Initial Information'!$M$18) -> 0 | BC67: =ROUND($H67*(1+BO67)*(1+BT67)*(1+BY67)*(1+CD67)*(1+CI67)*(1+CN67)*(1+CS67)*(1+CX67)*(1+DC67)*BA67,'Initial Information'!$M$18) -> 0 | BH67: =ROUND($H67*(1+BO67)*(1+BT67)*(1+BY67)*(1+CD67)*(1+CI67)*(1+CN67)*(1+CS67)*(1+CX67)*(1+DC67)*(1+DH67)*BF67,'Initial Information'!$M$18) -> 0 | BK67: 0 | BO67: 0 | BT67: 0.03 | BY67: 0.03 | CD67: 0.03 | CI67: 0.03 | CN67: 0.03 | CS67: 0.03 | CX67: 0.03 | DC67: 0.03 | DH67: 0.03 | DI67: =ROUND((2080/12)*M67,2) -> 0 | DN67: =ROUND((2080/12)*R67,2) -> 0 | DS67: =ROUND((2080/12)*W67,2) -> 0 | DX67: =ROUND((2080/12)*AB67,2) -> 0 | EC67: =ROUND((2080/12)*AG67,2) -> 0 | EH67: =ROUND((2080/12)*BF67,2) -> 0 | EM67: =ROUND((2080/12)*AQ67,2) -> 0 | ER67: =ROUND((2080/12)*AV67,2) -> 0 | EW67: =ROUND((2080/12)*BA67,2) -> 0 | FB67: =ROUND((2080/12)*BF67,2) -> 0 | FC67: =ROUND((M67/12),3) -> 0 | FH67: =ROUND((R67/12),3) -> 0 | FM67: =ROUND((W67/12),3) -> 0 | FR67: =ROUND((AB67/12),3) -> 0 | FW67: =ROUND((AG67/12),3) -> 0 | GB67: =ROUND((AL67/12),3) -> 0 | GG67: =ROUND((AQ67/12),3) -> 0 | GL67: =ROUND((AV67/12),3) -> 0 | GQ67: =ROUND((BA67/12),3) -> 0 | GV67: =ROUND((BF67/12),3) -> 0 | GW67: =ROUND((1+BO67)*$H67,2) -> 0 | HB67: =ROUND(GW67*(1+BT67),2) -> 0 | HG67: =ROUND(HB67*(1+BY67),2) -> 0 | HL67: =ROUND(HG67*(1+CD67),2) -> 0 | HQ67: =ROUND(HL67*(1+CI67),2) -> 0 | HV67: =ROUND(HQ67*(1+CN67),2) -> 0 | IA67: =ROUND(HV67*(1+CS67),2) -> 0 | IF67: =ROUND(IA67*(1+CX67),2) -> 0 | IK67: =ROUND(IF67*(1+DC67),2) -> 0 | IP67: =ROUND(IK67*(1+DH67),2) -> 0 | IQ67: =GW67*12 -> 0 | IV67: =HB67*12 -> 0 | JA67: =HG67*12 -> 0 | JF67: =HL67*12 -> 0 | JK67: =HQ67*12 -> 0 | JP67: =HV67*12 -> 0 | JU67: =IA67*12 -> 0 | JZ67: =IF67*12 -> 0 | KE67: =IK67*12 -> 0 | KJ67: =IP67*12 -> 0 | KK67: =ROUND($J67*O67, 'Initial Information'!$M$18) -> 0 | KP67: =ROUND($J67*T67, 'Initial Information'!$M$18) -> 0 | KU67: =ROUND($J67*Y67, 'Initial Information'!$M$18) -> 0 | KZ67: =ROUND($J67*AD67, 'Initial Information'!$M$18) -> 0 | LE67: =ROUND($J67*AI67, 'Initial Information'!$M$18) -> 0 | LJ67: =ROUND($J67*AN67, 'Initial Information'!$M$18) -> 0 | LO67: =ROUND($J67*AS67, 'Initial Information'!$M$18) -> 0 | LT67: =ROUND($J67*AX67, 'Initial Information'!$M$18) -> 0 | LY67: =ROUND($J67*BC67, 'Initial Information'!$M$18) -> 0 | MD67: =ROUND($J67*BH67, 'Initial Information'!$M$18) -> 0 | MY67: 0 | MZ67: =IF(ROW()<=43, IF(A67=FALSE, N(M67), ""), N(M67)) -> 0 | NA67: =IF(ROW()<=43, IF(A67=FALSE, N(O67), ""), N(O67)) -> 0 | NB67: =IF(N(R67)>0, C67, "") ->  | NC67: =IF(ROW()<=43, IF(A67=FALSE, N(R67), ""), N(R67)) -> 0 | ND67: =IF(ROW()<=43, IF(A67=FALSE, N(T67), ""), N(T67)) -> 0 | NE67: =IF(N(W67)>0, C67, "") ->  | NF67: =IF(ROW()<=43, IF(A67=FALSE, N(W67), ""), N(W67)) -> 0 | NG67: =IF(ROW()<=43, IF(A67=FALSE, N(Y67), ""), N(Y67)) -> 0 | NH67: =IF(N(AB67)>0, C67, "") ->  | NI67: =IF(ROW()<=43, IF(A67=FALSE, N(AB67), ""), N(AB67)) -> 0 | NJ67: =IF(ROW()<=43, IF(A67=FALSE, N(AD67), ""), N(AD67)) -> 0 | NK67: =IF(N(AG67)>0, C67, "") ->  | NL67: =IF(ROW()<=43, IF(A67=FALSE, N(AL67), ""), N(AL67)) -> 0 | NM67: =IF(ROW()<=43, IF(A67=FALSE, N(AN67), ""), N(AN67)) -> 0 | NN67: =IF(N(AL67)>0, C67, "") ->  | NO67: =IF(ROW()<=43, IF(A67=FALSE, N(AQ67), ""), N(AQ67)) -> 0 | NP67: =IF(ROW()<=43, IF(A67=FALSE, N(AS67), ""), N(AS67)) -> 0
B68: 23 | H68: 0 | J68: =IF(C68="Select from Options Below", 0.28, IFERROR(VLOOKUP(C68, DropDownMenus!N:O, 2, FALSE), 0.0125)) -> 0.0125 | O68: =ROUND($H68*(1+BO68)*M68,'Initial Information'!$M$18) -> 0 | T68: =ROUND($H68*(1+BO68)*(1+BT68)*R68,'Initial Information'!$M$18) -> 0 | Y68: =ROUND($H68*(1+BO68)*(1+BT68)*(1+BY68)*W68,'Initial Information'!$M$18) -> 0 | AD68: =ROUND($H68*(1+BO68)*(1+BT68)*(1+BY68)*(1+CD68)*AB68,'Initial Information'!$M$18) -> 0 | AI68: =ROUND($H68*(1+BO68)*(1+BT68)*(1+BY68)*(1+CD68)*(1+CI68)*AG68,'Initial Information'!$M$18) -> 0 | AN68: =ROUND($H68*(1+BO68)*(1+BT68)*(1+BY68)*(1+CD68)*(1+CI68)*(1+CN68)*AL68,'Initial Information'!$M$18) -> 0 | AS68: =ROUND($H68*(1+BO68)*(1+BT68)*(1+BY68)*(1+CD68)*(1+CI68)*(1+CN68)*(1+CS68)*AQ68,'Initial Information'!$M$18) -> 0 | AX68: =ROUND($H68*(1+BO68)*(1+BT68)*(1+BY68)*(1+CD68)*(1+CI68)*(1+CN68)*(1+CS68)*(1+CX68)*AV68,'Initial Information'!$M$18) -> 0 | BC68: =ROUND($H68*(1+BO68)*(1+BT68)*(1+BY68)*(1+CD68)*(1+CI68)*(1+CN68)*(1+CS68)*(1+CX68)*(1+DC68)*BA68,'Initial Information'!$M$18) -> 0 | BH68: =ROUND($H68*(1+BO68)*(1+BT68)*(1+BY68)*(1+CD68)*(1+CI68)*(1+CN68)*(1+CS68)*(1+CX68)*(1+DC68)*(1+DH68)*BF68,'Initial Information'!$M$18) -> 0 | BK68: 0 | BO68: 0 | BT68: 0.03 | BY68: 0.03 | CD68: 0.03 | CI68: 0.03 | CN68: 0.03 | CS68: 0.03 | CX68: 0.03 | DC68: 0.03 | DH68: 0.03 | DI68: 0 | DN68: 0 | DS68: 0 | DX68: 0 | EC68: 0 | EH68: 0 | EM68: 0 | ER68: 0 | EW68: 0 | FB68: 0 | FC68: 0 | FH68: 0 | FM68: 0 | FR68: 0 | FW68: 0 | GB68: 0 | GG68: 0 | GL68: 0 | GQ68: 0 | GV68: 0 | GW68: 0 | HB68: 0 | HG68: 0 | HL68: 0 | HQ68: 0 | HV68: 0 | IA68: 0 | IF68: 0 | IK68: 0 | IP68: 0 | IQ68: 0 | IV68: 0 | JA68: 0 | JF68: 0 | JK68: 0 | JP68: 0 | JU68: 0 | JZ68: 0 | KE68: 0 | KJ68: 0 | KK68: =ROUND($J68*O68, 'Initial Information'!$M$18) -> 0 | KP68: =ROUND($J68*T68, 'Initial Information'!$M$18) -> 0 | KU68: =ROUND($J68*Y68, 'Initial Information'!$M$18) -> 0 | KZ68: =ROUND($J68*AD68, 'Initial Information'!$M$18) -> 0 | LE68: =ROUND($J68*AI68, 'Initial Information'!$M$18) -> 0 | LJ68: =ROUND($J68*AN68, 'Initial Information'!$M$18) -> 0 | LO68: =ROUND($J68*AS68, 'Initial Information'!$M$18) -> 0 | LT68: =ROUND($J68*AX68, 'Initial Information'!$M$18) -> 0 | LY68: =ROUND($J68*BC68, 'Initial Information'!$M$18) -> 0 | MD68: =ROUND($J68*BH68, 'Initial Information'!$M$18) -> 0 | MY68: 0 | MZ68: 0 | NA68: 0 | NC68: 0 | ND68: 0 | NF68: 0 | NG68: 0 | NI68: 0 | NJ68: 0 | NL68: 0 | NM68: 0 | NO68: 0 | NP68: 0
B69: 24 | H69: 0 | J69: =IF(C69="Select from Options Below", 0.28, IFERROR(VLOOKUP(C69, DropDownMenus!N:O, 2, FALSE), 0.0125)) -> 0.0125 | O69: =ROUND($H69*(1+BO69)*M69,'Initial Information'!$M$18) -> 0 | T69: =ROUND($H69*(1+BO69)*(1+BT69)*R69,'Initial Information'!$M$18) -> 0 | Y69: =ROUND($H69*(1+BO69)*(1+BT69)*(1+BY69)*W69,'Initial Information'!$M$18) -> 0 | AD69: =ROUND($H69*(1+BO69)*(1+BT69)*(1+BY69)*(1+CD69)*AB69,'Initial Information'!$M$18) -> 0 | AI69: =ROUND($H69*(1+BO69)*(1+BT69)*(1+BY69)*(1+CD69)*(1+CI69)*AG69,'Initial Information'!$M$18) -> 0 | AN69: =ROUND($H69*(1+BO69)*(1+BT69)*(1+BY69)*(1+CD69)*(1+CI69)*(1+CN69)*AL69,'Initial Information'!$M$18) -> 0 | AS69: =ROUND($H69*(1+BO69)*(1+BT69)*(1+BY69)*(1+CD69)*(1+CI69)*(1+CN69)*(1+CS69)*AQ69,'Initial Information'!$M$18) -> 0 | AX69: =ROUND($H69*(1+BO69)*(1+BT69)*(1+BY69)*(1+CD69)*(1+CI69)*(1+CN69)*(1+CS69)*(1+CX69)*AV69,'Initial Information'!$M$18) -> 0 | BC69: =ROUND($H69*(1+BO69)*(1+BT69)*(1+BY69)*(1+CD69)*(1+CI69)*(1+CN69)*(1+CS69)*(1+CX69)*(1+DC69)*BA69,'Initial Information'!$M$18) -> 0 | BH69: =ROUND($H69*(1+BO69)*(1+BT69)*(1+BY69)*(1+CD69)*(1+CI69)*(1+CN69)*(1+CS69)*(1+CX69)*(1+DC69)*(1+DH69)*BF69,'Initial Information'!$M$18) -> 0 | BK69: 0 | BO69: 0 | BT69: 0.03 | BY69: 0.03 | CD69: 0.03 | CI69: 0.03 | CN69: 0.03 | CS69: 0.03 | CX69: 0.03 | DC69: 0.03 | DH69: 0.03 | DI69: 0 | DN69: 0 | DS69: 0 | DX69: 0 | EC69: 0 | EH69: 0 | EM69: 0 | ER69: 0 | EW69: 0 | FB69: 0 | FC69: 0 | FH69: 0 | FM69: 0 | FR69: 0 | FW69: 0 | GB69: 0 | GG69: 0 | GL69: 0 | GQ69: 0 | GV69: 0 | GW69: 0 | HB69: 0 | HG69: 0 | HL69: 0 | HQ69: 0 | HV69: 0 | IA69: 0 | IF69: 0 | IK69: 0 | IP69: 0 | IQ69: 0 | IV69: 0 | JA69: 0 | JF69: 0 | JK69: 0 | JP69: 0 | JU69: 0 | JZ69: 0 | KE69: 0 | KJ69: 0 | KK69: =ROUND($J69*O69, 'Initial Information'!$M$18) -> 0 | KP69: =ROUND($J69*T69, 'Initial Information'!$M$18) -> 0 | KU69: =ROUND($J69*Y69, 'Initial Information'!$M$18) -> 0 | KZ69: =ROUND($J69*AD69, 'Initial Information'!$M$18) -> 0 | LE69: =ROUND($J69*AI69, 'Initial Information'!$M$18) -> 0 | LJ69: =ROUND($J69*AN69, 'Initial Information'!$M$18) -> 0 | LO69: =ROUND($J69*AS69, 'Initial Information'!$M$18) -> 0 | LT69: =ROUND($J69*AX69, 'Initial Information'!$M$18) -> 0 | LY69: =ROUND($J69*BC69, 'Initial Information'!$M$18) -> 0 | MD69: =ROUND($J69*BH69, 'Initial Information'!$M$18) -> 0 | MY69: 0 | MZ69: 0 | NA69: 0 | NC69: 0 | ND69: 0 | NF69: 0 | NG69: 0 | NI69: 0 | NJ69: 0 | NL69: 0 | NM69: 0 | NO69: 0 | NP69: 0
B70: 25 | H70: 0 | J70: =IF(C70="Select from Options Below", 0.28, IFERROR(VLOOKUP(C70, DropDownMenus!N:O, 2, FALSE), 0.0125)) -> 0.0125 | O70: =ROUND($H70*(1+BO70)*M70,'Initial Information'!$M$18) -> 0 | T70: =ROUND($H70*(1+BO70)*(1+BT70)*R70,'Initial Information'!$M$18) -> 0 | Y70: =ROUND($H70*(1+BO70)*(1+BT70)*(1+BY70)*W70,'Initial Information'!$M$18) -> 0 | AD70: =ROUND($H70*(1+BO70)*(1+BT70)*(1+BY70)*(1+CD70)*AB70,'Initial Information'!$M$18) -> 0 | AI70: =ROUND($H70*(1+BO70)*(1+BT70)*(1+BY70)*(1+CD70)*(1+CI70)*AG70,'Initial Information'!$M$18) -> 0 | AN70: =ROUND($H70*(1+BO70)*(1+BT70)*(1+BY70)*(1+CD70)*(1+CI70)*(1+CN70)*AL70,'Initial Information'!$M$18) -> 0 | AS70: =ROUND($H70*(1+BO70)*(1+BT70)*(1+BY70)*(1+CD70)*(1+CI70)*(1+CN70)*(1+CS70)*AQ70,'Initial Information'!$M$18) -> 0 | AX70: =ROUND($H70*(1+BO70)*(1+BT70)*(1+BY70)*(1+CD70)*(1+CI70)*(1+CN70)*(1+CS70)*(1+CX70)*AV70,'Initial Information'!$M$18) -> 0 | BC70: =ROUND($H70*(1+BO70)*(1+BT70)*(1+BY70)*(1+CD70)*(1+CI70)*(1+CN70)*(1+CS70)*(1+CX70)*(1+DC70)*BA70,'Initial Information'!$M$18) -> 0 | BH70: =ROUND($H70*(1+BO70)*(1+BT70)*(1+BY70)*(1+CD70)*(1+CI70)*(1+CN70)*(1+CS70)*(1+CX70)*(1+DC70)*(1+DH70)*BF70,'Initial Information'!$M$18) -> 0 | BK70: 0 | BO70: 0 | BT70: 0.03 | BY70: 0.03 | CD70: 0.03 | CI70: 0.03 | CN70: 0.03 | CS70: 0.03 | CX70: 0.03 | DC70: 0.03 | DH70: 0.03 | DI70: 0 | DN70: 0 | DS70: 0 | DX70: 0 | EC70: 0 | EH70: 0 | EM70: 0 | ER70: 0 | EW70: 0 | FB70: 0 | FC70: 0 | FH70: 0 | FM70: 0 | FR70: 0 | FW70: 0 | GB70: 0 | GG70: 0 | GL70: 0 | GQ70: 0 | GV70: 0 | GW70: 0 | HB70: 0 | HG70: 0 | HL70: 0 | HQ70: 0 | HV70: 0 | IA70: 0 | IF70: 0 | IK70: 0 | IP70: 0 | IQ70: 0 | IV70: 0 | JA70: 0 | JF70: 0 | JK70: 0 | JP70: 0 | JU70: 0 | JZ70: 0 | KE70: 0 | KJ70: 0 | KK70: =ROUND($J70*O70, 'Initial Information'!$M$18) -> 0 | KP70: =ROUND($J70*T70, 'Initial Information'!$M$18) -> 0 | KU70: =ROUND($J70*Y70, 'Initial Information'!$M$18) -> 0 | KZ70: =ROUND($J70*AD70, 'Initial Information'!$M$18) -> 0 | LE70: =ROUND($J70*AI70, 'Initial Information'!$M$18) -> 0 | LJ70: =ROUND($J70*AN70, 'Initial Information'!$M$18) -> 0 | LO70: =ROUND($J70*AS70, 'Initial Information'!$M$18) -> 0 | LT70: =ROUND($J70*AX70, 'Initial Information'!$M$18) -> 0 | LY70: =ROUND($J70*BC70, 'Initial Information'!$M$18) -> 0 | MD70: =ROUND($J70*BH70, 'Initial Information'!$M$18) -> 0 | MY70: 0 | MZ70: 0 | NA70: 0 | NC70: 0 | ND70: 0 | NF70: 0 | NG70: 0 | NI70: 0 | NJ70: 0 | NL70: 0 | NM70: 0 | NO70: 0 | NP70: 0
B71: 26 | H71: 0 | J71: =IF(C71="Select from Options Below", 0.28, IFERROR(VLOOKUP(C71, DropDownMenus!N:O, 2, FALSE), 0.0125)) -> 0.0125 | O71: =ROUND($H71*(1+BO71)*M71,'Initial Information'!$M$18) -> 0 | T71: =ROUND($H71*(1+BO71)*(1+BT71)*R71,'Initial Information'!$M$18) -> 0 | Y71: =ROUND($H71*(1+BO71)*(1+BT71)*(1+BY71)*W71,'Initial Information'!$M$18) -> 0 | AD71: =ROUND($H71*(1+BO71)*(1+BT71)*(1+BY71)*(1+CD71)*AB71,'Initial Information'!$M$18) -> 0 | AI71: =ROUND($H71*(1+BO71)*(1+BT71)*(1+BY71)*(1+CD71)*(1+CI71)*AG71,'Initial Information'!$M$18) -> 0 | AN71: =ROUND($H71*(1+BO71)*(1+BT71)*(1+BY71)*(1+CD71)*(1+CI71)*(1+CN71)*AL71,'Initial Information'!$M$18) -> 0 | AS71: =ROUND($H71*(1+BO71)*(1+BT71)*(1+BY71)*(1+CD71)*(1+CI71)*(1+CN71)*(1+CS71)*AQ71,'Initial Information'!$M$18) -> 0 | AX71: =ROUND($H71*(1+BO71)*(1+BT71)*(1+BY71)*(1+CD71)*(1+CI71)*(1+CN71)*(1+CS71)*(1+CX71)*AV71,'Initial Information'!$M$18) -> 0 | BC71: =ROUND($H71*(1+BO71)*(1+BT71)*(1+BY71)*(1+CD71)*(1+CI71)*(1+CN71)*(1+CS71)*(1+CX71)*(1+DC71)*BA71,'Initial Information'!$M$18) -> 0 | BH71: =ROUND($H71*(1+BO71)*(1+BT71)*(1+BY71)*(1+CD71)*(1+CI71)*(1+CN71)*(1+CS71)*(1+CX71)*(1+DC71)*(1+DH71)*BF71,'Initial Information'!$M$18) -> 0 | BK71: 0 | BO71: 0 | BT71: 0.03 | BY71: 0.03 | CD71: 0.03 | CI71: 0.03 | CN71: 0.03 | CS71: 0.03 | CX71: 0.03 | DC71: 0.03 | DH71: 0.03 | DI71: 0 | DN71: 0 | DS71: 0 | DX71: 0 | EC71: 0 | EH71: 0 | EM71: 0 | ER71: 0 | EW71: 0 | FB71: 0 | FC71: 0 | FH71: 0 | FM71: 0 | FR71: 0 | FW71: 0 | GB71: 0 | GG71: 0 | GL71: 0 | GQ71: 0 | GV71: 0 | GW71: 0 | HB71: 0 | HG71: 0 | HL71: 0 | HQ71: 0 | HV71: 0 | IA71: 0 | IF71: 0 | IK71: 0 | IP71: 0 | IQ71: 0 | IV71: 0 | JA71: 0 | JF71: 0 | JK71: 0 | JP71: 0 | JU71: 0 | JZ71: 0 | KE71: 0 | KJ71: 0 | KK71: =ROUND($J71*O71, 'Initial Information'!$M$18) -> 0 | KP71: =ROUND($J71*T71, 'Initial Information'!$M$18) -> 0 | KU71: =ROUND($J71*Y71, 'Initial Information'!$M$18) -> 0 | KZ71: =ROUND($J71*AD71, 'Initial Information'!$M$18) -> 0 | LE71: =ROUND($J71*AI71, 'Initial Information'!$M$18) -> 0 | LJ71: =ROUND($J71*AN71, 'Initial Information'!$M$18) -> 0 | LO71: =ROUND($J71*AS71, 'Initial Information'!$M$18) -> 0 | LT71: =ROUND($J71*AX71, 'Initial Information'!$M$18) -> 0 | LY71: =ROUND($J71*BC71, 'Initial Information'!$M$18) -> 0 | MD71: =ROUND($J71*BH71, 'Initial Information'!$M$18) -> 0 | MY71: 0 | MZ71: 0 | NA71: 0 | NC71: 0 | ND71: 0 | NF71: 0 | NG71: 0 | NI71: 0 | NJ71: 0 | NL71: 0 | NM71: 0 | NO71: 0 | NP71: 0
B72: 27 | H72: =ROUND(F$72*173.3333,2) -> 0 | J72: =IF(C72="Select from Options Below", 0.28, IFERROR(VLOOKUP(C72, DropDownMenus!N:O, 2, FALSE), 0.0125)) -> 0.0125 | O72: =ROUND($H72*(1+BO72)*M72,'Initial Information'!$M$18) -> 0 | T72: =ROUND($H72*(1+BO72)*(1+BT72)*R72,'Initial Information'!$M$18) -> 0 | Y72: =ROUND($H72*(1+BO72)*(1+BT72)*(1+BY72)*W72,'Initial Information'!$M$18) -> 0 | AD72: =ROUND($H72*(1+BO72)*(1+BT72)*(1+BY72)*(1+CD72)*AB72,'Initial Information'!$M$18) -> 0 | AI72: =ROUND($H72*(1+BO72)*(1+BT72)*(1+BY72)*(1+CD72)*(1+CI72)*AG72,'Initial Information'!$M$18) -> 0 | AN72: =ROUND($H72*(1+BO72)*(1+BT72)*(1+BY72)*(1+CD72)*(1+CI72)*(1+CN72)*AL72,'Initial Information'!$M$18) -> 0 | AS72: =ROUND($H72*(1+BO72)*(1+BT72)*(1+BY72)*(1+CD72)*(1+CI72)*(1+CN72)*(1+CS72)*AQ72,'Initial Information'!$M$18) -> 0 | AX72: =ROUND($H72*(1+BO72)*(1+BT72)*(1+BY72)*(1+CD72)*(1+CI72)*(1+CN72)*(1+CS72)*(1+CX72)*AV72,'Initial Information'!$M$18) -> 0 | BC72: =ROUND($H72*(1+BO72)*(1+BT72)*(1+BY72)*(1+CD72)*(1+CI72)*(1+CN72)*(1+CS72)*(1+CX72)*(1+DC72)*BA72,'Initial Information'!$M$18) -> 0 | BH72: =ROUND($H72*(1+BO72)*(1+BT72)*(1+BY72)*(1+CD72)*(1+CI72)*(1+CN72)*(1+CS72)*(1+CX72)*(1+DC72)*(1+DH72)*BF72,'Initial Information'!$M$18) -> 0 | BK72: 0 | BO72: 0 | BT72: 0.03 | BY72: 0.03 | CD72: 0.03 | CI72: 0.03 | CN72: 0.03 | CS72: 0.03 | CX72: 0.03 | DC72: 0.03 | DH72: 0.03 | DI72: =ROUND((2080/12)*M72,2) -> 0 | DN72: =ROUND((2080/12)*R72,2) -> 0 | DS72: =ROUND((2080/12)*W72,2) -> 0 | DX72: =ROUND((2080/12)*AB72,2) -> 0 | EC72: =ROUND((2080/12)*AG72,2) -> 0 | EH72: =ROUND((2080/12)*BF72,2) -> 0 | EM72: =ROUND((2080/12)*AQ72,2) -> 0 | ER72: =ROUND((2080/12)*AV72,2) -> 0 | EW72: =ROUND((2080/12)*BA72,2) -> 0 | FB72: =ROUND((2080/12)*BF72,2) -> 0 | FC72: =ROUND((M72/12),3) -> 0 | FH72: =ROUND((R72/12),3) -> 0 | FM72: =ROUND((W72/12),3) -> 0 | FR72: =ROUND((AB72/12),3) -> 0 | FW72: =ROUND((AG72/12),3) -> 0 | GB72: =ROUND((AL72/12),3) -> 0 | GG72: =ROUND((AQ72/12),3) -> 0 | GL72: =ROUND((AV72/12),3) -> 0 | GQ72: =ROUND((BA72/12),3) -> 0 | GV72: =ROUND((BF72/12),3) -> 0 | GW72: 0 | HB72: 0 | HG72: 0 | HL72: 0 | HQ72: 0 | HV72: 0 | IA72: 0 | IF72: 0 | IK72: 0 | IP72: 0 | IQ72: =GW72*12 -> 0 | IV72: =HB72*12 -> 0 | JA72: =HG72*12 -> 0 | JF72: =HL72*12 -> 0 | JK72: =HQ72*12 -> 0 | JP72: =HV72*12 -> 0 | JU72: =IA72*12 -> 0 | JZ72: =IF72*12 -> 0 | KE72: =IK72*12 -> 0 | KJ72: =IP72*12 -> 0 | KK72: =ROUND($J72*O72, 'Initial Information'!$M$18) -> 0 | KP72: =ROUND($J72*T72, 'Initial Information'!$M$18) -> 0 | KU72: =ROUND($J72*Y72, 'Initial Information'!$M$18) -> 0 | KZ72: =ROUND($J72*AD72, 'Initial Information'!$M$18) -> 0 | LE72: =ROUND($J72*AI72, 'Initial Information'!$M$18) -> 0 | LJ72: =ROUND($J72*AN72, 'Initial Information'!$M$18) -> 0 | LO72: =ROUND($J72*AS72, 'Initial Information'!$M$18) -> 0 | LT72: =ROUND($J72*AX72, 'Initial Information'!$M$18) -> 0 | LY72: =ROUND($J72*BC72, 'Initial Information'!$M$18) -> 0 | MD72: =ROUND($J72*BH72, 'Initial Information'!$M$18) -> 0 | MY72: 0 | MZ72: 0 | NA72: 0 | NC72: 0 | ND72: 0 | NF72: 0 | NG72: 0 | NI72: 0 | NJ72: 0 | NL72: 0 | NM72: 0 | NO72: 0 | NP72: 0
B73: 28 | H73: =ROUND(F$73*173.3333,2) -> 0 | J73: =IF(C73="Select from Options Below", 0.28, IFERROR(VLOOKUP(C73, DropDownMenus!N:O, 2, FALSE), 0.0125)) -> 0.0125 | O73: =ROUND($H73*(1+BO73)*M73,'Initial Information'!$M$18) -> 0 | T73: =ROUND($H73*(1+BO73)*(1+BT73)*R73,'Initial Information'!$M$18) -> 0 | Y73: =ROUND($H73*(1+BO73)*(1+BT73)*(1+BY73)*W73,'Initial Information'!$M$18) -> 0 | AD73: =ROUND($H73*(1+BO73)*(1+BT73)*(1+BY73)*(1+CD73)*AB73,'Initial Information'!$M$18) -> 0 | AI73: =ROUND($H73*(1+BO73)*(1+BT73)*(1+BY73)*(1+CD73)*(1+CI73)*AG73,'Initial Information'!$M$18) -> 0 | AN73: =ROUND($H73*(1+BO73)*(1+BT73)*(1+BY73)*(1+CD73)*(1+CI73)*(1+CN73)*AL73,'Initial Information'!$M$18) -> 0 | AS73: =ROUND($H73*(1+BO73)*(1+BT73)*(1+BY73)*(1+CD73)*(1+CI73)*(1+CN73)*(1+CS73)*AQ73,'Initial Information'!$M$18) -> 0 | AX73: =ROUND($H73*(1+BO73)*(1+BT73)*(1+BY73)*(1+CD73)*(1+CI73)*(1+CN73)*(1+CS73)*(1+CX73)*AV73,'Initial Information'!$M$18) -> 0 | BC73: =ROUND($H73*(1+BO73)*(1+BT73)*(1+BY73)*(1+CD73)*(1+CI73)*(1+CN73)*(1+CS73)*(1+CX73)*(1+DC73)*BA73,'Initial Information'!$M$18) -> 0 | BH73: =ROUND($H73*(1+BO73)*(1+BT73)*(1+BY73)*(1+CD73)*(1+CI73)*(1+CN73)*(1+CS73)*(1+CX73)*(1+DC73)*(1+DH73)*BF73,'Initial Information'!$M$18) -> 0 | BK73: 0 | BO73: 0 | BT73: 0.03 | BY73: 0.03 | CD73: 0.03 | CI73: 0.03 | CN73: 0.03 | CS73: 0.03 | CX73: 0.03 | DC73: 0.03 | DH73: 0.03 | DI73: 0 | DN73: 0 | DS73: 0 | DX73: 0 | EC73: 0 | EH73: 0 | EM73: 0 | ER73: 0 | EW73: 0 | FB73: 0 | FC73: 0 | FH73: 0 | FM73: 0 | FR73: 0 | FW73: 0 | GB73: 0 | GG73: 0 | GL73: 0 | GQ73: 0 | GV73: 0 | GW73: 0 | HB73: 0 | HG73: 0 | HL73: 0 | HQ73: 0 | HV73: 0 | IA73: 0 | IF73: 0 | IK73: 0 | IP73: 0 | IQ73: 0 | IV73: 0 | JA73: 0 | JF73: 0 | JK73: 0 | JP73: 0 | JU73: 0 | JZ73: 0 | KE73: 0 | KJ73: 0 | KK73: =ROUND($J73*O73, 'Initial Information'!$M$18) -> 0 | KP73: =ROUND($J73*T73, 'Initial Information'!$M$18) -> 0 | KU73: =ROUND($J73*Y73, 'Initial Information'!$M$18) -> 0 | KZ73: =ROUND($J73*AD73, 'Initial Information'!$M$18) -> 0 | LE73: =ROUND($J73*AI73, 'Initial Information'!$M$18) -> 0 | LJ73: =ROUND($J73*AN73, 'Initial Information'!$M$18) -> 0 | LO73: =ROUND($J73*AS73, 'Initial Information'!$M$18) -> 0 | LT73: =ROUND($J73*AX73, 'Initial Information'!$M$18) -> 0 | LY73: =ROUND($J73*BC73, 'Initial Information'!$M$18) -> 0 | MD73: =ROUND($J73*BH73, 'Initial Information'!$M$18) -> 0 | MY73: 0 | MZ73: 0 | NA73: 0 | NC73: 0 | ND73: 0 | NF73: 0 | NG73: 0 | NI73: 0 | NJ73: 0 | NL73: 0 | NM73: 0 | NO73: 0 | NP73: 0
B74: 29 | H74: =ROUND(F$74*173.3333,2) -> 0 | J74: =IF(C74="Select from Options Below", 0.28, IFERROR(VLOOKUP(C74, DropDownMenus!N:O, 2, FALSE), 0.0125)) -> 0.0125 | O74: =ROUND($H74*(1+BO74)*M74,'Initial Information'!$M$18) -> 0 | T74: =ROUND($H74*(1+BO74)*(1+BT74)*R74,'Initial Information'!$M$18) -> 0 | Y74: =ROUND($H74*(1+BO74)*(1+BT74)*(1+BY74)*W74,'Initial Information'!$M$18) -> 0 | AD74: =ROUND($H74*(1+BO74)*(1+BT74)*(1+BY74)*(1+CD74)*AB74,'Initial Information'!$M$18) -> 0 | AI74: =ROUND($H74*(1+BO74)*(1+BT74)*(1+BY74)*(1+CD74)*(1+CI74)*AG74,'Initial Information'!$M$18) -> 0 | AN74: =ROUND($H74*(1+BO74)*(1+BT74)*(1+BY74)*(1+CD74)*(1+CI74)*(1+CN74)*AL74,'Initial Information'!$M$18) -> 0 | AS74: =ROUND($H74*(1+BO74)*(1+BT74)*(1+BY74)*(1+CD74)*(1+CI74)*(1+CN74)*(1+CS74)*AQ74,'Initial Information'!$M$18) -> 0 | AX74: =ROUND($H74*(1+BO74)*(1+BT74)*(1+BY74)*(1+CD74)*(1+CI74)*(1+CN74)*(1+CS74)*(1+CX74)*AV74,'Initial Information'!$M$18) -> 0 | BC74: =ROUND($H74*(1+BO74)*(1+BT74)*(1+BY74)*(1+CD74)*(1+CI74)*(1+CN74)*(1+CS74)*(1+CX74)*(1+DC74)*BA74,'Initial Information'!$M$18) -> 0 | BH74: =ROUND($H74*(1+BO74)*(1+BT74)*(1+BY74)*(1+CD74)*(1+CI74)*(1+CN74)*(1+CS74)*(1+CX74)*(1+DC74)*(1+DH74)*BF74,'Initial Information'!$M$18) -> 0 | BK74: 0 | BO74: 0 | BT74: 0.03 | BY74: 0.03 | CD74: 0.03 | CI74: 0.03 | CN74: 0.03 | CS74: 0.03 | CX74: 0.03 | DC74: 0.03 | DH74: 0.03 | DI74: 0 | DN74: 0 | DS74: 0 | DX74: 0 | EC74: 0 | EH74: 0 | EM74: 0 | ER74: 0 | EW74: 0 | FB74: 0 | FC74: 0 | FH74: 0 | FM74: 0 | FR74: 0 | FW74: 0 | GB74: 0 | GG74: 0 | GL74: 0 | GQ74: 0 | GV74: 0 | GW74: 0 | HB74: 0 | HG74: 0 | HL74: 0 | HQ74: 0 | HV74: 0 | IA74: 0 | IF74: 0 | IK74: 0 | IP74: 0 | IQ74: 0 | IV74: 0 | JA74: 0 | JF74: 0 | JK74: 0 | JP74: 0 | JU74: 0 | JZ74: 0 | KE74: 0 | KJ74: 0 | KK74: =ROUND($J74*O74, 'Initial Information'!$M$18) -> 0 | KP74: =ROUND($J74*T74, 'Initial Information'!$M$18) -> 0 | KU74: =ROUND($J74*Y74, 'Initial Information'!$M$18) -> 0 | KZ74: =ROUND($J74*AD74, 'Initial Information'!$M$18) -> 0 | LE74: =ROUND($J74*AI74, 'Initial Information'!$M$18) -> 0 | LJ74: =ROUND($J74*AN74, 'Initial Information'!$M$18) -> 0 | LO74: =ROUND($J74*AS74, 'Initial Information'!$M$18) -> 0 | LT74: =ROUND($J74*AX74, 'Initial Information'!$M$18) -> 0 | LY74: =ROUND($J74*BC74, 'Initial Information'!$M$18) -> 0 | MD74: =ROUND($J74*BH74, 'Initial Information'!$M$18) -> 0 | MY74: 0 | MZ74: 0 | NA74: 0 | NC74: 0 | ND74: 0 | NF74: 0 | NG74: 0 | NI74: 0 | NJ74: 0 | NL74: 0 | NM74: 0 | NO74: 0 | NP74: 0
B75: 30 | H75: =ROUND(F$75*173.3333,2) -> 0 | J75: =IF(C75="Select from Options Below", 0.28, IFERROR(VLOOKUP(C75, DropDownMenus!N:O, 2, FALSE), 0.0125)) -> 0.0125 | O75: =ROUND($H75*(1+BO75)*M75,'Initial Information'!$M$18) -> 0 | T75: =ROUND($H75*(1+BO75)*(1+BT75)*R75,'Initial Information'!$M$18) -> 0 | Y75: =ROUND($H75*(1+BO75)*(1+BT75)*(1+BY75)*W75,'Initial Information'!$M$18) -> 0 | AD75: =ROUND($H75*(1+BO75)*(1+BT75)*(1+BY75)*(1+CD75)*AB75,'Initial Information'!$M$18) -> 0 | AI75: =ROUND($H75*(1+BO75)*(1+BT75)*(1+BY75)*(1+CD75)*(1+CI75)*AG75,'Initial Information'!$M$18) -> 0 | AN75: =ROUND($H75*(1+BO75)*(1+BT75)*(1+BY75)*(1+CD75)*(1+CI75)*(1+CN75)*AL75,'Initial Information'!$M$18) -> 0 | AS75: =ROUND($H75*(1+BO75)*(1+BT75)*(1+BY75)*(1+CD75)*(1+CI75)*(1+CN75)*(1+CS75)*AQ75,'Initial Information'!$M$18) -> 0 | AX75: =ROUND($H75*(1+BO75)*(1+BT75)*(1+BY75)*(1+CD75)*(1+CI75)*(1+CN75)*(1+CS75)*(1+CX75)*AV75,'Initial Information'!$M$18) -> 0 | BC75: =ROUND($H75*(1+BO75)*(1+BT75)*(1+BY75)*(1+CD75)*(1+CI75)*(1+CN75)*(1+CS75)*(1+CX75)*(1+DC75)*BA75,'Initial Information'!$M$18) -> 0 | BH75: =ROUND($H75*(1+BO75)*(1+BT75)*(1+BY75)*(1+CD75)*(1+CI75)*(1+CN75)*(1+CS75)*(1+CX75)*(1+DC75)*(1+DH75)*BF75,'Initial Information'!$M$18) -> 0 | BK75: 0 | BO75: 0 | BT75: 0.03 | BY75: 0.03 | CD75: 0.03 | CI75: 0.03 | CN75: 0.03 | CS75: 0.03 | CX75: 0.03 | DC75: 0.03 | DH75: 0.03 | DI75: 0 | DN75: 0 | DS75: 0 | DX75: 0 | EC75: 0 | EH75: 0 | EM75: 0 | ER75: 0 | EW75: 0 | FB75: 0 | FC75: 0 | FH75: 0 | FM75: 0 | FR75: 0 | FW75: 0 | GB75: 0 | GG75: 0 | GL75: 0 | GQ75: 0 | GV75: 0 | GW75: 0 | HB75: 0 | HG75: 0 | HL75: 0 | HQ75: 0 | HV75: 0 | IA75: 0 | IF75: 0 | IK75: 0 | IP75: 0 | IQ75: 0 | IV75: 0 | JA75: 0 | JF75: 0 | JK75: 0 | JP75: 0 | JU75: 0 | JZ75: 0 | KE75: 0 | KJ75: 0 | KK75: =ROUND($J75*O75, 'Initial Information'!$M$18) -> 0 | KP75: =ROUND($J75*T75, 'Initial Information'!$M$18) -> 0 | KU75: =ROUND($J75*Y75, 'Initial Information'!$M$18) -> 0 | KZ75: =ROUND($J75*AD75, 'Initial Information'!$M$18) -> 0 | LE75: =ROUND($J75*AI75, 'Initial Information'!$M$18) -> 0 | LJ75: =ROUND($J75*AN75, 'Initial Information'!$M$18) -> 0 | LO75: =ROUND($J75*AS75, 'Initial Information'!$M$18) -> 0 | LT75: =ROUND($J75*AX75, 'Initial Information'!$M$18) -> 0 | LY75: =ROUND($J75*BC75, 'Initial Information'!$M$18) -> 0 | MD75: =ROUND($J75*BH75, 'Initial Information'!$M$18) -> 0 | MY75: 0 | MZ75: 0 | NA75: 0 | NC75: 0 | ND75: 0 | NF75: 0 | NG75: 0 | NI75: 0 | NJ75: 0 | NL75: 0 | NM75: 0 | NO75: 0 | NP75: 0
C77: TOTAL SALARIES AND WAGES | O77: =SUM(O24:O75) -> 10300 | T77: =SUM(T24:T75) -> 10609 | Y77: =SUM(Y24:Y75) -> 0 | AD77: =SUM(AD24:AD75) -> 0 | AI77: =SUM(AI24:AI75) -> 0 | AN77: =SUM(AN24:AN75) -> 0 | AS77: =SUM(AS24:AS75) -> 0 | AX77: =SUM(AX24:AX75) -> 0 | BC77: =SUM(BC24:BC75) -> 0 | BH77: =SUM(BH24:BH75) -> 0 | BK77: =SUM(O77:BH77) -> 20909 | MY77: 1 | NB77: 2 | NE77: 3 | NH77: 4 | NK77: 5 | NN77: 6
A79: For faculty compensation not budgeted in the Personnel section, please remember that the total compensation includes fringe costs. Fringe costs will always be taken out of a stipend when it goes through Payroll. Fringe is proportional to income received and not a flat rate. | NF79: =AB67 -> 0
A81: Intra-departmental consulting should be undertaken as a responsibility requiring no additional compensation beyond your Institutional Base Salary (IBS). Exception: In unusual cases where consultation crosses departmental lines and the work is in addition to regular responsibilities, any charges for such work representing additional compensation above IBS are allowable provided that such consulting arrangements are specifically provided for in the award or approved in writing by the awarding entity.
B86: FRINGE BENEFITS (automatically calculated from rates entered above in column J)
B87: 1 | C87: Senior Personnel | O87: =SUMPRODUCT(($A24:$A63=TRUE)*IF(ISNUMBER(KK24:KK63), KK24:KK63, 0)) -> 2884 | T87: =SUMPRODUCT(($A24:$A63=TRUE)*IF(ISNUMBER(KP24:KP63), KP24:KP63, 0)) -> 2971 | Y87: =SUMPRODUCT(($A24:$A63=TRUE)*IF(ISNUMBER(KU24:KU63), KU24:KU63, 0)) -> 0 | AD87: =SUMPRODUCT(($A24:$A63=TRUE)*IF(ISNUMBER(KZ24:KZ63), KZ24:KZ63, 0)) -> 0 | AI87: =SUMPRODUCT(($A24:$A63=TRUE)*IF(ISNUMBER(LE24:LE63), LE24:LE63, 0)) -> 0 | AN87: =SUMPRODUCT(($A24:$A63=TRUE)*IF(ISNUMBER(LJ24:LJ63), LJ24:LJ63, 0)) -> 0 | AS87: =SUMPRODUCT(($A24:$A63=TRUE)*IF(ISNUMBER(LO24:LO63), LO24:LO63, 0)) -> 0 | AX87: =SUMPRODUCT(($A24:$A63=TRUE)*IF(ISNUMBER(LT24:LT63), LT24:LT63, 0)) -> 0 | BC87: =SUMPRODUCT(($A24:$A63=TRUE)*IF(ISNUMBER(LY24:LY63), LY24:LY63, 0)) -> 0 | BH87: =SUMPRODUCT(($A24:$A63=TRUE)*IF(ISNUMBER(MD24:MD63), MD24:MD63, 0)) -> 0 | BK87: =SUM(O87:BH87) -> 5855
B88: 2 | C88: Other Personnel | O88: =SUM(KK24:KK75)-O87 -> 0 | T88: =SUM(KP24:KP75)-T87 -> 0 | Y88: =SUM(KU24:KU75)-Y87 -> 0 | AD88: =SUM(KZ24:KZ75)-AD87 -> 0 | AI88: =SUM(LE24:LE75)-AI87 -> 0 | AN88: =SUM(LJ24:LJ75)-AN87 -> 0 | AS88: =SUM(LO24:LO75)-AS87 -> 0 | AX88: =SUM(LT24:LT75)-AX87 -> 0 | BC88: =SUM(LY24:LY75)-BC87 -> 0 | BH88: =SUM(MD24:MD75)-BH87 -> 0 | BK88: =SUM(O88:BH88) -> 0
C90: TOTAL FRINGE BENEFITS | O90: =SUM(O87:O88) -> 2884 | T90: =SUM(T87:T88) -> 2971 | Y90: =SUM(Y87:Y88) -> 0 | AD90: =SUM(AD87:AD88) -> 0 | AI90: =SUM(AI87:AI88) -> 0 | AN90: =SUM(AN87:AN88) -> 0 | AS90: =SUM(AS87:AS88) -> 0 | AX90: =SUM(AX87:AX88) -> 0 | BC90: =SUM(BC87:BC88) -> 0 | BH90: =SUM(BH87:BH88) -> 0 | BK90: =SUM(O90:BH90) -> 5855
C92: TOTAL SALARIES, WAGES AND FRINGE BENEFITS | O92: =O90+O77 -> 13184 | T92: =T90+T77 -> 13580 | Y92: =Y90+Y77 -> 0 | AD92: =AD90+AD77 -> 0 | AI92: =AI90+AI77 -> 0 | AN92: =AN90+AN77 -> 0 | AS92: =AS90+AS77 -> 0 | AX92: =AX90+AX77 -> 0 | BC92: =BC90+BC77 -> 0 | BH92: =BH90+BH77 -> 0 | BK92: =SUM(O92:BH92) -> 26764
B95: PERMANENT EQUIPMENT (List item and dollar amount for each item EXCEEDING $5,000)
C96: Select Equipment Subcategory: | F96: Equipment Description
BK97: =SUM(O97:BH97) -> 0
BK98: =SUM(O98:BH98) -> 0
BK99: =SUM(O99:BH99) -> 0
BK100: =SUM(O100:BH100) -> 0
BK101: =SUM(O101:BH101) -> 0
BK102: =SUM(O102:BH102) -> 0
BK103: 0
BK104: =SUM(O104:BH104) -> 0
BK105: =SUM(O105:BH105) -> 0
BK106: =SUM(O106:BH106) -> 0
C108: TOTAL EQUIPMENT | O108: =SUM(O97:O106) -> 0 | T108: =SUM(T97:T106) -> 0 | Y108: =SUM(Y97:Y106) -> 0 | AD108: =SUM(AD97:AD106) -> 0 | AI108: =SUM(AI97:AI106) -> 0 | AN108: =SUM(AN97:AN106) -> 0 | AS108: =SUM(AS97:AS106) -> 0 | AX108: =SUM(AX97:AX106) -> 0 | BC108: =SUM(BC97:BC106) -> 0 | BH108: =SUM(BH97:BH106) -> 0 | BK108: =SUM(O108:BH108) -> 0
B111: TRAVEL
C112: ONLY TXST employees and students may be budgeted for travel in this section.
C113: Select Travel Subcategory: | F113: Travel Destination
BK114: =SUM(O114:BH114) -> 0
BK115: =SUM(O115:BH115) -> 0
BK116: =SUM(O116:BH116) -> 0
BK117: 0
BK118: 0
BK119: 0
BK120: 0
BK121: 0
BK122: 0
BK123: 0
BK124: 0
BK125: 0
BK126: =SUM(O126:BH126) -> 0
BK127: =SUM(O127:BH127) -> 0
BK128: =SUM(O128:BH128) -> 0
C130: TOTAL TRAVEL | O130: =SUM(O113:O128) -> 0 | T130: =SUM(T113:T128) -> 0 | Y130: =SUM(Y113:Y128) -> 0 | AD130: =SUM(AD113:AD128) -> 0 | AI130: =SUM(AI113:AI128) -> 0 | AN130: =SUM(AN113:AN128) -> 0 | AS130: =SUM(AS113:AS128) -> 0 | AX130: =SUM(AX113:AX128) -> 0 | BC130: =SUM(BC113:BC128) -> 0 | BH130: =SUM(BH113:BH128) -> 0 | BK130: =SUM(O130:BH130) -> 0
B133: PARTICIPANT SUPPORT COSTS Note about participants: Participants are defined as individuals who are not TXST employees who are receiving training from the costs in this section. No data is being collected from them. If data is being collected, then these individuals should be budgeted in the category 'Other Direct Costs,' in subcategory 'Other: IDC-relevant budget items' and described as Human Subjects.
C134: Select Participant Subcategory: | F134: Description
BK135: =SUM(O135:BH135) -> 0
BK136: 0
BK137: 0
BK138: 0
BK139: 0
BK140: 0
BK141: 0
BK142: 0
BK143: 0
BK144: 0
BK145: 0
BK146: 0
BK147: 0
BK148: 0
BK149: 0
C151: TOTAL PARTICIPANT SUPPORT COSTS | O151: =SUM(O135:O149) -> 0 | T151: =SUM(T135:T149) -> 0 | Y151: =SUM(Y135:Y149) -> 0 | AD151: =SUM(AD135:AD149) -> 0 | AI151: =SUM(AI135:AI149) -> 0 | AN151: =SUM(AN135:AN149) -> 0 | AS151: =SUM(AS135:AS149) -> 0 | AX151: =SUM(AX135:AX149) -> 0 | BC151: =SUM(BC135:BC149) -> 0 | BH151: =SUM(BH135:BH149) -> 0 | BK151: =SUM(O151:BH151) -> 0
F153: TOTAL NUMBER OF PARTICIPANTS IN EACH YEAR | BK153: =SUM(O153:BH153) -> 0
B156: OTHER DIRECT COSTS
B157: 1 | C157: Materials and Supplies
BK158: =SUM(O158:BH158) -> 0
BK159: =SUM(O159:BH159) -> 0
BK160: 0
BK161: 0
BK162: 0
BK163: 0
BK164: =SUM(O164:BH164) -> 0
BK165: 0
BK166: 0
BK167: 0
BK168: 0
BK169: 0
BK170: 0
BK171: 0
BK172: 0
B174: 2 | C174: Publication Costs / Documentation / Dissemination | BK174: 0
B176: 3 | C176: Consultant / Professional Services:
D177: Consultant #1: | BK177: =SUM(O177:BH177) -> 0
D178: Consultant #2: | BK178: =SUM(O178:BH178) -> 0
D179: Consultant #3: | BK179: 0
D180: Consultant #4: | BK180: 0
D181: Consultant #5: | BK181: 0
D182: Consultant #6: | BK182: 0
D183: Consultant #7: | BK183: 0
D184: Consultant #8: | BK184: 0
D185: Consultant #9: | BK185: 0
D186: Consultant #10: | BK186: 0
D187: Consultant #11: | BK187: 0
D188: Consultant #12: | BK188: 0
D189: Consultant #13: | BK189: =SUM(O189:BH189) -> 0
D190: Consultant #14: | BK190: 0
D191: Consultant #15: | BK191: 0
D192: Consultant #16: | BK192: 0
D193: Consultant #17: | BK193: 0
D194: Consultant #18: | BK194: 0
D195: Consultant #19: | BK195: 0
D196: Consultant #20: | BK196: 0
B198: 4 | C198: Computer Services | BK198: =SUM(O198:BH198) -> 0
B200: 5 | C200: Subawards: For each individual subaward, the maximum dollar amount that is included in the Indirect Cost Calculation is $25,000. Any funds exceeding $25,000 are not included in the calculation and should be included in the blue 'Non-IDC relevant portion' line.
C201: a) | D201: =_xlfn.CONCAT("Subaward #1: ", 'Initial Information'!E20) -> Subaward #1: Enter name of subaward institution #1
D202: IDC-relevant portion, first $25,000 | O202: =IF(Subawards!BR22 = 0, "", MIN(25000, Subawards!BR22)) ->  | T202: =IF(Subawards!BW22 = 0, "", MIN(25000 - SUM(O202), Subawards!BW22)) ->  | Y202: =IF(Subawards!CB22 = 0, "", MIN(25000 - SUM(O202:T202), Subawards!CB22)) ->  | AD202: =IF(Subawards!CG22 = 0, "", MIN(25000 - SUM(O202:Y202), Subawards!CG22)) ->  | AI202: =IF(Subawards!CL22 = 0, "", MIN(25000 - SUM(O202:AD202), Subawards!CL22)) ->  | AN202: =IF(Subawards!CQ22 = 0, "", MIN(25000 - SUM(O202:AI202), Subawards!CQ22)) ->  | AS202: =IF(Subawards!CV22 = 0, "", MIN(25000 - SUM($O202:AN202), Subawards!CV22)) ->  | AX202: =IF(Subawards!DA22 = 0, "", MIN(25000 - SUM($O202:AS202), Subawards!DA22)) ->  | BC202: =IF(Subawards!DF22 = 0, "", MIN(25000 - SUM($O202:AX202), Subawards!DF22)) ->  | BH202: =IF(Subawards!DK22 = 0, "", MIN(25000 - SUM($O202:BC202), Subawards!DK22)) ->  | BK202: =SUM(O202:BH202) -> 0
D203: Non-IDC relevant portion | O203: =IF(Subawards!BR22 = 0, "", Subawards!BR22 - O202) ->  | T203: =IF(Subawards!BW22 = 0, "", Subawards!BW22 - T202) ->  | Y203: =IF(Subawards!CB22 = 0, "", Subawards!CB22 - Y202) ->  | AD203: =IF(Subawards!CG22 = 0, "", Subawards!CG22 - AD202) ->  | AI203: =IF(Subawards!CL22 = 0, "", Subawards!CL22 - AI202) ->  | AN203: =IF(Subawards!CQ22 = 0, "", Subawards!CQ22 - AN202) ->  | AS203: =IF(Subawards!CV22 = 0, "", Subawards!CV22 - AS202) ->  | AX203: =IF(Subawards!DA22 = 0, "", Subawards!DA22 - AX202) ->  | BC203: =IF(Subawards!DF22 = 0, "", Subawards!DF22 - BC202) ->  | BH203: =IF(Subawards!DK22 = 0, "", Subawards!DK22 - BH202) ->  | BK203: =SUM(O203:BH203) -> 0
C205: b) | D205: =_xlfn.CONCAT("Subaward #2: ", 'Initial Information'!E21) -> Subaward #2: Enter name of subaward institution #2
D206: IDC-relevant portion, first $25,000 | O206: =IF(Subawards!BR26 = 0, "", MIN(25000, Subawards!BR26)) ->  | T206: =IF(Subawards!BW26 = 0, "", MIN(25000 - SUM(O206), Subawards!BW26)) ->  | Y206: =IF(Subawards!CB26 = 0, "", MIN(25000 - SUM(O206:T206), Subawards!CB26)) ->  | AD206: =IF(Subawards!CG26 = 0, "", MIN(25000 - SUM(O206:Y206), Subawards!CG26)) ->  | AI206: =IF(Subawards!CL26 = 0, "", MIN(25000 - SUM($O206:AD206), Subawards!CL26)) ->  | AN206: =IF(Subawards!CQ26 = 0, "", MIN(25000 - SUM($O206:AI206), Subawards!CQ26)) ->  | AS206: =IF(Subawards!CV26 = 0, "", MIN(25000 - SUM($O206:AN206), Subawards!CV26)) ->  | AX206: =IF(Subawards!DA26 = 0, "", MIN(25000 - SUM($O206:AS206), Subawards!DA26)) ->  | BC206: =IF(Subawards!DF26 = 0, "", MIN(25000 - SUM($O206:AX206), Subawards!DF26)) ->  | BH206: =IF(Subawards!DK26 = 0, "", MIN(25000 - SUM($O206:BC206), Subawards!DK26)) ->  | BK206: =SUM(O206:BH206) -> 0
D207: Non-IDC relevant portion | O207: =IF(Subawards!BR26 = 0, "", Subawards!BR26 - O206) ->  | T207: =IF(Subawards!BW26 = 0, "", Subawards!BW26 - T206) ->  | Y207: =IF(Subawards!CB26 = 0, "", Subawards!CB26 - Y206) ->  | AD207: =IF(Subawards!CG26 = 0, "", Subawards!CG26 - AD206) ->  | AI207: =IF(Subawards!CL26 = 0, "", Subawards!CL26 - AD206) ->  | AN207: =IF(Subawards!CQ26 = 0, "", Subawards!CQ26 - AI206) ->  | AS207: =IF(Subawards!CV26 = 0, "", Subawards!CV26 - AN206) ->  | AX207: =IF(Subawards!DA26 = 0, "", Subawards!DA26 - AS206) ->  | BC207: =IF(Subawards!DF26 = 0, "", Subawards!DF26 - AX206) ->  | BH207: =IF(Subawards!DK26 = 0, "", Subawards!DK26 - BC206) ->  | BK207: =SUM(O207:BH207) -> 0
C209: c) | D209: =_xlfn.CONCAT("Subaward #3: ", 'Initial Information'!E22) -> Subaward #3: Enter name of subaward institution #3
D210: IDC-relevant portion, first $25,000 | O210: =IF(Subawards!BR30 = 0, "", MIN(25000, Subawards!BR30)) ->  | T210: =IF(Subawards!BW30 = 0, "", MIN(25000 - SUM(O210), Subawards!BW30)) ->  | Y210: =IF(Subawards!CB30 = 0, "", MIN(25000 - SUM(O210:T210), Subawards!CB30)) ->  | AD210: =IF(Subawards!CG30 = 0, "", MIN(25000 - SUM(O210:Y210), Subawards!CG30)) ->  | AI210: =IF(Subawards!CL30 = 0, "", MIN(25000 - SUM($O210:AD210), Subawards!CL30)) ->  | AN210: =IF(Subawards!CQ30 = 0, "", MIN(25000 - SUM($O210:AI210), Subawards!CQ30)) ->  | AS210: =IF(Subawards!CV30 = 0, "", MIN(25000 - SUM($O210:AN210), Subawards!CV30)) ->  | AX210: =IF(Subawards!DA30 = 0, "", MIN(25000 - SUM($O210:AS210), Subawards!DA30)) ->  | BC210: =IF(Subawards!DF30 = 0, "", MIN(25000 - SUM($O210:AX210), Subawards!DF30)) ->  | BH210: =IF(Subawards!DK30 = 0, "", MIN(25000 - SUM($O210:BC210), Subawards!DK30)) ->  | BK210: =SUM(O210:BH210) -> 0
D211: Non-IDC relevant portion | O211: =IF(Subawards!BR30 = 0, "", Subawards!BR30 - O210) ->  | T211: =IF(Subawards!BW30 = 0, "", Subawards!BW30 - T210) ->  | Y211: =IF(Subawards!CB30 = 0, "", Subawards!CB30 - Y210) ->  | AD211: =IF(Subawards!CG30 = 0, "", Subawards!CG30 - AD210) ->  | AI211: =IF(Subawards!CL30 = 0, "", Subawards!CL30 - AI210) ->  | AN211: =IF(Subawards!CQ30 = 0, "", Subawards!CQ30 - AN210) ->  | AS211: =IF(Subawards!CV30 = 0, "", Subawards!CV30 - AS210) ->  | AX211: =IF(Subawards!DA30 = 0, "", Subawards!DA30 - AX210) ->  | BC211: =IF(Subawards!DF30 = 0, "", Subawards!DF30 - BC210) ->  | BH211: =IF(Subawards!DK30 = 0, "", Subawards!DK30 - BH210) ->  | BK211: =SUM(O211:BH211) -> 0
C213: d) | D213: =_xlfn.CONCAT("Subaward #4: ", 'Initial Information'!E23) -> Subaward #4: Enter name of subaward institution #4
D214: IDC-relevant portion, first $25,000 | O214: =IF(Subawards!BR34 = 0, "", MIN(25000, Subawards!BR34)) ->  | T214: =IF(Subawards!BW34 = 0, "", MIN(25000 - SUM(O214), Subawards!BW34)) ->  | Y214: =IF(Subawards!CB34 = 0, "", MIN(25000 - SUM(O214:T214), Subawards!CB34)) ->  | AD214: =IF(Subawards!CG34 = 0, "", MIN(25000 - SUM(O214:Y214), Subawards!CG34)) ->  | AI214: =IF(Subawards!CL34 = 0, "", MIN(25000 - SUM($O214:AD214), Subawards!CL34)) ->  | AN214: =IF(Subawards!CQ34 = 0, "", MIN(25000 - SUM($O214:AI214), Subawards!CQ34)) ->  | AS214: =IF(Subawards!CV34 = 0, "", MIN(25000 - SUM($O214:AN214), Subawards!CV34)) ->  | AX214: =IF(Subawards!DA34 = 0, "", MIN(25000 - SUM($O214:AS214), Subawards!DA34)) ->  | BC214: =IF(Subawards!DF34 = 0, "", MIN(25000 - SUM($O214:AX214), Subawards!DF34)) ->  | BH214: =IF(Subawards!DK34 = 0, "", MIN(25000 - SUM($O214:BC214), Subawards!DK34)) ->  | BK214: =SUM(O214:BH214) -> 0
D215: Non-IDC relevant portion | O215: =IF(Subawards!BR34 = 0, "", Subawards!BR34 - O214) ->  | T215: =IF(Subawards!BW34 = 0, "", Subawards!BW34 - T214) ->  | Y215: =IF(Subawards!CB34 = 0, "", Subawards!CB34 - Y214) ->  | AD215: =IF(Subawards!CG34 = 0, "", Subawards!CG34 - AD214) ->  | AI215: =IF(Subawards!CL34 = 0, "", Subawards!CL34 - AI214) ->  | AN215: =IF(Subawards!CQ34 = 0, "", Subawards!CQ34 - AN214) ->  | AS215: =IF(Subawards!CV34 = 0, "", Subawards!CV34 - AS214) ->  | AX215: =IF(Subawards!DA34 = 0, "", Subawards!DA34 - AX214) ->  | BC215: =IF(Subawards!DF34 = 0, "", Subawards!DF34 - BC214) ->  | BH215: =IF(Subawards!DK34 = 0, "", Subawards!DK34 - BH214) ->  | BK215: =SUM(O215:BH215) -> 0
C217: e) | D217: =_xlfn.CONCAT("Subaward #5: ", 'Initial Information'!E24) -> Subaward #5: Enter name of subaward institution #5
D218: IDC-relevant portion, first $25,000 | O218: =IF(Subawards!BR38 = 0, "", MIN(25000, Subawards!BR38)) ->  | T218: =IF(Subawards!BW38 = 0, "", MIN(25000 - SUM(O218), Subawards!BW38)) ->  | Y218: =IF(Subawards!CB38 = 0, "", MIN(25000 - SUM(O218:T218), Subawards!CB38)) ->  | AD218: =IF(Subawards!CG38 = 0, "", MIN(25000 - SUM(O218:Y218), Subawards!CG38)) ->  | AI218: =IF(Subawards!CL38 = 0, "", MIN(25000 - SUM($O218:AD218), Subawards!CL38)) ->  | AN218: =IF(Subawards!CQ38 = 0, "", MIN(25000 - SUM($O218:AI218), Subawards!CQ38)) ->  | AS218: =IF(Subawards!CV38 = 0, "", MIN(25000 - SUM($O218:AN218), Subawards!CV38)) ->  | AX218: =IF(Subawards!DA38 = 0, "", MIN(25000 - SUM($O218:AS218), Subawards!DA38)) ->  | BC218: =IF(Subawards!DF38 = 0, "", MIN(25000 - SUM($O218:AX218), Subawards!DF38)) ->  | BH218: =IF(Subawards!DK38 = 0, "", MIN(25000 - SUM($O218:BC218), Subawards!DK38)) ->  | BK218: =SUM(O218:BH218) -> 0
D219: Non-IDC relevant portion | O219: =IF(Subawards!BR38 = 0, "", Subawards!BR38 - O218) ->  | T219: =IF(Subawards!BW38 = 0, "", Subawards!BW38 - T218) ->  | Y219: =IF(Subawards!CB38 = 0, "", Subawards!CB38 - Y218) ->  | AD219: =IF(Subawards!CG38 = 0, "", Subawards!CG38 - AD218) ->  | AI219: =IF(Subawards!CL38 = 0, "", Subawards!CL38 - AI218) ->  | AN219: =IF(Subawards!CQ38 = 0, "", Subawards!CQ38 - AN218) ->  | AS219: =IF(Subawards!CV38 = 0, "", Subawards!CV38 - AS218) ->  | AX219: =IF(Subawards!DA38 = 0, "", Subawards!DA38 - AX218) ->  | BC219: =IF(Subawards!DF38 = 0, "", Subawards!DF38 - BC218) ->  | BH219: =IF(Subawards!DK38 = 0, "", Subawards!DK38 - BH218) ->  | BK219: =SUM(O219:BH219) -> 0
C221: f) | D221: =_xlfn.CONCAT("Subaward #6: ", 'Initial Information'!G20) -> Subaward #6: Enter name of subaward institution #6
D222: IDC-relevant portion, first $25,000 | O222: =IF(Subawards!BR42 = 0, "", MIN(25000, Subawards!BR42)) ->  | T222: =IF(Subawards!BW42 = 0, "", MIN(25000 - SUM(O222), Subawards!BW42)) ->  | Y222: =IF(Subawards!CB42 = 0, "", MIN(25000 - SUM(O222:T222), Subawards!CB42)) ->  | AD222: =IF(Subawards!CG42 = 0, "", MIN(25000 - SUM(O222:Y222), Subawards!CG42)) ->  | AI222: =IF(Subawards!CL42 = 0, "", MIN(25000 - SUM($O222:AD222), Subawards!CL42)) ->  | AN222: =IF(Subawards!CQ42 = 0, "", MIN(25000 - SUM($O222:AI222), Subawards!CQ42)) ->  | AS222: =IF(Subawards!CV42 = 0, "", MIN(25000 - SUM($O222:AN222), Subawards!CV42)) ->  | AX222: =IF(Subawards!DA42 = 0, "", MIN(25000 - SUM($O222:AS222), Subawards!DA42)) ->  | BC222: =IF(Subawards!DF42 = 0, "", MIN(25000 - SUM($O222:AX222), Subawards!DF42)) ->  | BH222: =IF(Subawards!DK42 = 0, "", MIN(25000 - SUM($O222:BC222), Subawards!DK42)) ->  | BK222: =SUM(O222:BH222) -> 0
D223: Non-IDC relevant portion | O223: =IF(Subawards!BR42 = 0, "", Subawards!BR42 - O222) ->  | T223: =IF(Subawards!BW42 = 0, "", Subawards!BW42 - T222) ->  | Y223: =IF(Subawards!CB42 = 0, "", Subawards!CB42 - Y222) ->  | AD223: =IF(Subawards!CG42 = 0, "", Subawards!CG42 - AD222) ->  | AI223: =IF(Subawards!CL42 = 0, "", Subawards!CL42 - AI222) ->  | AN223: =IF(Subawards!CQ42 = 0, "", Subawards!CQ42 - AN222) ->  | AS223: =IF(Subawards!CV42 = 0, "", Subawards!CV42 - AS222) ->  | AX223: =IF(Subawards!DA42 = 0, "", Subawards!DA42 - AX222) ->  | BC223: =IF(Subawards!DF42 = 0, "", Subawards!DF42 - BC222) ->  | BH223: =IF(Subawards!DK42 = 0, "", Subawards!DK42 - BH222) ->  | BK223: =SUM(O223:BH223) -> 0
C225: g) | D225: =_xlfn.CONCAT("Subaward #7: ", 'Initial Information'!G21) -> Subaward #7: Enter name of subaward institution #7
D226: IDC-relevant portion, first $25,000 | O226: =IF(Subawards!BR46 = 0, "", MIN(25000, Subawards!BR46)) ->  | T226: =IF(Subawards!BW46 = 0, "", MIN(25000 - SUM(O226), Subawards!BW46)) ->  | Y226: =IF(Subawards!CB46 = 0, "", MIN(25000 - SUM(O226:T226), Subawards!CB46)) ->  | AD226: =IF(Subawards!CG46 = 0, "", MIN(25000 - SUM(O226:Y226), Subawards!CG46)) ->  | AI226: =IF(Subawards!CL46 = 0, "", MIN(25000 - SUM($O226:AD226), Subawards!CL46)) ->  | AN226: =IF(Subawards!CQ46 = 0, "", MIN(25000 - SUM($O226:AI226), Subawards!CQ46)) ->  | AS226: =IF(Subawards!CV46 = 0, "", MIN(25000 - SUM($O226:AN226), Subawards!CV46)) ->  | AX226: =IF(Subawards!DA46 = 0, "", MIN(25000 - SUM($O226:AS226), Subawards!DA46)) ->  | BC226: =IF(Subawards!DF46 = 0, "", MIN(25000 - SUM($O226:AX226), Subawards!DF46)) ->  | BH226: =IF(Subawards!DK46 = 0, "", MIN(25000 - SUM($O226:BC226), Subawards!DK46)) ->  | BK226: =SUM(O226:BH226) -> 0
D227: Non-IDC relevant portion | O227: =IF(Subawards!BR46 = 0, "", Subawards!BR46 - O226) ->  | T227: =IF(Subawards!BW46 = 0, "", Subawards!BW46 - T226) ->  | Y227: =IF(Subawards!CB46 = 0, "", Subawards!CB46 - Y226) ->  | AD227: =IF(Subawards!CG46 = 0, "", Subawards!CG46 - AD226) ->  | AI227: =IF(Subawards!CL46 = 0, "", Subawards!CL46 - AI226) ->  | AN227: =IF(Subawards!CQ46 = 0, "", Subawards!CQ46 - AN226) ->  | AS227: =IF(Subawards!CV46 = 0, "", Subawards!CV46 - AS226) ->  | AX227: =IF(Subawards!DA46 = 0, "", Subawards!DA46 - AX226) ->  | BC227: =IF(Subawards!DF46 = 0, "", Subawards!DF46 - BC226) ->  | BH227: =IF(Subawards!DK46 = 0, "", Subawards!DK46 - BH226) ->  | BK227: =SUM(O227:BH227) -> 0
C229: h) | D229: =_xlfn.CONCAT("Subaward #8: ", 'Initial Information'!G22) -> Subaward #8: Enter name of subaward institution #8
D230: IDC-relevant portion, first $25,000 | O230: =IF(Subawards!BR50 = 0, "", MIN(25000, Subawards!BR50)) ->  | T230: =IF(Subawards!BW50 = 0, "", MIN(25000 - SUM(O230), Subawards!BW50)) ->  | Y230: =IF(Subawards!CB50 = 0, "", MIN(25000 - SUM(O230:T230), Subawards!CB50)) ->  | AD230: =IF(Subawards!CG50 = 0, "", MIN(25000 - SUM(O230:Y230), Subawards!CG50)) ->  | AI230: =IF(Subawards!CL50 = 0, "", MIN(25000 - SUM($O230:AD230), Subawards!CL50)) ->  | AN230: =IF(Subawards!CQ50 = 0, "", MIN(25000 - SUM($O230:AI230), Subawards!CQ50)) ->  | AS230: =IF(Subawards!CV50 = 0, "", MIN(25000 - SUM($O230:AN230), Subawards!CV50)) ->  | AX230: =IF(Subawards!DA50 = 0, "", MIN(25000 - SUM($O230:AS230), Subawards!DA50)) ->  | BC230: =IF(Subawards!DF50 = 0, "", MIN(25000 - SUM($O230:AX230), Subawards!DF50)) ->  | BH230: =IF(Subawards!DK50 = 0, "", MIN(25000 - SUM($O230:BC230), Subawards!DK50)) ->  | BK230: =SUM(O230:BH230) -> 0
D231: Non-IDC relevant portion | O231: =IF(Subawards!BR50 = 0, "", Subawards!BR50 - O230) ->  | T231: =IF(Subawards!BW50 = 0, "", Subawards!BW50 - T230) ->  | Y231: =IF(Subawards!CB50 = 0, "", Subawards!CB50 - Y230) ->  | AD231: =IF(Subawards!CG50 = 0, "", Subawards!CG50 - AD230) ->  | AI231: =IF(Subawards!CL50 = 0, "", Subawards!CL50 - AI230) ->  | AN231: =IF(Subawards!CQ50 = 0, "", Subawards!CQ50 - AN230) ->  | AS231: =IF(Subawards!CV50 = 0, "", Subawards!CV50 - AS230) ->  | AX231: =IF(Subawards!DA50 = 0, "", Subawards!DA50 - AX230) ->  | BC231: =IF(Subawards!DF50 = 0, "", Subawards!DF50 - BC230) ->  | BH231: =IF(Subawards!DK50 = 0, "", Subawards!DK50 - BH230) ->  | BK231: =SUM(O231:BH231) -> 0
C233: i) | D233: =_xlfn.CONCAT("Subaward #9: ", 'Initial Information'!G23) -> Subaward #9: Enter name of subaward institution #9
D234: IDC-relevant portion, first $25,000 | O234: =IF(Subawards!BR54 = 0, "", MIN(25000, Subawards!BR54)) ->  | T234: =IF(Subawards!BW54 = 0, "", MIN(25000 - SUM(O234), Subawards!BW54)) ->  | Y234: =IF(Subawards!CB54 = 0, "", MIN(25000 - SUM(O234:T234), Subawards!CB54)) ->  | AD234: =IF(Subawards!CG54 = 0, "", MIN(25000 - SUM(O234:Y234), Subawards!CG54)) ->  | AI234: =IF(Subawards!CL54 = 0, "", MIN(25000 - SUM($O234:AD234), Subawards!CL54)) ->  | AN234: =IF(Subawards!CQ54 = 0, "", MIN(25000 - SUM($O234:AI234), Subawards!CQ54)) ->  | AS234: =IF(Subawards!CV54 = 0, "", MIN(25000 - SUM($O234:AN234), Subawards!CV54)) ->  | AX234: =IF(Subawards!DA54 = 0, "", MIN(25000 - SUM($O234:AS234), Subawards!DA54)) ->  | BC234: =IF(Subawards!DF54 = 0, "", MIN(25000 - SUM($O234:AX234), Subawards!DF54)) ->  | BH234: =IF(Subawards!DK54 = 0, "", MIN(25000 - SUM($O234:BC234), Subawards!DK54)) ->  | BK234: =SUM(O234:BH234) -> 0
D235: Non-IDC relevant portion | O235: =IF(Subawards!BR54 = 0, "", Subawards!BR54 - O234) ->  | T235: =IF(Subawards!BW54 = 0, "", Subawards!BW54 - T234) ->  | Y235: =IF(Subawards!CB54 = 0, "", Subawards!CB54 - Y234) ->  | AD235: =IF(Subawards!CG54 = 0, "", Subawards!CG54 - AD234) ->  | AI235: =IF(Subawards!CL54 = 0, "", Subawards!CL54 - AI234) ->  | AN235: =IF(Subawards!CQ54 = 0, "", Subawards!CQ54 - AN234) ->  | AS235: =IF(Subawards!CV54 = 0, "", Subawards!CV54 - AS234) ->  | AX235: =IF(Subawards!DA54 = 0, "", Subawards!DA54 - AX234) ->  | BC235: =IF(Subawards!DF54 = 0, "", Subawards!DF54 - BC234) ->  | BH235: =IF(Subawards!DK54 = 0, "", Subawards!DK54 - BH234) ->  | BK235: =SUM(O235:BH235) -> 0
C237: j) | D237: =_xlfn.CONCAT("Subaward #10: ", 'Initial Information'!G24) -> Subaward #10: Enter name of subaward institution #10
D238: IDC-relevant portion, first $25,000 | O238: =IF(Subawards!BR58 = 0, "", MIN(25000, Subawards!BR58)) ->  | T238: =IF(Subawards!BW58 = 0, "", MIN(25000 - SUM(O238), Subawards!BW58)) ->  | Y238: =IF(Subawards!CB58 = 0, "", MIN(25000 - SUM(O238:T238), Subawards!CB58)) ->  | AD238: =IF(Subawards!CG58 = 0, "", MIN(25000 - SUM(O238:Y238), Subawards!CG58)) ->  | AI238: =IF(Subawards!CL58 = 0, "", MIN(25000 - SUM($O238:AD238), Subawards!CL58)) ->  | AN238: =IF(Subawards!CQ58 = 0, "", MIN(25000 - SUM($O238:AI238), Subawards!CQ58)) ->  | AS238: =IF(Subawards!CV58 = 0, "", MIN(25000 - SUM($O238:AN238), Subawards!CV58)) ->  | AX238: =IF(Subawards!DA58 = 0, "", MIN(25000 - SUM($O238:AS238), Subawards!DA58)) ->  | BC238: =IF(Subawards!DF58 = 0, "", MIN(25000 - SUM($O238:AX238), Subawards!DF58)) ->  | BH238: =IF(Subawards!DK58 = 0, "", MIN(25000 - SUM($O238:BC238), Subawards!DK58)) ->  | BK238: =SUM(O238:BH238) -> 0
D239: Non-IDC relevant portion | O239: =IF(Subawards!BR58 = 0, "", Subawards!BR58 - O238) ->  | T239: =IF(Subawards!BW58 = 0, "", Subawards!BW58 - T238) ->  | Y239: =IF(Subawards!CB58 = 0, "", Subawards!CB58 - Y238) ->  | AD239: =IF(Subawards!CG58 = 0, "", Subawards!CG58 - AD238) ->  | AI239: =IF(Subawards!CL58 = 0, "", Subawards!CL58 - AI238) ->  | AN239: =IF(Subawards!CQ58 = 0, "", Subawards!CQ58 - AN238) ->  | AS239: =IF(Subawards!CV58 = 0, "", Subawards!CV58 - AS238) ->  | AX239: =IF(Subawards!DA58 = 0, "", Subawards!DA58 - AX238) ->  | BC239: =IF(Subawards!DF58 = 0, "", Subawards!DF58 - BC238) ->  | BH239: =IF(Subawards!DK58 = 0, "", Subawards!DK58 - BH238) ->  | BK239: =SUM(O239:BH239) -> 0
B241: 6 | C241: Tuition, Fellowship, Scholarship | F241: Description
BK242: =SUM(O242:BH242) -> 0
BK243: =SUM(O243:BH243) -> 0
BK244: =SUM(O244:BH244) -> 0
... 52 more rows

Sheet NSPIRES (hidden)
A1: Proposal: | B1: ='Initial Information'!E3 -> title here
A3: Budget
C4: Budget Period: | D4: 1 | I4: 2 | N4: 3 | S4: 4 | X4: 5 | Z4: Total
C5: Start Date | D5: ='DetailedBudget---TXST'!M20 -> 2026-09-01 | I5: ='DetailedBudget---TXST'!R20 -> 2027-09-01 | N5: ='DetailedBudget---TXST'!W20 -> 2028-09-01 | S5: ='DetailedBudget---TXST'!AB20 -> 2029-09-01 | X5: ='DetailedBudget---TXST'!AG20 -> 2030-09-01
C6: End Date | D6: ='DetailedBudget---TXST'!O20 -> 2027-08-31 | I6: ='DetailedBudget---TXST'!T20 -> 2028-08-31 | N6: ='DetailedBudget---TXST'!Y20 -> 2029-08-31 | S6: ='DetailedBudget---TXST'!AD20 -> 2030-08-31 | X6: ='DetailedBudget---TXST'!AI20 -> 2031-08-31
A8: A. | B8: Senior/Key Person | Z8: =SUM(D8:X8) -> 0
A9: B. | B9: Other Personnel | Z9: =SUM(D9:X9) -> 0
C11: Total Salary and Wages (A+B) | D11: =D8+D9 -> 0 | I11: =I8+I9 -> 0 | N11: =N8+N9 -> 0 | S11: =S8+S9 -> 0 | X11: =X8+X9 -> 0 | Z11: =SUM(D11:X11) -> 0
A14: C. | B14: Equipment Description | Z14: =SUM(D14:X14) -> 0
A15: D. | B15: Travel | Z15: =SUM(D15:X15) -> 0
A16: E. | B16: Participant/Trainee Support Costs | Z16: =SUM(D16:X16) -> 0
A17: F. | B17: Other Direct Costs | Z17: =SUM(D17:X17) -> 0
B18: G. | C18: Direct Costs (A through F) | D18: =SUM(D14:D17) -> 0 | E18: 0 | F18: 0 | G18: 0 | H18: 0 | I18: 0 | J18: 0 | K18: 0 | L18: 0 | M18: 0 | N18: 0 | O18: 0 | P18: 0 | Q18: 0 | R18: 0 | S18: 0 | T18: 0 | U18: 0 | V18: 0 | W18: 0 | X18: 0 | Z18: =SUM(Z14:Z17) -> 0
A21: H. | B21: Indirect Costs | Z21: =SUM(D21:X21) -> 0
B22: I. | C22: Total Direct and Indirect Costs (G+H) | D22: =D18+D21 -> 0 | I22: =I18+I21 -> 0 | N22: =N18+N21 -> 0 | S22: =S18+S21 -> 0 | X22: =X18+X21 -> 0 | Z22: =SUM(D22:X22) -> 0
A24: J. | B24: Fee
A26: K. | B26: Budget Total (I+J) | D26: =D22+D24 -> 0 | I26: =I22+I24 -> 0 | N26: =N22+N24 -> 0 | S26: =S22+S24 -> 0 | X26: =X22+X24 -> 0 | Z26: =SUM(D26:X26) -> 0

Sheet R&R Budget conversion
A1: RESEARCH & RELATED BUDGET (TOTAL FED + NON-FED) - BUDGET PERIOD 1 | P1: RESEARCH & RELATED BUDGET (TOTAL FED + NON-FED) - BUDGET PERIOD 2 | AE1: RESEARCH & RELATED BUDGET (TOTAL FED + NON-FED) - BUDGET PERIOD 3 | AT1: RESEARCH & RELATED BUDGET (TOTAL FED + NON-FED) - BUDGET PERIOD 4 | BI1: RESEARCH & RELATED BUDGET (TOTAL FED + NON-FED) - BUDGET PERIOD 5
A3: UEI: | B3: HS5HWWK1AAU5 | G3: Enter name of organization: | H3: Texas State University | P3: UEI: | Q3: HS5HWWK1AAU5 | V3: Enter name of organization: | W3: Texas State University | AE3: UEI: | AF3: HS5HWWK1AAU5 | AK3: Enter name of organization: | AL3: Texas State University | AT3: UEI: | AU3: HS5HWWK1AAU5 | AZ3: Enter name of organization: | BA3: Texas State University | BI3: UEI: | BJ3: HS5HWWK1AAU5 | BO3: Enter name of organization: | BP3: Texas State University
A5: Budget Type: | F5: Budget Period: | H5: Start Date: | I5: ='DetailedBudget---TXST'!M20 -> 2026-09-01 | J5: End Date: | K5: ='DetailedBudget---TXST'!O20 -> 2027-08-31 | P5: Budget Type: | Q5: =B5 -> 0 | V5: Budget Period - | W5: Start Date: | X5: ='DetailedBudget---TXST'!R20 -> 2027-09-01 | Y5: End Date: | Z5: ='DetailedBudget---TXST'!T20 -> 2028-08-31 | AE5: Budget Type: | AF5: =Q5 -> 0 | AK5: Budget Period - | AL5: Start Date: | AM5: ='DetailedBudget---TXST'!W20 -> 2028-09-01 | AN5: End Date: | AO5: ='DetailedBudget---TXST'!Y20 -> 2029-08-31 | AT5: Budget Type: | AU5: =AF5 -> 0 | AZ5: Budget Period - | BA5: Start Date: | BB5: ='DetailedBudget---TXST'!AB20 -> 2029-09-01 | BC5: End Date: | BD5: ='DetailedBudget---TXST'!AD20 -> 2030-08-31 | BI5: Budget Type: | BJ5: =AU5 -> 0 | BO5: Budget Period - | BP5: Start Date: | BQ5: ='DetailedBudget---TXST'!AG20 -> 2030-09-01 | BR5: End Date: | BS5: ='DetailedBudget---TXST'!AI20 -> 2031-08-31
A7: A. SENIOR/KEY PERSON | P7: A. SENIOR/KEY PERSON | AE7: A. SENIOR/KEY PERSON | AT7: A. SENIOR/KEY PERSON | BI7: A. SENIOR/KEY PERSON
A9: Prefix | C9: Name | F9: Suffix | P9: Prefix | R9: Name | U9: Suffix | AE9: Prefix | AG9: Name | AJ9: Suffix | AT9: Prefix | AV9: Name | AY9: Suffix | BI9: Prefix | BK9: Name | BN9: Suffix
C10: ='DetailedBudget---TXST'!$F24 -> Viktor Frank | R10: ='DetailedBudget---TXST'!$F24 -> Viktor Frank | AG10: ='DetailedBudget---TXST'!$F24 -> Viktor Frank | AV10: ='DetailedBudget---TXST'!$F24 -> Viktor Frank | BK10: ='DetailedBudget---TXST'!$F24 -> Viktor Frank
A12: Project Role | P12: Project Role | AE12: Project Role | AT12: Project Role | BI12: Project Role
A13: PD/PI | P13: PD/PI | AE13: PD/PI | AT13: PD/PI | BI13: PD/PI
A15: Base Salary | B15: 0 | D15: Cal/Acad./Summer | H15: Req. Salary | I15: Fringe | K15: Total (Sal & Fringe) | L15: Federal | M15: Non-Federal | P15: Base Salary | Q15: 0 | S15: Cal/Acad./Summer | W15: Req. Salary | X15: Fringe | Z15: Total (Sal & Fringe) | AA15: Federal | AB15: Non-Federal | AE15: Base Salary | AF15: 0 | AH15: Cal/Acad./Summer | AL15: Req. Salary | AM15: Fringe | AO15: Total (Sal & Fringe) | AP15: Federal | AQ15: Non-Federal | AT15: Base Salary | AU15: 0 | AW15: Cal/Acad./Summer | BA15: Req. Salary | BB15: Fringe | BD15: Total (Sal & Fringe) | BE15: Federal | BF15: Non-Federal | BI15: Base Salary | BJ15: 0 | BL15: Cal/Acad./Summer | BP15: Req. Salary | BQ15: Fringe | BS15: Total (Sal & Fringe) | BT15: Federal | BU15: Non-Federal
A16: ='DetailedBudget---TXST'!GW24 -> 10300 | D16: ='DetailedBudget---TXST'!M24 -> 1 | H16: ='DetailedBudget---TXST'!O24 -> 10300 | I16: ='DetailedBudget---TXST'!KK24 -> 2884 | K16: =I16+H16 -> 13184 | L16: =K16 -> 13184 | M16: zero dollars | P16: =ROUND('DetailedBudget---TXST'!H24*(1+'DetailedBudget---TXST'!BO24)*(1+'DetailedBudget---TXST'!BT24),2)*'R&R Budget conversion'!Q15 -> 0 | S16: ='DetailedBudget---TXST'!R24 -> 1 | W16: ='DetailedBudget---TXST'!T24 -> 10609 | X16: ='DetailedBudget---TXST'!KP24 -> 2971 | Z16: =X16+W16 -> 13580 | AA16: =Z16 -> 13580 | AE16: =ROUND('DetailedBudget---TXST'!W24*(1+'DetailedBudget---TXST'!$BO24)*(1+'DetailedBudget---TXST'!$BT24)+(1+'DetailedBudget---TXST'!$BY24),2)*'R&R Budget conversion'!AF15 -> 0 | AH16: ='DetailedBudget---TXST'!W24 -> 0 | AL16: ='DetailedBudget---TXST'!Y24 -> 0 | AM16: ='DetailedBudget---TXST'!KU24 -> 0 | AO16: =AM16+AL16 -> 0 | AP16: =AO16 -> 0 | AT16: =ROUND('DetailedBudget---TXST'!AB24*(1+'DetailedBudget---TXST'!$BO24)*(1+'DetailedBudget---TXST'!$BT24)+(1+'DetailedBudget---TXST'!$BY24)+(1+'DetailedBudget---TXST'!$CD24),2)*'R&R Budget conversion'!AU15 -> 0 | AW16: ='DetailedBudget---TXST'!AB24 -> 0 | BA16: ='DetailedBudget---TXST'!AD24 -> 0 | BB16: ='DetailedBudget---TXST'!KZ24 -> 0 | BD16: =BB16+BA16 -> 0 | BE16: =BD16 -> 0 | BI16: =ROUND('DetailedBudget---TXST'!AG24*(1+'DetailedBudget---TXST'!$BO24)*(1+'DetailedBudget---TXST'!$BT24)+(1+'DetailedBudget---TXST'!$BY24)+(1+'DetailedBudget---TXST'!$CD24)+(1+'DetailedBudget---TXST'!$CI24),2)*'R&R Budget conversion'!BJ15 -> 0 | BL16: ='DetailedBudget---TXST'!AG24 -> 0 | BP16: ='DetailedBudget---TXST'!AI24 -> 0 | BQ16: ='DetailedBudget---TXST'!LE24 -> 0 | BS16: =BQ16+BP16 -> 0 | BT16: =BS16 -> 0
A18: --------------- Additional Senior/Key Person 2 --------------- | P18: --------------- Additional Senior/Key Person 2 --------------- | AE18: --------------- Additional Senior/Key Person 2 --------------- | AT18: --------------- Additional Senior/Key Person 2 --------------- | BI18: --------------- Additional Senior/Key Person 2 ---------------
A19: Prefix | C19: Name | F19: Suffix | P19: Prefix | R19: Name | U19: Suffix | AE19: Prefix | AG19: Name | AJ19: Suffix | AT19: Prefix | AV19: Name | AY19: Suffix | BI19: Prefix | BK19: Name | BN19: Suffix
C20: ='DetailedBudget---TXST'!F25 -> 0 | R20: ='DetailedBudget---TXST'!$F24 -> Viktor Frank | AG20: ='DetailedBudget---TXST'!$F24 -> Viktor Frank | AV20: ='DetailedBudget---TXST'!$F24 -> Viktor Frank | BK20: ='DetailedBudget---TXST'!$F24 -> Viktor Frank
A22: Project Role | P22: Project Role | AE22: Project Role | AT22: Project Role | BI22: Project Role
A25: Base Salary | B25: 0 | D25: Cal/Acad./Summer | H25: Req. Salary | I25: Fringe | K25: Total (Sal & Fringe) | L25: Federal | M25: Non-Federal | P25: Base Salary | Q25: 0 | S25: Cal/Acad./Summer | W25: Req. Salary | X25: Fringe | Z25: Total (Sal & Fringe) | AA25: Federal | AB25: Non-Federal | AE25: Base Salary | AF25: 0 | AH25: Cal/Acad./Summer | AL25: Req. Salary | AM25: Fringe | AO25: Total (Sal & Fringe) | AP25: Federal | AQ25: Non-Federal | AT25: Base Salary | AU25: 0 | AW25: Cal/Acad./Summer | BA25: Req. Salary | BB25: Fringe | BD25: Total (Sal & Fringe) | BE25: Federal | BF25: Non-Federal | BI25: Base Salary | BJ25: 0 | BL25: Cal/Acad./Summer | BP25: Req. Salary | BQ25: Fringe | BS25: Total (Sal & Fringe) | BT25: Federal | BU25: Non-Federal
A26: =ROUND('DetailedBudget---TXST'!H25*(1+'DetailedBudget---TXST'!BO25)*'R&R Budget conversion'!B25,2) -> 0 | D26: ='DetailedBudget---TXST'!M25 -> 0 | H26: ='DetailedBudget---TXST'!O25 -> 0 | I26: ='DetailedBudget---TXST'!KK25 -> 0 | K26: =I26+H26 -> 0 | L26: =K26 -> 0 | M26: zero dollars | P26: =ROUND('DetailedBudget---TXST'!H25*(1+'DetailedBudget---TXST'!BO25)*(1+'DetailedBudget---TXST'!BT25),2)*'R&R Budget conversion'!Q25 -> 0 | S26: ='DetailedBudget---TXST'!R25 -> 0 | W26: ='DetailedBudget---TXST'!T25 -> 0 | X26: ='DetailedBudget---TXST'!KP25 -> 0 | Z26: =X26+W26 -> 0 | AA26: =Z26 -> 0 | AE26: =ROUND('DetailedBudget---TXST'!W25*(1+'DetailedBudget---TXST'!CD25)*(1+'DetailedBudget---TXST'!CI25),2)*'R&R Budget conversion'!AF25 -> 0 | AH26: ='DetailedBudget---TXST'!AG25 -> 0 | AL26: ='DetailedBudget---TXST'!AI25 -> 0 | AM26: ='DetailedBudget---TXST'!LE25 -> 0 | AO26: =AM26+AL26 -> 0 | AP26: =AO26 -> 0 | AT26: =ROUND('DetailedBudget---TXST'!AL25*(1+'DetailedBudget---TXST'!CS25)*(1+'DetailedBudget---TXST'!CX25),2)*'R&R Budget conversion'!AU25 -> 0 | AW26: ='DetailedBudget---TXST'!AV25 -> 0 | BA26: ='DetailedBudget---TXST'!AX25 -> 0 | BB26: ='DetailedBudget---TXST'!LT25 -> 0 | BD26: =BB26+BA26 -> 0 | BE26: =BD26 -> 0 | BI26: =ROUND('DetailedBudget---TXST'!BA25*(1+'DetailedBudget---TXST'!DH25)*(1+'DetailedBudget---TXST'!DM25),2)*'R&R Budget conversion'!BJ25 -> 0 | BL26: ='DetailedBudget---TXST'!BK25 -> 0 | BP26: ='DetailedBudget---TXST'!BM25 -> 0 | BQ26: ='DetailedBudget---TXST'!MI25 ->  | BS26: =BQ26+BP26 ->  | BT26: =BS26 -> 
A28: --------------- Additional Senior/Key Person 3 --------------- | P28: --------------- Additional Senior/Key Person 3 --------------- | AE28: --------------- Additional Senior/Key Person 3 --------------- | AT28: --------------- Additional Senior/Key Person 3 --------------- | BI28: --------------- Additional Senior/Key Person 3 ---------------
A29: Prefix | C29: Name | F29: Suffix | P29: Prefix | R29: Name | U29: Suffix | AE29: Prefix | AG29: Name | AJ29: Suffix | AT29: Prefix | AV29: Name | AY29: Suffix | BI29: Prefix | BK29: Name | BN29: Suffix
C30: ='DetailedBudget---TXST'!$F26 -> 0 | R30: ='DetailedBudget---TXST'!$F26 -> 0 | AG30: ='DetailedBudget---TXST'!$F26 -> 0 | AV30: ='DetailedBudget---TXST'!$F26 -> 0 | BK30: ='DetailedBudget---TXST'!$F26 -> 0
A32: Project Role | P32: Project Role | AE32: Project Role | AT32: Project Role | BI32: Project Role
A35: Base Salary | B35: 0 | D35: Cal/Acad./Summer | H35: Req. Salary | I35: Fringe | K35: Total (Sal & Fringe) | L35: Federal | M35: Non-Federal | P35: Base Salary | Q35: 0 | S35: Cal/Acad./Summer | W35: Req. Salary | X35: Fringe | Z35: Total (Sal & Fringe) | AA35: Federal | AB35: Non-Federal | AE35: Base Salary | AF35: 0 | AH35: Cal/Acad./Summer | AL35: Req. Salary | AM35: Fringe | AO35: Total (Sal & Fringe) | AP35: Federal | AQ35: Non-Federal | AT35: Base Salary | AU35: 0 | AW35: Cal/Acad./Summer | BA35: Req. Salary | BB35: Fringe | BD35: Total (Sal & Fringe) | BE35: Federal | BF35: Non-Federal | BI35: Base Salary | BJ35: 0 | BL35: Cal/Acad./Summer | BP35: Req. Salary | BQ35: Fringe | BS35: Total (Sal & Fringe) | BT35: Federal | BU35: Non-Federal
A36: =ROUND('DetailedBudget---TXST'!H26*(1+'DetailedBudget---TXST'!BO26)*'R&R Budget conversion'!B35,2) -> 0 | D36: ='DetailedBudget---TXST'!M26 -> 0 | H36: ='DetailedBudget---TXST'!O26 -> 0 | I36: ='DetailedBudget---TXST'!KK26 -> 0 | K36: =I36+H36 -> 0 | L36: =K36 -> 0 | M36: zero dollars | P36: =ROUND('DetailedBudget---TXST'!H26*(1+'DetailedBudget---TXST'!BO26)*(1+'DetailedBudget---TXST'!BT26),2)*'R&R Budget conversion'!Q35 -> 0 | S36: ='DetailedBudget---TXST'!R26 -> 0 | W36: ='DetailedBudget---TXST'!T26 -> 0 | X36: ='DetailedBudget---TXST'!KP26 -> 0 | Z36: =X36+W36 -> 0 | AA36: =Z36 -> 0 | AE36: =ROUND('DetailedBudget---TXST'!W26*(1+'DetailedBudget---TXST'!CD26)*(1+'DetailedBudget---TXST'!CI26),2)*'R&R Budget conversion'!AF35 -> 0 | AH36: ='DetailedBudget---TXST'!AG26 -> 0 | AL36: ='DetailedBudget---TXST'!AI26 -> 0 | AM36: ='DetailedBudget---TXST'!LE26 -> 0 | AO36: =AM36+AL36 -> 0 | AP36: =AO36 -> 0 | AT36: =ROUND('DetailedBudget---TXST'!AL26*(1+'DetailedBudget---TXST'!CS26)*(1+'DetailedBudget---TXST'!CX26),2)*'R&R Budget conversion'!AU35 -> 0 | AW36: ='DetailedBudget---TXST'!AV26 -> 0 | BA36: ='DetailedBudget---TXST'!AX26 -> 0 | BB36: ='DetailedBudget---TXST'!LT26 -> 0 | BD36: =BB36+BA36 -> 0 | BE36: =BD36 -> 0 | BI36: =ROUND('DetailedBudget---TXST'!BA26*(1+'DetailedBudget---TXST'!DH26)*(1+'DetailedBudget---TXST'!DM26),2)*'R&R Budget conversion'!BJ35 -> 0 | BL36: ='DetailedBudget---TXST'!BK26 -> 0 | BP36: ='DetailedBudget---TXST'!BM26 -> 0 | BQ36: ='DetailedBudget---TXST'!MI26 ->  | BS36: =BQ36+BP36 ->  | BT36: =BS36 -> 
A38: --------------- Additional Senior/Key Person 4 --------------- | P38: --------------- Additional Senior/Key Person 4 --------------- | AE38: --------------- Additional Senior/Key Person 4 --------------- | AT38: --------------- Additional Senior/Key Person 4 --------------- | BI38: --------------- Additional Senior/Key Person 4 ---------------
A39: Prefix | C39: Name | F39: Suffix | P39: Prefix | R39: Name | U39: Suffix | AE39: Prefix | AG39: Name | AJ39: Suffix | AT39: Prefix | AV39: Name | AY39: Suffix | BI39: Prefix | BK39: Name | BN39: Suffix
C40: ='DetailedBudget---TXST'!$F27 -> 0 | R40: ='DetailedBudget---TXST'!$F27 -> 0 | AG40: ='DetailedBudget---TXST'!$F27 -> 0 | AV40: ='DetailedBudget---TXST'!$F27 -> 0 | BK40: ='DetailedBudget---TXST'!$F27 -> 0
A42: Project Role | P42: Project Role | AE42: Project Role | AT42: Project Role | BI42: Project Role
A45: Base Salary | B45: 0 | D45: Cal/Acad./Summer | H45: Req. Salary | I45: Fringe | K45: Total (Sal & Fringe) | L45: Federal | M45: Non-Federal | P45: Base Salary | Q45: 0 | S45: Cal/Acad./Summer | W45: Req. Salary | X45: Fringe | Z45: Total (Sal & Fringe) | AA45: Federal | AB45: Non-Federal | AE45: Base Salary | AF45: 0 | AH45: Cal/Acad./Summer | AL45: Req. Salary | AM45: Fringe | AO45: Total (Sal & Fringe) | AP45: Federal | AQ45: Non-Federal | AT45: Base Salary | AU45: 0 | AW45: Cal/Acad./Summer | BA45: Req. Salary | BB45: Fringe | BD45: Total (Sal & Fringe) | BE45: Federal | BF45: Non-Federal | BI45: Base Salary | BJ45: 0 | BL45: Cal/Acad./Summer | BP45: Req. Salary | BQ45: Fringe | BS45: Total (Sal & Fringe) | BT45: Federal | BU45: Non-Federal
A46: =ROUND('DetailedBudget---TXST'!H27*(1+'DetailedBudget---TXST'!BO27)*'R&R Budget conversion'!B45,2) -> 0 | D46: ='DetailedBudget---TXST'!M27 -> 0 | H46: ='DetailedBudget---TXST'!O27 -> 0 | I46: ='DetailedBudget---TXST'!KK27 -> 0 | K46: =I46+H46 -> 0 | L46: =K46 -> 0 | M46: zero dollars | P46: =ROUND('DetailedBudget---TXST'!W27*(1+'DetailedBudget---TXST'!CD27)*'R&R Budget conversion'!Q45,2) -> 0 | S46: ='DetailedBudget---TXST'!R27 -> 0 | W46: ='DetailedBudget---TXST'!T27 -> 0 | X46: ='DetailedBudget---TXST'!KP27 -> 0 | Z46: =X46+W46 -> 0 | AA46: =Z46 -> 0 | AE46: =ROUND('DetailedBudget---TXST'!AL27*(1+'DetailedBudget---TXST'!CS27)*'R&R Budget conversion'!AF45,2) -> 0 | AH46: ='DetailedBudget---TXST'!AG27 -> 0 | AL46: ='DetailedBudget---TXST'!AI27 -> 0 | AM46: ='DetailedBudget---TXST'!LE27 -> 0 | AO46: =AM46+AL46 -> 0 | AP46: =AO46 -> 0 | AT46: =ROUND('DetailedBudget---TXST'!BA27*(1+'DetailedBudget---TXST'!DH27)*'R&R Budget conversion'!AU45,2) -> 0 | AW46: ='DetailedBudget---TXST'!AV27 -> 0 | BA46: ='DetailedBudget---TXST'!AX27 -> 0 | BB46: ='DetailedBudget---TXST'!LT27 -> 0 | BD46: =BB46+BA46 -> 0 | BE46: =BD46 -> 0 | BI46: =ROUND('DetailedBudget---TXST'!BP27*(1+'DetailedBudget---TXST'!DW27)*'R&R Budget conversion'!BJ45,2) -> 0 | BL46: ='DetailedBudget---TXST'!BK27 -> 0 | BP46: ='DetailedBudget---TXST'!BM27 -> 0 | BQ46: ='DetailedBudget---TXST'!MI27 ->  | BS46: =BQ46+BP46 ->  | BT46: =BS46 -> 
A48: --------------- Additional Senior/Key Person 5 --------------- | P48: --------------- Additional Senior/Key Person 5 --------------- | AE48: --------------- Additional Senior/Key Person 5 --------------- | AT48: --------------- Additional Senior/Key Person 5 --------------- | BI48: --------------- Additional Senior/Key Person 5 ---------------
A49: Prefix | C49: Name | F49: Suffix | P49: Prefix | R49: Name | U49: Suffix | AE49: Prefix | AG49: Name | AJ49: Suffix | AT49: Prefix | AV49: Name | AY49: Suffix | BI49: Prefix | BK49: Name | BN49: Suffix
C50: ='DetailedBudget---TXST'!$F28 -> 0 | R50: ='DetailedBudget---TXST'!$F28 -> 0 | AG50: ='DetailedBudget---TXST'!$F28 -> 0 | AV50: ='DetailedBudget---TXST'!$F28 -> 0 | BK50: ='DetailedBudget---TXST'!$F28 -> 0
A52: Project Role | P52: Project Role | AE52: Project Role | AT52: Project Role | BI52: Project Role
A55: Base Salary | B55: 0 | D55: Cal/Acad./Summer | H55: Req. Salary | I55: Fringe | K55: Total (Sal & Fringe) | L55: Federal | M55: Non-Federal | P55: Base Salary | Q55: 0 | S55: Cal/Acad./Summer | W55: Req. Salary | X55: Fringe | Z55: Total (Sal & Fringe) | AA55: Federal | AB55: Non-Federal | AE55: Base Salary | AF55: 0 | AH55: Cal/Acad./Summer | AL55: Req. Salary | AM55: Fringe | AO55: Total (Sal & Fringe) | AP55: Federal | AQ55: Non-Federal | AT55: Base Salary | AU55: 0 | AW55: Cal/Acad./Summer | BA55: Req. Salary | BB55: Fringe | BD55: Total (Sal & Fringe) | BE55: Federal | BF55: Non-Federal | BI55: Base Salary | BJ55: 0 | BL55: Cal/Acad./Summer | BP55: Req. Salary | BQ55: Fringe | BS55: Total (Sal & Fringe) | BT55: Federal | BU55: Non-Federal
A56: =ROUND('DetailedBudget---TXST'!H28*(1+'DetailedBudget---TXST'!BO28)*'R&R Budget conversion'!B55,2) -> 0 | D56: ='DetailedBudget---TXST'!M28 -> 0 | H56: ='DetailedBudget---TXST'!O28 -> 0 | I56: ='DetailedBudget---TXST'!KK28 -> 0 | K56: =I56+H56 -> 0 | L56: =K56 -> 0 | M56: zero dollars | P56: =ROUND('DetailedBudget---TXST'!W28*(1+'DetailedBudget---TXST'!CD28)*'R&R Budget conversion'!Q55,2) -> 0 | S56: ='DetailedBudget---TXST'!R28 -> 0 | W56: ='DetailedBudget---TXST'!T28 -> 0 | X56: ='DetailedBudget---TXST'!KP28 -> 0 | Z56: =X56+W56 -> 0 | AA56: =Z56 -> 0 | AE56: =ROUND('DetailedBudget---TXST'!AL28*(1+'DetailedBudget---TXST'!CS28)*'R&R Budget conversion'!AF55,2) -> 0 | AH56: ='DetailedBudget---TXST'!AG28 -> 0 | AL56: ='DetailedBudget---TXST'!AI28 -> 0 | AM56: ='DetailedBudget---TXST'!LE28 -> 0 | AO56: =AM56+AL56 -> 0 | AP56: =AO56 -> 0 | AT56: =ROUND('DetailedBudget---TXST'!BA28*(1+'DetailedBudget---TXST'!DH28)*'R&R Budget conversion'!AU55,2) -> 0 | AW56: ='DetailedBudget---TXST'!AV28 -> 0 | BA56: ='DetailedBudget---TXST'!AX28 -> 0 | BB56: ='DetailedBudget---TXST'!LT28 -> 0 | BD56: =BB56+BA56 -> 0 | BE56: =BD56 -> 0 | BI56: =ROUND('DetailedBudget---TXST'!BP28*(1+'DetailedBudget---TXST'!DW28)*'R&R Budget conversion'!BJ55,2) -> 0 | BL56: ='DetailedBudget---TXST'!BK28 -> 0 | BP56: ='DetailedBudget---TXST'!BM28 -> 0 | BQ56: ='DetailedBudget---TXST'!MI28 ->  | BS56: =BQ56+BP56 ->  | BT56: =BS56 -> 
A58: --------------- Additional Senior/Key Person 6 --------------- | P58: --------------- Additional Senior/Key Person 6 --------------- | AE58: --------------- Additional Senior/Key Person 6 --------------- | AT58: --------------- Additional Senior/Key Person 6 --------------- | BI58: --------------- Additional Senior/Key Person 6 ---------------
A59: Prefix | C59: Name | F59: Suffix | P59: Prefix | R59: Name | U59: Suffix | AE59: Prefix | AG59: Name | AJ59: Suffix | AT59: Prefix | AV59: Name | AY59: Suffix | BI59: Prefix | BK59: Name | BN59: Suffix
C60: ='DetailedBudget---TXST'!$F49 -> 0 | R60: ='DetailedBudget---TXST'!$F49 -> 0 | AG60: ='DetailedBudget---TXST'!$F49 -> 0 | AV60: ='DetailedBudget---TXST'!$F49 -> 0 | BK60: ='DetailedBudget---TXST'!$F49 -> 0
A62: Project Role | P62: Project Role | AE62: Project Role | AT62: Project Role | BI62: Project Role
A65: Base Salary | B65: 0 | D65: Cal/Acad./Summer | H65: Req. Salary | I65: Fringe | K65: Total (Sal & Fringe) | L65: Federal | M65: Non-Federal | P65: Base Salary | Q65: 0 | S65: Cal/Acad./Summer | W65: Req. Salary | X65: Fringe | Z65: Total (Sal & Fringe) | AA65: Federal | AB65: Non-Federal | AE65: Base Salary | AF65: 0 | AH65: Cal/Acad./Summer | AL65: Req. Salary | AM65: Fringe | AO65: Total (Sal & Fringe) | AP65: Federal | AQ65: Non-Federal | AT65: Base Salary | AU65: 0 | AW65: Cal/Acad./Summer | BA65: Req. Salary | BB65: Fringe | BD65: Total (Sal & Fringe) | BE65: Federal | BF65: Non-Federal | BI65: Base Salary | BJ65: 0 | BL65: Cal/Acad./Summer | BP65: Req. Salary | BQ65: Fringe | BS65: Total (Sal & Fringe) | BT65: Federal | BU65: Non-Federal
A66: =ROUND('DetailedBudget---TXST'!H49*(1+'DetailedBudget---TXST'!BO49)*'R&R Budget conversion'!B65,2) -> 0 | D66: ='DetailedBudget---TXST'!M49 -> 0 | H66: ='DetailedBudget---TXST'!O49 -> 0 | I66: ='DetailedBudget---TXST'!KK49 -> 0 | K66: =I66+H66 -> 0 | L66: =K66 -> 0 | M66: zero dollars | P66: =ROUND('DetailedBudget---TXST'!W49*(1+'DetailedBudget---TXST'!CD49)*'R&R Budget conversion'!Q65,2) -> 0 | S66: ='DetailedBudget---TXST'!R49 -> 0 | W66: ='DetailedBudget---TXST'!T49 -> 0 | X66: ='DetailedBudget---TXST'!KP49 -> 0 | Z66: =X66+W66 -> 0 | AA66: =Z66 -> 0 | AE66: =ROUND('DetailedBudget---TXST'!AL49*(1+'DetailedBudget---TXST'!CS49)*'R&R Budget conversion'!AF65,2) -> 0 | AH66: ='DetailedBudget---TXST'!AG49 -> 0 | AL66: ='DetailedBudget---TXST'!AI49 -> 0 | AM66: ='DetailedBudget---TXST'!LE49 -> 0 | AO66: =AM66+AL66 -> 0 | AP66: =AO66 -> 0 | AT66: =ROUND('DetailedBudget---TXST'!BA49*(1+'DetailedBudget---TXST'!DH49)*'R&R Budget conversion'!AU65,2) -> 0 | AW66: ='DetailedBudget---TXST'!AV49 -> 0 | BA66: ='DetailedBudget---TXST'!AX49 -> 0 | BB66: ='DetailedBudget---TXST'!LT49 -> 0 | BD66: =BB66+BA66 -> 0 | BE66: =BD66 -> 0 | BI66: =ROUND('DetailedBudget---TXST'!BP49*(1+'DetailedBudget---TXST'!DW49)*'R&R Budget conversion'!BJ65,2) -> 0 | BL66: ='DetailedBudget---TXST'!BK49 -> 0 | BP66: ='DetailedBudget---TXST'!BM49 -> 0 | BQ66: ='DetailedBudget---TXST'!MI49 ->  | BS66: =BQ66+BP66 ->  | BT66: =BS66 -> 
A68: --------------- Additional Senior/Key Person 7 --------------- | P68: --------------- Additional Senior/Key Person 7 --------------- | AE68: --------------- Additional Senior/Key Person 7 --------------- | AT68: --------------- Additional Senior/Key Person 7 --------------- | BI68: --------------- Additional Senior/Key Person 7 ---------------
A69: Prefix | C69: Name | F69: Suffix | P69: Prefix | R69: Name | U69: Suffix | AE69: Prefix | AG69: Name | AJ69: Suffix | AT69: Prefix | AV69: Name | AY69: Suffix | BI69: Prefix | BK69: Name | BN69: Suffix
C70: ='DetailedBudget---TXST'!$F50 -> 0 | R70: ='DetailedBudget---TXST'!$F50 -> 0 | AG70: ='DetailedBudget---TXST'!$F50 -> 0 | AV70: ='DetailedBudget---TXST'!$F50 -> 0 | BK70: ='DetailedBudget---TXST'!$F50 -> 0
A72: Project Role | P72: Project Role | AE72: Project Role | AT72: Project Role | BI72: Project Role
A75: Base Salary | B75: 0 | D75: Cal/Acad./Summer | H75: Req. Salary | I75: Fringe | K75: Total (Sal & Fringe) | L75: Federal | M75: Non-Federal | P75: Base Salary | Q75: 0 | S75: Cal/Acad./Summer | W75: Req. Salary | X75: Fringe | Z75: Total (Sal & Fringe) | AA75: Federal | AB75: Non-Federal | AE75: Base Salary | AF75: 0 | AH75: Cal/Acad./Summer | AL75: Req. Salary | AM75: Fringe | AO75: Total (Sal & Fringe) | AP75: Federal | AQ75: Non-Federal | AT75: Base Salary | AU75: 0 | AW75: Cal/Acad./Summer | BA75: Req. Salary | BB75: Fringe | BD75: Total (Sal & Fringe) | BE75: Federal | BF75: Non-Federal | BI75: Base Salary | BJ75: 0 | BL75: Cal/Acad./Summer | BP75: Req. Salary | BQ75: Fringe | BS75: Total (Sal & Fringe) | BT75: Federal | BU75: Non-Federal
A76: =ROUND('DetailedBudget---TXST'!H50*(1+'DetailedBudget---TXST'!BO50)*'R&R Budget conversion'!B75,2) -> 0 | D76: ='DetailedBudget---TXST'!M50 -> 0 | H76: ='DetailedBudget---TXST'!O50 -> 0 | I76: ='DetailedBudget---TXST'!KK50 -> 0 | K76: =I76+H76 -> 0 | L76: =K76 -> 0 | M76: zero dollars | P76: =ROUND('DetailedBudget---TXST'!W50*(1+'DetailedBudget---TXST'!CD50)*'R&R Budget conversion'!Q75,2) -> 0 | S76: ='DetailedBudget---TXST'!R50 -> 0 | W76: ='DetailedBudget---TXST'!T50 -> 0 | X76: ='DetailedBudget---TXST'!KP50 -> 0 | Z76: =X76+W76 -> 0 | AA76: =Z76 -> 0 | AE76: =ROUND('DetailedBudget---TXST'!AL50*(1+'DetailedBudget---TXST'!CS50)*'R&R Budget conversion'!AF75,2) -> 0 | AH76: ='DetailedBudget---TXST'!AG50 -> 0 | AL76: ='DetailedBudget---TXST'!AI50 -> 0 | AM76: ='DetailedBudget---TXST'!LE50 -> 0 | AO76: =AM76+AL76 -> 0 | AP76: =AO76 -> 0 | AT76: =ROUND('DetailedBudget---TXST'!BA50*(1+'DetailedBudget---TXST'!DH50)*'R&R Budget conversion'!AU75,2) -> 0 | AW76: ='DetailedBudget---TXST'!AV50 -> 0 | BA76: ='DetailedBudget---TXST'!AX50 -> 0 | BB76: ='DetailedBudget---TXST'!LT50 -> 0 | BD76: =BB76+BA76 -> 0 | BE76: =BD76 -> 0 | BI76: =ROUND('DetailedBudget---TXST'!BP50*(1+'DetailedBudget---TXST'!DW50)*'R&R Budget conversion'!BJ75,2) -> 0 | BL76: ='DetailedBudget---TXST'!BK50 -> 0 | BP76: ='DetailedBudget---TXST'!BM50 -> 0 | BQ76: ='DetailedBudget---TXST'!MI50 ->  | BS76: =BQ76+BP76 ->  | BT76: =BS76 -> 
A78: --------------- Additional Senior/Key Person 8 --------------- | P78: --------------- Additional Senior/Key Person 8 --------------- | AE78: --------------- Additional Senior/Key Person 8 --------------- | AT78: --------------- Additional Senior/Key Person 8 --------------- | BI78: --------------- Additional Senior/Key Person 8 ---------------
A79: Prefix | C79: Name | F79: Suffix | P79: Prefix | R79: Name | U79: Suffix | AE79: Prefix | AG79: Name | AJ79: Suffix | AT79: Prefix | AV79: Name | AY79: Suffix | BI79: Prefix | BK79: Name | BN79: Suffix
C80: ='DetailedBudget---TXST'!$F51 -> 0 | R80: ='DetailedBudget---TXST'!$F51 -> 0 | AG80: ='DetailedBudget---TXST'!$F51 -> 0 | AV80: ='DetailedBudget---TXST'!$F51 -> 0 | BK80: ='DetailedBudget---TXST'!$F51 -> 0
A82: Project Role | P82: Project Role | AE82: Project Role | AT82: Project Role | BI82: Project Role
A85: Base Salary | B85: 0 | D85: Cal/Acad./Summer | H85: Req. Salary | I85: Fringe | K85: Total (Sal & Fringe) | L85: Federal | M85: Non-Federal | P85: Base Salary | Q85: 0 | S85: Cal/Acad./Summer | W85: Req. Salary | X85: Fringe | Z85: Total (Sal & Fringe) | AA85: Federal | AB85: Non-Federal | AE85: Base Salary | AF85: 0 | AH85: Cal/Acad./Summer | AL85: Req. Salary | AM85: Fringe | AO85: Total (Sal & Fringe) | AP85: Federal | AQ85: Non-Federal | AT85: Base Salary | AU85: 0 | AW85: Cal/Acad./Summer | BA85: Req. Salary | BB85: Fringe | BD85: Total (Sal & Fringe) | BE85: Federal | BF85: Non-Federal | BI85: Base Salary | BJ85: 0 | BL85: Cal/Acad./Summer | BP85: Req. Salary | BQ85: Fringe | BS85: Total (Sal & Fringe) | BT85: Federal | BU85: Non-Federal
A86: =ROUND('DetailedBudget---TXST'!H51*(1+'DetailedBudget---TXST'!BO51)*'R&R Budget conversion'!B85,2) -> 0 | D86: ='DetailedBudget---TXST'!M51 -> 0 | H86: ='DetailedBudget---TXST'!O51 -> 0 | I86: ='DetailedBudget---TXST'!KK51 -> 0 | K86: =I86+H86 -> 0 | L86: =K86 -> 0 | M86: zero dollars | P86: =ROUND('DetailedBudget---TXST'!W51*(1+'DetailedBudget---TXST'!CD51)*'R&R Budget conversion'!Q85,2) -> 0 | S86: ='DetailedBudget---TXST'!R51 -> 0 | W86: ='DetailedBudget---TXST'!T51 -> 0 | X86: ='DetailedBudget---TXST'!KP51 -> 0 | Z86: =X86+W86 -> 0 | AA86: =Z86 -> 0 | AE86: =ROUND('DetailedBudget---TXST'!AL51*(1+'DetailedBudget---TXST'!CS51)*'R&R Budget conversion'!AF85,2) -> 0 | AH86: ='DetailedBudget---TXST'!AG51 -> 0 | AL86: ='DetailedBudget---TXST'!AI51 -> 0 | AM86: ='DetailedBudget---TXST'!LE51 -> 0 | AO86: =AM86+AL86 -> 0 | AP86: =AO86 -> 0 | AT86: =ROUND('DetailedBudget---TXST'!BA51*(1+'DetailedBudget---TXST'!DH51)*'R&R Budget conversion'!AU85,2) -> 0 | AW86: ='DetailedBudget---TXST'!AV51 -> 0 | BA86: ='DetailedBudget---TXST'!AX51 -> 0 | BB86: ='DetailedBudget---TXST'!LT51 -> 0 | BD86: =BB86+BA86 -> 0 | BE86: =BD86 -> 0 | BI86: =ROUND('DetailedBudget---TXST'!BP51*(1+'DetailedBudget---TXST'!DW51)*'R&R Budget conversion'!BJ85,2) -> 0 | BL86: ='DetailedBudget---TXST'!BK51 -> 0 | BP86: ='DetailedBudget---TXST'!BM51 -> 0 | BQ86: ='DetailedBudget---TXST'!MI51 ->  | BS86: =BQ86+BP86 ->  | BT86: =BS86 -> 
A88: --------------- Additional Senior/Key Person 9 --------------- | P88: --------------- Additional Senior/Key Person 9 --------------- | AE88: --------------- Additional Senior/Key Person 9 --------------- | AT88: --------------- Additional Senior/Key Person 9 --------------- | BI88: --------------- Additional Senior/Key Person 9 ---------------
A89: Prefix | C89: Name | F89: Suffix | P89: Prefix | R89: Name | U89: Suffix | AE89: Prefix | AG89: Name | AJ89: Suffix | AT89: Prefix | AV89: Name | AY89: Suffix | BI89: Prefix | BK89: Name | BN89: Suffix
C90: ='DetailedBudget---TXST'!$F52 -> 0 | R90: ='DetailedBudget---TXST'!$F52 -> 0 | AG90: ='DetailedBudget---TXST'!$F52 -> 0 | AV90: ='DetailedBudget---TXST'!$F52 -> 0 | BK90: ='DetailedBudget---TXST'!$F52 -> 0
A92: Project Role | P92: Project Role | AE92: Project Role | AT92: Project Role | BI92: Project Role
A95: Base Salary | B95: 0 | D95: Cal/Acad./Summer | H95: Req. Salary | I95: Fringe | K95: Total (Sal & Fringe) | L95: Federal | M95: Non-Federal | P95: Base Salary | Q95: 0 | S95: Cal/Acad./Summer | W95: Req. Salary | X95: Fringe | Z95: Total (Sal & Fringe) | AA95: Federal | AB95: Non-Federal | AE95: Base Salary | AF95: 0 | AH95: Cal/Acad./Summer | AL95: Req. Salary | AM95: Fringe | AO95: Total (Sal & Fringe) | AP95: Federal | AQ95: Non-Federal | AT95: Base Salary | AU95: 0 | AW95: Cal/Acad./Summer | BA95: Req. Salary | BB95: Fringe | BD95: Total (Sal & Fringe) | BE95: Federal | BF95: Non-Federal | BI95: Base Salary | BJ95: 0 | BL95: Cal/Acad./Summer | BP95: Req. Salary | BQ95: Fringe | BS95: Total (Sal & Fringe) | BT95: Federal | BU95: Non-Federal
A96: =ROUND('DetailedBudget---TXST'!H52*(1+'DetailedBudget---TXST'!BO52)*'R&R Budget conversion'!B95,2) -> 0 | D96: ='DetailedBudget---TXST'!M52 -> 0 | H96: ='DetailedBudget---TXST'!O52 -> 0 | I96: ='DetailedBudget---TXST'!KK52 -> 0 | K96: =I96+H96 -> 0 | L96: =K96 -> 0 | M96: zero dollars | P96: =ROUND('DetailedBudget---TXST'!W52*(1+'DetailedBudget---TXST'!CD52)*'R&R Budget conversion'!Q95,2) -> 0 | S96: ='DetailedBudget---TXST'!R52 -> 0 | W96: ='DetailedBudget---TXST'!T52 -> 0 | X96: ='DetailedBudget---TXST'!KP52 -> 0 | Z96: =X96+W96 -> 0 | AA96: =Z96 -> 0 | AE96: =ROUND('DetailedBudget---TXST'!AL52*(1+'DetailedBudget---TXST'!CS52)*'R&R Budget conversion'!AF95,2) -> 0 | AH96: ='DetailedBudget---TXST'!AG52 -> 0 | AL96: ='DetailedBudget---TXST'!AI52 -> 0 | AM96: ='DetailedBudget---TXST'!LE52 -> 0 | AO96: =AM96+AL96 -> 0 | AP96: =AO96 -> 0 | AT96: =ROUND('DetailedBudget---TXST'!BA52*(1+'DetailedBudget---TXST'!DH52)*'R&R Budget conversion'!AU95,2) -> 0 | AW96: ='DetailedBudget---TXST'!AV52 -> 0 | BA96: ='DetailedBudget---TXST'!AX52 -> 0 | BB96: ='DetailedBudget---TXST'!LT52 -> 0 | BD96: =BB96+BA96 -> 0 | BE96: =BD96 -> 0 | BI96: =ROUND('DetailedBudget---TXST'!BP52*(1+'DetailedBudget---TXST'!DW52)*'R&R Budget conversion'!BJ95,2) -> 0 | BL96: ='DetailedBudget---TXST'!BK52 -> 0 | BP96: ='DetailedBudget---TXST'!BM52 -> 0 | BQ96: ='DetailedBudget---TXST'!MI52 ->  | BS96: =BQ96+BP96 ->  | BT96: =BS96 -> 
A98: --------------- Additional Senior/Key Person 10 --------------- | P98: --------------- Additional Senior/Key Person 10 --------------- | AE98: --------------- Additional Senior/Key Person 10 --------------- | AT98: --------------- Additional Senior/Key Person 10 --------------- | BI98: --------------- Additional Senior/Key Person 10 ---------------
A99: Prefix | C99: Name | F99: Suffix | P99: Prefix | R99: Name | U99: Suffix | AE99: Prefix | AG99: Name | AJ99: Suffix | AT99: Prefix | AV99: Name | AY99: Suffix | BI99: Prefix | BK99: Name | BN99: Suffix
C100: ='DetailedBudget---TXST'!$F53 -> 0 | R100: ='DetailedBudget---TXST'!$F53 -> 0 | AG100: ='DetailedBudget---TXST'!$F53 -> 0 | AV100: ='DetailedBudget---TXST'!$F53 -> 0 | BK100: ='DetailedBudget---TXST'!$F53 -> 0
A102: Project Role | P102: Project Role | AE102: Project Role | AT102: Project Role | BI102: Project Role
A105: Base Salary | B105: 0 | D105: Cal/Acad./Summer | H105: Req. Salary | I105: Fringe | K105: Total (Sal & Fringe) | L105: Federal | M105: Non-Federal | P105: Base Salary | Q105: 0 | S105: Cal/Acad./Summer | W105: Req. Salary | X105: Fringe | Z105: Total (Sal & Fringe) | AA105: Federal | AB105: Non-Federal | AE105: Base Salary | AF105: 0 | AH105: Cal/Acad./Summer | AL105: Req. Salary | AM105: Fringe | AO105: Total (Sal & Fringe) | AP105: Federal | AQ105: Non-Federal | AT105: Base Salary | AU105: 0 | AW105: Cal/Acad./Summer | BA105: Req. Salary | BB105: Fringe | BD105: Total (Sal & Fringe) | BE105: Federal | BF105: Non-Federal | BI105: Base Salary | BJ105: 0 | BL105: Cal/Acad./Summer | BP105: Req. Salary | BQ105: Fringe | BS105: Total (Sal & Fringe) | BT105: Federal | BU105: Non-Federal
A106: =ROUND('DetailedBudget---TXST'!H53*(1+'DetailedBudget---TXST'!BO53)*'R&R Budget conversion'!B105,2) -> 0 | D106: ='DetailedBudget---TXST'!M53 -> 0 | H106: ='DetailedBudget---TXST'!O53 -> 0 | I106: ='DetailedBudget---TXST'!KK53 -> 0 | K106: =I106+H106 -> 0 | L106: =K106 -> 0 | M106: zero dollars | P106: =ROUND('DetailedBudget---TXST'!W53*(1+'DetailedBudget---TXST'!CD53)*'R&R Budget conversion'!Q105,2) -> 0 | S106: ='DetailedBudget---TXST'!R53 -> 0 | W106: ='DetailedBudget---TXST'!T53 -> 0 | X106: ='DetailedBudget---TXST'!KP53 -> 0 | Z106: =X106+W106 -> 0 | AA106: =Z106 -> 0 | AE106: =ROUND('DetailedBudget---TXST'!AL53*(1+'DetailedBudget---TXST'!CS53)*'R&R Budget conversion'!AF105,2) -> 0 | AH106: ='DetailedBudget---TXST'!AG53 -> 0 | AL106: ='DetailedBudget---TXST'!AI53 -> 0 | AM106: ='DetailedBudget---TXST'!LE53 -> 0 | AO106: =AM106+AL106 -> 0 | AP106: =AO106 -> 0 | AT106: =ROUND('DetailedBudget---TXST'!BA53*(1+'DetailedBudget---TXST'!DH53)*'R&R Budget conversion'!AU105,2) -> 0 | AW106: ='DetailedBudget---TXST'!AV53 -> 0 | BA106: ='DetailedBudget---TXST'!AX53 -> 0 | BB106: ='DetailedBudget---TXST'!LT53 -> 0 | BD106: =BB106+BA106 -> 0 | BE106: =BD106 -> 0 | BI106: =ROUND('DetailedBudget---TXST'!BP53*(1+'DetailedBudget---TXST'!DW53)*'R&R Budget conversion'!BJ105,2) -> 0 | BL106: ='DetailedBudget---TXST'!BK53 -> 0 | BP106: ='DetailedBudget---TXST'!BM53 -> 0 | BQ106: ='DetailedBudget---TXST'!MI53 ->  | BS106: =BQ106+BP106 ->  | BT106: =BS106 -> 
A108: --------------- Additional Senior/Key Person 10 --------------- | P108: --------------- Additional Senior/Key Person 10 --------------- | AE108: --------------- Additional Senior/Key Person 10 --------------- | AT108: --------------- Additional Senior/Key Person 10 --------------- | BI108: --------------- Additional Senior/Key Person 10 ---------------
A109: Prefix | C109: Name | F109: Suffix | P109: Prefix | R109: Name | U109: Suffix | AE109: Prefix | AG109: Name | AJ109: Suffix | AT109: Prefix | AV109: Name | AY109: Suffix | BI109: Prefix | BK109: Name | BN109: Suffix
C110: ='DetailedBudget---TXST'!$F123 -> 0 | R110: ='DetailedBudget---TXST'!$F123 -> 0 | AG110: ='DetailedBudget---TXST'!$F123 -> 0 | AV110: ='DetailedBudget---TXST'!$F123 -> 0 | BK110: ='DetailedBudget---TXST'!$F123 -> 0
A112: Project Role | P112: Project Role | AE112: Project Role | AT112: Project Role | BI112: Project Role
A113: PD/PI | P113: PD/PI | AE113: PD/PI | AT113: PD/PI | BI113: PD/PI
A115: Base Salary | B115: 0 | D115: Cal/Acad./Summer | H115: Req. Salary | I115: Fringe | K115: Total (Sal & Fringe) | L115: Federal | M115: Non-Federal | P115: Base Salary | Q115: 0 | S115: Cal/Acad./Summer | W115: Req. Salary | X115: Fringe | Z115: Total (Sal & Fringe) | AA115: Federal | AB115: Non-Federal | AE115: Base Salary | AF115: 0 | AH115: Cal/Acad./Summer | AL115: Req. Salary | AM115: Fringe | AO115: Total (Sal & Fringe) | AP115: Federal | AQ115: Non-Federal | AT115: Base Salary | AU115: 0 | AW115: Cal/Acad./Summer | BA115: Req. Salary | BB115: Fringe | BD115: Total (Sal & Fringe) | BE115: Federal | BF115: Non-Federal | BI115: Base Salary | BJ115: 0 | BL115: Cal/Acad./Summer | BP115: Req. Salary | BQ115: Fringe | BS115: Total (Sal & Fringe) | BT115: Federal | BU115: Non-Federal
A116: ='DetailedBudget---TXST'!GW123 -> 0 | D116: ='DetailedBudget---TXST'!M123 -> 0 | H116: ='DetailedBudget---TXST'!O123 -> 0 | I116: ='DetailedBudget---TXST'!KK123 -> 0 | K116: =I116+H116 -> 0 | L116: =K116 -> 0 | M116: zero dollars | P116: =ROUND('DetailedBudget---TXST'!H123*(1+'DetailedBudget---TXST'!BO123)*(1+'DetailedBudget---TXST'!BT123),2)*'R&R Budget conversion'!Q115 -> 0 | S116: ='DetailedBudget---TXST'!R123 -> 0 | W116: ='DetailedBudget---TXST'!T123 -> 0 | X116: ='DetailedBudget---TXST'!KP123 -> 0 | Z116: =X116+W116 -> 0 | AA116: =Z116 -> 0 | AE116: =ROUND('DetailedBudget---TXST'!W123*(1+'DetailedBudget---TXST'!$BO123)*(1+'DetailedBudget---TXST'!$BT123)+(1+'DetailedBudget---TXST'!$BY123),2)*'R&R Budget conversion'!AF115 -> 0 | AH116: ='DetailedBudget---TXST'!W123 -> 0 | AL116: ='DetailedBudget---TXST'!Y123 -> 0 | AM116: ='DetailedBudget---TXST'!KU123 -> 0 | AO116: =AM116+AL116 -> 0 | AP116: =AO116 -> 0 | AT116: =ROUND('DetailedBudget---TXST'!AB123*(1+'DetailedBudget---TXST'!$BO123)*(1+'DetailedBudget---TXST'!$BT123)+(1+'DetailedBudget---TXST'!$BY123)+(1+'DetailedBudget---TXST'!$CD123),2)*'R&R Budget conversion'!AU115 -> 0 | AW116: ='DetailedBudget---TXST'!AB123 -> 0 | BA116: ='DetailedBudget---TXST'!AD123 -> 0 | BB116: ='DetailedBudget---TXST'!KZ123 -> 0 | BD116: =BB116+BA116 -> 0 | BE116: =BD116 -> 0 | BI116: =ROUND('DetailedBudget---TXST'!AG123*(1+'DetailedBudget---TXST'!$BO123)*(1+'DetailedBudget---TXST'!$BT123)+(1+'DetailedBudget---TXST'!$BY123)+(1+'DetailedBudget---TXST'!$CD123)+(1+'DetailedBudget---TXST'!$CI123),2)*'R&R Budget conversion'!BJ115 -> 0 | BL116: ='DetailedBudget---TXST'!AG123 -> 0 | BP116: ='DetailedBudget---TXST'!AI123 -> 0 | BQ116: ='DetailedBudget---TXST'!LE123 -> 0 | BS116: =BQ116+BP116 -> 0 | BT116: =BS116 -> 0
A118: --------------- Additional Senior/Key Person 2 --------------- | P118: --------------- Additional Senior/Key Person 2 --------------- | AE118: --------------- Additional Senior/Key Person 2 --------------- | AT118: --------------- Additional Senior/Key Person 2 --------------- | BI118: --------------- Additional Senior/Key Person 2 ---------------
A119: Prefix | C119: Name | F119: Suffix | P119: Prefix | R119: Name | U119: Suffix | AE119: Prefix | AG119: Name | AJ119: Suffix | AT119: Prefix | AV119: Name | AY119: Suffix | BI119: Prefix | BK119: Name | BN119: Suffix
C120: ='DetailedBudget---TXST'!F124 -> 0 | R120: ='DetailedBudget---TXST'!$F123 -> 0 | AG120: ='DetailedBudget---TXST'!$F123 -> 0 | AV120: ='DetailedBudget---TXST'!$F123 -> 0 | BK120: ='DetailedBudget---TXST'!$F123 -> 0
A122: Project Role | P122: Project Role | AE122: Project Role | AT122: Project Role | BI122: Project Role
A125: Base Salary | B125: 0 | D125: Cal/Acad./Summer | H125: Req. Salary | I125: Fringe | K125: Total (Sal & Fringe) | L125: Federal | M125: Non-Federal | P125: Base Salary | Q125: 0 | S125: Cal/Acad./Summer | W125: Req. Salary | X125: Fringe | Z125: Total (Sal & Fringe) | AA125: Federal | AB125: Non-Federal | AE125: Base Salary | AF125: 0 | AH125: Cal/Acad./Summer | AL125: Req. Salary | AM125: Fringe | AO125: Total (Sal & Fringe) | AP125: Federal | AQ125: Non-Federal | AT125: Base Salary | AU125: 0 | AW125: Cal/Acad./Summer | BA125: Req. Salary | BB125: Fringe | BD125: Total (Sal & Fringe) | BE125: Federal | BF125: Non-Federal | BI125: Base Salary | BJ125: 0 | BL125: Cal/Acad./Summer | BP125: Req. Salary | BQ125: Fringe | BS125: Total (Sal & Fringe) | BT125: Federal | BU125: Non-Federal
A126: =ROUND('DetailedBudget---TXST'!H124*(1+'DetailedBudget---TXST'!BO124)*'R&R Budget conversion'!B125,2) -> 0 | D126: ='DetailedBudget---TXST'!M124 -> 0 | H126: ='DetailedBudget---TXST'!O124 -> 0 | I126: ='DetailedBudget---TXST'!KK124 -> 0 | K126: =I126+H126 -> 0 | L126: =K126 -> 0 | M126: zero dollars | P126: =ROUND('DetailedBudget---TXST'!H124*(1+'DetailedBudget---TXST'!BO124)*(1+'DetailedBudget---TXST'!BT124),2)*'R&R Budget conversion'!Q125 -> 0 | S126: ='DetailedBudget---TXST'!R124 -> 0 | W126: ='DetailedBudget---TXST'!T124 -> 0 | X126: ='DetailedBudget---TXST'!KP124 -> 0 | Z126: =X126+W126 -> 0 | AA126: =Z126 -> 0 | AE126: =ROUND('DetailedBudget---TXST'!W124*(1+'DetailedBudget---TXST'!CD124)*(1+'DetailedBudget---TXST'!CI124),2)*'R&R Budget conversion'!AF125 -> 0 | AH126: ='DetailedBudget---TXST'!AG124 -> 0 | AL126: ='DetailedBudget---TXST'!AI124 -> 0 | AM126: ='DetailedBudget---TXST'!LE124 -> 0 | AO126: =AM126+AL126 -> 0 | AP126: =AO126 -> 0 | AT126: =ROUND('DetailedBudget---TXST'!AL124*(1+'DetailedBudget---TXST'!CS124)*(1+'DetailedBudget---TXST'!CX124),2)*'R&R Budget conversion'!AU125 -> 0 | AW126: ='DetailedBudget---TXST'!AV124 -> 0 | BA126: ='DetailedBudget---TXST'!AX124 -> 0 | BB126: ='DetailedBudget---TXST'!LT124 -> 0 | BD126: =BB126+BA126 -> 0 | BE126: =BD126 -> 0 | BI126: =ROUND('DetailedBudget---TXST'!BA124*(1+'DetailedBudget---TXST'!DH124)*(1+'DetailedBudget---TXST'!DM124),2)*'R&R Budget conversion'!BJ125 -> 0 | BL126: ='DetailedBudget---TXST'!BK124 -> 0 | BP126: ='DetailedBudget---TXST'!BM124 -> 0 | BQ126: ='DetailedBudget---TXST'!MI124 -> 0 | BS126: =BQ126+BP126 -> 0 | BT126: =BS126 -> 0
A128: --------------- Additional Senior/Key Person 3 --------------- | P128: --------------- Additional Senior/Key Person 3 --------------- | AE128: --------------- Additional Senior/Key Person 3 --------------- | AT128: --------------- Additional Senior/Key Person 3 --------------- | BI128: --------------- Additional Senior/Key Person 3 ---------------
A129: Prefix | C129: Name | F129: Suffix | P129: Prefix | R129: Name | U129: Suffix | AE129: Prefix | AG129: Name | AJ129: Suffix | AT129: Prefix | AV129: Name | AY129: Suffix | BI129: Prefix | BK129: Name | BN129: Suffix
C130: ='DetailedBudget---TXST'!$F125 -> 0 | R130: ='DetailedBudget---TXST'!$F125 -> 0 | AG130: ='DetailedBudget---TXST'!$F125 -> 0 | AV130: ='DetailedBudget---TXST'!$F125 -> 0 | BK130: ='DetailedBudget---TXST'!$F125 -> 0
A132: Project Role | P132: Project Role | AE132: Project Role | AT132: Project Role | BI132: Project Role
A135: Base Salary | B135: 0 | D135: Cal/Acad./Summer | H135: Req. Salary | I135: Fringe | K135: Total (Sal & Fringe) | L135: Federal | M135: Non-Federal | P135: Base Salary | Q135: 0 | S135: Cal/Acad./Summer | W135: Req. Salary | X135: Fringe | Z135: Total (Sal & Fringe) | AA135: Federal | AB135: Non-Federal | AE135: Base Salary | AF135: 0 | AH135: Cal/Acad./Summer | AL135: Req. Salary | AM135: Fringe | AO135: Total (Sal & Fringe) | AP135: Federal | AQ135: Non-Federal | AT135: Base Salary | AU135: 0 | AW135: Cal/Acad./Summer | BA135: Req. Salary | BB135: Fringe | BD135: Total (Sal & Fringe) | BE135: Federal | BF135: Non-Federal | BI135: Base Salary | BJ135: 0 | BL135: Cal/Acad./Summer | BP135: Req. Salary | BQ135: Fringe | BS135: Total (Sal & Fringe) | BT135: Federal | BU135: Non-Federal
A136: =ROUND('DetailedBudget---TXST'!H125*(1+'DetailedBudget---TXST'!BO125)*'R&R Budget conversion'!B135,2) -> 0 | D136: ='DetailedBudget---TXST'!M125 -> 0 | H136: ='DetailedBudget---TXST'!O125 -> 0 | I136: ='DetailedBudget---TXST'!KK125 -> 0 | K136: =I136+H136 -> 0 | L136: =K136 -> 0 | M136: zero dollars | P136: =ROUND('DetailedBudget---TXST'!H125*(1+'DetailedBudget---TXST'!BO125)*(1+'DetailedBudget---TXST'!BT125),2)*'R&R Budget conversion'!Q135 -> 0 | S136: ='DetailedBudget---TXST'!R125 -> 0 | W136: ='DetailedBudget---TXST'!T125 -> 0 | X136: ='DetailedBudget---TXST'!KP125 -> 0 | Z136: =X136+W136 -> 0 | AA136: =Z136 -> 0 | AE136: =ROUND('DetailedBudget---TXST'!W125*(1+'DetailedBudget---TXST'!CD125)*(1+'DetailedBudget---TXST'!CI125),2)*'R&R Budget conversion'!AF135 -> 0 | AH136: ='DetailedBudget---TXST'!AG125 -> 0 | AL136: ='DetailedBudget---TXST'!AI125 -> 0 | AM136: ='DetailedBudget---TXST'!LE125 -> 0 | AO136: =AM136+AL136 -> 0 | AP136: =AO136 -> 0 | AT136: =ROUND('DetailedBudget---TXST'!AL125*(1+'DetailedBudget---TXST'!CS125)*(1+'DetailedBudget---TXST'!CX125),2)*'R&R Budget conversion'!AU135 -> 0 | AW136: ='DetailedBudget---TXST'!AV125 -> 0 | BA136: ='DetailedBudget---TXST'!AX125 -> 0 | BB136: ='DetailedBudget---TXST'!LT125 -> 0 | BD136: =BB136+BA136 -> 0 | BE136: =BD136 -> 0 | BI136: =ROUND('DetailedBudget---TXST'!BA125*(1+'DetailedBudget---TXST'!DH125)*(1+'DetailedBudget---TXST'!DM125),2)*'R&R Budget conversion'!BJ135 -> 0 | BL136: ='DetailedBudget---TXST'!BK125 -> 0 | BP136: ='DetailedBudget---TXST'!BM125 -> 0 | BQ136: ='DetailedBudget---TXST'!MI125 -> 0 | BS136: =BQ136+BP136 -> 0 | BT136: =BS136 -> 0
A138: --------------- Additional Senior/Key Person 4 --------------- | P138: --------------- Additional Senior/Key Person 4 --------------- | AE138: --------------- Additional Senior/Key Person 4 --------------- | AT138: --------------- Additional Senior/Key Person 4 --------------- | BI138: --------------- Additional Senior/Key Person 4 ---------------
A139: Prefix | C139: Name | F139: Suffix | P139: Prefix | R139: Name | U139: Suffix | AE139: Prefix | AG139: Name | AJ139: Suffix | AT139: Prefix | AV139: Name | AY139: Suffix | BI139: Prefix | BK139: Name | BN139: Suffix
C140: ='DetailedBudget---TXST'!$F126 -> 0 | R140: ='DetailedBudget---TXST'!$F126 -> 0 | AG140: ='DetailedBudget---TXST'!$F126 -> 0 | AV140: ='DetailedBudget---TXST'!$F126 -> 0 | BK140: ='DetailedBudget---TXST'!$F126 -> 0
A142: Project Role | P142: Project Role | AE142: Project Role | AT142: Project Role | BI142: Project Role
A145: Base Salary | B145: 0 | D145: Cal/Acad./Summer | H145: Req. Salary | I145: Fringe | K145: Total (Sal & Fringe) | L145: Federal | M145: Non-Federal | P145: Base Salary | Q145: 0 | S145: Cal/Acad./Summer | W145: Req. Salary | X145: Fringe | Z145: Total (Sal & Fringe) | AA145: Federal | AB145: Non-Federal | AE145: Base Salary | AF145: 0 | AH145: Cal/Acad./Summer | AL145: Req. Salary | AM145: Fringe | AO145: Total (Sal & Fringe) | AP145: Federal | AQ145: Non-Federal | AT145: Base Salary | AU145: 0 | AW145: Cal/Acad./Summer | BA145: Req. Salary | BB145: Fringe | BD145: Total (Sal & Fringe) | BE145: Federal | BF145: Non-Federal | BI145: Base Salary | BJ145: 0 | BL145: Cal/Acad./Summer | BP145: Req. Salary | BQ145: Fringe | BS145: Total (Sal & Fringe) | BT145: Federal | BU145: Non-Federal
A146: =ROUND('DetailedBudget---TXST'!H126*(1+'DetailedBudget---TXST'!BO126)*'R&R Budget conversion'!B145,2) -> 0 | D146: ='DetailedBudget---TXST'!M126 -> 0 | H146: ='DetailedBudget---TXST'!O126 -> 0 | I146: ='DetailedBudget---TXST'!KK126 -> 0 | K146: =I146+H146 -> 0 | L146: =K146 -> 0 | M146: zero dollars | P146: =ROUND('DetailedBudget---TXST'!W126*(1+'DetailedBudget---TXST'!CD126)*'R&R Budget conversion'!Q145,2) -> 0 | S146: ='DetailedBudget---TXST'!R126 -> 0 | W146: ='DetailedBudget---TXST'!T126 -> 0 | X146: ='DetailedBudget---TXST'!KP126 -> 0 | Z146: =X146+W146 -> 0 | AA146: =Z146 -> 0 | AE146: =ROUND('DetailedBudget---TXST'!AL126*(1+'DetailedBudget---TXST'!CS126)*'R&R Budget conversion'!AF145,2) -> 0 | AH146: ='DetailedBudget---TXST'!AG126 -> 0 | AL146: ='DetailedBudget---TXST'!AI126 -> 0 | AM146: ='DetailedBudget---TXST'!LE126 -> 0 | AO146: =AM146+AL146 -> 0 | AP146: =AO146 -> 0 | AT146: =ROUND('DetailedBudget---TXST'!BA126*(1+'DetailedBudget---TXST'!DH126)*'R&R Budget conversion'!AU145,2) -> 0 | AW146: ='DetailedBudget---TXST'!AV126 -> 0 | BA146: ='DetailedBudget---TXST'!AX126 -> 0 | BB146: ='DetailedBudget---TXST'!LT126 -> 0 | BD146: =BB146+BA146 -> 0 | BE146: =BD146 -> 0 | BI146: =ROUND('DetailedBudget---TXST'!BP126*(1+'DetailedBudget---TXST'!DW126)*'R&R Budget conversion'!BJ145,2) -> 0 | BL146: ='DetailedBudget---TXST'!BK126 -> 0 | BP146: ='DetailedBudget---TXST'!BM126 -> 0 | BQ146: ='DetailedBudget---TXST'!MI126 -> 0 | BS146: =BQ146+BP146 -> 0 | BT146: =BS146 -> 0
A148: --------------- Additional Senior/Key Person 5 --------------- | P148: --------------- Additional Senior/Key Person 5 --------------- | AE148: --------------- Additional Senior/Key Person 5 --------------- | AT148: --------------- Additional Senior/Key Person 5 --------------- | BI148: --------------- Additional Senior/Key Person 5 ---------------
A149: Prefix | C149: Name | F149: Suffix | P149: Prefix | R149: Name | U149: Suffix | AE149: Prefix | AG149: Name | AJ149: Suffix | AT149: Prefix | AV149: Name | AY149: Suffix | BI149: Prefix | BK149: Name | BN149: Suffix
C150: ='DetailedBudget---TXST'!$F127 -> 0 | R150: ='DetailedBudget---TXST'!$F127 -> 0 | AG150: ='DetailedBudget---TXST'!$F127 -> 0 | AV150: ='DetailedBudget---TXST'!$F127 -> 0 | BK150: ='DetailedBudget---TXST'!$F127 -> 0
A152: Project Role | P152: Project Role | AE152: Project Role | AT152: Project Role | BI152: Project Role
A155: Base Salary | B155: 0 | D155: Cal/Acad./Summer | H155: Req. Salary | I155: Fringe | K155: Total (Sal & Fringe) | L155: Federal | M155: Non-Federal | P155: Base Salary | Q155: 0 | S155: Cal/Acad./Summer | W155: Req. Salary | X155: Fringe | Z155: Total (Sal & Fringe) | AA155: Federal | AB155: Non-Federal | AE155: Base Salary | AF155: 0 | AH155: Cal/Acad./Summer | AL155: Req. Salary | AM155: Fringe | AO155: Total (Sal & Fringe) | AP155: Federal | AQ155: Non-Federal | AT155: Base Salary | AU155: 0 | AW155: Cal/Acad./Summer | BA155: Req. Salary | BB155: Fringe | BD155: Total (Sal & Fringe) | BE155: Federal | BF155: Non-Federal | BI155: Base Salary | BJ155: 0 | BL155: Cal/Acad./Summer | BP155: Req. Salary | BQ155: Fringe | BS155: Total (Sal & Fringe) | BT155: Federal | BU155: Non-Federal
A156: =ROUND('DetailedBudget---TXST'!H127*(1+'DetailedBudget---TXST'!BO127)*'R&R Budget conversion'!B155,2) -> 0 | D156: ='DetailedBudget---TXST'!M127 -> 0 | H156: ='DetailedBudget---TXST'!O127 -> 0 | I156: ='DetailedBudget---TXST'!KK127 -> 0 | K156: =I156+H156 -> 0 | L156: =K156 -> 0 | M156: zero dollars | P156: =ROUND('DetailedBudget---TXST'!W127*(1+'DetailedBudget---TXST'!CD127)*'R&R Budget conversion'!Q155,2) -> 0 | S156: ='DetailedBudget---TXST'!R127 -> 0 | W156: ='DetailedBudget---TXST'!T127 -> 0 | X156: ='DetailedBudget---TXST'!KP127 -> 0 | Z156: =X156+W156 -> 0 | AA156: =Z156 -> 0 | AE156: =ROUND('DetailedBudget---TXST'!AL127*(1+'DetailedBudget---TXST'!CS127)*'R&R Budget conversion'!AF155,2) -> 0 | AH156: ='DetailedBudget---TXST'!AG127 -> 0 | AL156: ='DetailedBudget---TXST'!AI127 -> 0 | AM156: ='DetailedBudget---TXST'!LE127 -> 0 | AO156: =AM156+AL156 -> 0 | AP156: =AO156 -> 0 | AT156: =ROUND('DetailedBudget---TXST'!BA127*(1+'DetailedBudget---TXST'!DH127)*'R&R Budget conversion'!AU155,2) -> 0 | AW156: ='DetailedBudget---TXST'!AV127 -> 0 | BA156: ='DetailedBudget---TXST'!AX127 -> 0 | BB156: ='DetailedBudget---TXST'!LT127 -> 0 | BD156: =BB156+BA156 -> 0 | BE156: =BD156 -> 0 | BI156: =ROUND('DetailedBudget---TXST'!BP127*(1+'DetailedBudget---TXST'!DW127)*'R&R Budget conversion'!BJ155,2) -> 0 | BL156: ='DetailedBudget---TXST'!BK127 -> 0 | BP156: ='DetailedBudget---TXST'!BM127 -> 0 | BQ156: ='DetailedBudget---TXST'!MI127 -> 0 | BS156: =BQ156+BP156 -> 0 | BT156: =BS156 -> 0
A158: --------------- Additional Senior/Key Person 6 --------------- | P158: --------------- Additional Senior/Key Person 6 --------------- | AE158: --------------- Additional Senior/Key Person 6 --------------- | AT158: --------------- Additional Senior/Key Person 6 --------------- | BI158: --------------- Additional Senior/Key Person 6 ---------------
A159: Prefix | C159: Name | F159: Suffix | P159: Prefix | R159: Name | U159: Suffix | AE159: Prefix | AG159: Name | AJ159: Suffix | AT159: Prefix | AV159: Name | AY159: Suffix | BI159: Prefix | BK159: Name | BN159: Suffix
C160: ='DetailedBudget---TXST'!$F148 -> 0 | R160: ='DetailedBudget---TXST'!$F148 -> 0 | AG160: ='DetailedBudget---TXST'!$F148 -> 0 | AV160: ='DetailedBudget---TXST'!$F148 -> 0 | BK160: ='DetailedBudget---TXST'!$F148 -> 0
A162: Project Role | P162: Project Role | AE162: Project Role | AT162: Project Role | BI162: Project Role
A165: Base Salary | B165: 0 | D165: Cal/Acad./Summer | H165: Req. Salary | I165: Fringe | K165: Total (Sal & Fringe) | L165: Federal | M165: Non-Federal | P165: Base Salary | Q165: 0 | S165: Cal/Acad./Summer | W165: Req. Salary | X165: Fringe | Z165: Total (Sal & Fringe) | AA165: Federal | AB165: Non-Federal | AE165: Base Salary | AF165: 0 | AH165: Cal/Acad./Summer | AL165: Req. Salary | AM165: Fringe | AO165: Total (Sal & Fringe) | AP165: Federal | AQ165: Non-Federal | AT165: Base Salary | AU165: 0 | AW165: Cal/Acad./Summer | BA165: Req. Salary | BB165: Fringe | BD165: Total (Sal & Fringe) | BE165: Federal | BF165: Non-Federal | BI165: Base Salary | BJ165: 0 | BL165: Cal/Acad./Summer | BP165: Req. Salary | BQ165: Fringe | BS165: Total (Sal & Fringe) | BT165: Federal | BU165: Non-Federal
A166: =ROUND('DetailedBudget---TXST'!H148*(1+'DetailedBudget---TXST'!BO148)*'R&R Budget conversion'!B165,2) -> 0 | D166: ='DetailedBudget---TXST'!M148 -> 0 | H166: ='DetailedBudget---TXST'!O148 -> 0 | I166: ='DetailedBudget---TXST'!KK148 -> 0 | K166: =I166+H166 -> 0 | L166: =K166 -> 0 | M166: zero dollars | P166: =ROUND('DetailedBudget---TXST'!W148*(1+'DetailedBudget---TXST'!CD148)*'R&R Budget conversion'!Q165,2) -> 0 | S166: ='DetailedBudget---TXST'!R148 -> 0 | W166: ='DetailedBudget---TXST'!T148 -> 0 | X166: ='DetailedBudget---TXST'!KP148 -> 0 | Z166: =X166+W166 -> 0 | AA166: =Z166 -> 0 | AE166: =ROUND('DetailedBudget---TXST'!AL148*(1+'DetailedBudget---TXST'!CS148)*'R&R Budget conversion'!AF165,2) -> 0 | AH166: ='DetailedBudget---TXST'!AG148 -> 0 | AL166: ='DetailedBudget---TXST'!AI148 -> 0 | AM166: ='DetailedBudget---TXST'!LE148 -> 0 | AO166: =AM166+AL166 -> 0 | AP166: =AO166 -> 0 | AT166: =ROUND('DetailedBudget---TXST'!BA148*(1+'DetailedBudget---TXST'!DH148)*'R&R Budget conversion'!AU165,2) -> 0 | AW166: ='DetailedBudget---TXST'!AV148 -> 0 | BA166: ='DetailedBudget---TXST'!AX148 -> 0 | BB166: ='DetailedBudget---TXST'!LT148 -> 0 | BD166: =BB166+BA166 -> 0 | BE166: =BD166 -> 0 | BI166: =ROUND('DetailedBudget---TXST'!BP148*(1+'DetailedBudget---TXST'!DW148)*'R&R Budget conversion'!BJ165,2) -> 0 | BL166: ='DetailedBudget---TXST'!BK148 -> 0 | BP166: ='DetailedBudget---TXST'!BM148 -> 0 | BQ166: ='DetailedBudget---TXST'!MI148 -> 0 | BS166: =BQ166+BP166 -> 0 | BT166: =BS166 -> 0
A168: --------------- Additional Senior/Key Person 7 --------------- | P168: --------------- Additional Senior/Key Person 7 --------------- | AE168: --------------- Additional Senior/Key Person 7 --------------- | AT168: --------------- Additional Senior/Key Person 7 --------------- | BI168: --------------- Additional Senior/Key Person 7 ---------------
A169: Prefix | C169: Name | F169: Suffix | P169: Prefix | R169: Name | U169: Suffix | AE169: Prefix | AG169: Name | AJ169: Suffix | AT169: Prefix | AV169: Name | AY169: Suffix | BI169: Prefix | BK169: Name | BN169: Suffix
C170: ='DetailedBudget---TXST'!$F149 -> 0 | R170: ='DetailedBudget---TXST'!$F149 -> 0 | AG170: ='DetailedBudget---TXST'!$F149 -> 0 | AV170: ='DetailedBudget---TXST'!$F149 -> 0 | BK170: ='DetailedBudget---TXST'!$F149 -> 0
A172: Project Role | P172: Project Role | AE172: Project Role | AT172: Project Role | BI172: Project Role
A175: Base Salary | B175: 0 | D175: Cal/Acad./Summer | H175: Req. Salary | I175: Fringe | K175: Total (Sal & Fringe) | L175: Federal | M175: Non-Federal | P175: Base Salary | Q175: 0 | S175: Cal/Acad./Summer | W175: Req. Salary | X175: Fringe | Z175: Total (Sal & Fringe) | AA175: Federal | AB175: Non-Federal | AE175: Base Salary | AF175: 0 | AH175: Cal/Acad./Summer | AL175: Req. Salary | AM175: Fringe | AO175: Total (Sal & Fringe) | AP175: Federal | AQ175: Non-Federal | AT175: Base Salary | AU175: 0 | AW175: Cal/Acad./Summer | BA175: Req. Salary | BB175: Fringe | BD175: Total (Sal & Fringe) | BE175: Federal | BF175: Non-Federal | BI175: Base Salary | BJ175: 0 | BL175: Cal/Acad./Summer | BP175: Req. Salary | BQ175: Fringe | BS175: Total (Sal & Fringe) | BT175: Federal | BU175: Non-Federal
A176: =ROUND('DetailedBudget---TXST'!H149*(1+'DetailedBudget---TXST'!BO149)*'R&R Budget conversion'!B175,2) -> 0 | D176: ='DetailedBudget---TXST'!M149 -> 0 | H176: ='DetailedBudget---TXST'!O149 -> 0 | I176: ='DetailedBudget---TXST'!KK149 -> 0 | K176: =I176+H176 -> 0 | L176: =K176 -> 0 | M176: zero dollars | P176: =ROUND('DetailedBudget---TXST'!W149*(1+'DetailedBudget---TXST'!CD149)*'R&R Budget conversion'!Q175,2) -> 0 | S176: ='DetailedBudget---TXST'!R149 -> 0 | W176: ='DetailedBudget---TXST'!T149 -> 0 | X176: ='DetailedBudget---TXST'!KP149 -> 0 | Z176: =X176+W176 -> 0 | AA176: =Z176 -> 0 | AE176: =ROUND('DetailedBudget---TXST'!AL149*(1+'DetailedBudget---TXST'!CS149)*'R&R Budget conversion'!AF175,2) -> 0 | AH176: ='DetailedBudget---TXST'!AG149 -> 0 | AL176: ='DetailedBudget---TXST'!AI149 -> 0 | AM176: ='DetailedBudget---TXST'!LE149 -> 0 | AO176: =AM176+AL176 -> 0 | AP176: =AO176 -> 0 | AT176: =ROUND('DetailedBudget---TXST'!BA149*(1+'DetailedBudget---TXST'!DH149)*'R&R Budget conversion'!AU175,2) -> 0 | AW176: ='DetailedBudget---TXST'!AV149 -> 0 | BA176: ='DetailedBudget---TXST'!AX149 -> 0 | BB176: ='DetailedBudget---TXST'!LT149 -> 0 | BD176: =BB176+BA176 -> 0 | BE176: =BD176 -> 0 | BI176: =ROUND('DetailedBudget---TXST'!BP149*(1+'DetailedBudget---TXST'!DW149)*'R&R Budget conversion'!BJ175,2) -> 0 | BL176: ='DetailedBudget---TXST'!BK149 -> 0 | BP176: ='DetailedBudget---TXST'!BM149 -> 0 | BQ176: ='DetailedBudget---TXST'!MI149 -> 0 | BS176: =BQ176+BP176 -> 0 | BT176: =BS176 -> 0
A178: --------------- Additional Senior/Key Person 8 --------------- | P178: --------------- Additional Senior/Key Person 8 --------------- | AE178: --------------- Additional Senior/Key Person 8 --------------- | AT178: --------------- Additional Senior/Key Person 8 --------------- | BI178: --------------- Additional Senior/Key Person 8 ---------------
A179: Prefix | C179: Name | F179: Suffix | P179: Prefix | R179: Name | U179: Suffix | AE179: Prefix | AG179: Name | AJ179: Suffix | AT179: Prefix | AV179: Name | AY179: Suffix | BI179: Prefix | BK179: Name | BN179: Suffix
C180: ='DetailedBudget---TXST'!$F150 ->  | R180: ='DetailedBudget---TXST'!$F150 ->  | AG180: ='DetailedBudget---TXST'!$F150 ->  | AV180: ='DetailedBudget---TXST'!$F150 ->  | BK180: ='DetailedBudget---TXST'!$F150 -> 
A182: Project Role | P182: Project Role | AE182: Project Role | AT182: Project Role | BI182: Project Role
A185: Base Salary | B185: 0 | D185: Cal/Acad./Summer | H185: Req. Salary | I185: Fringe | K185: Total (Sal & Fringe) | L185: Federal | M185: Non-Federal | P185: Base Salary | Q185: 0 | S185: Cal/Acad./Summer | W185: Req. Salary | X185: Fringe | Z185: Total (Sal & Fringe) | AA185: Federal | AB185: Non-Federal | AE185: Base Salary | AF185: 0 | AH185: Cal/Acad./Summer | AL185: Req. Salary | AM185: Fringe | AO185: Total (Sal & Fringe) | AP185: Federal | AQ185: Non-Federal | AT185: Base Salary | AU185: 0 | AW185: Cal/Acad./Summer | BA185: Req. Salary | BB185: Fringe | BD185: Total (Sal & Fringe) | BE185: Federal | BF185: Non-Federal | BI185: Base Salary | BJ185: 0 | BL185: Cal/Acad./Summer | BP185: Req. Salary | BQ185: Fringe | BS185: Total (Sal & Fringe) | BT185: Federal | BU185: Non-Federal
A186: =ROUND('DetailedBudget---TXST'!H150*(1+'DetailedBudget---TXST'!BO150)*'R&R Budget conversion'!B185,2) ->  | D186: ='DetailedBudget---TXST'!M150 ->  | H186: ='DetailedBudget---TXST'!O150 ->  | I186: ='DetailedBudget---TXST'!KK150 ->  | K186: =I186+H186 ->  | L186: =K186 ->  | M186: zero dollars | P186: =ROUND('DetailedBudget---TXST'!W150*(1+'DetailedBudget---TXST'!CD150)*'R&R Budget conversion'!Q185,2) ->  | S186: ='DetailedBudget---TXST'!R150 ->  | W186: ='DetailedBudget---TXST'!T150 ->  | X186: ='DetailedBudget---TXST'!KP150 -> 0 | Z186: =X186+W186 ->  | AA186: =Z186 ->  | AE186: =ROUND('DetailedBudget---TXST'!AL150*(1+'DetailedBudget---TXST'!CS150)*'R&R Budget conversion'!AF185,2) ->  | AH186: ='DetailedBudget---TXST'!AG150 ->  | AL186: ='DetailedBudget---TXST'!AI150 ->  | AM186: ='DetailedBudget---TXST'!LE150 -> 0 | AO186: =AM186+AL186 ->  | AP186: =AO186 ->  | AT186: =ROUND('DetailedBudget---TXST'!BA150*(1+'DetailedBudget---TXST'!DH150)*'R&R Budget conversion'!AU185,2) ->  | AW186: ='DetailedBudget---TXST'!AV150 ->  | BA186: ='DetailedBudget---TXST'!AX150 ->  | BB186: ='DetailedBudget---TXST'!LT150 -> 0 | BD186: =BB186+BA186 ->  | BE186: =BD186 ->  | BI186: =ROUND('DetailedBudget---TXST'!BP150*(1+'DetailedBudget---TXST'!DW150)*'R&R Budget conversion'!BJ185,2) -> 0 | BL186: ='DetailedBudget---TXST'!BK150 ->  | BP186: ='DetailedBudget---TXST'!BM150 -> 0 | BQ186: ='DetailedBudget---TXST'!MI150 -> 0 | BS186: =BQ186+BP186 -> 0 | BT186: =BS186 -> 0
A188: --------------- Additional Senior/Key Person 9 --------------- | P188: --------------- Additional Senior/Key Person 9 --------------- | AE188: --------------- Additional Senior/Key Person 9 --------------- | AT188: --------------- Additional Senior/Key Person 9 --------------- | BI188: --------------- Additional Senior/Key Person 9 ---------------
A189: Prefix | C189: Name | F189: Suffix | P189: Prefix | R189: Name | U189: Suffix | AE189: Prefix | AG189: Name | AJ189: Suffix | AT189: Prefix | AV189: Name | AY189: Suffix | BI189: Prefix | BK189: Name | BN189: Suffix
C190: ='DetailedBudget---TXST'!$F151 -> 0 | R190: ='DetailedBudget---TXST'!$F151 -> 0 | AG190: ='DetailedBudget---TXST'!$F151 -> 0 | AV190: ='DetailedBudget---TXST'!$F151 -> 0 | BK190: ='DetailedBudget---TXST'!$F151 -> 0
A192: Project Role | P192: Project Role | AE192: Project Role | AT192: Project Role | BI192: Project Role
A195: Base Salary | B195: 0 | D195: Cal/Acad./Summer | H195: Req. Salary | I195: Fringe | K195: Total (Sal & Fringe) | L195: Federal | M195: Non-Federal | P195: Base Salary | Q195: 0 | S195: Cal/Acad./Summer | W195: Req. Salary | X195: Fringe | Z195: Total (Sal & Fringe) | AA195: Federal | AB195: Non-Federal | AE195: Base Salary | AF195: 0 | AH195: Cal/Acad./Summer | AL195: Req. Salary | AM195: Fringe | AO195: Total (Sal & Fringe) | AP195: Federal | AQ195: Non-Federal | AT195: Base Salary | AU195: 0 | AW195: Cal/Acad./Summer | BA195: Req. Salary | BB195: Fringe | BD195: Total (Sal & Fringe) | BE195: Federal | BF195: Non-Federal | BI195: Base Salary | BJ195: 0 | BL195: Cal/Acad./Summer | BP195: Req. Salary | BQ195: Fringe | BS195: Total (Sal & Fringe) | BT195: Federal | BU195: Non-Federal
A196: =ROUND('DetailedBudget---TXST'!H151*(1+'DetailedBudget---TXST'!BO151)*'R&R Budget conversion'!B195,2) ->  | D196: ='DetailedBudget---TXST'!M151 ->  | H196: ='DetailedBudget---TXST'!O151 -> 0 | I196: ='DetailedBudget---TXST'!KK151 ->  | K196: =I196+H196 ->  | L196: =K196 ->  | M196: zero dollars | P196: =ROUND('DetailedBudget---TXST'!W151*(1+'DetailedBudget---TXST'!CD151)*'R&R Budget conversion'!Q195,2) ->  | S196: ='DetailedBudget---TXST'!R151 ->  | W196: ='DetailedBudget---TXST'!T151 -> 0 | X196: ='DetailedBudget---TXST'!KP151 -> 0 | Z196: =X196+W196 -> 0 | AA196: =Z196 -> 0 | AE196: =ROUND('DetailedBudget---TXST'!AL151*(1+'DetailedBudget---TXST'!CS151)*'R&R Budget conversion'!AF195,2) ->  | AH196: ='DetailedBudget---TXST'!AG151 ->  | AL196: ='DetailedBudget---TXST'!AI151 -> 0 | AM196: ='DetailedBudget---TXST'!LE151 -> 0 | AO196: =AM196+AL196 -> 0 | AP196: =AO196 -> 0 | AT196: =ROUND('DetailedBudget---TXST'!BA151*(1+'DetailedBudget---TXST'!DH151)*'R&R Budget conversion'!AU195,2) ->  | AW196: ='DetailedBudget---TXST'!AV151 ->  | BA196: ='DetailedBudget---TXST'!AX151 -> 0 | BB196: ='DetailedBudget---TXST'!LT151 -> 0 | BD196: =BB196+BA196 -> 0 | BE196: =BD196 -> 0 | BI196: =ROUND('DetailedBudget---TXST'!BP151*(1+'DetailedBudget---TXST'!DW151)*'R&R Budget conversion'!BJ195,2) -> 0 | BL196: ='DetailedBudget---TXST'!BK151 -> 0 | BP196: ='DetailedBudget---TXST'!BM151 -> 0 | BQ196: ='DetailedBudget---TXST'!MI151 -> 0 | BS196: =BQ196+BP196 -> 0 | BT196: =BS196 -> 0
A198: --------------- Additional Senior/Key Person 10 --------------- | P198: --------------- Additional Senior/Key Person 10 --------------- | AE198: --------------- Additional Senior/Key Person 10 --------------- | AT198: --------------- Additional Senior/Key Person 10 --------------- | BI198: --------------- Additional Senior/Key Person 10 ---------------
A199: Prefix | C199: Name | F199: Suffix | P199: Prefix | R199: Name | U199: Suffix | AE199: Prefix | AG199: Name | AJ199: Suffix | AT199: Prefix | AV199: Name | AY199: Suffix | BI199: Prefix | BK199: Name | BN199: Suffix
C200: ='DetailedBudget---TXST'!$F152 ->  | R200: ='DetailedBudget---TXST'!$F152 ->  | AG200: ='DetailedBudget---TXST'!$F152 ->  | AV200: ='DetailedBudget---TXST'!$F152 ->  | BK200: ='DetailedBudget---TXST'!$F152 -> 
A202: Project Role | P202: Project Role | AE202: Project Role | AT202: Project Role | BI202: Project Role
A205: Base Salary | B205: 0 | D205: Cal/Acad./Summer | H205: Req. Salary | I205: Fringe | K205: Total (Sal & Fringe) | L205: Federal | M205: Non-Federal | P205: Base Salary | Q205: 0 | S205: Cal/Acad./Summer | W205: Req. Salary | X205: Fringe | Z205: Total (Sal & Fringe) | AA205: Federal | AB205: Non-Federal | AE205: Base Salary | AF205: 0 | AH205: Cal/Acad./Summer | AL205: Req. Salary | AM205: Fringe | AO205: Total (Sal & Fringe) | AP205: Federal | AQ205: Non-Federal | AT205: Base Salary | AU205: 0 | AW205: Cal/Acad./Summer | BA205: Req. Salary | BB205: Fringe | BD205: Total (Sal & Fringe) | BE205: Federal | BF205: Non-Federal | BI205: Base Salary | BJ205: 0 | BL205: Cal/Acad./Summer | BP205: Req. Salary | BQ205: Fringe | BS205: Total (Sal & Fringe) | BT205: Federal | BU205: Non-Federal
A206: =ROUND('DetailedBudget---TXST'!H152*(1+'DetailedBudget---TXST'!BO152)*'R&R Budget conversion'!B205,2) ->  | D206: ='DetailedBudget---TXST'!M152 ->  | H206: ='DetailedBudget---TXST'!O152 ->  | I206: ='DetailedBudget---TXST'!KK152 ->  | K206: =I206+H206 ->  | L206: =K206 ->  | M206: zero dollars | P206: =ROUND('DetailedBudget---TXST'!W152*(1+'DetailedBudget---TXST'!CD152)*'R&R Budget conversion'!Q205,2) ->  | S206: ='DetailedBudget---TXST'!R152 ->  | W206: ='DetailedBudget---TXST'!T152 ->  | X206: ='DetailedBudget---TXST'!KP152 -> 0 | Z206: =X206+W206 ->  | AA206: =Z206 ->  | AE206: =ROUND('DetailedBudget---TXST'!AL152*(1+'DetailedBudget---TXST'!CS152)*'R&R Budget conversion'!AF205,2) ->  | AH206: ='DetailedBudget---TXST'!AG152 ->  | AL206: ='DetailedBudget---TXST'!AI152 ->  | AM206: ='DetailedBudget---TXST'!LE152 -> 0 | AO206: =AM206+AL206 ->  | AP206: =AO206 ->  | AT206: =ROUND('DetailedBudget---TXST'!BA152*(1+'DetailedBudget---TXST'!DH152)*'R&R Budget conversion'!AU205,2) ->  | AW206: ='DetailedBudget---TXST'!AV152 ->  | BA206: ='DetailedBudget---TXST'!AX152 ->  | BB206: ='DetailedBudget---TXST'!LT152 -> 0 | BD206: =BB206+BA206 ->  | BE206: =BD206 ->  | BI206: =ROUND('DetailedBudget---TXST'!BP152*(1+'DetailedBudget---TXST'!DW152)*'R&R Budget conversion'!BJ205,2) -> 0 | BL206: ='DetailedBudget---TXST'!BK152 ->  | BP206: ='DetailedBudget---TXST'!BM152 -> 0 | BQ206: ='DetailedBudget---TXST'!MI152 -> 0 | BS206: =BQ206+BP206 -> 0 | BT206: =BS206 -> 0
A208: --------------- Additional Senior/Key Person 10 --------------- | P208: --------------- Additional Senior/Key Person 10 --------------- | AE208: --------------- Additional Senior/Key Person 10 --------------- | AT208: --------------- Additional Senior/Key Person 10 --------------- | BI208: --------------- Additional Senior/Key Person 10 ---------------
A209: Prefix | C209: Name | F209: Suffix | P209: Prefix | R209: Name | U209: Suffix | AE209: Prefix | AG209: Name | AJ209: Suffix | AT209: Prefix | AV209: Name | AY209: Suffix | BI209: Prefix | BK209: Name | BN209: Suffix
C210: ='DetailedBudget---TXST'!$F223 -> 0 | R210: ='DetailedBudget---TXST'!$F223 -> 0 | AG210: ='DetailedBudget---TXST'!$F223 -> 0 | AV210: ='DetailedBudget---TXST'!$F223 -> 0 | BK210: ='DetailedBudget---TXST'!$F223 -> 0
A212: Project Role | P212: Project Role | AE212: Project Role | AT212: Project Role | BI212: Project Role
A213: PD/PI | P213: PD/PI | AE213: PD/PI | AT213: PD/PI | BI213: PD/PI
A215: Base Salary | B215: 0 | D215: Cal/Acad./Summer | H215: Req. Salary | I215: Fringe | K215: Total (Sal & Fringe) | L215: Federal | M215: Non-Federal | P215: Base Salary | Q215: 0 | S215: Cal/Acad./Summer | W215: Req. Salary | X215: Fringe | Z215: Total (Sal & Fringe) | AA215: Federal | AB215: Non-Federal | AE215: Base Salary | AF215: 0 | AH215: Cal/Acad./Summer | AL215: Req. Salary | AM215: Fringe | AO215: Total (Sal & Fringe) | AP215: Federal | AQ215: Non-Federal | AT215: Base Salary | AU215: 0 | AW215: Cal/Acad./Summer | BA215: Req. Salary | BB215: Fringe | BD215: Total (Sal & Fringe) | BE215: Federal | BF215: Non-Federal | BI215: Base Salary | BJ215: 0 | BL215: Cal/Acad./Summer | BP215: Req. Salary | BQ215: Fringe | BS215: Total (Sal & Fringe) | BT215: Federal | BU215: Non-Federal
A216: ='DetailedBudget---TXST'!GW223 -> 0 | D216: ='DetailedBudget---TXST'!M223 -> 0 | H216: ='DetailedBudget---TXST'!O223 ->  | I216: ='DetailedBudget---TXST'!KK223 -> 0 | K216: =I216+H216 ->  | L216: =K216 ->  | M216: zero dollars | P216: =ROUND('DetailedBudget---TXST'!H223*(1+'DetailedBudget---TXST'!BO223)*(1+'DetailedBudget---TXST'!BT223),2)*'R&R Budget conversion'!Q215 -> 0 | S216: ='DetailedBudget---TXST'!R223 -> 0 | W216: ='DetailedBudget---TXST'!T223 ->  | X216: ='DetailedBudget---TXST'!KP223 -> 0 | Z216: =X216+W216 ->  | AA216: =Z216 ->  | AE216: =ROUND('DetailedBudget---TXST'!W223*(1+'DetailedBudget---TXST'!$BO223)*(1+'DetailedBudget---TXST'!$BT223)+(1+'DetailedBudget---TXST'!$BY223),2)*'R&R Budget conversion'!AF215 -> 0 | AH216: ='DetailedBudget---TXST'!W223 -> 0 | AL216: ='DetailedBudget---TXST'!Y223 ->  | AM216: ='DetailedBudget---TXST'!KU223 -> 0 | AO216: =AM216+AL216 ->  | AP216: =AO216 ->  | AT216: =ROUND('DetailedBudget---TXST'!AB223*(1+'DetailedBudget---TXST'!$BO223)*(1+'DetailedBudget---TXST'!$BT223)+(1+'DetailedBudget---TXST'!$BY223)+(1+'DetailedBudget---TXST'!$CD223),2)*'R&R Budget conversion'!AU215 -> 0 | AW216: ='DetailedBudget---TXST'!AB223 -> 0 | BA216: ='DetailedBudget---TXST'!AD223 ->  | BB216: ='DetailedBudget---TXST'!KZ223 -> 0 | BD216: =BB216+BA216 ->  | BE216: =BD216 ->  | BI216: =ROUND('DetailedBudget---TXST'!AG223*(1+'DetailedBudget---TXST'!$BO223)*(1+'DetailedBudget---TXST'!$BT223)+(1+'DetailedBudget---TXST'!$BY223)+(1+'DetailedBudget---TXST'!$CD223)+(1+'DetailedBudget---TXST'!$CI223),2)*'R&R Budget conversion'!BJ215 -> 0 | BL216: ='DetailedBudget---TXST'!AG223 -> 0 | BP216: ='DetailedBudget---TXST'!AI223 ->  | BQ216: ='DetailedBudget---TXST'!LE223 -> 0 | BS216: =BQ216+BP216 ->  | BT216: =BS216 -> 
A218: --------------- Additional Senior/Key Person 2 --------------- | P218: --------------- Additional Senior/Key Person 2 --------------- | AE218: --------------- Additional Senior/Key Person 2 --------------- | AT218: --------------- Additional Senior/Key Person 2 --------------- | BI218: --------------- Additional Senior/Key Person 2 ---------------
A219: Prefix | C219: Name | F219: Suffix | P219: Prefix | R219: Name | U219: Suffix | AE219: Prefix | AG219: Name | AJ219: Suffix | AT219: Prefix | AV219: Name | AY219: Suffix | BI219: Prefix | BK219: Name | BN219: Suffix
C220: ='DetailedBudget---TXST'!F224 -> 0 | R220: ='DetailedBudget---TXST'!$F223 -> 0 | AG220: ='DetailedBudget---TXST'!$F223 -> 0 | AV220: ='DetailedBudget---TXST'!$F223 -> 0 | BK220: ='DetailedBudget---TXST'!$F223 -> 0
A222: Project Role | P222: Project Role | AE222: Project Role | AT222: Project Role | BI222: Project Role
A225: Base Salary | B225: 0 | D225: Cal/Acad./Summer | H225: Req. Salary | I225: Fringe | K225: Total (Sal & Fringe) | L225: Federal | M225: Non-Federal | P225: Base Salary | Q225: 0 | S225: Cal/Acad./Summer | W225: Req. Salary | X225: Fringe | Z225: Total (Sal & Fringe) | AA225: Federal | AB225: Non-Federal | AE225: Base Salary | AF225: 0 | AH225: Cal/Acad./Summer | AL225: Req. Salary | AM225: Fringe | AO225: Total (Sal & Fringe) | AP225: Federal | AQ225: Non-Federal | AT225: Base Salary | AU225: 0 | AW225: Cal/Acad./Summer | BA225: Req. Salary | BB225: Fringe | BD225: Total (Sal & Fringe) | BE225: Federal | BF225: Non-Federal | BI225: Base Salary | BJ225: 0 | BL225: Cal/Acad./Summer | BP225: Req. Salary | BQ225: Fringe | BS225: Total (Sal & Fringe) | BT225: Federal | BU225: Non-Federal
A226: =ROUND('DetailedBudget---TXST'!H224*(1+'DetailedBudget---TXST'!BO224)*'R&R Budget conversion'!B225,2) -> 0 | D226: ='DetailedBudget---TXST'!M224 -> 0 | H226: ='DetailedBudget---TXST'!O224 -> 0 | I226: ='DetailedBudget---TXST'!KK224 -> 0 | K226: =I226+H226 -> 0 | L226: =K226 -> 0 | M226: zero dollars | P226: =ROUND('DetailedBudget---TXST'!H224*(1+'DetailedBudget---TXST'!BO224)*(1+'DetailedBudget---TXST'!BT224),2)*'R&R Budget conversion'!Q225 -> 0 | S226: ='DetailedBudget---TXST'!R224 -> 0 | W226: ='DetailedBudget---TXST'!T224 -> 0 | X226: ='DetailedBudget---TXST'!KP224 -> 0 | Z226: =X226+W226 -> 0 | AA226: =Z226 -> 0 | AE226: =ROUND('DetailedBudget---TXST'!W224*(1+'DetailedBudget---TXST'!CD224)*(1+'DetailedBudget---TXST'!CI224),2)*'R&R Budget conversion'!AF225 -> 0 | AH226: ='DetailedBudget---TXST'!AG224 -> 0 | AL226: ='DetailedBudget---TXST'!AI224 -> 0 | AM226: ='DetailedBudget---TXST'!LE224 -> 0 | AO226: =AM226+AL226 -> 0 | AP226: =AO226 -> 0 | AT226: =ROUND('DetailedBudget---TXST'!AL224*(1+'DetailedBudget---TXST'!CS224)*(1+'DetailedBudget---TXST'!CX224),2)*'R&R Budget conversion'!AU225 -> 0 | AW226: ='DetailedBudget---TXST'!AV224 -> 0 | BA226: ='DetailedBudget---TXST'!AX224 -> 0 | BB226: ='DetailedBudget---TXST'!LT224 -> 0 | BD226: =BB226+BA226 -> 0 | BE226: =BD226 -> 0 | BI226: =ROUND('DetailedBudget---TXST'!BA224*(1+'DetailedBudget---TXST'!DH224)*(1+'DetailedBudget---TXST'!DM224),2)*'R&R Budget conversion'!BJ225 -> 0 | BL226: ='DetailedBudget---TXST'!BK224 ->  | BP226: ='DetailedBudget---TXST'!BM224 -> 0 | BQ226: ='DetailedBudget---TXST'!MI224 -> 0 | BS226: =BQ226+BP226 -> 0 | BT226: =BS226 -> 0
A228: --------------- Additional Senior/Key Person 3 --------------- | P228: --------------- Additional Senior/Key Person 3 --------------- | AE228: --------------- Additional Senior/Key Person 3 --------------- | AT228: --------------- Additional Senior/Key Person 3 --------------- | BI228: --------------- Additional Senior/Key Person 3 ---------------
A229: Prefix | C229: Name | F229: Suffix | P229: Prefix | R229: Name | U229: Suffix | AE229: Prefix | AG229: Name | AJ229: Suffix | AT229: Prefix | AV229: Name | AY229: Suffix | BI229: Prefix | BK229: Name | BN229: Suffix
C230: ='DetailedBudget---TXST'!$F225 -> 0 | R230: ='DetailedBudget---TXST'!$F225 -> 0 | AG230: ='DetailedBudget---TXST'!$F225 -> 0 | AV230: ='DetailedBudget---TXST'!$F225 -> 0 | BK230: ='DetailedBudget---TXST'!$F225 -> 0
A232: Project Role | P232: Project Role | AE232: Project Role | AT232: Project Role | BI232: Project Role
A235: Base Salary | B235: 0 | D235: Cal/Acad./Summer | H235: Req. Salary | I235: Fringe | K235: Total (Sal & Fringe) | L235: Federal | M235: Non-Federal | P235: Base Salary | Q235: 0 | S235: Cal/Acad./Summer | W235: Req. Salary | X235: Fringe | Z235: Total (Sal & Fringe) | AA235: Federal | AB235: Non-Federal | AE235: Base Salary | AF235: 0 | AH235: Cal/Acad./Summer | AL235: Req. Salary | AM235: Fringe | AO235: Total (Sal & Fringe) | AP235: Federal | AQ235: Non-Federal | AT235: Base Salary | AU235: 0 | AW235: Cal/Acad./Summer | BA235: Req. Salary | BB235: Fringe | BD235: Total (Sal & Fringe) | BE235: Federal | BF235: Non-Federal | BI235: Base Salary | BJ235: 0 | BL235: Cal/Acad./Summer | BP235: Req. Salary | BQ235: Fringe | BS235: Total (Sal & Fringe) | BT235: Federal | BU235: Non-Federal
A236: =ROUND('DetailedBudget---TXST'!H225*(1+'DetailedBudget---TXST'!BO225)*'R&R Budget conversion'!B235,2) -> 0 | D236: ='DetailedBudget---TXST'!M225 ->  | H236: ='DetailedBudget---TXST'!O225 -> 0 | I236: ='DetailedBudget---TXST'!KK225 -> 0 | K236: =I236+H236 -> 0 | L236: =K236 -> 0 | M236: zero dollars | P236: =ROUND('DetailedBudget---TXST'!H225*(1+'DetailedBudget---TXST'!BO225)*(1+'DetailedBudget---TXST'!BT225),2)*'R&R Budget conversion'!Q235 -> 0 | S236: ='DetailedBudget---TXST'!R225 -> 0 | W236: ='DetailedBudget---TXST'!T225 -> 0 | X236: ='DetailedBudget---TXST'!KP225 -> 0 | Z236: =X236+W236 -> 0 | AA236: =Z236 -> 0 | AE236: =ROUND('DetailedBudget---TXST'!W225*(1+'DetailedBudget---TXST'!CD225)*(1+'DetailedBudget---TXST'!CI225),2)*'R&R Budget conversion'!AF235 -> 0 | AH236: ='DetailedBudget---TXST'!AG225 -> 0 | AL236: ='DetailedBudget---TXST'!AI225 -> 0 | AM236: ='DetailedBudget---TXST'!LE225 -> 0 | AO236: =AM236+AL236 -> 0 | AP236: =AO236 -> 0 | AT236: =ROUND('DetailedBudget---TXST'!AL225*(1+'DetailedBudget---TXST'!CS225)*(1+'DetailedBudget---TXST'!CX225),2)*'R&R Budget conversion'!AU235 -> 0 | AW236: ='DetailedBudget---TXST'!AV225 -> 0 | BA236: ='DetailedBudget---TXST'!AX225 -> 0 | BB236: ='DetailedBudget---TXST'!LT225 -> 0 | BD236: =BB236+BA236 -> 0 | BE236: =BD236 -> 0 | BI236: =ROUND('DetailedBudget---TXST'!BA225*(1+'DetailedBudget---TXST'!DH225)*(1+'DetailedBudget---TXST'!DM225),2)*'R&R Budget conversion'!BJ235 -> 0 | BL236: ='DetailedBudget---TXST'!BK225 ->  | BP236: ='DetailedBudget---TXST'!BM225 -> 0 | BQ236: ='DetailedBudget---TXST'!MI225 -> 0 | BS236: =BQ236+BP236 -> 0 | BT236: =BS236 -> 0
A238: --------------- Additional Senior/Key Person 4 --------------- | P238: --------------- Additional Senior/Key Person 4 --------------- | AE238: --------------- Additional Senior/Key Person 4 --------------- | AT238: --------------- Additional Senior/Key Person 4 --------------- | BI238: --------------- Additional Senior/Key Person 4 ---------------
A239: Prefix | C239: Name | F239: Suffix | P239: Prefix | R239: Name | U239: Suffix | AE239: Prefix | AG239: Name | AJ239: Suffix | AT239: Prefix | AV239: Name | AY239: Suffix | BI239: Prefix | BK239: Name | BN239: Suffix
C240: ='DetailedBudget---TXST'!$F226 -> 0 | R240: ='DetailedBudget---TXST'!$F226 -> 0 | AG240: ='DetailedBudget---TXST'!$F226 -> 0 | AV240: ='DetailedBudget---TXST'!$F226 -> 0 | BK240: ='DetailedBudget---TXST'!$F226 -> 0
A242: Project Role | P242: Project Role | AE242: Project Role | AT242: Project Role | BI242: Project Role
A245: Base Salary | B245: 0 | D245: Cal/Acad./Summer | H245: Req. Salary | I245: Fringe | K245: Total (Sal & Fringe) | L245: Federal | M245: Non-Federal | P245: Base Salary | Q245: 0 | S245: Cal/Acad./Summer | W245: Req. Salary | X245: Fringe | Z245: Total (Sal & Fringe) | AA245: Federal | AB245: Non-Federal | AE245: Base Salary | AF245: 0 | AH245: Cal/Acad./Summer | AL245: Req. Salary | AM245: Fringe | AO245: Total (Sal & Fringe) | AP245: Federal | AQ245: Non-Federal | AT245: Base Salary | AU245: 0 | AW245: Cal/Acad./Summer | BA245: Req. Salary | BB245: Fringe | BD245: Total (Sal & Fringe) | BE245: Federal | BF245: Non-Federal | BI245: Base Salary | BJ245: 0 | BL245: Cal/Acad./Summer | BP245: Req. Salary | BQ245: Fringe | BS245: Total (Sal & Fringe) | BT245: Federal | BU245: Non-Federal
A246: =ROUND('DetailedBudget---TXST'!H226*(1+'DetailedBudget---TXST'!BO226)*'R&R Budget conversion'!B245,2) -> 0 | D246: ='DetailedBudget---TXST'!M226 -> 0 | H246: ='DetailedBudget---TXST'!O226 ->  | I246: ='DetailedBudget---TXST'!KK226 -> 0 | K246: =I246+H246 ->  | L246: =K246 ->  | M246: zero dollars | P246: =ROUND('DetailedBudget---TXST'!W226*(1+'DetailedBudget---TXST'!CD226)*'R&R Budget conversion'!Q245,2) -> 0 | S246: ='DetailedBudget---TXST'!R226 -> 0 | W246: ='DetailedBudget---TXST'!T226 ->  | X246: ='DetailedBudget---TXST'!KP226 -> 0 | Z246: =X246+W246 ->  | AA246: =Z246 ->  | AE246: =ROUND('DetailedBudget---TXST'!AL226*(1+'DetailedBudget---TXST'!CS226)*'R&R Budget conversion'!AF245,2) -> 0 | AH246: ='DetailedBudget---TXST'!AG226 -> 0 | AL246: ='DetailedBudget---TXST'!AI226 ->  | AM246: ='DetailedBudget---TXST'!LE226 -> 0 | AO246: =AM246+AL246 ->  | AP246: =AO246 ->  | AT246: =ROUND('DetailedBudget---TXST'!BA226*(1+'DetailedBudget---TXST'!DH226)*'R&R Budget conversion'!AU245,2) -> 0 | AW246: ='DetailedBudget---TXST'!AV226 -> 0 | BA246: ='DetailedBudget---TXST'!AX226 ->  | BB246: ='DetailedBudget---TXST'!LT226 -> 0 | BD246: =BB246+BA246 ->  | BE246: =BD246 ->  | BI246: =ROUND('DetailedBudget---TXST'!BP226*(1+'DetailedBudget---TXST'!DW226)*'R&R Budget conversion'!BJ245,2) -> 0 | BL246: ='DetailedBudget---TXST'!BK226 -> 0 | BP246: ='DetailedBudget---TXST'!BM226 -> 0 | BQ246: ='DetailedBudget---TXST'!MI226 -> 0 | BS246: =BQ246+BP246 -> 0 | BT246: =BS246 -> 0
A248: --------------- Additional Senior/Key Person 5 --------------- | P248: --------------- Additional Senior/Key Person 5 --------------- | AE248: --------------- Additional Senior/Key Person 5 --------------- | AT248: --------------- Additional Senior/Key Person 5 --------------- | BI248: --------------- Additional Senior/Key Person 5 ---------------
A249: Prefix | C249: Name | F249: Suffix | P249: Prefix | R249: Name | U249: Suffix | AE249: Prefix | AG249: Name | AJ249: Suffix | AT249: Prefix | AV249: Name | AY249: Suffix | BI249: Prefix | BK249: Name | BN249: Suffix
C250: ='DetailedBudget---TXST'!$F227 -> 0 | R250: ='DetailedBudget---TXST'!$F227 -> 0 | AG250: ='DetailedBudget---TXST'!$F227 -> 0 | AV250: ='DetailedBudget---TXST'!$F227 -> 0 | BK250: ='DetailedBudget---TXST'!$F227 -> 0
A252: Project Role | P252: Project Role | AE252: Project Role | AT252: Project Role | BI252: Project Role
A255: Base Salary | B255: 0 | D255: Cal/Acad./Summer | H255: Req. Salary | I255: Fringe | K255: Total (Sal & Fringe) | L255: Federal | M255: Non-Federal | P255: Base Salary | Q255: 0 | S255: Cal/Acad./Summer | W255: Req. Salary | X255: Fringe | Z255: Total (Sal & Fringe) | AA255: Federal | AB255: Non-Federal | AE255: Base Salary | AF255: 0 | AH255: Cal/Acad./Summer | AL255: Req. Salary | AM255: Fringe | AO255: Total (Sal & Fringe) | AP255: Federal | AQ255: Non-Federal | AT255: Base Salary | AU255: 0 | AW255: Cal/Acad./Summer | BA255: Req. Salary | BB255: Fringe | BD255: Total (Sal & Fringe) | BE255: Federal | BF255: Non-Federal | BI255: Base Salary | BJ255: 0 | BL255: Cal/Acad./Summer | BP255: Req. Salary | BQ255: Fringe | BS255: Total (Sal & Fringe) | BT255: Federal | BU255: Non-Federal
A256: =ROUND('DetailedBudget---TXST'!H227*(1+'DetailedBudget---TXST'!BO227)*'R&R Budget conversion'!B255,2) -> 0 | D256: ='DetailedBudget---TXST'!M227 -> 0 | H256: ='DetailedBudget---TXST'!O227 ->  | I256: ='DetailedBudget---TXST'!KK227 -> 0 | K256: =I256+H256 ->  | L256: =K256 ->  | M256: zero dollars | P256: =ROUND('DetailedBudget---TXST'!W227*(1+'DetailedBudget---TXST'!CD227)*'R&R Budget conversion'!Q255,2) -> 0 | S256: ='DetailedBudget---TXST'!R227 -> 0 | W256: ='DetailedBudget---TXST'!T227 ->  | X256: ='DetailedBudget---TXST'!KP227 -> 0 | Z256: =X256+W256 ->  | AA256: =Z256 ->  | AE256: =ROUND('DetailedBudget---TXST'!AL227*(1+'DetailedBudget---TXST'!CS227)*'R&R Budget conversion'!AF255,2) -> 0 | AH256: ='DetailedBudget---TXST'!AG227 -> 0 | AL256: ='DetailedBudget---TXST'!AI227 ->  | AM256: ='DetailedBudget---TXST'!LE227 -> 0 | AO256: =AM256+AL256 ->  | AP256: =AO256 ->  | AT256: =ROUND('DetailedBudget---TXST'!BA227*(1+'DetailedBudget---TXST'!DH227)*'R&R Budget conversion'!AU255,2) -> 0 | AW256: ='DetailedBudget---TXST'!AV227 -> 0 | BA256: ='DetailedBudget---TXST'!AX227 ->  | BB256: ='DetailedBudget---TXST'!LT227 -> 0 | BD256: =BB256+BA256 ->  | BE256: =BD256 ->  | BI256: =ROUND('DetailedBudget---TXST'!BP227*(1+'DetailedBudget---TXST'!DW227)*'R&R Budget conversion'!BJ255,2) -> 0 | BL256: ='DetailedBudget---TXST'!BK227 -> 0 | BP256: ='DetailedBudget---TXST'!BM227 -> 0 | BQ256: ='DetailedBudget---TXST'!MI227 -> 0 | BS256: =BQ256+BP256 -> 0 | BT256: =BS256 -> 0
A258: --------------- Additional Senior/Key Person 6 --------------- | P258: --------------- Additional Senior/Key Person 6 --------------- | AE258: --------------- Additional Senior/Key Person 6 --------------- | AT258: --------------- Additional Senior/Key Person 6 --------------- | BI258: --------------- Additional Senior/Key Person 6 ---------------
A259: Prefix | C259: Name | F259: Suffix | P259: Prefix | R259: Name | U259: Suffix | AE259: Prefix | AG259: Name | AJ259: Suffix | AT259: Prefix | AV259: Name | AY259: Suffix | BI259: Prefix | BK259: Name | BN259: Suffix
C260: ='DetailedBudget---TXST'!$F248 -> 0 | R260: ='DetailedBudget---TXST'!$F248 -> 0 | AG260: ='DetailedBudget---TXST'!$F248 -> 0 | AV260: ='DetailedBudget---TXST'!$F248 -> 0 | BK260: ='DetailedBudget---TXST'!$F248 -> 0
A262: Project Role | P262: Project Role | AE262: Project Role | AT262: Project Role | BI262: Project Role
A265: Base Salary | B265: 0 | D265: Cal/Acad./Summer | H265: Req. Salary | I265: Fringe | K265: Total (Sal & Fringe) | L265: Federal | M265: Non-Federal | P265: Base Salary | Q265: 0 | S265: Cal/Acad./Summer | W265: Req. Salary | X265: Fringe | Z265: Total (Sal & Fringe) | AA265: Federal | AB265: Non-Federal | AE265: Base Salary | AF265: 0 | AH265: Cal/Acad./Summer | AL265: Req. Salary | AM265: Fringe | AO265: Total (Sal & Fringe) | AP265: Federal | AQ265: Non-Federal | AT265: Base Salary | AU265: 0 | AW265: Cal/Acad./Summer | BA265: Req. Salary | BB265: Fringe | BD265: Total (Sal & Fringe) | BE265: Federal | BF265: Non-Federal | BI265: Base Salary | BJ265: 0 | BL265: Cal/Acad./Summer | BP265: Req. Salary | BQ265: Fringe | BS265: Total (Sal & Fringe) | BT265: Federal | BU265: Non-Federal
A266: =ROUND('DetailedBudget---TXST'!H248*(1+'DetailedBudget---TXST'!BO248)*'R&R Budget conversion'!B265,2) -> 0 | D266: ='DetailedBudget---TXST'!M248 ->  | H266: ='DetailedBudget---TXST'!O248 -> 0 | I266: ='DetailedBudget---TXST'!KK248 -> 0 | K266: =I266+H266 -> 0 | L266: =K266 -> 0 | M266: zero dollars | P266: =ROUND('DetailedBudget---TXST'!W248*(1+'DetailedBudget---TXST'!CD248)*'R&R Budget conversion'!Q265,2) -> 0 | S266: ='DetailedBudget---TXST'!R248 -> 0 | W266: ='DetailedBudget---TXST'!T248 -> 0 | X266: ='DetailedBudget---TXST'!KP248 -> 0 | Z266: =X266+W266 -> 0 | AA266: =Z266 -> 0 | AE266: =ROUND('DetailedBudget---TXST'!AL248*(1+'DetailedBudget---TXST'!CS248)*'R&R Budget conversion'!AF265,2) -> 0 | AH266: ='DetailedBudget---TXST'!AG248 -> 0 | AL266: ='DetailedBudget---TXST'!AI248 -> 0 | AM266: ='DetailedBudget---TXST'!LE248 -> 0 | AO266: =AM266+AL266 -> 0 | AP266: =AO266 -> 0 | AT266: =ROUND('DetailedBudget---TXST'!BA248*(1+'DetailedBudget---TXST'!DH248)*'R&R Budget conversion'!AU265,2) -> 0 | AW266: ='DetailedBudget---TXST'!AV248 -> 0 | BA266: ='DetailedBudget---TXST'!AX248 -> 0 | BB266: ='DetailedBudget---TXST'!LT248 -> 0 | BD266: =BB266+BA266 -> 0 | BE266: =BD266 -> 0 | BI266: =ROUND('DetailedBudget---TXST'!BP248*(1+'DetailedBudget---TXST'!DW248)*'R&R Budget conversion'!BJ265,2) -> 0 | BL266: ='DetailedBudget---TXST'!BK248 -> 0 | BP266: ='DetailedBudget---TXST'!BM248 -> 0 | BQ266: ='DetailedBudget---TXST'!MI248 -> 0 | BS266: =BQ266+BP266 -> 0 | BT266: =BS266 -> 0
A268: --------------- Additional Senior/Key Person 7 --------------- | P268: --------------- Additional Senior/Key Person 7 --------------- | AE268: --------------- Additional Senior/Key Person 7 --------------- | AT268: --------------- Additional Senior/Key Person 7 --------------- | BI268: --------------- Additional Senior/Key Person 7 ---------------
A269: Prefix | C269: Name | F269: Suffix | P269: Prefix | R269: Name | U269: Suffix | AE269: Prefix | AG269: Name | AJ269: Suffix | AT269: Prefix | AV269: Name | AY269: Suffix | BI269: Prefix | BK269: Name | BN269: Suffix
C270: ='DetailedBudget---TXST'!$F249 -> 0 | R270: ='DetailedBudget---TXST'!$F249 -> 0 | AG270: ='DetailedBudget---TXST'!$F249 -> 0 | AV270: ='DetailedBudget---TXST'!$F249 -> 0 | BK270: ='DetailedBudget---TXST'!$F249 -> 0
A272: Project Role | P272: Project Role | AE272: Project Role | AT272: Project Role | BI272: Project Role
A275: Base Salary | B275: 0 | D275: Cal/Acad./Summer | H275: Req. Salary | I275: Fringe | K275: Total (Sal & Fringe) | L275: Federal | M275: Non-Federal | P275: Base Salary | Q275: 0 | S275: Cal/Acad./Summer | W275: Req. Salary | X275: Fringe | Z275: Total (Sal & Fringe) | AA275: Federal | AB275: Non-Federal | AE275: Base Salary | AF275: 0 | AH275: Cal/Acad./Summer | AL275: Req. Salary | AM275: Fringe | AO275: Total (Sal & Fringe) | AP275: Federal | AQ275: Non-Federal | AT275: Base Salary | AU275: 0 | AW275: Cal/Acad./Summer | BA275: Req. Salary | BB275: Fringe | BD275: Total (Sal & Fringe) | BE275: Federal | BF275: Non-Federal | BI275: Base Salary | BJ275: 0 | BL275: Cal/Acad./Summer | BP275: Req. Salary | BQ275: Fringe | BS275: Total (Sal & Fringe) | BT275: Federal | BU275: Non-Federal
A276: =ROUND('DetailedBudget---TXST'!H249*(1+'DetailedBudget---TXST'!BO249)*'R&R Budget conversion'!B275,2) -> 0 | D276: ='DetailedBudget---TXST'!M249 ->  | H276: ='DetailedBudget---TXST'!O249 -> 0 | I276: ='DetailedBudget---TXST'!KK249 -> 0 | K276: =I276+H276 -> 0 | L276: =K276 -> 0 | M276: zero dollars | P276: =ROUND('DetailedBudget---TXST'!W249*(1+'DetailedBudget---TXST'!CD249)*'R&R Budget conversion'!Q275,2) -> 0 | S276: ='DetailedBudget---TXST'!R249 -> 0 | W276: ='DetailedBudget---TXST'!T249 -> 0 | X276: ='DetailedBudget---TXST'!KP249 -> 0 | Z276: =X276+W276 -> 0 | AA276: =Z276 -> 0 | AE276: =ROUND('DetailedBudget---TXST'!AL249*(1+'DetailedBudget---TXST'!CS249)*'R&R Budget conversion'!AF275,2) -> 0 | AH276: ='DetailedBudget---TXST'!AG249 -> 0 | AL276: ='DetailedBudget---TXST'!AI249 -> 0 | AM276: ='DetailedBudget---TXST'!LE249 -> 0 | AO276: =AM276+AL276 -> 0 | AP276: =AO276 -> 0 | AT276: =ROUND('DetailedBudget---TXST'!BA249*(1+'DetailedBudget---TXST'!DH249)*'R&R Budget conversion'!AU275,2) -> 0 | AW276: ='DetailedBudget---TXST'!AV249 -> 0 | BA276: ='DetailedBudget---TXST'!AX249 -> 0 | BB276: ='DetailedBudget---TXST'!LT249 -> 0 | BD276: =BB276+BA276 -> 0 | BE276: =BD276 -> 0 | BI276: =ROUND('DetailedBudget---TXST'!BP249*(1+'DetailedBudget---TXST'!DW249)*'R&R Budget conversion'!BJ275,2) -> 0 | BL276: ='DetailedBudget---TXST'!BK249 -> 0 | BP276: ='DetailedBudget---TXST'!BM249 -> 0 | BQ276: ='DetailedBudget---TXST'!MI249 -> 0 | BS276: =BQ276+BP276 -> 0 | BT276: =BS276 -> 0
A278: --------------- Additional Senior/Key Person 8 --------------- | P278: --------------- Additional Senior/Key Person 8 --------------- | AE278: --------------- Additional Senior/Key Person 8 --------------- | AT278: --------------- Additional Senior/Key Person 8 --------------- | BI278: --------------- Additional Senior/Key Person 8 ---------------
A279: Prefix | C279: Name | F279: Suffix | P279: Prefix | R279: Name | U279: Suffix | AE279: Prefix | AG279: Name | AJ279: Suffix | AT279: Prefix | AV279: Name | AY279: Suffix | BI279: Prefix | BK279: Name | BN279: Suffix
C280: ='DetailedBudget---TXST'!$F250 -> 0 | R280: ='DetailedBudget---TXST'!$F250 -> 0 | AG280: ='DetailedBudget---TXST'!$F250 -> 0 | AV280: ='DetailedBudget---TXST'!$F250 -> 0 | BK280: ='DetailedBudget---TXST'!$F250 -> 0
A282: Project Role | P282: Project Role | AE282: Project Role | AT282: Project Role | BI282: Project Role
A285: Base Salary | B285: 0 | D285: Cal/Acad./Summer | H285: Req. Salary | I285: Fringe | K285: Total (Sal & Fringe) | L285: Federal | M285: Non-Federal | P285: Base Salary | Q285: 0 | S285: Cal/Acad./Summer | W285: Req. Salary | X285: Fringe | Z285: Total (Sal & Fringe) | AA285: Federal | AB285: Non-Federal | AE285: Base Salary | AF285: 0 | AH285: Cal/Acad./Summer | AL285: Req. Salary | AM285: Fringe | AO285: Total (Sal & Fringe) | AP285: Federal | AQ285: Non-Federal | AT285: Base Salary | AU285: 0 | AW285: Cal/Acad./Summer | BA285: Req. Salary | BB285: Fringe | BD285: Total (Sal & Fringe) | BE285: Federal | BF285: Non-Federal | BI285: Base Salary | BJ285: 0 | BL285: Cal/Acad./Summer | BP285: Req. Salary | BQ285: Fringe | BS285: Total (Sal & Fringe) | BT285: Federal | BU285: Non-Federal
A286: =ROUND('DetailedBudget---TXST'!H250*(1+'DetailedBudget---TXST'!BO250)*'R&R Budget conversion'!B285,2) -> 0 | D286: ='DetailedBudget---TXST'!M250 ->  | H286: ='DetailedBudget---TXST'!O250 -> 0 | I286: ='DetailedBudget---TXST'!KK250 -> 0 | K286: =I286+H286 -> 0 | L286: =K286 -> 0 | M286: zero dollars | P286: =ROUND('DetailedBudget---TXST'!W250*(1+'DetailedBudget---TXST'!CD250)*'R&R Budget conversion'!Q285,2) -> 0 | S286: ='DetailedBudget---TXST'!R250 -> 0 | W286: ='DetailedBudget---TXST'!T250 -> 0 | X286: ='DetailedBudget---TXST'!KP250 -> 0 | Z286: =X286+W286 -> 0 | AA286: =Z286 -> 0 | AE286: =ROUND('DetailedBudget---TXST'!AL250*(1+'DetailedBudget---TXST'!CS250)*'R&R Budget conversion'!AF285,2) -> 0 | AH286: ='DetailedBudget---TXST'!AG250 -> 0 | AL286: ='DetailedBudget---TXST'!AI250 -> 0 | AM286: ='DetailedBudget---TXST'!LE250 -> 0 | AO286: =AM286+AL286 -> 0 | AP286: =AO286 -> 0 | AT286: =ROUND('DetailedBudget---TXST'!BA250*(1+'DetailedBudget---TXST'!DH250)*'R&R Budget conversion'!AU285,2) -> 0 | AW286: ='DetailedBudget---TXST'!AV250 -> 0 | BA286: ='DetailedBudget---TXST'!AX250 -> 0 | BB286: ='DetailedBudget---TXST'!LT250 -> 0 | BD286: =BB286+BA286 -> 0 | BE286: =BD286 -> 0 | BI286: =ROUND('DetailedBudget---TXST'!BP250*(1+'DetailedBudget---TXST'!DW250)*'R&R Budget conversion'!BJ285,2) -> 0 | BL286: ='DetailedBudget---TXST'!BK250 -> 0 | BP286: ='DetailedBudget---TXST'!BM250 -> 0 | BQ286: ='DetailedBudget---TXST'!MI250 -> 0 | BS286: =BQ286+BP286 -> 0 | BT286: =BS286 -> 0
A288: --------------- Additional Senior/Key Person 9 --------------- | P288: --------------- Additional Senior/Key Person 9 --------------- | AE288: --------------- Additional Senior/Key Person 9 --------------- | AT288: --------------- Additional Senior/Key Person 9 --------------- | BI288: --------------- Additional Senior/Key Person 9 ---------------
A289: Prefix | C289: Name | F289: Suffix | P289: Prefix | R289: Name | U289: Suffix | AE289: Prefix | AG289: Name | AJ289: Suffix | AT289: Prefix | AV289: Name | AY289: Suffix | BI289: Prefix | BK289: Name | BN289: Suffix
C290: ='DetailedBudget---TXST'!$F251 -> 0 | R290: ='DetailedBudget---TXST'!$F251 -> 0 | AG290: ='DetailedBudget---TXST'!$F251 -> 0 | AV290: ='DetailedBudget---TXST'!$F251 -> 0 | BK290: ='DetailedBudget---TXST'!$F251 -> 0
A292: Project Role | P292: Project Role | AE292: Project Role | AT292: Project Role | BI292: Project Role
A295: Base Salary | B295: 0 | D295: Cal/Acad./Summer | H295: Req. Salary | I295: Fringe | K295: Total (Sal & Fringe) | L295: Federal | M295: Non-Federal | P295: Base Salary | Q295: 0 | S295: Cal/Acad./Summer | W295: Req. Salary | X295: Fringe | Z295: Total (Sal & Fringe) | AA295: Federal | AB295: Non-Federal | AE295: Base Salary | AF295: 0 | AH295: Cal/Acad./Summer | AL295: Req. Salary | AM295: Fringe | AO295: Total (Sal & Fringe) | AP295: Federal | AQ295: Non-Federal | AT295: Base Salary | AU295: 0 | AW295: Cal/Acad./Summer | BA295: Req. Salary | BB295: Fringe | BD295: Total (Sal & Fringe) | BE295: Federal | BF295: Non-Federal | BI295: Base Salary | BJ295: 0 | BL295: Cal/Acad./Summer | BP295: Req. Salary | BQ295: Fringe | BS295: Total (Sal & Fringe) | BT295: Federal | BU295: Non-Federal
A296: =ROUND('DetailedBudget---TXST'!H251*(1+'DetailedBudget---TXST'!BO251)*'R&R Budget conversion'!B295,2) ->  | D296: ='DetailedBudget---TXST'!M251 ->  | H296: ='DetailedBudget---TXST'!O251 -> 0 | I296: ='DetailedBudget---TXST'!KK251 -> 0 | K296: =I296+H296 -> 0 | L296: =K296 -> 0 | M296: zero dollars | P296: =ROUND('DetailedBudget---TXST'!W251*(1+'DetailedBudget---TXST'!CD251)*'R&R Budget conversion'!Q295,2) -> 0 | S296: ='DetailedBudget---TXST'!R251 -> 0 | W296: ='DetailedBudget---TXST'!T251 -> 0 | X296: ='DetailedBudget---TXST'!KP251 -> 0 | Z296: =X296+W296 -> 0 | AA296: =Z296 -> 0 | AE296: =ROUND('DetailedBudget---TXST'!AL251*(1+'DetailedBudget---TXST'!CS251)*'R&R Budget conversion'!AF295,2) -> 0 | AH296: ='DetailedBudget---TXST'!AG251 -> 0 | AL296: ='DetailedBudget---TXST'!AI251 -> 0 | AM296: ='DetailedBudget---TXST'!LE251 -> 0 | AO296: =AM296+AL296 -> 0 | AP296: =AO296 -> 0 | AT296: =ROUND('DetailedBudget---TXST'!BA251*(1+'DetailedBudget---TXST'!DH251)*'R&R Budget conversion'!AU295,2) -> 0 | AW296: ='DetailedBudget---TXST'!AV251 -> 0 | BA296: ='DetailedBudget---TXST'!AX251 -> 0 | BB296: ='DetailedBudget---TXST'!LT251 -> 0 | BD296: =BB296+BA296 -> 0 | BE296: =BD296 -> 0 | BI296: =ROUND('DetailedBudget---TXST'!BP251*(1+'DetailedBudget---TXST'!DW251)*'R&R Budget conversion'!BJ295,2) -> 0 | BL296: ='DetailedBudget---TXST'!BK251 -> 0 | BP296: ='DetailedBudget---TXST'!BM251 -> 0 | BQ296: ='DetailedBudget---TXST'!MI251 -> 0 | BS296: =BQ296+BP296 -> 0 | BT296: =BS296 -> 0
A298: --------------- Additional Senior/Key Person 10 --------------- | P298: --------------- Additional Senior/Key Person 10 --------------- | AE298: --------------- Additional Senior/Key Person 10 --------------- | AT298: --------------- Additional Senior/Key Person 10 --------------- | BI298: --------------- Additional Senior/Key Person 10 ---------------
A299: Prefix | C299: Name | F299: Suffix | P299: Prefix | R299: Name | U299: Suffix | AE299: Prefix | AG299: Name | AJ299: Suffix | AT299: Prefix | AV299: Name | AY299: Suffix | BI299: Prefix | BK299: Name | BN299: Suffix
C300: ='DetailedBudget---TXST'!$F252 ->  | R300: ='DetailedBudget---TXST'!$F252 ->  | AG300: ='DetailedBudget---TXST'!$F252 ->  | AV300: ='DetailedBudget---TXST'!$F252 ->  | BK300: ='DetailedBudget---TXST'!$F252 -> 
A302: Project Role | P302: Project Role | AE302: Project Role | AT302: Project Role | BI302: Project Role
A305: Base Salary | B305: 0 | D305: Cal/Acad./Summer | H305: Req. Salary | I305: Fringe | K305: Total (Sal & Fringe) | L305: Federal | M305: Non-Federal | P305: Base Salary | Q305: 0 | S305: Cal/Acad./Summer | W305: Req. Salary | X305: Fringe | Z305: Total (Sal & Fringe) | AA305: Federal | AB305: Non-Federal | AE305: Base Salary | AF305: 0 | AH305: Cal/Acad./Summer | AL305: Req. Salary | AM305: Fringe | AO305: Total (Sal & Fringe) | AP305: Federal | AQ305: Non-Federal | AT305: Base Salary | AU305: 0 | AW305: Cal/Acad./Summer | BA305: Req. Salary | BB305: Fringe | BD305: Total (Sal & Fringe) | BE305: Federal | BF305: Non-Federal | BI305: Base Salary | BJ305: 0 | BL305: Cal/Acad./Summer | BP305: Req. Salary | BQ305: Fringe | BS305: Total (Sal & Fringe) | BT305: Federal | BU305: Non-Federal
A306: =ROUND('DetailedBudget---TXST'!H252*(1+'DetailedBudget---TXST'!BO252)*'R&R Budget conversion'!B305,2) ->  | D306: ='DetailedBudget---TXST'!M252 ->  | H306: ='DetailedBudget---TXST'!O252 -> 0 | I306: ='DetailedBudget---TXST'!KK252 -> 0 | K306: =I306+H306 -> 0 | L306: =K306 -> 0 | M306: zero dollars | P306: =ROUND('DetailedBudget---TXST'!W252*(1+'DetailedBudget---TXST'!CD252)*'R&R Budget conversion'!Q305,2) -> 0 | S306: ='DetailedBudget---TXST'!R252 -> 0 | W306: ='DetailedBudget---TXST'!T252 -> 0 | X306: ='DetailedBudget---TXST'!KP252 -> 0 | Z306: =X306+W306 -> 0 | AA306: =Z306 -> 0 | AE306: =ROUND('DetailedBudget---TXST'!AL252*(1+'DetailedBudget---TXST'!CS252)*'R&R Budget conversion'!AF305,2) -> 0 | AH306: ='DetailedBudget---TXST'!AG252 -> 0 | AL306: ='DetailedBudget---TXST'!AI252 -> 0 | AM306: ='DetailedBudget---TXST'!LE252 -> 0 | AO306: =AM306+AL306 -> 0 | AP306: =AO306 -> 0 | AT306: =ROUND('DetailedBudget---TXST'!BA252*(1+'DetailedBudget---TXST'!DH252)*'R&R Budget conversion'!AU305,2) -> 0 | AW306: ='DetailedBudget---TXST'!AV252 -> 0 | BA306: ='DetailedBudget---TXST'!AX252 -> 0 | BB306: ='DetailedBudget---TXST'!LT252 -> 0 | BD306: =BB306+BA306 -> 0 | BE306: =BD306 -> 0 | BI306: =ROUND('DetailedBudget---TXST'!BP252*(1+'DetailedBudget---TXST'!DW252)*'R&R Budget conversion'!BJ305,2) -> 0 | BL306: ='DetailedBudget---TXST'!BK252 ->  | BP306: ='DetailedBudget---TXST'!BM252 -> 0 | BQ306: ='DetailedBudget---TXST'!MI252 -> 0 | BS306: =BQ306+BP306 -> 0 | BT306: =BS306 -> 0
A308: --------------- Additional Senior/Key Person 10 --------------- | P308: --------------- Additional Senior/Key Person 10 --------------- | AE308: --------------- Additional Senior/Key Person 10 --------------- | AT308: --------------- Additional Senior/Key Person 10 --------------- | BI308: --------------- Additional Senior/Key Person 10 ---------------
A309: Prefix | C309: Name | F309: Suffix | P309: Prefix | R309: Name | U309: Suffix | AE309: Prefix | AG309: Name | AJ309: Suffix | AT309: Prefix | AV309: Name | AY309: Suffix | BI309: Prefix | BK309: Name | BN309: Suffix
C310: ='DetailedBudget---TXST'!$F323 -> 0 | R310: ='DetailedBudget---TXST'!$F323 -> 0 | AG310: ='DetailedBudget---TXST'!$F323 -> 0 | AV310: ='DetailedBudget---TXST'!$F323 -> 0 | BK310: ='DetailedBudget---TXST'!$F323 -> 0
A312: Project Role | P312: Project Role | AE312: Project Role | AT312: Project Role | BI312: Project Role
A313: PD/PI | P313: PD/PI | AE313: PD/PI | AT313: PD/PI | BI313: PD/PI
A315: Base Salary | B315: 0 | D315: Cal/Acad./Summer | H315: Req. Salary | I315: Fringe | K315: Total (Sal & Fringe) | L315: Federal | M315: Non-Federal | P315: Base Salary | Q315: 0 | S315: Cal/Acad./Summer | W315: Req. Salary | X315: Fringe | Z315: Total (Sal & Fringe) | AA315: Federal | AB315: Non-Federal | AE315: Base Salary | AF315: 0 | AH315: Cal/Acad./Summer | AL315: Req. Salary | AM315: Fringe | AO315: Total (Sal & Fringe) | AP315: Federal | AQ315: Non-Federal | AT315: Base Salary | AU315: 0 | AW315: Cal/Acad./Summer | BA315: Req. Salary | BB315: Fringe | BD315: Total (Sal & Fringe) | BE315: Federal | BF315: Non-Federal | BI315: Base Salary | BJ315: 0 | BL315: Cal/Acad./Summer | BP315: Req. Salary | BQ315: Fringe | BS315: Total (Sal & Fringe) | BT315: Federal | BU315: Non-Federal
A316: ='DetailedBudget---TXST'!GW323 -> 0 | D316: ='DetailedBudget---TXST'!M323 -> 0 | H316: ='DetailedBudget---TXST'!O323 -> 0 | I316: ='DetailedBudget---TXST'!KK323 -> 0 | K316: =I316+H316 -> 0 | L316: =K316 -> 0 | M316: zero dollars | P316: =ROUND('DetailedBudget---TXST'!H323*(1+'DetailedBudget---TXST'!BO323)*(1+'DetailedBudget---TXST'!BT323),2)*'R&R Budget conversion'!Q315 -> 0 | S316: ='DetailedBudget---TXST'!R323 -> 0 | W316: ='DetailedBudget---TXST'!T323 -> 0 | X316: ='DetailedBudget---TXST'!KP323 -> 0 | Z316: =X316+W316 -> 0 | AA316: =Z316 -> 0 | AE316: =ROUND('DetailedBudget---TXST'!W323*(1+'DetailedBudget---TXST'!$BO323)*(1+'DetailedBudget---TXST'!$BT323)+(1+'DetailedBudget---TXST'!$BY323),2)*'R&R Budget conversion'!AF315 -> 0 | AH316: ='DetailedBudget---TXST'!W323 -> 0 | AL316: ='DetailedBudget---TXST'!Y323 -> 0 | AM316: ='DetailedBudget---TXST'!KU323 -> 0 | AO316: =AM316+AL316 -> 0 | AP316: =AO316 -> 0 | AT316: =ROUND('DetailedBudget---TXST'!AB323*(1+'DetailedBudget---TXST'!$BO323)*(1+'DetailedBudget---TXST'!$BT323)+(1+'DetailedBudget---TXST'!$BY323)+(1+'DetailedBudget---TXST'!$CD323),2)*'R&R Budget conversion'!AU315 -> 0 | AW316: ='DetailedBudget---TXST'!AB323 -> 0 | BA316: ='DetailedBudget---TXST'!AD323 -> 0 | BB316: ='DetailedBudget---TXST'!KZ323 -> 0 | BD316: =BB316+BA316 -> 0 | BE316: =BD316 -> 0 | BI316: =ROUND('DetailedBudget---TXST'!AG323*(1+'DetailedBudget---TXST'!$BO323)*(1+'DetailedBudget---TXST'!$BT323)+(1+'DetailedBudget---TXST'!$BY323)+(1+'DetailedBudget---TXST'!$CD323)+(1+'DetailedBudget---TXST'!$CI323),2)*'R&R Budget conversion'!BJ315 -> 0 | BL316: ='DetailedBudget---TXST'!AG323 -> 0 | BP316: ='DetailedBudget---TXST'!AI323 -> 0 | BQ316: ='DetailedBudget---TXST'!LE323 -> 0 | BS316: =BQ316+BP316 -> 0 | BT316: =BS316 -> 0
A318: --------------- Additional Senior/Key Person 2 --------------- | P318: --------------- Additional Senior/Key Person 2 --------------- | AE318: --------------- Additional Senior/Key Person 2 --------------- | AT318: --------------- Additional Senior/Key Person 2 --------------- | BI318: --------------- Additional Senior/Key Person 2 ---------------
A319: Prefix | C319: Name | F319: Suffix | P319: Prefix | R319: Name | U319: Suffix | AE319: Prefix | AG319: Name | AJ319: Suffix | AT319: Prefix | AV319: Name | AY319: Suffix | BI319: Prefix | BK319: Name | BN319: Suffix
C320: ='DetailedBudget---TXST'!F324 -> 0 | R320: ='DetailedBudget---TXST'!$F323 -> 0 | AG320: ='DetailedBudget---TXST'!$F323 -> 0 | AV320: ='DetailedBudget---TXST'!$F323 -> 0 | BK320: ='DetailedBudget---TXST'!$F323 -> 0
A322: Project Role | P322: Project Role | AE322: Project Role | AT322: Project Role | BI322: Project Role
A325: Base Salary | B325: 0 | D325: Cal/Acad./Summer | H325: Req. Salary | I325: Fringe | K325: Total (Sal & Fringe) | L325: Federal | M325: Non-Federal | P325: Base Salary | Q325: 0 | S325: Cal/Acad./Summer | W325: Req. Salary | X325: Fringe | Z325: Total (Sal & Fringe) | AA325: Federal | AB325: Non-Federal | AE325: Base Salary | AF325: 0 | AH325: Cal/Acad./Summer | AL325: Req. Salary | AM325: Fringe | AO325: Total (Sal & Fringe) | AP325: Federal | AQ325: Non-Federal | AT325: Base Salary | AU325: 0 | AW325: Cal/Acad./Summer | BA325: Req. Salary | BB325: Fringe | BD325: Total (Sal & Fringe) | BE325: Federal | BF325: Non-Federal | BI325: Base Salary | BJ325: 0 | BL325: Cal/Acad./Summer | BP325: Req. Salary | BQ325: Fringe | BS325: Total (Sal & Fringe) | BT325: Federal | BU325: Non-Federal
A326: =ROUND('DetailedBudget---TXST'!H324*(1+'DetailedBudget---TXST'!BO324)*'R&R Budget conversion'!B325,2) -> 0 | D326: ='DetailedBudget---TXST'!M324 -> 0 | H326: ='DetailedBudget---TXST'!O324 -> 0 | I326: ='DetailedBudget---TXST'!KK324 -> 0 | K326: =I326+H326 -> 0 | L326: =K326 -> 0 | M326: zero dollars | P326: =ROUND('DetailedBudget---TXST'!H324*(1+'DetailedBudget---TXST'!BO324)*(1+'DetailedBudget---TXST'!BT324),2)*'R&R Budget conversion'!Q325 -> 0 | S326: ='DetailedBudget---TXST'!R324 -> 0 | W326: ='DetailedBudget---TXST'!T324 -> 0 | X326: ='DetailedBudget---TXST'!KP324 -> 0 | Z326: =X326+W326 -> 0 | AA326: =Z326 -> 0 | AE326: =ROUND('DetailedBudget---TXST'!W324*(1+'DetailedBudget---TXST'!CD324)*(1+'DetailedBudget---TXST'!CI324),2)*'R&R Budget conversion'!AF325 -> 0 | AH326: ='DetailedBudget---TXST'!AG324 -> 0 | AL326: ='DetailedBudget---TXST'!AI324 -> 0 | AM326: ='DetailedBudget---TXST'!LE324 -> 0 | AO326: =AM326+AL326 -> 0 | AP326: =AO326 -> 0 | AT326: =ROUND('DetailedBudget---TXST'!AL324*(1+'DetailedBudget---TXST'!CS324)*(1+'DetailedBudget---TXST'!CX324),2)*'R&R Budget conversion'!AU325 -> 0 | AW326: ='DetailedBudget---TXST'!AV324 -> 0 | BA326: ='DetailedBudget---TXST'!AX324 -> 0 | BB326: ='DetailedBudget---TXST'!LT324 -> 0 | BD326: =BB326+BA326 -> 0 | BE326: =BD326 -> 0 | BI326: =ROUND('DetailedBudget---TXST'!BA324*(1+'DetailedBudget---TXST'!DH324)*(1+'DetailedBudget---TXST'!DM324),2)*'R&R Budget conversion'!BJ325 -> 0 | BL326: ='DetailedBudget---TXST'!BK324 -> 0 | BP326: ='DetailedBudget---TXST'!BM324 -> 0 | BQ326: ='DetailedBudget---TXST'!MI324 -> 0 | BS326: =BQ326+BP326 -> 0 | BT326: =BS326 -> 0
A328: --------------- Additional Senior/Key Person 3 --------------- | P328: --------------- Additional Senior/Key Person 3 --------------- | AE328: --------------- Additional Senior/Key Person 3 --------------- | AT328: --------------- Additional Senior/Key Person 3 --------------- | BI328: --------------- Additional Senior/Key Person 3 ---------------
... 119 more rows

Sheet Subawards
A1: Subaward Summary Budgets
A2: ='DetailedBudget---TXST'!A2 -> title here
A3: Project Total: | F3: =BM61 -> 0
D5: Sponsor: | E5: ='DetailedBudget---TXST'!A1 -> Texas State University
B7: Prime Sponsor: | E7: ='Initial Information'!E5 -> Noobs
B9: Solicitation #: | E9: ='Initial Information'!E7 -> this one
E10: ='Initial Information'!E8 -> 1900-05-02
B11: CFDA / ALN: | E11: ='DetailedBudget---TXST'!E12 -> 123
D13: Project Dates: | E13: ='DetailedBudget---TXST'!E14 -> 2026-09-01 | H13: through | I13: ='DetailedBudget---TXST'!I14 -> 2028-08-31
D15: Due date: | E15: =WORKDAY('Initial Information'!E11,-3,Holidays!A:A) -> 2026-05-12
B17: # of days until subrecipient documents are due to TXST OSP | E17: =IF(ISBLANK('Initial Information'!E12), "Pending due date entry", IF(ISERROR(WORKDAY('Initial Information'!E12, -5, Holidays!A:A)), "Pending due date entry", WORKDAY('Initial Information'!E12, -5, Holidays!A:A))) -> 18 | BQ17: Helper Table for detailed budget tab
O19: ='DetailedBudget---TXST'!M19 -> Year 1 | T19: ='DetailedBudget---TXST'!R19 -> Year 2 | Y19: ='DetailedBudget---TXST'!W19 -> Year 3 | AD19: ='DetailedBudget---TXST'!AB19 -> Year 4 | AI19: ='DetailedBudget---TXST'!AG19 -> Year 5 | AN19: ='DetailedBudget---TXST'!AL19 -> Year 6 | AS19: ='DetailedBudget---TXST'!AQ19 -> Year 7 | AX19: ='DetailedBudget---TXST'!AV19 -> Year 8 | BC19: ='DetailedBudget---TXST'!BA19 -> Year 9 | BH19: ='DetailedBudget---TXST'!BF19 -> Year 10 | BM19: TOTAL FUNDS REQUESTED | BQ19: =O19 -> Year 1 | BW19: =T19 -> Year 2 | CB19: =Y19 -> Year 3 | CG19: =AD19 -> Year 4 | CL19: =AI19 -> Year 5 | CQ19: =AN19 -> Year 6 | CV19: =AS19 -> Year 7 | DA19: =AX19 -> Year 8 | DF19: =BC19 -> Year 9 | DK19: =BH19 -> Year 10 | DP19: Consortium TDC | DS19: Consortium IDC | DZ19: Consortium TDC | EC19: Consortium IDC
L20: IDC Rate | O20: ='DetailedBudget---TXST'!M20 -> 2026-09-01 | P20: - | Q20: ='DetailedBudget---TXST'!O20 -> 2027-08-31 | T20: ='DetailedBudget---TXST'!R20 -> 2027-09-01 | U20: - | V20: ='DetailedBudget---TXST'!T20 -> 2028-08-31 | Y20: ='DetailedBudget---TXST'!W20 -> 2028-09-01 | Z20: - | AA20: ='DetailedBudget---TXST'!Y20 -> 2029-08-31 | AD20: ='DetailedBudget---TXST'!AB20 -> 2029-09-01 | AE20: - | AF20: ='DetailedBudget---TXST'!AD20 -> 2030-08-31 | AI20: ='DetailedBudget---TXST'!AG20 -> 2030-09-01 | AJ20: - | AK20: ='DetailedBudget---TXST'!AI20 -> 2031-08-31 | AN20: ='DetailedBudget---TXST'!AL20 -> 2031-09-01 | AO20: - | AP20: ='DetailedBudget---TXST'!AN20 -> 2032-08-30 | AS20: ='DetailedBudget---TXST'!AQ20 -> 2032-08-31 | AT20: - | AU20: ='DetailedBudget---TXST'!AS20 -> 2033-08-31 | AX20: ='DetailedBudget---TXST'!AV20 -> 2033-09-01 | AY20: - | AZ20: ='DetailedBudget---TXST'!AX20 -> 2034-08-31 | BC20: ='DetailedBudget---TXST'!BA20 -> 2034-09-01 | BD20: - | BE20: ='DetailedBudget---TXST'!BC20 -> 2035-08-31 | BH20: ='DetailedBudget---TXST'!BF20 -> 2035-09-01 | BI20: - | BJ20: ='DetailedBudget---TXST'!BH20 -> 2036-08-30 | BQ20: =O20 -> 2026-09-01 | BR20: - | BS20: =Q20 -> 2027-08-31 | BW20: =T20 -> 2027-09-01 | BX20: - | BY20: =V20 -> 2028-08-31 | CB20: =Y20 -> 2028-09-01 | CC20: - | CD20: =AA20 -> 2029-08-31 | CG20: =AD20 -> 2029-09-01 | CH20: - | CI20: =AF20 -> 2030-08-31 | CL20: =AI20 -> 2030-09-01 | CM20: - | CN20: =AK20 -> 2031-08-31 | CQ20: =AN20 -> 2031-09-01 | CR20: - | CS20: =AP20 -> 2032-08-30 | CV20: =AS20 -> 2032-08-31 | CW20: - | CX20: =AU20 -> 2033-08-31 | DA20: =AX20 -> 2033-09-01 | DB20: - | DC20: =AZ20 -> 2034-08-31 | DF20: =BC20 -> 2034-09-01 | DG20: - | DH20: =BE20 -> 2035-08-31 | DK20: =BH20 -> 2035-09-01 | DL20: - | DM20: =BJ20 -> 2036-08-30
C21: Subawards
D22: ='Initial Information'!E20 & " total funding request." -> Enter name of subaward institution #1 total funding request. | O22: Total Direct Costs | BM22: =SUM(Q22:BJ22) -> 0 | BR22: =Q22+Q23 -> 0 | BW22: =V22+V23 -> 0 | CB22: =AA22+AA23 -> 0 | CG22: =AF22+AF23 -> 0 | CL22: =AK22+AK23 -> 0 | CQ22: =AP22+AP23 -> 0 | CV22: =AU22+AU23 -> 0 | DA22: =AZ22+AZ23 -> 0 | DF22: =BE22+BE23 -> 0 | DK22: =BJ22+BJ23 -> 0 | DY22: Y1 | DZ22: =Q22+Q26+Q30+Q34+Q38+Q42+Q46+Q50+Q54+Q58 -> 0 | EB22: Y1 | EC22: =Q23+Q27+Q31+Q35+Q39+Q43+Q47+Q51+Q55+Q59 -> 0
O23: Indirect Costs | BM23: =SUM(Q23:BJ23) -> 0
D26: ='Initial Information'!E21 & " total funding request." -> Enter name of subaward institution #2 total funding request. | BM26: =SUM(Q26:BJ26) -> 0 | BR26: =Q26+Q27 -> 0 | BW26: =V26+V27 -> 0 | CB26: =AA26+AA27 -> 0 | CG26: =AF26+AF27 -> 0 | CL26: =AK26+AK27 -> 0 | CQ26: =AP26+AP27 -> 0 | CV26: =AU26+AU27 -> 0 | DA26: =AZ26+AZ27 -> 0 | DF26: =BE26+BE27 -> 0 | DK26: =BJ26+BJ27 -> 0 | DY26: Y2 | DZ26: =V22+V26+V30+V34+V38+V42+V46+V50+V54+V58 -> 0 | EB26: Y2 | EC26: =V23+V27+V31+V35+V39+V43+V47+V51+V55+V59 -> 0
BM27: =SUM(Q27:BJ27) -> 0
D30: ='Initial Information'!E22 & " total funding request." -> Enter name of subaward institution #3 total funding request. | BM30: =SUM(Q30:BJ30) -> 0 | BR30: =Q30+Q31 -> 0 | BW30: =V30+V31 -> 0 | CB30: =AA30+AA31 -> 0 | CG30: =AF30+AF31 -> 0 | CL30: =AK30+AK31 -> 0 | CQ30: =AP30+AP31 -> 0 | CV30: =AU30+AU31 -> 0 | DA30: =AZ30+AZ31 -> 0 | DF30: =BE30+BE31 -> 0 | DK30: =BJ30+BJ31 -> 0 | DY30: Y3 | DZ30: =AA22+AA26+AA30+AA34+AA38+AA42+AA46+AA50+AA54+AA58 -> 0 | EB30: Y3 | EC30: =AA23+AA27+AA31+AA35+AA39+AA43+AA47+AA51+AA55+AA59 -> 0
BM31: =SUM(Q31:BJ31) -> 0
D34: ='Initial Information'!E23 & " total funding request." -> Enter name of subaward institution #4 total funding request. | BM34: =SUM(Q34:BJ34) -> 0 | BR34: =Q34+Q35 -> 0 | BW34: =V34+V35 -> 0 | CB34: =AA34+AA35 -> 0 | CG34: =AF34+AF35 -> 0 | CL34: =AK34+AK35 -> 0 | CQ34: =AP34+AP35 -> 0 | CV34: =AU34+AU35 -> 0 | DA34: =AZ34+AZ35 -> 0 | DF34: =BE34+BE35 -> 0 | DK34: =BJ34+BJ35 -> 0 | DY34: Y4 | DZ34: =AF22+AF26+AF30+AF34+AF38+AF42+AF46+AF50+AF54+AF58 -> 0 | EB34: Y4 | EC34: =AF23+AF27+AF31+AF35+AF39+AF43+AF47+AF51+AF55+AF59 -> 0
BM35: =SUM(Q35:BJ35) -> 0
D38: ='Initial Information'!E24 & " total funding request." -> Enter name of subaward institution #5 total funding request. | BM38: =SUM(Q38:BJ38) -> 0 | BR38: =Q38+Q39 -> 0 | BW38: =V38+V39 -> 0 | CB38: =AA38+AA39 -> 0 | CG38: =AF38+AF39 -> 0 | CL38: =AK38+AK39 -> 0 | CQ38: =AP38+AP39 -> 0 | CV38: =AU38+AU39 -> 0 | DA38: =AZ38+AZ39 -> 0 | DF38: =BE38+BE39 -> 0 | DK38: =BJ38+BJ39 -> 0 | DY38: Y5 | DZ38: =AK22+AK26+AK30+AK34+AK38+AK42+AK46+AK50+AK54+AK58 -> 0 | EB38: Y5 | EC38: =AK23+AK27+AK31+AK35+AK39+AK43+AK47+AK51+AK55+AK59 -> 0
BM39: 0
D42: ='Initial Information'!G20 & " total funding request." -> Enter name of subaward institution #6 total funding request. | BM42: =SUM(Q42:BJ42) -> 0 | BR42: =Q42+Q43 -> 0 | BW42: =V42+V43 -> 0 | CB42: =AA42+AA43 -> 0 | CG42: =AF42+AF43 -> 0 | CL42: =AK42+AK43 -> 0 | CQ42: =AP42+AP43 -> 0 | CV42: =AU42+AU43 -> 0 | DA42: =AZ42+AZ43 -> 0 | DF42: =BE42+BE43 -> 0 | DK42: =BJ42+BJ43 -> 0 | DY42: Y6 | DZ42: =BJ22+BJ26+BJ30+BJ34+BJ38+BJ42+BJ46+BJ50+BJ54+BJ58 -> 0 | EB42: Y6 | EC42: =BJ23+BJ27+BJ31+BJ35+BJ39+BJ43+BJ47+BJ51+BJ55+BJ59 -> 0
BM43: 0
D46: ='Initial Information'!G21 & " total funding request." -> Enter name of subaward institution #7 total funding request. | BM46: =SUM(Q46:BJ46) -> 0 | BR46: =Q46+Q47 -> 0 | BW46: =V46+V47 -> 0 | CB46: =AA46+AA47 -> 0 | CG46: =AF46+AF47 -> 0 | CL46: =AK46+AK47 -> 0 | CQ46: =AP46+AP47 -> 0 | CV46: =AU46+AU47 -> 0 | DA46: =AZ46+AZ47 -> 0 | DF46: =BE46+BE47 -> 0 | DK46: =BJ46+BJ47 -> 0 | DY46: Y6 | EB46: Y6 | EC46: =BJ27+BJ31+BJ35+BJ39+BJ43+BJ47+BJ51+BJ55+BJ59+BJ63 -> 0
BM47: 0
D50: ='Initial Information'!G22 & " total funding request." -> Enter name of subaward institution #8 total funding request. | BM50: =SUM(Q50:BJ50) -> 0 | BR50: =Q50+Q51 -> 0 | BW50: =V50+V51 -> 0 | CB50: =AA50+AA51 -> 0 | CG50: =AF50+AF51 -> 0 | CL50: =AK50+AK51 -> 0 | CQ50: =AP50+AP51 -> 0 | CV50: =AU50+AU51 -> 0 | DA50: =AZ50+AZ51 -> 0 | DF50: =BE50+BE51 -> 0 | DK50: =BJ50+BJ51 -> 0 | DY50: Y6 | EB50: Y6 | EC50: =BJ31+BJ35+BJ39+BJ43+BJ47+BJ51+BJ55+BJ59+BJ63+BJ67 -> 0
BM51: 0
D54: ='Initial Information'!G23 & " total funding request." -> Enter name of subaward institution #9 total funding request. | BM54: =SUM(Q54:BJ54) -> 0 | BR54: =Q54+Q55 -> 0 | BW54: =V54+V55 -> 0 | CB54: =AA54+AA55 -> 0 | CG54: =AF54+AF55 -> 0 | CL54: =AK54+AK55 -> 0 | CQ54: =AP54+AP55 -> 0 | CV54: =AU54+AU55 -> 0 | DA54: =AZ54+AZ55 -> 0 | DF54: =BE54+BE55 -> 0 | DK54: =BJ54+BJ55 -> 0 | DY54: Y6 | EB54: Y6
BM55: 0
D58: ='Initial Information'!G24 & " total funding request." -> Enter name of subaward institution #10 total funding request. | BM58: =SUM(Q58:BJ58) -> 0 | BR58: =Q58+Q59 -> 0 | BW58: =V58+V59 -> 0 | CB58: =AA58+AA59 -> 0 | CG58: =AF58+AF59 -> 0 | CL58: =AK58+AK59 -> 0 | CQ58: =AP58+AP59 -> 0 | CV58: =AU58+AU59 -> 0 | DA58: =AZ58+AZ59 -> 0 | DF58: =BE58+BE59 -> 0 | DK58: =BJ58+BJ59 -> 0 | DY58: Y6 | EB58: Y6
BM59: 0
C61: TOTAL SUBAWARD COSTS | Q61: =SUM(Q21:Q59) -> 0 | V61: =SUM(V21:V59) -> 0 | AA61: =SUM(AA21:AA59) -> 0 | AF61: =SUM(AF21:AF59) -> 0 | AK61: =SUM(AK21:AK59) -> 0 | AP61: =SUM(AP21:AP59) -> 0 | AU61: =SUM(AU21:AU59) -> 0 | AZ61: =SUM(AZ21:AZ59) -> 0 | BE61: =SUM(BE21:BE59) -> 0 | BJ61: =SUM(BJ21:BJ59) -> 0 | BM61: =SUM(Q61:BJ61) -> 0 | BR61: =SUM(BR22:BS59) -> 0 | BW61: =SUM(BW22:BY59) -> 0 | CB61: =SUM(CB22:CD59) -> 0 | CG61: =SUM(CG22:CI59) -> 0 | CL61: =SUM(CL22:CN59) -> 0 | CQ61: =SUM(CQ22:CS59) -> 0 | CV61: =SUM(CV22:CX59) -> 0 | DA61: =SUM(DA22:DC59) -> 0 | DF61: =SUM(DF22:DH59) -> 0 | DK61: =SUM(DK22:DM59) -> 0 | DP61: =SUM(BM58+BM54+BM50+BM46+BM42+BM38+BM34+BM30+BM26+BM22) -> 0 | DS61: =SUM(BM23+BM27+BM31+BM35+BM39+BM43+BM47+BM51+BM55+BM59) -> 0 | DY61: Total | DZ61: =SUM(DZ22:DZ42) -> 0 | EB61: Total | EC61: =SUM(EC22:EC42) -> 0
BQ67: Helper Table for cost share budget tab
O69: =O19 -> Year 1 | T69: =T19 -> Year 2 | Y69: =Y19 -> Year 3 | AD69: =AD19 -> Year 4 | AI69: =AI19 -> Year 5 | AN69: =AN19 -> Year 6 | AS69: =AS19 -> Year 7 | AX69: =AX19 -> Year 8 | BC69: =BC19 -> Year 9 | BH69: =BH19 -> Year 10 | BM69: TOTAL COST SHARE / IN-KIND SUPPORT | BQ69: =O69 -> Year 1 | BW69: =T69 -> Year 2 | CB69: =Y69 -> Year 3 | CG69: =AD69 -> Year 4 | CL69: =AI69 -> Year 5 | CQ69: =AN69 -> Year 6 | CV69: =AS69 -> Year 7 | DA69: =AX69 -> Year 8 | DF69: =BC69 -> Year 9 | DK69: =BH69 -> Year 10 | DP69: Total Consortium Cost Share
C70: Cost Share Total from Subawards: | F70: =BM111 -> 0 | L70: IDC Rate | O70: =O20 -> 2026-09-01 | P70: - | Q70: =Q20 -> 2027-08-31 | T70: =T20 -> 2027-09-01 | U70: - | V70: =V20 -> 2028-08-31 | Y70: =Y20 -> 2028-09-01 | Z70: - | AA70: =AA20 -> 2029-08-31 | AD70: =AD20 -> 2029-09-01 | AE70: - | AF70: =AF20 -> 2030-08-31 | AI70: =AI20 -> 2030-09-01 | AJ70: - | AK70: =AK20 -> 2031-08-31 | AN70: =AN20 -> 2031-09-01 | AO70: - | AP70: =AP20 -> 2032-08-30 | AS70: =AS20 -> 2032-08-31 | AT70: - | AU70: =AU20 -> 2033-08-31 | AX70: =AX20 -> 2033-09-01 | AY70: - | AZ70: =AZ20 -> 2034-08-31 | BC70: =BC20 -> 2034-09-01 | BD70: - | BE70: =BE20 -> 2035-08-31 | BH70: =BH20 -> 2035-09-01 | BI70: - | BJ70: =BJ20 -> 2036-08-30 | BQ70: =O70 -> 2026-09-01 | BR70: - | BS70: =Q70 -> 2027-08-31 | BW70: =T70 -> 2027-09-01 | BX70: - | BY70: =V70 -> 2028-08-31 | CB70: =Y70 -> 2028-09-01 | CC70: - | CD70: =AA70 -> 2029-08-31 | CG70: =AD70 -> 2029-09-01 | CH70: - | CI70: =AF70 -> 2030-08-31 | CL70: =AI70 -> 2030-09-01 | CM70: - | CN70: =AK70 -> 2031-08-31 | CQ70: =AN70 -> 2031-09-01 | CR70: - | CS70: =AP70 -> 2032-08-30 | CV70: =AS70 -> 2032-08-31 | CW70: - | CX70: =AU70 -> 2033-08-31 | DA70: =AX70 -> 2033-09-01 | DB70: - | DC70: =AZ70 -> 2034-08-31 | DF70: =BC70 -> 2034-09-01 | DG70: - | DH70: =BE70 -> 2035-08-31 | DK70: =BH70 -> 2035-09-01 | DL70: - | DM70: =BJ70 -> 2036-08-30
C71: Cost Shared/In-Kind portion from Subawards
D72: ='Initial Information'!E20 & " total cost share." -> Enter name of subaward institution #1 total cost share. | O72: Total Direct Cost | BM72: =SUM(Q72:BJ73) -> 0 | BR72: =Q72+Q73 -> 0 | BW72: =V72+V73 -> 0 | CB72: =AA72+AA73 -> 0 | CG72: =AF72+AF73 -> 0 | CL72: =AK72+AK73 -> 0 | CQ72: =AP72+AP73 -> 0 | CV72: =AU72+AU73 -> 0 | DA72: =AZ72+AZ73 -> 0 | DF72: =BE72+BE73 -> 0 | DK72: =BJ72+BJ73 -> 0 | DP72: =SUM(BR72:DM73) -> 0
O73: Indirect Cost
D76: ='Initial Information'!E21 & " total cost share." -> Enter name of subaward institution #2 total cost share. | BM76: =SUM(Q76:BJ77) -> 0 | BR76: =Q76+Q77 -> 0 | BW76: =V76+V77 -> 0 | CB76: =AA76+AA77 -> 0 | CG76: =AF76+AF77 -> 0 | CL76: =AK76+AK77 -> 0 | CQ76: =AP76+AP77 -> 0 | CV76: =AU76+AU77 -> 0 | DA76: =AZ76+AZ77 -> 0 | DF76: =BE76+BE77 -> 0 | DK76: =BJ76+BJ77 -> 0 | DP76: =SUM(BR76:DM77) -> 0
D80: ='Initial Information'!E22 & " total cost share." -> Enter name of subaward institution #3 total cost share. | BM80: =SUM(Q80:BJ81) -> 0 | BR80: =Q80+Q81 -> 0 | BW80: =V80+V81 -> 0 | CB80: =AA80+AA81 -> 0 | CG80: =AF80+AF81 -> 0 | CL80: =AK80+AK81 -> 0 | CQ80: =AP80+AP81 -> 0 | CV80: =AU80+AU81 -> 0 | DA80: =AZ80+AZ81 -> 0 | DF80: =BE80+BE81 -> 0 | DK80: =BJ80+BJ81 -> 0 | DP80: =SUM(BR80:DM81) -> 0
D84: ='Initial Information'!E23 & " total cost share." -> Enter name of subaward institution #4 total cost share. | BM84: =SUM(Q84:BJ85) -> 0 | BR84: =Q84+Q85 -> 0 | BW84: =V84+V85 -> 0 | CB84: =AA84+AA85 -> 0 | CG84: =AF84+AF85 -> 0 | CL84: =AK84+AK85 -> 0 | CQ84: =AP84+AP85 -> 0 | CV84: =AU84+AU85 -> 0 | DA84: =AZ84+AZ85 -> 0 | DF84: =BE84+BE85 -> 0 | DK84: =BJ84+BJ85 -> 0 | DP84: =SUM(BR84:DM85) -> 0
D88: ='Initial Information'!E24 & " total cost share." -> Enter name of subaward institution #5 total cost share. | BM88: =SUM(Q88:BJ89) -> 0 | BR88: =Q88+Q89 -> 0 | BW88: =V88+V89 -> 0 | CB88: =AA88+AA89 -> 0 | CG88: =AF88+AF89 -> 0 | CL88: =AK88+AK89 -> 0 | CQ88: =AP88+AP89 -> 0 | CV88: =AU88+AU89 -> 0 | DA88: =AZ88+AZ89 -> 0 | DF88: =BE88+BE89 -> 0 | DK88: =BJ88+BJ89 -> 0 | DP88: =SUM(BR88:DM89) -> 0
D92: ='Initial Information'!G20 & " total cost share." -> Enter name of subaward institution #6 total cost share. | BM92: =SUM(Q92:BJ93) -> 0 | BR92: =Q92+Q93 -> 0 | BW92: =V92+V93 -> 0 | CB92: =AA92+AA93 -> 0 | CG92: =AF92+AF93 -> 0 | CL92: =AK92+AK93 -> 0 | CQ92: =AP92+AP93 -> 0 | CV92: =AU92+AU93 -> 0 | DA92: =AZ92+AZ93 -> 0 | DF92: =BE92+BE93 -> 0 | DK92: =BJ92+BJ93 -> 0 | DP92: =SUM(BR92:DM93) -> 0
D96: ='Initial Information'!G21 & " total cost share." -> Enter name of subaward institution #7 total cost share. | BM96: =SUM(Q96:BJ97) -> 0 | BR96: =Q96+Q97 -> 0 | BW96: =V96+V97 -> 0 | CB96: =AA96+AA97 -> 0 | CG96: =AF96+AF97 -> 0 | CL96: =AK96+AK97 -> 0 | CQ96: =AP96+AP97 -> 0 | CV96: =AU96+AU97 -> 0 | DA96: =AZ96+AZ97 -> 0 | DF96: =BE96+BE97 -> 0 | DK96: =BJ96+BJ97 -> 0 | DP96: =SUM(BR96:DM97) -> 0
D100: ='Initial Information'!G22 & " total cost share." -> Enter name of subaward institution #8 total cost share. | BM100: =SUM(Q100:BJ101) -> 0 | BR100: =Q100+Q101 -> 0 | BW100: =V100+V101 -> 0 | CB100: =AA100+AA101 -> 0 | CG100: =AF100+AF101 -> 0 | CL100: =AK100+AK101 -> 0 | CQ100: =AP100+AP101 -> 0 | CV100: =AU100+AU101 -> 0 | DA100: =AZ100+AZ101 -> 0 | DF100: =BE100+BE101 -> 0 | DK100: =BJ100+BJ101 -> 0 | DP100: =SUM(BR100:DM101) -> 0
